Workbook

Sheet Sheet1
A1: C1(WT rep1) | B1: reference | C1: Gene Symbol | D1: Unique | E1: Total | F1: Sum Intensity | G1: Intensity% | I1: C2(WT rep2) | J1: reference | K1: Gene Symbol | L1: Unique | M1: Total | N1: Sum Intensity | O1: Intensity% | Q1: C3（WT rep3) | R1: reference | S1: Gene Symbol | T1: Unique | U1: Total | V1: Sum Intensity | W1: Intensity% | Y1: T2(251KO Rep1) | Z1: reference | AA1: Gene Symbol | AB1: Unique | AC1: Total | AD1: Sum Intensity | AE1: Intensity% | AG1: T3(251KO Rep2 | AH1: reference | AI1: Gene Symbol | AJ1: Unique | AK1: Total | AL1: Sum Intensity | AM1: Intensity% | AO1: T22(251KO Rep3) | AP1: reference | AQ1: Gene Symbol | AR1: Unique | AS1: Total | AT1: Sum Intensity | AU1: Intensity% | AW1: reference | AX1: Gene Symbol | AY1: Annotation | AZ1: MWT(kDa) | BA1: Unique C1 | BB1: Total C1 | BC1: Unique C2 | BD1: Total C2 | BE1: Unique C3 | BF1: Total C3 | BG1: Unique T2 | BH1: Total T2 | BI1: Unique T3 | BJ1: Total T3 | BK1: Unique T22 | BL1: Total T22 | BM1: Max | BN1: Sum Intensity C1 | BO1: Sum Intensity C2 | BP1: Sum Intensity C3 | BQ1: Sum Intensity T2 | BR1: Sum Intensity T3 | BS1: Sum Intensity T22 | BT1: lowest value | BU1: C1 | BV1: C2 | BW1: C3 | BX1: T2 | BY1: T3 | BZ1: T22
B2: sp|P21333|FLNA_HUMAN | C2: FLNA | D2: 79 | E2: 122 | F2: 1.60E+08 | G2: 0.51 | J2: sp|P21333|FLNA_HUMAN | K2: FLNA | L2: 81 | M2: 135 | N2: 1.80E+08 | O2: 0.74 | R2: sp|Q99715|COCA1_HUMAN | S2: COL12A1 | T2: 87 | U2: 110 | V2: 1.10E+08 | W2: 0.41 | Z2: sp|Q99715|COCA1_HUMAN | AA2: COL12A1 | AB2: 63 | AC2: 65 | AD2: 2.40E+07 | AE2: 0.22 | AH2: sp|P21333|FLNA_HUMAN | AI2: FLNA | AJ2: 57 | AK2: 82 | AL2: 2.80E+07 | AM2: 0.29 | AP2: sp|Q99715|COCA1_HUMAN | AQ2: COL12A1 | AR2: 61 | AS2: 67 | AT2: 3.90E+07 | AU2: 0.17 | AW2: sp|Q99715|COCA1_HUMAN | AX2: COL12A1 | AY2: Collagen alpha-1(XII) chain OS=Homo sapiens GN=COL12A1 PE=1 SV=2 | AZ2: 332.94 | BA2: =IFERROR(VLOOKUP(AW2,B:F,3, FALSE),0) -> 21 | BB2: =IFERROR(VLOOKUP(AW2,B:F,4, FALSE),0) -> 21 | BC2: =IFERROR(VLOOKUP(AW2,J:N,3, FALSE),0) -> 81 | BD2: =IFERROR(VLOOKUP(AW2,J:N,4, FALSE),0) -> 89 | BE2: =IFERROR(VLOOKUP(AW2,R:V,3, FALSE),0) -> 87 | BF2: =IFERROR(VLOOKUP(AW2,R:V,4, FALSE),0) -> 110 | BG2: =IFERROR(VLOOKUP(AW2,Z:AD,3, FALSE),0) -> 63 | BH2: =IFERROR(VLOOKUP(AW2,Z:AD,4, FALSE),0) -> 65 | BI2: =IFERROR(VLOOKUP(AW2,AH:AL,3, FALSE),0) -> 39 | BJ2: =IFERROR(VLOOKUP(AW2,AH:AL,4, FALSE),0) -> 40 | BK2: =IFERROR(VLOOKUP(AW2,AP:AU,3, FALSE),0) -> 61 | BL2: =IFERROR(VLOOKUP(AW2,AP:AU,4, FALSE),0) -> 67 | BM2: =MAX(BA2:BL2) -> 110 | BN2: =IFERROR(VLOOKUP(AW2,B:F,5, FALSE),"NF") -> 4.30E+06 | BO2: =IFERROR(VLOOKUP(AW2,J:N,5, FALSE),"NF") -> 8.10E+07 | BP2: =IFERROR(VLOOKUP(AW2,R:V,5, FALSE),"NF") -> 1.10E+08 | BQ2: =IFERROR(VLOOKUP(AW2,Z:AD,5, FALSE),"NF") -> 2.40E+07 | BR2: =IFERROR(VLOOKUP(AW2,AH:AL,5, FALSE),"NF") -> 7.90E+06 | BS2: =IFERROR(VLOOKUP(AW2,AP:AU,5, FALSE),"NF") -> 3.90E+07 | BT2: =MIN(BN2:BS2) -> 4.30E+06 | BU2: =IFERROR(BN2/BT2,0) -> 1.0 | BV2: =IFERROR(BO2/BT2,0) -> 18.8 | BW2: =IFERROR(BP2/BT2,0) -> 25.6 | BX2: =IFERROR(BQ2/BT2,0) -> 5.6 | BY2: =IFERROR(BR2/BT2,0) -> 1.8 | BZ2: =IFERROR(BS2/BT2,0) -> 9.1
B3: sp|P49327|FAS_HUMAN | C3: FASN | D3: 76 | E3: 102 | F3: 1.40E+08 | G3: 0.46 | J3: sp|Q99715|COCA1_HUMAN | K3: COL12A1 | L3: 81 | M3: 89 | N3: 8.10E+07 | O3: 0.33 | R3: sp|P21333|FLNA_HUMAN | S3: FLNA | T3: 66 | U3: 116 | V3: 1.30E+08 | W3: 0.46 | Z3: sp|P21333|FLNA_HUMAN | AA3: FLNA | AB3: 62 | AC3: 85 | AD3: 3.30E+07 | AE3: 0.30 | AH3: sp|P49327|FAS_HUMAN | AI3: FASN | AJ3: 50 | AK3: 61 | AL3: 2.40E+07 | AM3: 0.25 | AP3: sp|P21333|FLNA_HUMAN | AQ3: FLNA | AR3: 59 | AS3: 83 | AT3: 5.50E+07 | AU3: 0.24 | AW3: sp|P21333|FLNA_HUMAN | AX3: FLNA | AY3: Filamin-A OS=Homo sapiens GN=FLNA PE=1 SV=4 | AZ3: 280.56 | BA3: =IFERROR(VLOOKUP(AW3,B:F,3, FALSE),0) -> 79 | BB3: =IFERROR(VLOOKUP(AW3,B:F,4, FALSE),0) -> 122 | BC3: =IFERROR(VLOOKUP(AW3,J:N,3, FALSE),0) -> 81 | BD3: =IFERROR(VLOOKUP(AW3,J:N,4, FALSE),0) -> 135 | BE3: =IFERROR(VLOOKUP(AW3,R:V,3, FALSE),0) -> 66 | BF3: =IFERROR(VLOOKUP(AW3,R:V,4, FALSE),0) -> 116 | BG3: =IFERROR(VLOOKUP(AW3,Z:AD,3, FALSE),0) -> 62 | BH3: =IFERROR(VLOOKUP(AW3,Z:AD,4, FALSE),0) -> 85 | BI3: =IFERROR(VLOOKUP(AW3,AH:AL,3, FALSE),0) -> 57 | BJ3: =IFERROR(VLOOKUP(AW3,AH:AL,4, FALSE),0) -> 82 | BK3: =IFERROR(VLOOKUP(AW3,AP:AU,3, FALSE),0) -> 59 | BL3: =IFERROR(VLOOKUP(AW3,AP:AU,4, FALSE),0) -> 83 | BM3: =MAX(BA3:BL3) -> 135 | BN3: =IFERROR(VLOOKUP(AW3,B:F,5, FALSE),"NF") -> 1.60E+08 | BO3: =IFERROR(VLOOKUP(AW3,J:N,5, FALSE),"NF") -> 1.80E+08 | BP3: =IFERROR(VLOOKUP(AW3,R:V,5, FALSE),"NF") -> 1.30E+08 | BQ3: =IFERROR(VLOOKUP(AW3,Z:AD,5, FALSE),"NF") -> 3.30E+07 | BR3: =IFERROR(VLOOKUP(AW3,AH:AL,5, FALSE),"NF") -> 2.80E+07 | BS3: =IFERROR(VLOOKUP(AW3,AP:AU,5, FALSE),"NF") -> 5.50E+07 | BT3: =MIN(BN3:BS3) -> 2.80E+07 | BU3: =IFERROR(BN3/BT3,0) -> 5.7 | BV3: =IFERROR(BO3/BT3,0) -> 6.4 | BW3: =IFERROR(BP3/BT3,0) -> 4.6 | BX3: =IFERROR(BQ3/BT3,0) -> 1.2 | BY3: =IFERROR(BR3/BT3,0) -> 1.0 | BZ3: =IFERROR(BS3/BT3,0) -> 2.0
B4: sp|P35579|MYH9_HUMAN | C4: MYH9 | D4: 68 | E4: 94 | F4: 5.50E+07 | G4: 0.18 | J4: sp|P49327|FAS_HUMAN | K4: FASN | L4: 77 | M4: 106 | N4: 1.30E+08 | O4: 0.54 | R4: sp|P49327|FAS_HUMAN | S4: FASN | T4: 62 | U4: 99 | V4: 1.10E+08 | W4: 0.41 | Z4: sp|P02751|FINC_HUMAN | AA4: FN1 | AB4: 56 | AC4: 79 | AD4: 1.20E+08 | AE4: 1.12 | AH4: sp|P02751|FINC_HUMAN | AI4: FN1 | AJ4: 49 | AK4: 61 | AL4: 7.70E+07 | AM4: 0.80 | AP4: sp|P49327|FAS_HUMAN | AQ4: FASN | AR4: 58 | AS4: 76 | AT4: 5.30E+07 | AU4: 0.23 | AW4: sp|P49327|FAS_HUMAN | AX4: FASN | AY4: Fatty acid synthase OS=Homo sapiens GN=FASN PE=1 SV=3 | AZ4: 273.25 | BA4: 76 | BB4: 102 | BC4: 77 | BD4: 106 | BE4: 62 | BF4: 99 | BG4: 52 | BH4: 58 | BI4: 50 | BJ4: 61 | BK4: 58 | BL4: 76 | BM4: 106 | BN4: 1.40E+08 | BO4: 1.30E+08 | BP4: 1.10E+08 | BQ4: 2.80E+07 | BR4: 2.40E+07 | BS4: 5.30E+07 | BT4: 2.40E+07 | BU4: 5.8 | BV4: 5.4 | BW4: 4.6 | BX4: 1.2 | BY4: 1.0 | BZ4: 2.2
B5: sp|Q13813|SPTN1_HUMAN | C5: SPTAN1 | D5: 61 | E5: 63 | F5: 2.30E+07 | G5: 0.07 | J5: sp|Q13813|SPTN1_HUMAN | K5: SPTAN1 | L5: 67 | M5: 70 | N5: 2.80E+07 | O5: 0.11 | R5: sp|P02751|FINC_HUMAN | S5: FN1 | T5: 58 | U5: 134 | V5: 5.00E+08 | W5: 1.83 | Z5: sp|P49327|FAS_HUMAN | AA5: FASN | AB5: 52 | AC5: 58 | AD5: 2.80E+07 | AE5: 0.26 | AH5: sp|Q99715|COCA1_HUMAN | AI5: COL12A1 | AJ5: 39 | AK5: 40 | AL5: 7.90E+06 | AM5: 0.08 | AP5: sp|P02751|FINC_HUMAN | AQ5: FN1 | AR5: 56 | AS5: 111 | AT5: 3.20E+08 | AU5: 1.41 | AW5: sp|Q13813|SPTN1_HUMAN | AX5: SPTAN1 | AY5: Spectrin alpha chain, non-erythrocytic 1 OS=Homo sapiens GN=SPTAN1 PE=1 SV=3 | AZ5: 284.36 | BA5: 61 | BB5: 63 | BC5: 67 | BD5: 70 | BE5: 49 | BF5: 56 | BG5: 25 | BH5: 25 | BI5: 19 | BJ5: 20 | BK5: 27 | BL5: 32 | BM5: 70 | BN5: 2.30E+07 | BO5: 2.80E+07 | BP5: 2.20E+07 | BQ5: 2.60E+06 | BR5: 1.50E+06 | BS5: 6.80E+06 | BT5: 1.50E+06 | BU5: 15.3 | BV5: 18.7 | BW5: 14.7 | BX5: 1.7 | BY5: 1.0 | BZ5: 4.5
B6: sp|P46940|IQGA1_HUMAN | C6: IQGAP1 | D6: 59 | E6: 62 | F6: 4.40E+07 | G6: 0.14 | J6: sp|Q14204|DYHC1_HUMAN | K6: DYNC1H1 | L6: 63 | M6: 66 | N6: 1.50E+07 | O6: 0.06 | R6: sp|Q16363|LAMA4_HUMAN | S6: LAMA4 | T6: 50 | U6: 107 | V6: 1.20E+08 | W6: 0.44 | Z6: sp|Q16363|LAMA4_HUMAN | AA6: LAMA4 | AB6: 47 | AC6: 60 | AD6: 2.50E+07 | AE6: 0.23 | AH6: sp|Q16363|LAMA4_HUMAN | AI6: LAMA4 | AJ6: 35 | AK6: 43 | AL6: 1.30E+07 | AM6: 0.13 | AP6: sp|Q16363|LAMA4_HUMAN | AQ6: LAMA4 | AR6: 43 | AS6: 88 | AT6: 5.60E+07 | AU6: 0.25 | AW6: sp|Q14204|DYHC1_HUMAN | AX6: DYNC1H1 | AY6: Cytoplasmic dynein 1 heavy chain 1 OS=Homo sapiens GN=DYNC1H1 PE=1 SV=5 | AZ6: 532.07 | BA6: 4 | BB6: 4 | BC6: 63 | BD6: 66 | BE6: 33 | BF6: 39 | BG6: 36 | BH6: 39 | BI6: 20 | BJ6: 21 | BK6: 20 | BL6: 23 | BM6: 66 | BN6: 6.20E+05 | BO6: 1.50E+07 | BP6: 8.60E+06 | BQ6: 3.50E+06 | BR6: 1.30E+06 | BS6: 4.10E+06 | BT6: 6.20E+05 | BU6: 1.0 | BV6: 24.2 | BW6: 13.9 | BX6: 5.6 | BY6: 2.1 | BZ6: 6.6
B7: sp|Q00610|CLH1_HUMAN | C7: CLTC | D7: 53 | E7: 63 | F7: 7.10E+07 | G7: 0.23 | J7: sp|P02751|FINC_HUMAN | K7: FN1 | L7: 60 | M7: 86 | N7: 3.30E+08 | O7: 1.35 | R7: sp|Q13813|SPTN1_HUMAN | S7: SPTAN1 | T7: 49 | U7: 56 | V7: 2.20E+07 | W7: 0.08 | Z7: sp|P14543|NID1_HUMAN | AA7: NID1 | AB7: 38 | AC7: 71 | AD7: 1.20E+08 | AE7: 1.09 | AH7: sp|P53396|ACLY_HUMAN | AI7: ACLY | AJ7: 32 | AK7: 37 | AL7: 2.00E+07 | AM7: 0.21 | AP7: sp|P25391|LAMA1_HUMAN | AQ7: LAMA1 | AR7: 41 | AS7: 48 | AT7: 2.50E+07 | AU7: 0.11 | AW7: sp|P35579|MYH9_HUMAN | AX7: MYH9 | AY7: Myosin-9 OS=Homo sapiens GN=MYH9 PE=1 SV=4 | AZ7: 226.39 | BA7: 68 | BB7: 94 | BC7: 49 | BD7: 54 | BE7: 43 | BF7: 50 | BG7: 32 | BH7: 37 | BI7: 31 | BJ7: 35 | BK7: 24 | BL7: 31 | BM7: 94 | BN7: 5.50E+07 | BO7: 2.70E+07 | BP7: 2.10E+07 | BQ7: 6.60E+06 | BR7: 5.40E+06 | BS7: 5.10E+06 | BT7: 5.10E+06 | BU7: 10.8 | BV7: 5.3 | BW7: 4.1 | BX7: 1.3 | BY7: 1.1 | BZ7: 1.0
B8: sp|Q16363|LAMA4_HUMAN | C8: LAMA4 | D8: 43 | E8: 49 | F8: 2.80E+07 | G8: 0.09 | J8: sp|Q16363|LAMA4_HUMAN | K8: LAMA4 | L8: 51 | M8: 71 | N8: 9.00E+07 | O8: 0.37 | R8: sp|P25391|LAMA1_HUMAN | S8: LAMA1 | T8: 47 | U8: 55 | V8: 3.60E+07 | W8: 0.13 | Z8: sp|P25391|LAMA1_HUMAN | AA8: LAMA1 | AB8: 37 | AC8: 38 | AD8: 7.70E+06 | AE8: 0.07 | AH8: sp|P18206|VINC_HUMAN | AI8: VCL | AJ8: 32 | AK8: 37 | AL8: 2.30E+07 | AM8: 0.24 | AP8: sp|P07942|LAMB1_HUMAN | AQ8: LAMB1 | AR8: 40 | AS8: 68 | AT8: 1.10E+08 | AU8: 0.47 | AW8: sp|P02751|FINC_HUMAN | AX8: FN1 | AY8: Fibronectin OS=Homo sapiens GN=FN1 PE=1 SV=4 | AZ8: 262.46 | BA8: 36 | BB8: 36 | BC8: 60 | BD8: 86 | BE8: 58 | BF8: 134 | BG8: 56 | BH8: 79 | BI8: 49 | BJ8: 61 | BK8: 56 | BL8: 111 | BM8: 134 | BN8: 2.80E+07 | BO8: 3.30E+08 | BP8: 5.00E+08 | BQ8: 1.20E+08 | BR8: 7.70E+07 | BS8: 3.20E+08 | BT8: 2.80E+07 | BU8: 1.0 | BV8: 11.8 | BW8: 17.9 | BX8: 4.3 | BY8: 2.8 | BZ8: 11.4
B9: sp|P53396|ACLY_HUMAN | C9: ACLY | D9: 42 | E9: 61 | F9: 9.50E+07 | G9: 0.31 | J9: sp|P35579|MYH9_HUMAN | K9: MYH9 | L9: 49 | M9: 54 | N9: 2.70E+07 | O9: 0.11 | R9: sp|Q00610|CLH1_HUMAN | S9: CLTC | T9: 44 | U9: 59 | V9: 3.30E+07 | W9: 0.12 | Z9: sp|P07942|LAMB1_HUMAN | AA9: LAMB1 | AB9: 36 | AC9: 44 | AD9: 3.80E+07 | AE9: 0.35 | AH9: sp|P14543|NID1_HUMAN | AI9: NID1 | AJ9: 31 | AK9: 54 | AL9: 6.00E+07 | AM9: 0.62 | AP9: sp|P14543|NID1_HUMAN | AQ9: NID1 | AR9: 36 | AS9: 89 | AT9: 2.60E+08 | AU9: 1.15 | AW9: sp|Q16363|LAMA4_HUMAN | AX9: LAMA4 | AY9: Laminin subunit alpha-4 OS=Homo sapiens GN=LAMA4 PE=1 SV=4 | AZ9: 202.4 | BA9: 43 | BB9: 49 | BC9: 51 | BD9: 71 | BE9: 50 | BF9: 107 | BG9: 47 | BH9: 60 | BI9: 35 | BJ9: 43 | BK9: 43 | BL9: 88 | BM9: 107 | BN9: 2.80E+07 | BO9: 9.00E+07 | BP9: 1.20E+08 | BQ9: 2.50E+07 | BR9: 1.30E+07 | BS9: 5.60E+07 | BT9: 1.30E+07 | BU9: 2.2 | BV9: 6.9 | BW9: 9.2 | BX9: 1.9 | BY9: 1.0 | BZ9: 4.3
B10: sp|P13639|EF2_HUMAN | C10: EEF2 | D10: 39 | E10: 85 | F10: 4.90E+08 | G10: 1.60 | J10: sp|P25391|LAMA1_HUMAN | K10: LAMA1 | L10: 47 | M10: 47 | N10: 1.90E+07 | O10: 0.08 | R10: sp|P24821|TENA_HUMAN | S10: TNC | T10: 44 | U10: 57 | V10: 4.30E+07 | W10: 0.16 | Z10: sp|Q14204|DYHC1_HUMAN | AA10: DYNC1H1 | AB10: 36 | AC10: 39 | AD10: 3.50E+06 | AE10: 0.03 | AH10: sp|P35579|MYH9_HUMAN | AI10: MYH9 | AJ10: 31 | AK10: 35 | AL10: 5.40E+06 | AM10: 0.06 | AP10: sp|P11047|LAMC1_HUMAN | AQ10: LAMC1 | AR10: 36 | AS10: 62 | AT10: 1.30E+08 | AU10: 0.56 | AW10: sp|P46940|IQGA1_HUMAN | AX10: IQGAP1 | AY10: Ras GTPase-activating-like protein IQGAP1 OS=Homo sapiens GN=IQGAP1 PE=1 SV=1 | AZ10: 189.13 | BA10: 59 | BB10: 62 | BC10: 34 | BD10: 36 | BE10: 39 | BF10: 46 | BG10: 20 | BH10: 20 | BI10: 15 | BJ10: 15 | BK10: 14 | BL10: 19 | BM10: 62 | BN10: 4.40E+07 | BO10: 8.20E+06 | BP10: 1.30E+07 | BQ10: 1.90E+06 | BR10: 2.80E+06 | BS10: 2.20E+06 | BT10: 1.90E+06 | BU10: 23.2 | BV10: 4.3 | BW10: 6.8 | BX10: 1.0 | BY10: 1.5 | BZ10: 1.2
B11: sp|P18206|VINC_HUMAN | C11: VCL | D11: 39 | E11: 48 | F11: 7.00E+07 | G11: 0.23 | J11: sp|Q00610|CLH1_HUMAN | K11: CLTC | L11: 42 | M11: 45 | N11: 2.40E+07 | O11: 0.10 | R11: sp|O15230|LAMA5_HUMAN | S11: LAMA5 | T11: 43 | U11: 51 | V11: 3.50E+07 | W11: 0.13 | Z11: sp|P11047|LAMC1_HUMAN | AA11: LAMC1 | AB11: 35 | AC11: 45 | AD11: 3.90E+07 | AE11: 0.36 | AH11: sp|Q00610|CLH1_HUMAN | AI11: CLTC | AJ11: 31 | AK11: 31 | AL11: 7.90E+06 | AM11: 0.08 | AP11: sp|P24821|TENA_HUMAN | AQ11: TNC | AR11: 36 | AS11: 41 | AT11: 2.30E+07 | AU11: 0.10 | AW11: sp|P25391|LAMA1_HUMAN | AX11: LAMA1 | AY11: Laminin subunit alpha-1 OS=Homo sapiens GN=LAMA1 PE=1 SV=2 | AZ11: 336.87 | BA11: 3 | BB11: 3 | BC11: 47 | BD11: 47 | BE11: 47 | BF11: 55 | BG11: 37 | BH11: 38 | BI11: 12 | BJ11: 12 | BK11: 41 | BL11: 48 | BM11: 55 | BN11: 3.90E+05 | BO11: 1.90E+07 | BP11: 3.60E+07 | BQ11: 7.70E+06 | BR11: 1.80E+06 | BS11: 2.50E+07 | BT11: 3.90E+05 | BU11: 1.0 | BV11: 48.7 | BW11: 92.3 | BX11: 19.7 | BY11: 4.6 | BZ11: 64.1
B12: sp|P19338|NUCL_HUMAN | C12: NCL | D12: 38 | E12: 97 | F12: 3.10E+08 | G12: 0.99 | J12: sp|P07942|LAMB1_HUMAN | K12: LAMB1 | L12: 39 | M12: 54 | N12: 9.70E+07 | O12: 0.40 | R12: sp|P35579|MYH9_HUMAN | S12: MYH9 | T12: 43 | U12: 50 | V12: 2.10E+07 | W12: 0.08 | Z12: sp|Q00610|CLH1_HUMAN | AA12: CLTC | AB12: 34 | AC12: 34 | AD12: 3.20E+07 | AE12: 0.30 | AH12: sp|P13639|EF2_HUMAN | AI12: EEF2 | AJ12: 30 | AK12: 54 | AL12: 8.70E+07 | AM12: 0.90 | AP12: sp|Q5SZK8|FREM2_HUMAN | AQ12: FREM2 | AR12: 34 | AS12: 39 | AT12: 9.00E+06 | AU12: 0.04 | AW12: sp|Q00610|CLH1_HUMAN | AX12: CLTC | AY12: Clathrin heavy chain 1 OS=Homo sapiens GN=CLTC PE=1 SV=5 | AZ12: 191.49 | BA12: 53 | BB12: 63 | BC12: 42 | BD12: 45 | BE12: 44 | BF12: 59 | BG12: 34 | BH12: 34 | BI12: 31 | BJ12: 31 | BK12: 28 | BL12: 34 | BM12: 63 | BN12: 7.10E+07 | BO12: 2.40E+07 | BP12: 3.30E+07 | BQ12: 3.20E+07 | BR12: 7.90E+06 | BS12: 8.00E+07 | BT12: 7.90E+06 | BU12: 9.0 | BV12: 3.0 | BW12: 4.2 | BX12: 4.1 | BY12: 1.0 | BZ12: 10.1
B13: sp|P14543|NID1_HUMAN | C13: NID1 | D13: 38 | E13: 82 | F13: 4.00E+08 | G13: 1.28 | J13: sp|P24821|TENA_HUMAN | K13: TNC | L13: 38 | M13: 41 | N13: 3.30E+07 | O13: 0.13 | R13: sp|Q5SZK8|FREM2_HUMAN | S13: FREM2 | T13: 43 | U13: 49 | V13: 1.50E+07 | W13: 0.05 | Z13: sp|P06733|ENOA_HUMAN | AA13: ENO1 | AB13: 32 | AC13: 120 | AD13: 3.50E+08 | AE13: 3.18 | AH13: sp|P11047|LAMC1_HUMAN | AI13: LAMC1 | AJ13: 29 | AK13: 36 | AL13: 2.60E+07 | AM13: 0.27 | AP13: sp|O15230|LAMA5_HUMAN | AQ13: LAMA5 | AR13: 31 | AS13: 37 | AT13: 1.70E+07 | AU13: 0.08 | AW13: sp|P24821|TENA_HUMAN | AX13: TNC | AY13: Tenascin OS=Homo sapiens GN=TNC PE=1 SV=3 | AZ13: 240.7 | BA13: 6 | BB13: 6 | BC13: 38 | BD13: 41 | BE13: 44 | BF13: 57 | BG13: 31 | BH13: 32 | BI13: 25 | BJ13: 26 | BK13: 36 | BL13: 41 | BM13: 57 | BN13: 1.40E+06 | BO13: 3.30E+07 | BP13: 4.30E+07 | BQ13: 1.60E+07 | BR13: 6.00E+06 | BS13: 2.30E+07 | BT13: 1.40E+06 | BU13: 1.0 | BV13: 23.6 | BW13: 30.7 | BX13: 11.4 | BY13: 4.3 | BZ13: 16.4
B14: sp|P11047|LAMC1_HUMAN | C14: LAMC1 | D14: 38 | E14: 53 | F14: 1.00E+08 | G14: 0.33 | J14: sp|Q9Y490|TLN1_HUMAN | K14: TLN1 | L14: 38 | M14: 40 | N14: 1.20E+07 | O14: 0.05 | R14: sp|P07942|LAMB1_HUMAN | S14: LAMB1 | T14: 41 | U14: 84 | V14: 1.90E+08 | W14: 0.68 | Z14: sp|P35579|MYH9_HUMAN | AA14: MYH9 | AB14: 32 | AC14: 37 | AD14: 6.60E+06 | AE14: 0.06 | AH14: sp|P07942|LAMB1_HUMAN | AI14: LAMB1 | AJ14: 29 | AK14: 34 | AL14: 1.50E+07 | AM14: 0.16 | AP14: sp|P13639|EF2_HUMAN | AQ14: EEF2 | AR14: 30 | AS14: 62 | AT14: 1.00E+08 | AU14: 0.45 | AW14: sp|Q5SZK8|FREM2_HUMAN | AX14: FREM2 | AY14: FRAS1-related extracellular matrix protein 2 OS=Homo sapiens GN=FREM2 PE=1 SV=2 | AZ14: 350.94 | BA14: 6 | BB14: 7 | BC14: 28 | BD14: 28 | BE14: 43 | BF14: 49 | BG14: 16 | BH14: 16 | BI14: 7 | BJ14: 7 | BK14: 34 | BL14: 39 | BM14: 49 | BN14: 6.80E+05 | BO14: 5.40E+06 | BP14: 1.50E+07 | BQ14: 1.40E+06 | BR14: 2.70E+05 | BS14: 9.00E+06 | BT14: 2.70E+05 | BU14: 2.5 | BV14: 20.0 | BW14: 55.6 | BX14: 5.2 | BY14: 1.0 | BZ14: 33.3
B15: sp|P27708|PYR1_HUMAN | C15: CAD | D15: 38 | E15: 42 | F15: 1.80E+07 | G15: 0.06 | J15: sp|P11047|LAMC1_HUMAN | K15: LAMC1 | L15: 36 | M15: 51 | N15: 1.20E+08 | O15: 0.49 | R15: sp|P14543|NID1_HUMAN | S15: NID1 | T15: 40 | U15: 97 | V15: 3.60E+08 | W15: 1.31 | Z15: sp|P24821|TENA_HUMAN | AA15: TNC | AB15: 31 | AC15: 32 | AD15: 1.60E+07 | AE15: 0.15 | AH15: sp|O43707|ACTN4_HUMAN | AI15: ACTN4 | AJ15: 29 | AK15: 31 | AL15: 1.90E+07 | AM15: 0.20 | AP15: sp|O00754|MA2B1_HUMAN | AQ15: MAN2B1 | AR15: 30 | AS15: 56 | AT15: 1.70E+08 | AU15: 0.73 | AW15: sp|P07942|LAMB1_HUMAN | AX15: LAMB1 | AY15: Laminin subunit beta-1 OS=Homo sapiens GN=LAMB1 PE=1 SV=2 | AZ15: 197.91 | BA15: 36 | BB15: 44 | BC15: 39 | BD15: 54 | BE15: 41 | BF15: 84 | BG15: 36 | BH15: 44 | BI15: 29 | BJ15: 34 | BK15: 40 | BL15: 68 | BM15: 84 | BN15: 5.10E+07 | BO15: 9.70E+07 | BP15: 1.90E+08 | BQ15: 3.80E+07 | BR15: 1.50E+07 | BS15: 1.10E+08 | BT15: 1.50E+07 | BU15: 3.4 | BV15: 6.5 | BW15: 12.7 | BX15: 2.5 | BY15: 1.0 | BZ15: 7.3
B16: sp|P09874|PARP1_HUMAN | C16: PARP1 | D16: 37 | E16: 60 | F16: 5.40E+07 | G16: 0.17 | J16: sp|P53396|ACLY_HUMAN | K16: ACLY | L16: 36 | M16: 46 | N16: 4.10E+07 | O16: 0.17 | R16: sp|P13639|EF2_HUMAN | S16: EEF2 | T16: 39 | U16: 83 | V16: 2.50E+08 | W16: 0.90 | Z16: sp|P22314|UBA1_HUMAN | AA16: UBA1 | AB16: 30 | AC16: 37 | AD16: 2.20E+07 | AE16: 0.20 | AH16: sp|P08670|VIME_HUMAN | AI16: VIM | AJ16: 27 | AK16: 54 | AL16: 4.50E+07 | AM16: 0.46 | AP16: sp|P53396|ACLY_HUMAN | AQ16: ACLY | AR16: 29 | AS16: 38 | AT16: 2.60E+07 | AU16: 0.12 | AW16: sp|O15230|LAMA5_HUMAN | AX16: LAMA5 | AY16: Laminin subunit alpha-5 OS=Homo sapiens GN=LAMA5 PE=1 SV=8 | AZ16: 399.48 | BA16: 6 | BB16: 6 | BC16: 32 | BD16: 38 | BE16: 43 | BF16: 51 | BG16: 27 | BH16: 33 | BI16: 14 | BJ16: 16 | BK16: 31 | BL16: 37 | BM16: 51 | BN16: 2.70E+06 | BO16: 1.90E+07 | BP16: 3.50E+07 | BQ16: 8.50E+06 | BR16: 2.80E+06 | BS16: 1.70E+07 | BT16: 2.70E+06 | BU16: 1.0 | BV16: 7.0 | BW16: 13.0 | BX16: 3.1 | BY16: 1.0 | BZ16: 6.3
B17: sp|P07942|LAMB1_HUMAN | C17: LAMB1 | D17: 36 | E17: 44 | F17: 5.10E+07 | G17: 0.17 | J17: sp|O75369|FLNB_HUMAN | K17: FLNB | L17: 36 | M17: 37 | N17: 2.00E+07 | O17: 0.08 | R17: sp|P46940|IQGA1_HUMAN | S17: IQGAP1 | T17: 39 | U17: 46 | V17: 1.30E+07 | W17: 0.05 | Z17: sp|P13010|XRCC5_HUMAN | AA17: XRCC5 | AB17: 30 | AC17: 36 | AD17: 9.50E+06 | AE17: 0.09 | AH17: sp|P00558|PGK1_HUMAN | AI17: PGK1 | AJ17: 27 | AK17: 40 | AL17: 5.60E+07 | AM17: 0.58 | AP17: sp|P18206|VINC_HUMAN | AQ17: VCL | AR17: 29 | AS17: 35 | AT17: 2.10E+07 | AU17: 0.09 | AW17: sp|O75369|FLNB_HUMAN | AX17: FLNB | AY17: Filamin-B OS=Homo sapiens GN=FLNB PE=1 SV=2 | AZ17: 277.99 | BA17: 21 | BB17: 21 | BC17: 36 | BD17: 37 | BE17: 35 | BF17: 40 | BG17: 17 | BH17: 17 | BI17: 7 | BJ17: 7 | BK17: 22 | BL17: 23 | BM17: 40 | BN17: 1.60E+07 | BO17: 2.00E+07 | BP17: 7.80E+07 | BQ17: 2.80E+06 | BR17: 9.70E+05 | BS17: 6.70E+07 | BT17: 9.70E+05 | BU17: 16.5 | BV17: 20.6 | BW17: 80.4 | BX17: 2.9 | BY17: 1.0 | BZ17: 69.1
B18: sp|O75643|U520_HUMAN | C18: SNRNP200 | D18: 36 | E18: 40 | F18: 1.10E+07 | G18: 0.03 | J18: sp|P08670|VIME_HUMAN | K18: VIM | L18: 35 | M18: 86 | N18: 2.10E+08 | O18: 0.87 | R18: sp|P11047|LAMC1_HUMAN | S18: LAMC1 | T18: 36 | U18: 74 | V18: 2.10E+08 | W18: 0.76 | Z18: sp|P53396|ACLY_HUMAN | AA18: ACLY | AB18: 30 | AC18: 33 | AD18: 1.40E+07 | AE18: 0.13 | AH18: sp|P22314|UBA1_HUMAN | AI18: UBA1 | AJ18: 27 | AK18: 37 | AL18: 2.80E+07 | AM18: 0.29 | AP18: sp|Q16706|MA2A1_HUMAN | AQ18: MAN2A1 | AR18: 28 | AS18: 37 | AT18: 1.80E+07 | AU18: 0.08 | AW18: sp|Q01082|SPTB2_HUMAN | AX18: SPTBN1 | AY18: Spectrin beta chain, non-erythrocytic 1 OS=Homo sapiens GN=SPTBN1 PE=1 SV=2 | AZ18: 274.44 | BA18: 34 | BB18: 35 | BC18: 29 | BD18: 30 | BE18: 29 | BF18: 32 | BG18: 11 | BH18: 11 | BI18: 1 | BJ18: 1 | BK18: 16 | BL18: 17 | BM18: 35 | BN18: 1.00E+07 | BO18: 1.10E+07 | BP18: 1.10E+07 | BQ18: 1.10E+06 | BR18: 1.40E+05 | BS18: 5.40E+06 | BT18: 1.40E+05 | BU18: 71.4 | BV18: 78.6 | BW18: 78.6 | BX18: 7.9 | BY18: 1.0 | BZ18: 38.6
B19: sp|P02751|FINC_HUMAN | C19: FN1 | D19: 36 | E19: 36 | F19: 2.80E+07 | G19: 0.09 | J19: sp|P14618|KPYM_HUMAN | K19: PKM | L19: 34 | M19: 97 | N19: 2.70E+08 | O19: 1.10 | R19: sp|O75369|FLNB_HUMAN | S19: FLNB | T19: 35 | U19: 40 | V19: 7.80E+07 | W19: 0.29 | Z19: sp|P13639|EF2_HUMAN | AA19: EEF2 | AB19: 29 | AC19: 56 | AD19: 5.30E+07 | AE19: 0.48 | AH19: sp|P06733|ENOA_HUMAN | AI19: ENO1 | AJ19: 26 | AK19: 66 | AL19: 1.10E+08 | AM19: 1.15 | AP19: sp|Q00610|CLH1_HUMAN | AQ19: CLTC | AR19: 28 | AS19: 34 | AT19: 8.00E+07 | AU19: 0.35 | AW19: sp|P18206|VINC_HUMAN | AX19: VCL | AY19: Vinculin OS=Homo sapiens GN=VCL PE=1 SV=4 | AZ19: 123.72 | BA19: 39 | BB19: 48 | BC19: 33 | BD19: 37 | BE19: 32 | BF19: 42 | BG19: 24 | BH19: 26 | BI19: 32 | BJ19: 37 | BK19: 29 | BL19: 35 | BM19: 48 | BN19: 7.00E+07 | BO19: 2.50E+07 | BP19: 4.00E+07 | BQ19: 6.70E+06 | BR19: 2.30E+07 | BS19: 2.10E+07 | BT19: 6.70E+06 | BU19: 10.4 | BV19: 3.7 | BW19: 6.0 | BX19: 1.0 | BY19: 3.4 | BZ19: 3.1
B20: sp|O43707|ACTN4_HUMAN | C20: ACTN4 | D20: 35 | E20: 45 | F20: 8.30E+07 | G20: 0.27 | J20: sp|P14543|NID1_HUMAN | K20: NID1 | L20: 34 | M20: 60 | N20: 1.70E+08 | O20: 0.68 | R20: sp|Q9Y490|TLN1_HUMAN | S20: TLN1 | T20: 33 | U20: 43 | V20: 1.20E+07 | W20: 0.04 | Z20: sp|P00558|PGK1_HUMAN | AA20: PGK1 | AB20: 28 | AC20: 49 | AD20: 5.30E+07 | AE20: 0.48 | AH20: sp|P19338|NUCL_HUMAN | AI20: NCL | AJ20: 26 | AK20: 46 | AL20: 5.20E+07 | AM20: 0.54 | AP20: sp|P55786|PSA_HUMAN | AQ20: NPEPPS | AR20: 27 | AS20: 36 | AT20: 2.20E+07 | AU20: 0.10 | AW20: sp|Q9Y490|TLN1_HUMAN | AX20: TLN1 | AY20: Talin-1 OS=Homo sapiens GN=TLN1 PE=1 SV=3 | AZ20: 269.6 | BA20: 34 | BB20: 38 | BC20: 38 | BD20: 40 | BE20: 33 | BF20: 43 | BG20: 27 | BH20: 27 | BI20: 8 | BJ20: 9 | BK20: 24 | BL20: 28 | BM20: 43 | BN20: 1.10E+07 | BO20: 1.20E+07 | BP20: 1.20E+07 | BQ20: 2.20E+06 | BR20: 5.30E+05 | BS20: 4.00E+06 | BT20: 5.30E+05 | BU20: 20.8 | BV20: 22.6 | BW20: 22.6 | BX20: 4.2 | BY20: 1.0 | BZ20: 7.5
B21: sp|P55786|PSA_HUMAN | C21: NPEPPS | D21: 34 | E21: 47 | F21: 9.40E+07 | G21: 0.31 | J21: sp|P10809|CH60_HUMAN | K21: HSPD1 | L21: 34 | M21: 58 | N21: 9.00E+07 | O21: 0.37 | R21: sp|Q14204|DYHC1_HUMAN | S21: DYNC1H1 | T21: 33 | U21: 39 | V21: 8.60E+06 | W21: 0.03 | Z21: sp|P08670|VIME_HUMAN | AA21: VIM | AB21: 27 | AC21: 65 | AD21: 5.70E+07 | AE21: 0.52 | AH21: sp|O00754|MA2B1_HUMAN | AI21: MAN2B1 | AJ21: 25 | AK21: 38 | AL21: 4.70E+07 | AM21: 0.49 | AP21: sp|Q13813|SPTN1_HUMAN | AQ21: SPTAN1 | AR21: 27 | AS21: 32 | AT21: 6.80E+06 | AU21: 0.03 | AW21: sp|P27708|PYR1_HUMAN | AX21: CAD | AY21: CAD protein OS=Homo sapiens GN=CAD PE=1 SV=3 | AZ21: 242.83 | BA21: 38 | BB21: 42 | BC21: 32 | BD21: 35 | BE21: 20 | BF21: 23 | BG21: 16 | BH21: 18 | BI21: 8 | BJ21: 8 | BK21: 11 | BL21: 13 | BM21: 42 | BN21: 1.80E+07 | BO21: 2.00E+07 | BP21: 5.30E+06 | BQ21: 2.00E+06 | BR21: 9.50E+05 | BS21: 1.80E+06 | BT21: 9.50E+05 | BU21: 18.9 | BV21: 21.1 | BW21: 5.6 | BX21: 2.1 | BY21: 1.0 | BZ21: 1.9
B22: sp|Q9Y490|TLN1_HUMAN | C22: TLN1 | D22: 34 | E22: 38 | F22: 1.10E+07 | G22: 0.03 | J22: sp|O43707|ACTN4_HUMAN | K22: ACTN4 | L22: 34 | M22: 39 | N22: 3.90E+07 | O22: 0.16 | R22: sp|P18206|VINC_HUMAN | S22: VCL | T22: 32 | U22: 42 | V22: 4.00E+07 | W22: 0.15 | Z22: sp|O15230|LAMA5_HUMAN | AA22: LAMA5 | AB22: 27 | AC22: 33 | AD22: 8.50E+06 | AE22: 0.08 | AH22: sp|P13010|XRCC5_HUMAN | AI22: XRCC5 | AJ22: 25 | AK22: 29 | AL22: 9.90E+06 | AM22: 0.10 | AP22: sp|P22314|UBA1_HUMAN | AQ22: UBA1 | AR22: 26 | AS22: 33 | AT22: 3.20E+07 | AU22: 0.14 | AW22: sp|P53396|ACLY_HUMAN | AX22: ACLY | AY22: ATP-citrate synthase OS=Homo sapiens GN=ACLY PE=1 SV=3 | AZ22: 120.76 | BA22: 42 | BB22: 61 | BC22: 36 | BD22: 46 | BE22: 28 | BF22: 38 | BG22: 30 | BH22: 33 | BI22: 32 | BJ22: 37 | BK22: 29 | BL22: 38 | BM22: 61 | BN22: 9.50E+07 | BO22: 4.10E+07 | BP22: 3.90E+07 | BQ22: 1.40E+07 | BR22: 2.00E+07 | BS22: 2.60E+07 | BT22: 1.40E+07 | BU22: 6.8 | BV22: 2.9 | BW22: 2.8 | BX22: 1.0 | BY22: 1.4 | BZ22: 1.9
B23: sp|Q14152|EIF3A_HUMAN | C23: EIF3A | D23: 34 | E23: 37 | F23: 2.30E+07 | G23: 0.07 | J23: sp|P46940|IQGA1_HUMAN | K23: IQGAP1 | L23: 34 | M23: 36 | N23: 8.20E+06 | O23: 0.03 | R23: sp|P11021|GRP78_HUMAN | S23: HSPA5 | T23: 31 | U23: 74 | V23: 1.00E+08 | W23: 0.38 | Z23: sp|Q9Y490|TLN1_HUMAN | AA23: TLN1 | AB23: 27 | AC23: 27 | AD23: 2.20E+06 | AE23: 0.02 | AH23: sp|P24821|TENA_HUMAN | AI23: TNC | AJ23: 25 | AK23: 26 | AL23: 6.00E+06 | AM23: 0.06 | AP23: sp|P55268|LAMB2_HUMAN | AQ23: LAMB2 | AR23: 26 | AS23: 29 | AT23: 1.10E+07 | AU23: 0.05 | AW23: sp|P13639|EF2_HUMAN | AX23: EEF2 | AY23: Elongation factor 2 OS=Homo sapiens GN=EEF2 PE=1 SV=4 | AZ23: 95.28 | BA23: 39 | BB23: 85 | BC23: 33 | BD23: 68 | BE23: 39 | BF23: 83 | BG23: 29 | BH23: 56 | BI23: 30 | BJ23: 54 | BK23: 30 | BL23: 62 | BM23: 85 | BN23: 4.90E+08 | BO23: 1.90E+08 | BP23: 2.50E+08 | BQ23: 5.30E+07 | BR23: 8.70E+07 | BS23: 1.00E+08 | BT23: 5.30E+07 | BU23: 9.2 | BV23: 3.6 | BW23: 4.7 | BX23: 1.0 | BY23: 1.6 | BZ23: 1.9
B24: sp|Q01082|SPTB2_HUMAN | C24: SPTBN1 | D24: 34 | E24: 35 | F24: 1.00E+07 | G24: 0.03 | J24: sp|P13639|EF2_HUMAN | K24: EEF2 | L24: 33 | M24: 68 | N24: 1.90E+08 | O24: 0.80 | R24: sp|Q14517|FAT1_HUMAN | S24: FAT1 | T24: 30 | U24: 33 | V24: 1.00E+07 | W24: 0.04 | Z24: sp|O43707|ACTN4_HUMAN | AA24: ACTN4 | AB24: 26 | AC24: 28 | AD24: 1.10E+07 | AE24: 0.10 | AH24: sp|Q16531|DDB1_HUMAN | AI24: DDB1 | AJ24: 25 | AK24: 26 | AL24: 9.90E+06 | AM24: 0.10 | AP24: sp|P34932|HSP74_HUMAN | AQ24: HSPA4 | AR24: 25 | AS24: 32 | AT24: 2.70E+07 | AU24: 0.12 | AW24: sp|P14543|NID1_HUMAN | AX24: NID1 | AY24: Nidogen-1 OS=Homo sapiens GN=NID1 PE=1 SV=3 | AZ24: 136.29 | BA24: 38 | BB24: 82 | BC24: 34 | BD24: 60 | BE24: 40 | BF24: 97 | BG24: 38 | BH24: 71 | BI24: 31 | BJ24: 54 | BK24: 36 | BL24: 89 | BM24: 97 | BN24: 4.00E+08 | BO24: 1.70E+08 | BP24: 3.60E+08 | BQ24: 1.20E+08 | BR24: 6.00E+07 | BS24: 2.60E+08 | BT24: 6.00E+07 | BU24: 6.7 | BV24: 2.8 | BW24: 6.0 | BX24: 2.0 | BY24: 1.0 | BZ24: 4.3
B25: sp|P34932|HSP74_HUMAN | C25: HSPA4 | D25: 33 | E25: 41 | F25: 7.50E+07 | G25: 0.24 | J25: sp|P18206|VINC_HUMAN | K25: VCL | L25: 33 | M25: 37 | N25: 2.50E+07 | O25: 0.10 | R25: sp|Q01082|SPTB2_HUMAN | S25: SPTBN1 | T25: 29 | U25: 32 | V25: 1.10E+07 | W25: 0.04 | Z25: sp|Q13813|SPTN1_HUMAN | AA25: SPTAN1 | AB25: 25 | AC25: 25 | AD25: 2.60E+06 | AE25: 0.02 | AH25: sp|P09874|PARP1_HUMAN | AI25: PARP1 | AJ25: 24 | AK25: 30 | AL25: 1.50E+07 | AM25: 0.16 | AP25: sp|P0DMV9|HS71B_HUMAN | AQ25: HSPA1B | AR25: 24 | AS25: 63 | AT25: 2.30E+08 | AU25: 1.02 | AW25: sp|Q14152|EIF3A_HUMAN | AX25: EIF3A | AY25: Eukaryotic translation initiation factor 3 subunit A OS=Homo sapiens GN=EIF3A PE=1 SV=1 | AZ25: 166.47 | BA25: 34 | BB25: 37 | BC25: 21 | BD25: 21 | BE25: 15 | BF25: 16 | BG25: 11 | BH25: 11 | BI25: 7 | BJ25: 8 | BK25: 6 | BL25: 7 | BM25: 37 | BN25: 2.30E+07 | BO25: 6.20E+06 | BP25: 6.90E+06 | BQ25: 1.30E+06 | BR25: 9.10E+05 | BS25: 1.40E+06 | BT25: 9.10E+05 | BU25: 25.3 | BV25: 6.8 | BW25: 7.6 | BX25: 1.4 | BY25: 1.0 | BZ25: 1.5
B26: sp|Q86VP6|CAND1_HUMAN | C26: CAND1 | D26: 33 | E26: 38 | F26: 4.70E+07 | G26: 0.15 | J26: sp|P78527|PRKDC_HUMAN | K26: PRKDC | L26: 33 | M26: 36 | N26: 6.20E+06 | O26: 0.03 | R26: sp|P13010|XRCC5_HUMAN | S26: XRCC5 | T26: 28 | U26: 57 | V26: 3.50E+07 | W26: 0.13 | Z26: sp|P19338|NUCL_HUMAN | AA26: NCL | AB26: 24 | AC26: 49 | AD26: 3.40E+07 | AE26: 0.31 | AH26: sp|P50990|TCPQ_HUMAN | AI26: CCT8 | AJ26: 24 | AK26: 28 | AL26: 8.30E+06 | AM26: 0.09 | AP26: sp|P19338|NUCL_HUMAN | AQ26: NCL | AR26: 24 | AS26: 62 | AT26: 9.10E+07 | AU26: 0.40 | AW26: sp|P11047|LAMC1_HUMAN | AX26: LAMC1 | AY26: Laminin subunit gamma-1 OS=Homo sapiens GN=LAMC1 PE=1 SV=3 | AZ26: 177.49 | BA26: 38 | BB26: 53 | BC26: 36 | BD26: 51 | BE26: 36 | BF26: 74 | BG26: 35 | BH26: 45 | BI26: 29 | BJ26: 36 | BK26: 36 | BL26: 62 | BM26: 74 | BN26: 1.00E+08 | BO26: 1.20E+08 | BP26: 2.10E+08 | BQ26: 3.90E+07 | BR26: 2.60E+07 | BS26: 1.30E+08 | BT26: 2.60E+07 | BU26: 3.8 | BV26: 4.6 | BW26: 8.1 | BX26: 1.5 | BY26: 1.0 | BZ26: 5.0
B27: sp|Q15393|SF3B3_HUMAN | C27: SF3B3 | D27: 33 | E27: 35 | F27: 2.80E+07 | G27: 0.09 | J27: sp|P19338|NUCL_HUMAN | K27: NCL | L27: 32 | M27: 76 | N27: 1.40E+08 | O27: 0.58 | R27: sp|P53396|ACLY_HUMAN | S27: ACLY | T27: 28 | U27: 38 | V27: 3.90E+07 | W27: 0.14 | Z27: sp|P10809|CH60_HUMAN | AA27: HSPD1 | AB27: 24 | AC27: 33 | AD27: 1.30E+07 | AE27: 0.12 | AH27: sp|P14618|KPYM_HUMAN | AI27: PKM | AJ27: 23 | AK27: 51 | AL27: 5.00E+07 | AM27: 0.51 | AP27: sp|P06733|ENOA_HUMAN | AQ27: ENO1 | AR27: 24 | AS27: 55 | AT27: 2.10E+08 | AU27: 0.94 | AW27: sp|P78527|PRKDC_HUMAN | AX27: PRKDC | AY27: DNA-dependent protein kinase catalytic subunit OS=Homo sapiens GN=PRKDC PE=1 SV=3 | AZ27: 468.79 | BA27: 27 | BB27: 28 | BC27: 33 | BD27: 36 | BE27: 14 | BF27: 14 | BG27: 10 | BH27: 10 | BI27: 11 | BJ27: 11 | BK27: 3 | BL27: 3 | BM27: 36 | BN27: 6.50E+06 | BO27: 6.20E+06 | BP27: 2.50E+06 | BQ27: 3.80E+05 | BR27: 5.80E+05 | BS27: 1.10E+06 | BT27: 3.80E+05 | BU27: 17.1 | BV27: 16.3 | BW27: 6.6 | BX27: 1.0 | BY27: 1.5 | BZ27: 2.9
B28: sp|P22314|UBA1_HUMAN | C28: UBA1 | D28: 32 | E28: 53 | F28: 1.20E+08 | G28: 0.38 | J28: sp|P12956|XRCC6_HUMAN | K28: XRCC6 | L28: 32 | M28: 38 | N28: 4.80E+07 | O28: 0.20 | R28: sp|Q16531|DDB1_HUMAN | S28: DDB1 | T28: 28 | U28: 33 | V28: 3.20E+07 | W28: 0.12 | Z28: sp|O00754|MA2B1_HUMAN | AA28: MAN2B1 | AB28: 24 | AC28: 32 | AD28: 4.90E+07 | AE28: 0.45 | AH28: sp|O00468|AGRIN_HUMAN | AI28: AGRN | AJ28: 23 | AK28: 29 | AL28: 5.10E+07 | AM28: 0.53 | AP28: sp|P10809|CH60_HUMAN | AQ28: HSPD1 | AR28: 24 | AS28: 37 | AT28: 3.30E+07 | AU28: 0.14 | AW28: sp|P13010|XRCC5_HUMAN | AX28: XRCC5 | AY28: X-ray repair cross-complementing protein 5 OS=Homo sapiens GN=XRCC5 PE=1 SV=3 | AZ28: 82.65 | BA28: 30 | BB28: 44 | BC28: 31 | BD28: 41 | BE28: 28 | BF28: 57 | BG28: 30 | BH28: 36 | BI28: 25 | BJ28: 29 | BK28: 21 | BL28: 30 | BM28: 57 | BN28: 6.90E+07 | BO28: 3.90E+07 | BP28: 3.50E+07 | BQ28: 9.50E+06 | BR28: 9.90E+06 | BS28: 1.10E+07 | BT28: 9.50E+06 | BU28: 7.3 | BV28: 4.1 | BW28: 3.7 | BX28: 1.0 | BY28: 1.0 | BZ28: 1.2
B29: sp|Q6YHK3|CD109_HUMAN | C29: CD109 | D29: 32 | E29: 44 | F29: 4.30E+07 | G29: 0.14 | J29: sp|O15230|LAMA5_HUMAN | K29: LAMA5 | L29: 32 | M29: 38 | N29: 1.90E+07 | O29: 0.08 | R29: sp|P22314|UBA1_HUMAN | S29: UBA1 | T29: 27 | U29: 51 | V29: 6.80E+07 | W29: 0.25 | Z29: sp|Q6YHK3|CD109_HUMAN | AA29: CD109 | AB29: 24 | AC29: 30 | AD29: 1.00E+07 | AE29: 0.09 | AH29: sp|P55786|PSA_HUMAN | AI29: NPEPPS | AJ29: 23 | AK29: 24 | AL29: 1.20E+07 | AM29: 0.12 | AP29: sp|O00468|AGRIN_HUMAN | AQ29: AGRN | AR29: 24 | AS29: 37 | AT29: 9.30E+07 | AU29: 0.41 | AW29: sp|P09874|PARP1_HUMAN | AX29: PARP1 | AY29: Poly [ADP-ribose] polymerase 1 OS=Homo sapiens GN=PARP1 PE=1 SV=4 | AZ29: 113.01 | BA29: 37 | BB29: 60 | BC29: 30 | BD29: 44 | BE29: 27 | BF29: 38 | BG29: 18 | BH29: 22 | BI29: 24 | BJ29: 30 | BK29: 19 | BL29: 21 | BM29: 60 | BN29: 5.40E+07 | BO29: 2.90E+07 | BP29: 2.50E+07 | BQ29: 8.90E+06 | BR29: 1.50E+07 | BS29: 8.80E+06 | BT29: 8.80E+06 | BU29: 6.1 | BV29: 3.3 | BW29: 2.8 | BX29: 1.0 | BY29: 1.7 | BZ29: 1.0
B30: sp|Q16531|DDB1_HUMAN | C30: DDB1 | D30: 32 | E30: 37 | F30: 4.00E+07 | G30: 0.13 | J30: sp|P27708|PYR1_HUMAN | K30: CAD | L30: 32 | M30: 35 | N30: 2.00E+07 | O30: 0.08 | R30: sp|P55786|PSA_HUMAN | S30: NPEPPS | T30: 27 | U30: 39 | V30: 4.70E+07 | W30: 0.17 | Z30: sp|P07686|HEXB_HUMAN | AA30: HEXB | AB30: 24 | AC30: 28 | AD30: 1.10E+08 | AE30: 0.98 | AH30: sp|Q08380|LG3BP_HUMAN | AI30: LGALS3BP | AJ30: 22 | AK30: 75 | AL30: 3.60E+08 | AM30: 3.74 | AP30: sp|O00469|PLOD2_HUMAN | AQ30: PLOD2 | AR30: 24 | AS30: 35 | AT30: 5.30E+07 | AU30: 0.23 | AW30: sp|O75643|U520_HUMAN | AX30: SNRNP200 | AY30: U5 small nuclear ribonucleoprotein 200 kDa helicase OS=Homo sapiens GN=SNRNP200 PE=1 SV=2 | AZ30: 244.35 | BA30: 36 | BB30: 40 | BC30: 23 | BD30: 23 | BE30: 14 | BF30: 22 | BG30: 9 | BH30: 9 | BI30: 4 | BJ30: 4 | BK30: 0 | BL30: 0 | BM30: 40 | BN30: 1.10E+07 | BO30: 4.40E+06 | BP30: 5.50E+06 | BQ30: 6.10E+05 | BR30: 1.80E+05 | BS30: NF | BT30: 1.80E+05 | BU30: 61.1 | BV30: 24.4 | BW30: 30.6 | BX30: 3.4 | BY30: 1.0 | BZ30: 0.0
B31: sp|P14625|ENPL_HUMAN | C31: HSP90B1 | D31: 31 | E31: 46 | F31: 1.30E+08 | G31: 0.41 | J31: sp|P13010|XRCC5_HUMAN | K31: XRCC5 | L31: 31 | M31: 41 | N31: 3.90E+07 | O31: 0.16 | R31: sp|P09874|PARP1_HUMAN | S31: PARP1 | T31: 27 | U31: 38 | V31: 2.50E+07 | W31: 0.09 | Z31: sp|O00468|AGRIN_HUMAN | AA31: AGRN | AB31: 24 | AC31: 27 | AD31: 4.80E+07 | AE31: 0.44 | AH31: sp|P62258|1433E_HUMAN | AI31: YWHAE | AJ31: 22 | AK31: 66 | AL31: 1.00E+08 | AM31: 1.05 | AP31: sp|Q02809|PLOD1_HUMAN | AQ31: PLOD1 | AR31: 24 | AS31: 34 | AT31: 5.00E+07 | AU31: 0.22 | AW31: sp|P19338|NUCL_HUMAN | AX31: NCL | AY31: Nucleolin OS=Homo sapiens GN=NCL PE=1 SV=3 | AZ31: 76.57 | BA31: 38 | BB31: 97 | BC31: 32 | BD31: 76 | BE31: 25 | BF31: 93 | BG31: 24 | BH31: 49 | BI31: 26 | BJ31: 46 | BK31: 24 | BL31: 62 | BM31: 97 | BN31: 3.10E+08 | BO31: 1.40E+08 | BP31: 1.90E+08 | BQ31: 3.40E+07 | BR31: 5.20E+07 | BS31: 9.10E+07 | BT31: 3.40E+07 | BU31: 9.1 | BV31: 4.1 | BW31: 5.6 | BX31: 1.0 | BY31: 1.5 | BZ31: 2.7
B32: sp|P15311|EZRI_HUMAN | C32: EZR | D32: 30 | E32: 45 | F32: 1.00E+08 | G32: 0.33 | J32: sp|P22314|UBA1_HUMAN | K32: UBA1 | L32: 31 | M32: 40 | N32: 6.00E+07 | O32: 0.25 | R32: sp|O43707|ACTN4_HUMAN | S32: ACTN4 | T32: 27 | U32: 35 | V32: 5.00E+07 | W32: 0.18 | Z32: sp|P55786|PSA_HUMAN | AA32: NPEPPS | AB32: 24 | AC32: 26 | AD32: 8.20E+06 | AE32: 0.07 | AH32: sp|P0DMV9|HS71B_HUMAN | AI32: HSPA1B | AJ32: 22 | AK32: 46 | AL32: 1.40E+08 | AM32: 1.47 | AP32: sp|Q6YHK3|CD109_HUMAN | AQ32: CD109 | AR32: 24 | AS32: 33 | AT32: 2.20E+07 | AU32: 0.10 | AW32: sp|Q6YHK3|CD109_HUMAN | AX32: CD109 | AY32: CD109 antigen OS=Homo sapiens GN=CD109 PE=1 SV=2 | AZ32: 161.59 | BA32: 32 | BB32: 44 | BC32: 25 | BD32: 28 | BE32: 26 | BF32: 42 | BG32: 24 | BH32: 30 | BI32: 22 | BJ32: 25 | BK32: 24 | BL32: 33 | BM32: 44 | BN32: 4.30E+07 | BO32: 1.80E+07 | BP32: 3.70E+07 | BQ32: 1.00E+07 | BR32: 7.80E+06 | BS32: 2.20E+07 | BT32: 7.80E+06 | BU32: 5.5 | BV32: 2.3 | BW32: 4.7 | BX32: 1.3 | BY32: 1.0 | BZ32: 2.8
B33: sp|P13010|XRCC5_HUMAN | C33: XRCC5 | D33: 30 | E33: 44 | F33: 6.90E+07 | G33: 0.22 | J33: sp|P06733|ENOA_HUMAN | K33: ENO1 | L33: 30 | M33: 109 | N33: 9.00E+08 | O33: 3.71 | R33: sp|Q8TDW7|FAT3_HUMAN | S33: FAT3 | T33: 27 | U33: 30 | V33: 7.60E+06 | W33: 0.03 | Z33: sp|P18206|VINC_HUMAN | AA33: VCL | AB33: 24 | AC33: 26 | AD33: 6.70E+06 | AE33: 0.06 | AH33: sp|P11021|GRP78_HUMAN | AI33: HSPA5 | AJ33: 22 | AK33: 36 | AL33: 3.50E+07 | AM33: 0.36 | AP33: sp|P35579|MYH9_HUMAN | AQ33: MYH9 | AR33: 24 | AS33: 31 | AT33: 5.10E+06 | AU33: 0.02 | AW33: sp|P22314|UBA1_HUMAN | AX33: UBA1 | AY33: Ubiquitin-like modifier-activating enzyme 1 OS=Homo sapiens GN=UBA1 PE=1 SV=3 | AZ33: 117.77 | BA33: 32 | BB33: 53 | BC33: 31 | BD33: 40 | BE33: 27 | BF33: 51 | BG33: 30 | BH33: 37 | BI33: 27 | BJ33: 37 | BK33: 26 | BL33: 33 | BM33: 53 | BN33: 1.20E+08 | BO33: 6.00E+07 | BP33: 6.80E+07 | BQ33: 2.20E+07 | BR33: 2.80E+07 | BS33: 3.20E+07 | BT33: 2.20E+07 | BU33: 5.5 | BV33: 2.7 | BW33: 3.1 | BX33: 1.0 | BY33: 1.3 | BZ33: 1.5
B34: sp|Q9Y4L1|HYOU1_HUMAN | C34: HYOU1 | D34: 30 | E34: 37 | F34: 1.70E+07 | G34: 0.05 | J34: sp|P09874|PARP1_HUMAN | K34: PARP1 | L34: 30 | M34: 44 | N34: 2.90E+07 | O34: 0.12 | R34: sp|Q6YHK3|CD109_HUMAN | S34: CD109 | T34: 26 | U34: 42 | V34: 3.70E+07 | W34: 0.13 | Z34: sp|Q9Y266|NUDC_HUMAN | AA34: NUDC | AB34: 23 | AC34: 26 | AD34: 1.10E+07 | AE34: 0.10 | AH34: sp|Q6YHK3|CD109_HUMAN | AI34: CD109 | AJ34: 22 | AK34: 25 | AL34: 7.80E+06 | AM34: 0.08 | AP34: sp|Q9Y490|TLN1_HUMAN | AQ34: TLN1 | AR34: 24 | AS34: 28 | AT34: 4.00E+06 | AU34: 0.02 | AW34: sp|P10809|CH60_HUMAN | AX34: HSPD1 | AY34: 60 kDa heat shock protein, mitochondrial OS=Homo sapiens GN=HSPD1 PE=1 SV=2 | AZ34: 61.02 | BA34: 28 | BB34: 35 | BC34: 34 | BD34: 58 | BE34: 17 | BF34: 26 | BG34: 24 | BH34: 33 | BI34: 21 | BJ34: 31 | BK34: 24 | BL34: 37 | BM34: 58 | BN34: 3.00E+07 | BO34: 9.00E+07 | BP34: 1.10E+07 | BQ34: 1.30E+07 | BR34: 1.80E+07 | BS34: 3.30E+07 | BT34: 1.10E+07 | BU34: 2.7 | BV34: 8.2 | BW34: 1.0 | BX34: 1.2 | BY34: 1.6 | BZ34: 3.0
B35: sp|Q14203|DCTN1_HUMAN | C35: DCTN1 | D35: 30 | E35: 32 | F35: 8.80E+06 | G35: 0.03 | J35: sp|P00558|PGK1_HUMAN | K35: PGK1 | L35: 29 | M35: 56 | N35: 1.70E+08 | O35: 0.72 | R35: sp|Q86VP6|CAND1_HUMAN | S35: CAND1 | T35: 26 | U35: 37 | V35: 3.40E+07 | W35: 0.12 | Z35: sp|P34932|HSP74_HUMAN | AA35: HSPA4 | AB35: 23 | AC35: 24 | AD35: 1.90E+07 | AE35: 0.17 | AH35: sp|Q86VP6|CAND1_HUMAN | AI35: CAND1 | AJ35: 22 | AK35: 24 | AL35: 1.30E+07 | AM35: 0.13 | AP35: sp|P08670|VIME_HUMAN | AQ35: VIM | AR35: 23 | AS35: 61 | AT35: 6.50E+07 | AU35: 0.29 | AW35: sp|O43707|ACTN4_HUMAN | AX35: ACTN4 | AY35: Alpha-actinin-4 OS=Homo sapiens GN=ACTN4 PE=1 SV=2 | AZ35: 104.79 | BA35: 35 | BB35: 45 | BC35: 34 | BD35: 39 | BE35: 27 | BF35: 35 | BG35: 26 | BH35: 28 | BI35: 29 | BJ35: 31 | BK35: 23 | BL35: 30 | BM35: 45 | BN35: 8.30E+07 | BO35: 3.90E+07 | BP35: 5.00E+07 | BQ35: 1.10E+07 | BR35: 1.90E+07 | BS35: 3.40E+07 | BT35: 1.10E+07 | BU35: 7.5 | BV35: 3.5 | BW35: 4.5 | BX35: 1.0 | BY35: 1.7 | BZ35: 3.1
B36: sp|P08670|VIME_HUMAN | C36: VIM | D36: 29 | E36: 77 | F36: 3.20E+08 | G36: 1.02 | J36: sp|P11021|GRP78_HUMAN | K36: HSPA5 | L36: 29 | M36: 48 | N36: 1.40E+08 | O36: 0.57 | R36: sp|P34932|HSP74_HUMAN | S36: HSPA4 | T36: 26 | U36: 34 | V36: 6.40E+07 | W36: 0.23 | Z36: sp|P14618|KPYM_HUMAN | AA36: PKM | AB36: 22 | AC36: 46 | AD36: 4.00E+07 | AE36: 0.37 | AH36: sp|P34932|HSP74_HUMAN | AI36: HSPA4 | AJ36: 22 | AK36: 23 | AL36: 2.00E+07 | AM36: 0.21 | AP36: sp|O43707|ACTN4_HUMAN | AQ36: ACTN4 | AR36: 23 | AS36: 30 | AT36: 3.40E+07 | AU36: 0.15 | AW36: sp|P55786|PSA_HUMAN | AX36: NPEPPS | AY36: Puromycin-sensitive aminopeptidase OS=Homo sapiens GN=NPEPPS PE=1 SV=2 | AZ36: 103.21 | BA36: 34 | BB36: 47 | BC36: 26 | BD36: 34 | BE36: 27 | BF36: 39 | BG36: 24 | BH36: 26 | BI36: 23 | BJ36: 24 | BK36: 27 | BL36: 36 | BM36: 47 | BN36: 9.40E+07 | BO36: 3.40E+07 | BP36: 4.70E+07 | BQ36: 8.20E+06 | BR36: 1.20E+07 | BS36: 2.20E+07 | BT36: 8.20E+06 | BU36: 11.5 | BV36: 4.1 | BW36: 5.7 | BX36: 1.0 | BY36: 1.5 | BZ36: 2.7
B37: sp|P14618|KPYM_HUMAN | C37: PKM | D37: 29 | E37: 66 | F37: 2.80E+08 | G37: 0.91 | J37: sp|Q01082|SPTB2_HUMAN | K37: SPTBN1 | L37: 29 | M37: 30 | N37: 1.10E+07 | O37: 0.04 | R37: sp|P55268|LAMB2_HUMAN | S37: LAMB2 | T37: 26 | U37: 29 | V37: 1.60E+07 | W37: 0.06 | Z37: sp|O00391|QSOX1_HUMAN | AA37: QSOX1 | AB37: 22 | AC37: 27 | AD37: 2.80E+07 | AE37: 0.26 | AH37: sp|P10809|CH60_HUMAN | AI37: HSPD1 | AJ37: 21 | AK37: 31 | AL37: 1.80E+07 | AM37: 0.18 | AP37: sp|Q9Y4L1|HYOU1_HUMAN | AQ37: HYOU1 | AR37: 23 | AS37: 30 | AT37: 1.00E+07 | AU37: 0.05 | AW37: sp|P34932|HSP74_HUMAN | AX37: HSPA4 | AY37: Heat shock 70 kDa protein 4 OS=Homo sapiens GN=HSPA4 PE=1 SV=4 | AZ37: 94.27 | BA37: 33 | BB37: 41 | BC37: 23 | BD37: 27 | BE37: 26 | BF37: 34 | BG37: 23 | BH37: 24 | BI37: 22 | BJ37: 23 | BK37: 25 | BL37: 32 | BM37: 41 | BN37: 7.50E+07 | BO37: 4.30E+07 | BP37: 6.40E+07 | BQ37: 1.90E+07 | BR37: 2.00E+07 | BS37: 2.70E+07 | BT37: 1.90E+07 | BU37: 3.9 | BV37: 2.3 | BW37: 3.4 | BX37: 1.0 | BY37: 1.1 | BZ37: 1.4
B38: sp|P11021|GRP78_HUMAN | C38: HSPA5 | D38: 29 | E38: 49 | F38: 7.80E+07 | G38: 0.25 | J38: sp|P78371|TCPB_HUMAN | K38: CCT2 | L38: 28 | M38: 42 | N38: 2.60E+07 | O38: 0.11 | R38: sp|Q16787|LAMA3_HUMAN | S38: LAMA3 | T38: 26 | U38: 28 | V38: 1.60E+07 | W38: 0.06 | Z38: sp|P12956|XRCC6_HUMAN | AA38: XRCC6 | AB38: 22 | AC38: 26 | AD38: 1.10E+07 | AE38: 0.10 | AH38: sp|O00391|QSOX1_HUMAN | AI38: QSOX1 | AJ38: 21 | AK38: 29 | AL38: 2.40E+07 | AM38: 0.25 | AP38: sp|P69849|NOMO3_HUMAN | AQ38: NOMO3 | AR38: 23 | AS38: 27 | AT38: 1.00E+07 | AU38: 0.05 | AW38: sp|Q86VP6|CAND1_HUMAN | AX38: CAND1 | AY38: Cullin-associated NEDD8-dissociated protein 1 OS=Homo sapiens GN=CAND1 PE=1 SV=2 | AZ38: 136.29 | BA38: 33 | BB38: 38 | BC38: 26 | BD38: 28 | BE38: 26 | BF38: 37 | BG38: 16 | BH38: 16 | BI38: 22 | BJ38: 24 | BK38: 19 | BL38: 20 | BM38: 38 | BN38: 4.70E+07 | BO38: 2.50E+07 | BP38: 3.40E+07 | BQ38: 4.90E+06 | BR38: 1.30E+07 | BS38: 1.70E+07 | BT38: 4.90E+06 | BU38: 9.6 | BV38: 5.1 | BW38: 6.9 | BX38: 1.0 | BY38: 2.7 | BZ38: 3.5
B39: sp|P55268|LAMB2_HUMAN | C39: LAMB2 | D39: 29 | E39: 31 | F39: 2.10E+07 | G39: 0.07 | J39: sp|Q5SZK8|FREM2_HUMAN | K39: FREM2 | L39: 28 | M39: 28 | N39: 5.40E+06 | O39: 0.02 | R39: sp|Q15393|SF3B3_HUMAN | S39: SF3B3 | T39: 26 | U39: 28 | V39: 1.40E+07 | W39: 0.05 | Z39: sp|P29401|TKT_HUMAN | AA39: TKT | AB39: 22 | AC39: 26 | AD39: 2.20E+07 | AE39: 0.20 | AH39: sp|P29401|TKT_HUMAN | AI39: TKT | AJ39: 21 | AK39: 24 | AL39: 2.50E+07 | AM39: 0.26 | AP39: sp|Q08380|LG3BP_HUMAN | AQ39: LGALS3BP | AR39: 22 | AS39: 120 | AT39: 1.10E+09 | AU39: 4.65 | AW39: sp|P14625|ENPL_HUMAN | AX39: HSP90B1 | AY39: Endoplasmin OS=Homo sapiens GN=HSP90B1 PE=1 SV=1 | AZ39: 92.41 | BA39: 31 | BB39: 46 | BC39: 24 | BD39: 30 | BE39: 20 | BF39: 34 | BG39: 21 | BH39: 22 | BI39: 21 | BJ39: 23 | BK39: 20 | BL39: 25 | BM39: 46 | BN39: 1.30E+08 | BO39: 7.00E+07 | BP39: 1.00E+08 | BQ39: 1.90E+07 | BR39: 2.10E+07 | BS39: 4.90E+07 | BT39: 1.90E+07 | BU39: 6.8 | BV39: 3.7 | BW39: 5.3 | BX39: 1.0 | BY39: 1.1 | BZ39: 2.6
B40: sp|Q8WUM4|PDC6I_HUMAN | C40: PDCD6IP | D40: 29 | E40: 31 | F40: 2.60E+07 | G40: 0.08 | J40: sp|P13667|PDIA4_HUMAN | K40: PDIA4 | L40: 27 | M40: 30 | N40: 2.90E+07 | O40: 0.12 | R40: sp|P19338|NUCL_HUMAN | S40: NCL | T40: 25 | U40: 93 | V40: 1.90E+08 | W40: 0.69 | Z40: sp|P0DMV9|HS71B_HUMAN | AA40: HSPA1B | AB40: 21 | AC40: 47 | AD40: 1.30E+08 | AE40: 1.23 | AH40: sp|P14625|ENPL_HUMAN | AI40: HSP90B1 | AJ40: 21 | AK40: 23 | AL40: 2.10E+07 | AM40: 0.22 | AP40: sp|P11021|GRP78_HUMAN | AQ40: HSPA5 | AR40: 22 | AS40: 49 | AT40: 9.90E+07 | AU40: 0.43 | AW40: sp|Q16531|DDB1_HUMAN | AX40: DDB1 | AY40: DNA damage-binding protein 1 OS=Homo sapiens GN=DDB1 PE=1 SV=1 | AZ40: 126.89 | BA40: 32 | BB40: 37 | BC40: 26 | BD40: 27 | BE40: 28 | BF40: 33 | BG40: 18 | BH40: 19 | BI40: 25 | BJ40: 26 | BK40: 22 | BL40: 26 | BM40: 37 | BN40: 4.00E+07 | BO40: 2.40E+07 | BP40: 3.20E+07 | BQ40: 4.40E+06 | BR40: 9.90E+06 | BS40: 1.40E+07 | BT40: 4.40E+06 | BU40: 9.1 | BV40: 5.5 | BW40: 7.3 | BX40: 1.0 | BY40: 2.3 | BZ40: 3.2
B41: sp|P49588|SYAC_HUMAN | C41: AARS | D41: 29 | E41: 29 | F41: 2.50E+07 | G41: 0.08 | J41: sp|P50990|TCPQ_HUMAN | K41: CCT8 | L41: 26 | M41: 45 | N41: 4.80E+07 | O41: 0.20 | R41: sp|P08670|VIME_HUMAN | S41: VIM | T41: 25 | U41: 73 | V41: 1.10E+08 | W41: 0.41 | Z41: sp|O94985|CSTN1_HUMAN | AA41: CLSTN1 | AB41: 21 | AC41: 42 | AD41: 7.70E+07 | AE41: 0.70 | AH41: sp|O14980|XPO1_HUMAN | AI41: XPO1 | AJ41: 21 | AK41: 23 | AL41: 3.80E+06 | AM41: 0.04 | AP41: sp|P15311|EZRI_HUMAN | AQ41: EZR | AR41: 22 | AS41: 35 | AT41: 2.40E+07 | AU41: 0.10 | AW41: sp|P08670|VIME_HUMAN | AX41: VIM | AY41: Vimentin OS=Homo sapiens GN=VIM PE=1 SV=4 | AZ41: 53.62 | BA41: 29 | BB41: 77 | BC41: 35 | BD41: 86 | BE41: 25 | BF41: 73 | BG41: 27 | BH41: 65 | BI41: 27 | BJ41: 54 | BK41: 23 | BL41: 61 | BM41: 86 | BN41: 3.20E+08 | BO41: 2.10E+08 | BP41: 1.10E+08 | BQ41: 5.70E+07 | BR41: 4.50E+07 | BS41: 6.50E+07 | BT41: 4.50E+07 | BU41: 7.1 | BV41: 4.7 | BW41: 2.4 | BX41: 1.3 | BY41: 1.0 | BZ41: 1.4
B42: sp|P06733|ENOA_HUMAN | C42: ENO1 | D42: 28 | E42: 127 | F42: 1.00E+09 | G42: 3.25 | J42: sp|P05455|LA_HUMAN | K42: SSB | L42: 26 | M42: 34 | N42: 4.00E+07 | O42: 0.17 | R42: sp|P00558|PGK1_HUMAN | S42: PGK1 | T42: 25 | U42: 59 | V42: 1.60E+08 | W42: 0.59 | Z42: sp|P11021|GRP78_HUMAN | AA42: HSPA5 | AB42: 21 | AC42: 40 | AD42: 6.90E+07 | AE42: 0.63 | AH42: sp|P78371|TCPB_HUMAN | AI42: CCT2 | AJ42: 20 | AK42: 24 | AL42: 3.20E+06 | AM42: 0.03 | AP42: sp|Q16531|DDB1_HUMAN | AQ42: DDB1 | AR42: 22 | AS42: 26 | AT42: 1.40E+07 | AU42: 0.06 | AW42: sp|P11021|GRP78_HUMAN | AX42: HSPA5 | AY42: 78 kDa glucose-regulated protein OS=Homo sapiens GN=HSPA5 PE=1 SV=2 | AZ42: 72.29 | BA42: 29 | BB42: 49 | BC42: 29 | BD42: 48 | BE42: 31 | BF42: 74 | BG42: 21 | BH42: 40 | BI42: 22 | BJ42: 36 | BK42: 22 | BL42: 49 | BM42: 74 | BN42: 7.80E+07 | BO42: 1.40E+08 | BP42: 1.00E+08 | BQ42: 6.90E+07 | BR42: 3.50E+07 | BS42: 9.90E+07 | BT42: 3.50E+07 | BU42: 2.2 | BV42: 4.0 | BW42: 2.9 | BX42: 2.0 | BY42: 1.0 | BZ42: 2.8
B43: sp|P12109|CO6A1_HUMAN | C43: COL6A1 | D43: 28 | E43: 61 | F43: 1.90E+08 | G43: 0.61 | J43: sp|P55786|PSA_HUMAN | K43: NPEPPS | L43: 26 | M43: 34 | N43: 3.40E+07 | O43: 0.14 | R43: sp|O00468|AGRIN_HUMAN | S43: AGRN | T43: 25 | U43: 49 | V43: 9.70E+07 | W43: 0.35 | Z43: sp|P14625|ENPL_HUMAN | AA43: HSP90B1 | AB43: 21 | AC43: 22 | AD43: 1.90E+07 | AE43: 0.17 | AH43: sp|P15311|EZRI_HUMAN | AI43: EZR | AJ43: 20 | AK43: 24 | AL43: 1.90E+07 | AM43: 0.20 | AP43: sp|O75369|FLNB_HUMAN | AQ43: FLNB | AR43: 22 | AS43: 23 | AT43: 6.70E+07 | AU43: 0.29 | AW43: sp|Q9Y4L1|HYOU1_HUMAN | AX43: HYOU1 | AY43: Hypoxia up-regulated protein 1 OS=Homo sapiens GN=HYOU1 PE=1 SV=1 | AZ43: 111.27 | BA43: 30 | BB43: 37 | BC43: 19 | BD43: 22 | BE43: 25 | BF43: 34 | BG43: 19 | BH43: 24 | BI43: 15 | BJ43: 20 | BK43: 23 | BL43: 30 | BM43: 37 | BN43: 1.70E+07 | BO43: 5.40E+06 | BP43: 1.50E+07 | BQ43: 3.00E+06 | BR43: 3.10E+06 | BS43: 1.00E+07 | BT43: 3.00E+06 | BU43: 5.7 | BV43: 1.8 | BW43: 5.0 | BX43: 1.0 | BY43: 1.0 | BZ43: 3.3
B44: sp|P10809|CH60_HUMAN | C44: HSPD1 | D44: 28 | E44: 35 | F44: 3.00E+07 | G44: 0.10 | J44: sp|Q86VP6|CAND1_HUMAN | K44: CAND1 | L44: 26 | M44: 28 | N44: 2.50E+07 | O44: 0.10 | R44: sp|Q9Y4L1|HYOU1_HUMAN | S44: HYOU1 | T44: 25 | U44: 34 | V44: 1.50E+07 | W44: 0.05 | Z44: sp|O00231|PSD11_HUMAN | AA44: PSMD11 | AB44: 21 | AC44: 21 | AD44: 3.70E+06 | AE44: 0.03 | AH44: sp|P26038|MOES_HUMAN | AI44: MSN | AJ44: 20 | AK44: 22 | AL44: 8.20E+06 | AM44: 0.09 | AP44: sp|O00391|QSOX1_HUMAN | AQ44: QSOX1 | AR44: 21 | AS44: 46 | AT44: 6.80E+07 | AU44: 0.30 | AW44: sp|Q14517|FAT1_HUMAN | AX44: FAT1 | AY44: Protocadherin Fat 1 OS=Homo sapiens GN=FAT1 PE=1 SV=2 | AZ44: 505.96 | BA44: 0 | BB44: 0 | BC44: 15 | BD44: 15 | BE44: 30 | BF44: 33 | BG44: 8 | BH44: 8 | BI44: 1 | BJ44: 1 | BK44: 20 | BL44: 21 | BM44: 33 | BN44: NF | BO44: 1.50E+06 | BP44: 1.00E+07 | BQ44: 4.40E+05 | BR44: 4.20E+04 | BS44: 1.10E+07 | BT44: 4.20E+04 | BU44: 0.0 | BV44: 35.7 | BW44: 238.1 | BX44: 10.5 | BY44: 1.0 | BZ44: 261.9
B45: sp|O00468|AGRIN_HUMAN | C45: AGRN | D45: 27 | E45: 47 | F45: 1.80E+08 | G45: 0.58 | J45: sp|Q16531|DDB1_HUMAN | K45: DDB1 | L45: 26 | M45: 27 | N45: 2.40E+07 | O45: 0.10 | R45: sp|P69849|NOMO3_HUMAN | S45: NOMO3 | T45: 25 | U45: 31 | V45: 1.30E+07 | W45: 0.05 | Z45: sp|Q08380|LG3BP_HUMAN | AA45: LGALS3BP | AB45: 20 | AC45: 79 | AD45: 3.60E+08 | AE45: 3.27 | AH45: sp|P12956|XRCC6_HUMAN | AI45: XRCC6 | AJ45: 20 | AK45: 22 | AL45: 1.30E+07 | AM45: 0.13 | AP45: sp|P14618|KPYM_HUMAN | AQ45: PKM | AR45: 21 | AS45: 35 | AT45: 8.30E+07 | AU45: 0.36 | AW45: sp|P55268|LAMB2_HUMAN | AX45: LAMB2 | AY45: Laminin subunit beta-2 OS=Homo sapiens GN=LAMB2 PE=1 SV=2 | AZ45: 195.85 | BA45: 29 | BB45: 31 | BC45: 24 | BD45: 24 | BE45: 26 | BF45: 29 | BG45: 20 | BH45: 20 | BI45: 14 | BJ45: 14 | BK45: 26 | BL45: 29 | BM45: 31 | BN45: 2.10E+07 | BO45: 1.10E+07 | BP45: 1.60E+07 | BQ45: 5.00E+06 | BR45: 1.50E+06 | BS45: 1.10E+07 | BT45: 1.50E+06 | BU45: 14.0 | BV45: 7.3 | BW45: 10.7 | BX45: 3.3 | BY45: 1.0 | BZ45: 7.3
B46: sp|P50990|TCPQ_HUMAN | C46: CCT8 | D46: 27 | E46: 38 | F46: 6.50E+07 | G46: 0.21 | J46: sp|P07237|PDIA1_HUMAN | K46: P4HB | L46: 25 | M46: 41 | N46: 6.00E+07 | O46: 0.25 | R46: sp|P06733|ENOA_HUMAN | S46: ENO1 | T46: 24 | U46: 79 | V46: 5.80E+08 | W46: 2.09 | Z46: sp|P62258|1433E_HUMAN | AA46: YWHAE | AB46: 20 | AC46: 47 | AD46: 1.40E+08 | AE46: 1.31 | AH46: sp|Q14204|DYHC1_HUMAN | AI46: DYNC1H1 | AJ46: 20 | AK46: 21 | AL46: 1.30E+06 | AM46: 0.01 | AP46: sp|P13010|XRCC5_HUMAN | AQ46: XRCC5 | AR46: 21 | AS46: 30 | AT46: 1.10E+07 | AU46: 0.05 | AW46: sp|Q15393|SF3B3_HUMAN | AX46: SF3B3 | AY46: Splicing factor 3B subunit 3 OS=Homo sapiens GN=SF3B3 PE=1 SV=4 | AZ46: 135.49 | BA46: 33 | BB46: 35 | BC46: 23 | BD46: 25 | BE46: 26 | BF46: 28 | BG46: 14 | BH46: 15 | BI46: 18 | BJ46: 21 | BK46: 17 | BL46: 22 | BM46: 35 | BN46: 2.80E+07 | BO46: 1.20E+07 | BP46: 1.40E+07 | BQ46: 2.30E+06 | BR46: 4.20E+06 | BS46: 8.10E+06 | BT46: 2.30E+06 | BU46: 12.2 | BV46: 5.2 | BW46: 6.1 | BX46: 1.0 | BY46: 1.8 | BZ46: 3.5
B47: sp|Q14697|GANAB_HUMAN | C47: GANAB | D47: 27 | E47: 33 | F47: 3.90E+07 | G47: 0.13 | J47: sp|Q99832|TCPH_HUMAN | K47: CCT7 | L47: 25 | M47: 36 | N47: 1.80E+07 | O47: 0.07 | R47: sp|Q08380|LG3BP_HUMAN | S47: LGALS3BP | T47: 23 | U47: 134 | V47: 1.70E+09 | W47: 6.24 | Z47: sp|P07093|GDN_HUMAN | AA47: SERPINE2 | AB47: 20 | AC47: 28 | AD47: 2.10E+07 | AE47: 0.20 | AH47: sp|O00469|PLOD2_HUMAN | AI47: PLOD2 | AJ47: 20 | AK47: 20 | AL47: 1.60E+07 | AM47: 0.17 | AP47: sp|Q02818|NUCB1_HUMAN | AQ47: NUCB1 | AR47: 21 | AS47: 30 | AT47: 6.60E+07 | AU47: 0.29 | AW47: sp|P15311|EZRI_HUMAN | AX47: EZR | AY47: Ezrin OS=Homo sapiens GN=EZR PE=1 SV=4 | AZ47: 69.37 | BA47: 30 | BB47: 45 | BC47: 25 | BD47: 35 | BE47: 22 | BF47: 43 | BG47: 20 | BH47: 26 | BI47: 20 | BJ47: 24 | BK47: 22 | BL47: 35 | BM47: 45 | BN47: 1.00E+08 | BO47: 6.70E+07 | BP47: 4.10E+07 | BQ47: 1.70E+07 | BR47: 1.90E+07 | BS47: 2.40E+07 | BT47: 1.70E+07 | BU47: 5.9 | BV47: 3.9 | BW47: 2.4 | BX47: 1.0 | BY47: 1.1 | BZ47: 1.4
B48: sp|P13667|PDIA4_HUMAN | C48: PDIA4 | D48: 27 | E48: 31 | F48: 1.90E+07 | G48: 0.06 | J48: sp|O00468|AGRIN_HUMAN | K48: AGRN | L48: 25 | M48: 35 | N48: 7.50E+07 | O48: 0.31 | R48: sp|P19022|CADH2_HUMAN | S48: CDH2 | T48: 23 | U48: 63 | V48: 1.80E+08 | W48: 0.66 | Z48: sp|P50395|GDIB_HUMAN | AA48: GDI2 | AB48: 20 | AC48: 27 | AD48: 1.70E+07 | AE48: 0.16 | AH48: sp|Q92820|GGH_HUMAN | AI48: GGH | AJ48: 19 | AK48: 45 | AL48: 1.40E+08 | AM48: 1.47 | AP48: sp|P62258|1433E_HUMAN | AQ48: YWHAE | AR48: 20 | AS48: 71 | AT48: 3.10E+08 | AU48: 1.37 | AW48: sp|P13667|PDIA4_HUMAN | AX48: PDIA4 | AY48: Protein disulfide-isomerase A4 OS=Homo sapiens GN=PDIA4 PE=1 SV=2 | AZ48: 72.89 | BA48: 27 | BB48: 31 | BC48: 27 | BD48: 30 | BE48: 18 | BF48: 29 | BG48: 17 | BH48: 18 | BI48: 18 | BJ48: 19 | BK48: 15 | BL48: 25 | BM48: 31 | BN48: 1.90E+07 | BO48: 2.90E+07 | BP48: 1.70E+07 | BQ48: 5.70E+06 | BR48: 4.50E+06 | BS48: 9.90E+06 | BT48: 4.50E+06 | BU48: 4.2 | BV48: 6.4 | BW48: 3.8 | BX48: 1.3 | BY48: 1.0 | BZ48: 2.2
B49: sp|P69849|NOMO3_HUMAN | C49: NOMO3 | D49: 27 | E49: 29 | F49: 1.40E+07 | G49: 0.05 | J49: sp|P15311|EZRI_HUMAN | K49: EZR | L49: 25 | M49: 35 | N49: 6.70E+07 | O49: 0.27 | R49: sp|P12109|CO6A1_HUMAN | S49: COL6A1 | T49: 22 | U49: 48 | V49: 1.50E+08 | W49: 0.53 | Z49: sp|P15311|EZRI_HUMAN | AA49: EZR | AB49: 20 | AC49: 26 | AD49: 1.70E+07 | AE49: 0.16 | AH49: sp|O94985|CSTN1_HUMAN | AI49: CLSTN1 | AJ49: 19 | AK49: 39 | AL49: 9.80E+07 | AM49: 1.02 | AP49: sp|P10909|CLUS_HUMAN | AQ49: CLU | AR49: 20 | AS49: 48 | AT49: 4.40E+08 | AU49: 1.93 | AW49: sp|P06733|ENOA_HUMAN | AX49: ENO1 | AY49: Alpha-enolase OS=Homo sapiens GN=ENO1 PE=1 SV=2 | AZ49: 47.14 | BA49: 28 | BB49: 127 | BC49: 30 | BD49: 109 | BE49: 24 | BF49: 79 | BG49: 32 | BH49: 120 | BI49: 26 | BJ49: 66 | BK49: 24 | BL49: 55 | BM49: 127 | BN49: 1.00E+09 | BO49: 9.00E+08 | BP49: 5.80E+08 | BQ49: 3.50E+08 | BR49: 1.10E+08 | BS49: 2.10E+08 | BT49: 1.10E+08 | BU49: 9.1 | BV49: 8.2 | BW49: 5.3 | BX49: 3.2 | BY49: 1.0 | BZ49: 1.9
B50: sp|P12270|TPR_HUMAN | C50: TPR | D50: 27 | E50: 28 | F50: 7.10E+06 | G50: 0.02 | J50: sp|P26038|MOES_HUMAN | K50: MSN | L50: 25 | M50: 31 | N50: 3.80E+07 | O50: 0.16 | R50: sp|P15311|EZRI_HUMAN | S50: EZR | T50: 22 | U50: 43 | V50: 4.10E+07 | W50: 0.15 | Z50: sp|Q02809|PLOD1_HUMAN | AA50: PLOD1 | AB50: 20 | AC50: 23 | AD50: 1.60E+07 | AE50: 0.15 | AH50: sp|O43405|COCH_HUMAN | AI50: COCH | AJ50: 19 | AK50: 39 | AL50: 4.20E+07 | AM50: 0.43 | AP50: sp|P00558|PGK1_HUMAN | AQ50: PGK1 | AR50: 20 | AS50: 35 | AT50: 4.30E+07 | AU50: 0.19 | AW50: sp|P14618|KPYM_HUMAN | AX50: PKM | AY50: Pyruvate kinase PKM OS=Homo sapiens GN=PKM PE=1 SV=4 | AZ50: 57.9 | BA50: 29 | BB50: 66 | BC50: 34 | BD50: 97 | BE50: 22 | BF50: 35 | BG50: 22 | BH50: 46 | BI50: 23 | BJ50: 51 | BK50: 21 | BL50: 35 | BM50: 97 | BN50: 2.80E+08 | BO50: 2.70E+08 | BP50: 4.80E+07 | BQ50: 4.00E+07 | BR50: 5.00E+07 | BS50: 8.30E+07 | BT50: 4.00E+07 | BU50: 7.0 | BV50: 6.8 | BW50: 1.2 | BX50: 1.0 | BY50: 1.3 | BZ50: 2.1
B51: sp|P78527|PRKDC_HUMAN | C51: PRKDC | D51: 27 | E51: 28 | F51: 6.50E+06 | G51: 0.02 | J51: sp|Q6YHK3|CD109_HUMAN | K51: CD109 | L51: 25 | M51: 28 | N51: 1.80E+07 | O51: 0.07 | R51: sp|Q8NBJ4|GOLM1_HUMAN | S51: GOLM1 | T51: 22 | U51: 39 | V51: 7.30E+07 | W51: 0.27 | Z51: sp|P55268|LAMB2_HUMAN | AA51: LAMB2 | AB51: 20 | AC51: 20 | AD51: 5.00E+06 | AE51: 0.05 | AH51: sp|P68371|TBB4B_HUMAN | AI51: TUBB4B | AJ51: 19 | AK51: 38 | AL51: 2.70E+07 | AM51: 0.28 | AP51: sp|P14625|ENPL_HUMAN | AQ51: HSP90B1 | AR51: 20 | AS51: 25 | AT51: 4.90E+07 | AU51: 0.22 | AW51: sp|P69849|NOMO3_HUMAN | AX51: NOMO3 | AY51: Nodal modulator 3 OS=Homo sapiens GN=NOMO3 PE=3 SV=2 | AZ51: 134.05 | BA51: 27 | BB51: 29 | BC51: 17 | BD51: 20 | BE51: 25 | BF51: 31 | BG51: 14 | BH51: 16 | BI51: 18 | BJ51: 19 | BK51: 23 | BL51: 27 | BM51: 31 | BN51: 1.40E+07 | BO51: 4.80E+06 | BP51: 1.30E+07 | BQ51: 2.90E+06 | BR51: 2.90E+06 | BS51: 1.00E+07 | BT51: 2.90E+06 | BU51: 4.8 | BV51: 1.7 | BW51: 4.5 | BX51: 1.0 | BY51: 1.0 | BZ51: 3.4
B52: sp|P78371|TCPB_HUMAN | C52: CCT2 | D52: 26 | E52: 51 | F52: 3.70E+07 | G52: 0.12 | J52: sp|P0DMV9|HS71B_HUMAN | K52: HSPA1B | L52: 24 | M52: 61 | N52: 4.40E+08 | O52: 1.79 | R52: sp|P14618|KPYM_HUMAN | S52: PKM | T52: 22 | U52: 35 | V52: 4.80E+07 | W52: 0.18 | Z52: sp|P46940|IQGA1_HUMAN | AA52: IQGAP1 | AB52: 20 | AC52: 20 | AD52: 1.90E+06 | AE52: 0.02 | AH52: sp|Q9BQE3|TBA1C_HUMAN | AI52: TUBA1C | AJ52: 19 | AK52: 37 | AL52: 5.00E+07 | AM52: 0.52 | AP52: sp|Q14204|DYHC1_HUMAN | AQ52: DYNC1H1 | AR52: 20 | AS52: 23 | AT52: 4.10E+06 | AU52: 0.02 | AW52: sp|Q8WUM4|PDC6I_HUMAN | AX52: PDCD6IP | AY52: Programmed cell death 6-interacting protein OS=Homo sapiens GN=PDCD6IP PE=1 SV=1 | AZ52: 95.96 | BA52: 29 | BB52: 31 | BC52: 15 | BD52: 17 | BE52: 19 | BF52: 23 | BG52: 12 | BH52: 13 | BI52: 12 | BJ52: 13 | BK52: 19 | BL52: 22 | BM52: 31 | BN52: 2.60E+07 | BO52: 9.40E+06 | BP52: 1.60E+07 | BQ52: 2.10E+06 | BR52: 2.80E+06 | BS52: 9.90E+06 | BT52: 2.10E+06 | BU52: 12.4 | BV52: 4.5 | BW52: 7.6 | BX52: 1.0 | BY52: 1.3 | BZ52: 4.7
B53: sp|P05455|LA_HUMAN | C53: SSB | D53: 26 | E53: 38 | F53: 4.30E+07 | G53: 0.14 | J53: sp|O00391|QSOX1_HUMAN | K53: QSOX1 | L53: 24 | M53: 36 | N53: 6.50E+07 | O53: 0.27 | R53: sp|Q14974|IMB1_HUMAN | S53: KPNB1 | T53: 22 | U53: 33 | V53: 3.70E+07 | W53: 0.14 | Z53: sp|O00469|PLOD2_HUMAN | AA53: PLOD2 | AB53: 20 | AC53: 20 | AD53: 1.30E+07 | AE53: 0.12 | AH53: sp|Q02818|NUCB1_HUMAN | AI53: NUCB1 | AJ53: 19 | AK53: 36 | AL53: 1.90E+07 | AM53: 0.19 | AP53: sp|Q14517|FAT1_HUMAN | AQ53: FAT1 | AR53: 20 | AS53: 21 | AT53: 1.10E+07 | AU53: 0.05 | AW53: sp|P00558|PGK1_HUMAN | AX53: PGK1 | AY53: Phosphoglycerate kinase 1 OS=Homo sapiens GN=PGK1 PE=1 SV=3 | AZ53: 44.59 | BA53: 25 | BB53: 47 | BC53: 29 | BD53: 56 | BE53: 25 | BF53: 59 | BG53: 28 | BH53: 49 | BI53: 27 | BJ53: 40 | BK53: 20 | BL53: 35 | BM53: 59 | BN53: 1.50E+08 | BO53: 1.70E+08 | BP53: 1.60E+08 | BQ53: 5.30E+07 | BR53: 5.60E+07 | BS53: 4.30E+07 | BT53: 4.30E+07 | BU53: 3.5 | BV53: 4.0 | BW53: 3.7 | BX53: 1.2 | BY53: 1.3 | BZ53: 1.0
B54: sp|P07237|PDIA1_HUMAN | C54: P4HB | D54: 26 | E54: 38 | F54: 7.70E+07 | G54: 0.25 | J54: sp|P20700|LMNB1_HUMAN | K54: LMNB1 | L54: 24 | M54: 34 | N54: 1.10E+07 | O54: 0.05 | R54: sp|P62258|1433E_HUMAN | S54: YWHAE | T54: 21 | U54: 96 | V54: 4.40E+08 | W54: 1.61 | Z54: sp|O43405|COCH_HUMAN | AA54: COCH | AB54: 19 | AC54: 43 | AD54: 6.50E+07 | AE54: 0.59 | AH54: sp|P11142|HSP7C_HUMAN | AI54: HSPA8 | AJ54: 19 | AK54: 35 | AL54: 2.40E+07 | AM54: 0.24 | AP54: sp|P19022|CADH2_HUMAN | AQ54: CDH2 | AR54: 19 | AS54: 53 | AT54: 1.20E+08 | AU54: 0.55 | AW54: sp|P12956|XRCC6_HUMAN | AX54: XRCC6 | AY54: X-ray repair cross-complementing protein 6 OS=Homo sapiens GN=XRCC6 PE=1 SV=2 | AZ54: 69.8 | BA54: 14 | BB54: 15 | BC54: 32 | BD54: 38 | BE54: 19 | BF54: 32 | BG54: 22 | BH54: 26 | BI54: 20 | BJ54: 22 | BK54: 14 | BL54: 20 | BM54: 38 | BN54: 2.50E+06 | BO54: 4.80E+07 | BP54: 2.70E+07 | BQ54: 1.10E+07 | BR54: 1.30E+07 | BS54: 3.00E+07 | BT54: 2.50E+06 | BU54: 1.0 | BV54: 19.2 | BW54: 10.8 | BX54: 4.4 | BY54: 5.2 | BZ54: 12.0
B55: sp|P11586|C1TC_HUMAN | C55: MTHFD1 | D55: 26 | E55: 31 | F55: 1.50E+07 | G55: 0.05 | J55: sp|P14625|ENPL_HUMAN | K55: HSP90B1 | L55: 24 | M55: 30 | N55: 7.00E+07 | O55: 0.29 | R55: sp|O00391|QSOX1_HUMAN | S55: QSOX1 | T55: 21 | U55: 62 | V55: 1.20E+08 | W55: 0.43 | Z55: sp|P48723|HSP13_HUMAN | AA55: HSPA13 | AB55: 19 | AC55: 30 | AD55: 8.40E+07 | AE55: 0.77 | AH55: sp|Q14126|DSG2_HUMAN | AI55: DSG2 | AJ55: 19 | AK55: 22 | AL55: 1.10E+07 | AM55: 0.12 | AP55: sp|P06865|HEXA_HUMAN | AQ55: HEXA | AR55: 19 | AS55: 42 | AT55: 1.40E+08 | AU55: 0.63 | AW55: sp|O00754|MA2B1_HUMAN | AX55: MAN2B1 | AY55: Lysosomal alpha-mannosidase OS=Homo sapiens GN=MAN2B1 PE=1 SV=3 | AZ55: 113.67 | BA55: 8 | BB55: 14 | BC55: 6 | BD55: 11 | BE55: 10 | BF55: 15 | BG55: 24 | BH55: 32 | BI55: 25 | BJ55: 38 | BK55: 30 | BL55: 56 | BM55: 56 | BN55: 2.40E+06 | BO55: 1.80E+06 | BP55: 3.20E+06 | BQ55: 4.90E+07 | BR55: 4.70E+07 | BS55: 1.70E+08 | BT55: 1.80E+06 | BU55: 1.3 | BV55: 1.0 | BW55: 1.8 | BX55: 27.2 | BY55: 26.1 | BZ55: 94.4
B56: sp|Q9NYU2|UGGG1_HUMAN | C56: UGGT1 | D56: 26 | E56: 27 | F56: 5.40E+06 | G56: 0.02 | J56: sp|P30101|PDIA3_HUMAN | K56: PDIA3 | L56: 24 | M56: 29 | N56: 3.50E+07 | O56: 0.14 | R56: sp|P06396|GELS_HUMAN | S56: GSN | T56: 21 | U56: 34 | V56: 2.70E+07 | W56: 0.10 | Z56: sp|Q9Y4L1|HYOU1_HUMAN | AA56: HYOU1 | AB56: 19 | AC56: 24 | AD56: 3.00E+06 | AE56: 0.03 | AH56: sp|Q9Y266|NUDC_HUMAN | AI56: NUDC | AJ56: 19 | AK56: 21 | AL56: 9.40E+06 | AM56: 0.10 | AP56: sp|Q16787|LAMA3_HUMAN | AQ56: LAMA3 | AR56: 19 | AS56: 24 | AT56: 5.30E+06 | AU56: 0.02 | AW56: sp|P49588|SYAC_HUMAN | AX56: AARS | AY56: Alanine--tRNA ligase, cytoplasmic OS=Homo sapiens GN=AARS PE=1 SV=2 | AZ56: 106.74 | BA56: 29 | BB56: 29 | BC56: 21 | BD56: 22 | BE56: 21 | BF56: 25 | BG56: 10 | BH56: 10 | BI56: 14 | BJ56: 15 | BK56: 18 | BL56: 19 | BM56: 29 | BN56: 2.50E+07 | BO56: 8.70E+06 | BP56: 9.00E+06 | BQ56: 2.10E+06 | BR56: 4.40E+06 | BS56: 5.50E+06 | BT56: 2.10E+06 | BU56: 11.9 | BV56: 4.1 | BW56: 4.3 | BX56: 1.0 | BY56: 2.1 | BZ56: 2.6
B57: sp|Q13200|PSMD2_HUMAN | C57: PSMD2 | D57: 26 | E57: 27 | F57: 1.80E+07 | G57: 0.06 | J57: sp|P55268|LAMB2_HUMAN | K57: LAMB2 | L57: 24 | M57: 24 | N57: 1.10E+07 | O57: 0.05 | R57: sp|P49588|SYAC_HUMAN | S57: AARS | T57: 21 | U57: 25 | V57: 9.00E+06 | W57: 0.03 | Z57: sp|P35998|PRS7_HUMAN | AA57: PSMC2 | AB57: 19 | AC57: 20 | AD57: 2.60E+06 | AE57: 0.02 | AH57: sp|Q13813|SPTN1_HUMAN | AI57: SPTAN1 | AJ57: 19 | AK57: 20 | AL57: 1.50E+06 | AM57: 0.02 | AP57: sp|Q8WUM4|PDC6I_HUMAN | AQ57: PDCD6IP | AR57: 19 | AS57: 22 | AT57: 9.90E+06 | AU57: 0.04 | AW57: sp|P12109|CO6A1_HUMAN | AX57: COL6A1 | AY57: Collagen alpha-1(VI) chain OS=Homo sapiens GN=COL6A1 PE=1 SV=3 | AZ57: 108.46 | BA57: 28 | BB57: 61 | BC57: 21 | BD57: 47 | BE57: 22 | BF57: 48 | BG57: 18 | BH57: 34 | BI57: 16 | BJ57: 31 | BK57: 18 | BL57: 37 | BM57: 61 | BN57: 1.90E+08 | BO57: 9.50E+07 | BP57: 1.50E+08 | BQ57: 5.20E+07 | BR57: 3.50E+07 | BS57: 9.10E+07 | BT57: 3.50E+07 | BU57: 5.4 | BV57: 2.7 | BW57: 4.3 | BX57: 1.5 | BY57: 1.0 | BZ57: 2.6
B58: sp|P62258|1433E_HUMAN | C58: YWHAE | D58: 25 | E58: 95 | F58: 8.20E+08 | G58: 2.67 | J58: sp|P11142|HSP7C_HUMAN | K58: HSPA8 | L58: 23 | M58: 53 | N58: 1.20E+08 | O58: 0.50 | R58: sp|P14625|ENPL_HUMAN | S58: HSP90B1 | T58: 20 | U58: 34 | V58: 1.00E+08 | W58: 0.37 | Z58: sp|P10909|CLUS_HUMAN | AA58: CLU | AB58: 18 | AC58: 62 | AD58: 2.10E+08 | AE58: 1.88 | AH58: sp|P07996|TSP1_HUMAN | AI58: THBS1 | AJ58: 18 | AK58: 28 | AL58: 1.90E+07 | AM58: 0.20 | AP58: sp|P09874|PARP1_HUMAN | AQ58: PARP1 | AR58: 19 | AS58: 21 | AT58: 8.80E+06 | AU58: 0.04 | AW58: sp|Q02818|NUCB1_HUMAN | AX58: NUCB1 | AY58: Nucleobindin-1 OS=Homo sapiens GN=NUCB1 PE=1 SV=4 | AZ58: 53.85 | BA58: 22 | BB58: 35 | BC58: 21 | BD58: 58 | BE58: 19 | BF58: 30 | BG58: 18 | BH58: 39 | BI58: 19 | BJ58: 36 | BK58: 21 | BL58: 30 | BM58: 58 | BN58: 8.00E+07 | BO58: 8.80E+07 | BP58: 3.10E+07 | BQ58: 1.50E+07 | BR58: 1.90E+07 | BS58: 6.60E+07 | BT58: 1.50E+07 | BU58: 5.3 | BV58: 5.9 | BW58: 2.1 | BX58: 1.0 | BY58: 1.3 | BZ58: 4.4
B59: sp|P07900|HS90A_HUMAN | C59: HSP90AA1 | D59: 25 | E59: 70 | F59: 3.60E+08 | G59: 1.18 | J59: sp|P13797|PLST_HUMAN | K59: PLS3 | L59: 23 | M59: 29 | N59: 4.20E+07 | O59: 0.17 | R59: sp|Q16706|MA2A1_HUMAN | S59: MAN2A1 | T59: 20 | U59: 25 | V59: 9.10E+06 | W59: 0.03 | Z59: sp|Q92820|GGH_HUMAN | AA59: GGH | AB59: 18 | AC59: 60 | AD59: 1.70E+08 | AE59: 1.55 | AH59: sp|P07237|PDIA1_HUMAN | AI59: P4HB | AJ59: 18 | AK59: 24 | AL59: 6.50E+06 | AM59: 0.07 | AP59: sp|Q86VP6|CAND1_HUMAN | AQ59: CAND1 | AR59: 19 | AS59: 20 | AT59: 1.70E+07 | AU59: 0.07 | AW59: sp|P07237|PDIA1_HUMAN | AX59: P4HB | AY59: Protein disulfide-isomerase OS=Homo sapiens GN=P4HB PE=1 SV=3 | AZ59: 57.08 | BA59: 26 | BB59: 38 | BC59: 25 | BD59: 41 | BE59: 10 | BF59: 12 | BG59: 8 | BH59: 13 | BI59: 18 | BJ59: 24 | BK59: 16 | BL59: 17 | BM59: 41 | BN59: 7.70E+07 | BO59: 6.00E+07 | BP59: 3.40E+06 | BQ59: 5.70E+05 | BR59: 6.50E+06 | BS59: 1.30E+07 | BT59: 5.70E+05 | BU59: 135.1 | BV59: 105.3 | BW59: 6.0 | BX59: 1.0 | BY59: 11.4 | BZ59: 22.8
B60: sp|P00558|PGK1_HUMAN | C60: PGK1 | D60: 25 | E60: 47 | F60: 1.50E+08 | G60: 0.48 | J60: sp|P34932|HSP74_HUMAN | K60: HSPA4 | L60: 23 | M60: 27 | N60: 4.30E+07 | O60: 0.18 | R60: sp|P27708|PYR1_HUMAN | S60: CAD | T60: 20 | U60: 23 | V60: 5.30E+06 | W60: 0.02 | Z60: sp|P68104|EF1A1_HUMAN | AA60: EEF1A1 | AB60: 18 | AC60: 47 | AD60: 1.10E+08 | AE60: 0.97 | AH60: sp|P07093|GDN_HUMAN | AI60: SERPINE2 | AJ60: 18 | AK60: 23 | AL60: 2.30E+07 | AM60: 0.24 | AP60: sp|O94985|CSTN1_HUMAN | AQ60: CLSTN1 | AR60: 18 | AS60: 67 | AT60: 3.30E+08 | AU60: 1.45 | AW60: sp|Q16706|MA2A1_HUMAN | AX60: MAN2A1 | AY60: Alpha-mannosidase 2 OS=Homo sapiens GN=MAN2A1 PE=1 SV=2 | AZ60: 131.06 | BA60: 22 | BB60: 24 | BC60: 16 | BD60: 16 | BE60: 20 | BF60: 25 | BG60: 18 | BH60: 21 | BI60: 14 | BJ60: 16 | BK60: 28 | BL60: 37 | BM60: 37 | BN60: 5.80E+06 | BO60: 2.80E+06 | BP60: 9.10E+06 | BQ60: 2.80E+06 | BR60: 1.90E+06 | BS60: 1.80E+07 | BT60: 1.90E+06 | BU60: 3.1 | BV60: 1.5 | BW60: 4.8 | BX60: 1.5 | BY60: 1.0 | BZ60: 9.5
B61: sp|P49736|MCM2_HUMAN | C61: MCM2 | D61: 25 | E61: 37 | F61: 2.40E+07 | G61: 0.08 | J61: sp|Q15393|SF3B3_HUMAN | K61: SF3B3 | L61: 23 | M61: 25 | N61: 1.20E+07 | O61: 0.05 | R61: sp|P04075|ALDOA_HUMAN | S61: ALDOA | T61: 19 | U61: 73 | V61: 3.50E+08 | W61: 1.28 | Z61: sp|P04075|ALDOA_HUMAN | AA61: ALDOA | AB61: 18 | AC61: 42 | AD61: 8.80E+07 | AE61: 0.80 | AH61: sp|Q14974|IMB1_HUMAN | AI61: KPNB1 | AJ61: 18 | AK61: 21 | AL61: 1.40E+07 | AM61: 0.15 | AP61: sp|P12109|CO6A1_HUMAN | AQ61: COL6A1 | AR61: 18 | AS61: 37 | AT61: 9.10E+07 | AU61: 0.40 | AW61: sp|Q02809|PLOD1_HUMAN | AX61: PLOD1 | AY61: Procollagen-lysine,2-oxoglutarate 5-dioxygenase 1 OS=Homo sapiens GN=PLOD1 PE=1 SV=2 | AZ61: 83.5 | BA61: 17 | BB61: 20 | BC61: 12 | BD61: 13 | BE61: 18 | BF61: 23 | BG61: 20 | BH61: 23 | BI61: 18 | BJ61: 21 | BK61: 24 | BL61: 34 | BM61: 34 | BN61: 1.00E+07 | BO61: 8.70E+06 | BP61: 1.90E+07 | BQ61: 1.60E+07 | BR61: 9.90E+06 | BS61: 5.00E+07 | BT61: 8.70E+06 | BU61: 1.1 | BV61: 1.0 | BW61: 2.2 | BX61: 1.8 | BY61: 1.1 | BZ61: 5.7
B62: sp|Q99832|TCPH_HUMAN | C62: CCT7 | D62: 25 | E62: 33 | F62: 2.90E+07 | G62: 0.09 | J62: sp|P09960|LKHA4_HUMAN | K62: LTA4H | L62: 23 | M62: 24 | N62: 2.50E+07 | O62: 0.10 | R62: sp|O94985|CSTN1_HUMAN | S62: CLSTN1 | T62: 19 | U62: 70 | V62: 5.30E+08 | W62: 1.93 | Z62: sp|P07900|HS90A_HUMAN | AA62: HSP90AA1 | AB62: 18 | AC62: 39 | AD62: 7.10E+07 | AE62: 0.64 | AH62: sp|Q15393|SF3B3_HUMAN | AI62: SF3B3 | AJ62: 18 | AK62: 21 | AL62: 4.20E+06 | AM62: 0.04 | AP62: sp|P48723|HSP13_HUMAN | AQ62: HSPA13 | AR62: 18 | AS62: 37 | AT62: 1.20E+08 | AU62: 0.52 | AW62: sp|Q14697|GANAB_HUMAN | AX62: GANAB | AY62: Neutral alpha-glucosidase AB OS=Homo sapiens GN=GANAB PE=1 SV=3 | AZ62: 106.81 | BA62: 27 | BB62: 33 | BC62: 16 | BD62: 19 | BE62: 17 | BF62: 22 | BG62: 17 | BH62: 17 | BI62: 17 | BJ62: 17 | BK62: 18 | BL62: 21 | BM62: 33 | BN62: 3.90E+07 | BO62: 1.50E+07 | BP62: 1.60E+07 | BQ62: 4.10E+06 | BR62: 7.20E+06 | BS62: 1.50E+07 | BT62: 4.10E+06 | BU62: 9.5 | BV62: 3.7 | BW62: 3.9 | BX62: 1.0 | BY62: 1.8 | BZ62: 3.7
B63: sp|Q7KZF4|SND1_HUMAN | C63: SND1 | D63: 25 | E63: 26 | F63: 1.70E+07 | G63: 0.05 | J63: sp|O75643|U520_HUMAN | K63: SNRNP200 | L63: 23 | M63: 23 | N63: 4.40E+06 | O63: 0.02 | R63: sp|P0DMV9|HS71B_HUMAN | S63: HSPA1B | T63: 19 | U63: 56 | V63: 1.90E+08 | W63: 0.71 | Z63: sp|Q02818|NUCB1_HUMAN | AA63: NUCB1 | AB63: 18 | AC63: 39 | AD63: 1.50E+07 | AE63: 0.14 | AH63: sp|Q02809|PLOD1_HUMAN | AI63: PLOD1 | AJ63: 18 | AK63: 21 | AL63: 9.90E+06 | AM63: 0.10 | AP63: sp|Q8NBJ4|GOLM1_HUMAN | AQ63: GOLM1 | AR63: 18 | AS63: 37 | AT63: 9.30E+07 | AU63: 0.41 | AW63: sp|P05455|LA_HUMAN | AX63: SSB | AY63: Lupus La protein OS=Homo sapiens GN=SSB PE=1 SV=2 | AZ63: 46.81 | BA63: 26 | BB63: 38 | BC63: 26 | BD63: 34 | BE63: 8 | BF63: 12 | BG63: 16 | BH63: 17 | BI63: 12 | BJ63: 13 | BK63: 7 | BL63: 8 | BM63: 38 | BN63: 4.30E+07 | BO63: 4.00E+07 | BP63: 1.10E+07 | BQ63: 6.40E+06 | BR63: 4.40E+06 | BS63: 3.10E+06 | BT63: 3.10E+06 | BU63: 13.9 | BV63: 12.9 | BW63: 3.5 | BX63: 2.1 | BY63: 1.4 | BZ63: 1.0
B64: sp|Q92598|HS105_HUMAN | C64: HSPH1 | D64: 25 | E64: 25 | F64: 2.00E+07 | G64: 0.07 | J64: sp|P62258|1433E_HUMAN | K64: YWHAE | L64: 22 | M64: 84 | N64: 3.90E+08 | O64: 1.61 | R64: sp|P07900|HS90A_HUMAN | S64: HSP90AA1 | T64: 19 | U64: 52 | V64: 3.00E+08 | W64: 1.09 | Z64: sp|P11142|HSP7C_HUMAN | AA64: HSPA8 | AB64: 18 | AC64: 34 | AD64: 2.80E+07 | AE64: 0.25 | AH64: sp|P07686|HEXB_HUMAN | AI64: HEXB | AJ64: 18 | AK64: 21 | AL64: 4.90E+07 | AM64: 0.51 | AP64: sp|P07900|HS90A_HUMAN | AQ64: HSP90AA1 | AR64: 18 | AS64: 30 | AT64: 1.20E+08 | AU64: 0.54 | AW64: sp|O75533|SF3B1_HUMAN | AX64: SF3B1 | AY64: Splicing factor 3B subunit 1 OS=Homo sapiens GN=SF3B1 PE=1 SV=3 | AZ64: 145.74 | BA64: 24 | BB64: 26 | BC64: 15 | BD64: 16 | BE64: 17 | BF64: 19 | BG64: 10 | BH64: 10 | BI64: 12 | BJ64: 12 | BK64: 10 | BL64: 12 | BM64: 26 | BN64: 2.10E+07 | BO64: 1.30E+07 | BP64: 1.80E+07 | BQ64: 7.40E+06 | BR64: 7.90E+06 | BS64: 1.40E+07 | BT64: 7.40E+06 | BU64: 2.8 | BV64: 1.8 | BW64: 2.4 | BX64: 1.0 | BY64: 1.1 | BZ64: 1.9
B65: sp|Q14126|DSG2_HUMAN | C65: DSG2 | D65: 24 | E65: 36 | F65: 6.00E+07 | G65: 0.19 | J65: sp|P68371|TBB4B_HUMAN | K65: TUBB4B | L65: 22 | M65: 45 | N65: 1.20E+08 | O65: 0.48 | R65: sp|P07093|GDN_HUMAN | S65: SERPINE2 | T65: 19 | U65: 45 | V65: 8.10E+07 | W65: 0.30 | Z65: sp|P12109|CO6A1_HUMAN | AA65: COL6A1 | AB65: 18 | AC65: 34 | AD65: 5.20E+07 | AE65: 0.47 | AH65: sp|P31150|GDIA_HUMAN | AI65: GDI1 | AJ65: 18 | AK65: 19 | AL65: 4.10E+06 | AM65: 0.04 | AP65: sp|P68371|TBB4B_HUMAN | AQ65: TUBB4B | AR65: 18 | AS65: 26 | AT65: 2.10E+07 | AU65: 0.09 | AW65: sp|Q14203|DCTN1_HUMAN | AX65: DCTN1 | AY65: Dynactin subunit 1 OS=Homo sapiens GN=DCTN1 PE=1 SV=3 | AZ65: 141.61 | BA65: 30 | BB65: 32 | BC65: 9 | BD65: 10 | BE65: 10 | BF65: 11 | BG65: 5 | BH65: 5 | BI65: 4 | BJ65: 4 | BK65: 5 | BL65: 8 | BM65: 32 | BN65: 8.80E+06 | BO65: 1.80E+06 | BP65: 2.20E+06 | BQ65: 2.80E+05 | BR65: 2.30E+05 | BS65: 9.80E+05 | BT65: 2.30E+05 | BU65: 38.3 | BV65: 7.8 | BW65: 9.6 | BX65: 1.2 | BY65: 1.0 | BZ65: 4.3
B66: sp|P06744|G6PI_HUMAN | C66: GPI | D66: 24 | E66: 33 | F66: 1.00E+08 | G66: 0.34 | J66: sp|P29401|TKT_HUMAN | K66: TKT | L66: 22 | M66: 39 | N66: 1.10E+08 | O66: 0.45 | R66: sp|P19021|AMD_HUMAN | S66: PAM | T66: 19 | U66: 33 | V66: 3.30E+07 | W66: 0.12 | Z66: sp|P06865|HEXA_HUMAN | AA66: HEXA | AB66: 18 | AC66: 29 | AD66: 8.30E+07 | AE66: 0.76 | AH66: sp|P69849|NOMO3_HUMAN | AI66: NOMO3 | AJ66: 18 | AK66: 19 | AL66: 2.90E+06 | AM66: 0.03 | AP66: sp|P54802|ANAG_HUMAN | AQ66: NAGLU | AR66: 18 | AS66: 23 | AT66: 3.70E+07 | AU66: 0.16 | AW66: sp|Q8TDW7|FAT3_HUMAN | AX66: FAT3 | AY66: Protocadherin Fat 3 OS=Homo sapiens GN=FAT3 PE=2 SV=2 | AZ66: 505.21 | BA66: 0 | BB66: 0 | BC66: 12 | BD66: 12 | BE66: 27 | BF66: 30 | BG66: 5 | BH66: 6 | BI66: 1 | BJ66: 1 | BK66: 13 | BL66: 14 | BM66: 30 | BN66: NF | BO66: 1.80E+06 | BP66: 7.60E+06 | BQ66: 3.10E+05 | BR66: 1.50E+04 | BS66: 3.50E+06 | BT66: 1.50E+04 | BU66: 0.0 | BV66: 120.0 | BW66: 506.7 | BX66: 20.7 | BY66: 1.0 | BZ66: 233.3
B67: sp|Q02790|FKBP4_HUMAN | C67: FKBP4 | D67: 24 | E67: 32 | F67: 3.40E+07 | G67: 0.11 | J67: sp|P02545|LMNA_HUMAN | K67: LMNA | L67: 22 | M67: 34 | N67: 1.50E+07 | O67: 0.06 | R67: sp|P12956|XRCC6_HUMAN | S67: XRCC6 | T67: 19 | U67: 32 | V67: 2.70E+07 | W67: 0.10 | Z67: sp|P20700|LMNB1_HUMAN | AA67: LMNB1 | AB67: 18 | AC67: 24 | AD67: 3.10E+06 | AE67: 0.03 | AH67: sp|P30101|PDIA3_HUMAN | AI67: PDIA3 | AJ67: 18 | AK67: 19 | AL67: 5.20E+06 | AM67: 0.05 | AP67: sp|O00410|IPO5_HUMAN | AQ67: IPO5 | AR67: 18 | AS67: 23 | AT67: 6.80E+06 | AU67: 0.03 | AW67: sp|P12270|TPR_HUMAN | AX67: TPR | AY67: Nucleoprotein TPR OS=Homo sapiens GN=TPR PE=1 SV=3 | AZ67: 267.13 | BA67: =IFERROR(VLOOKUP(AW67,B:F,3, FALSE),0) -> 27 | BB67: =IFERROR(VLOOKUP(AW67,B:F,4, FALSE),0) -> 28 | BC67: =IFERROR(VLOOKUP(AW67,J:N,3, FALSE),0) -> 11 | BD67: =IFERROR(VLOOKUP(AW67,J:N,4, FALSE),0) -> 12 | BE67: =IFERROR(VLOOKUP(AW67,R:V,3, FALSE),0) -> 12 | BF67: =IFERROR(VLOOKUP(AW67,R:V,4, FALSE),0) -> 15 | BG67: =IFERROR(VLOOKUP(AW67,Z:AD,3, FALSE),0) -> 3 | BH67: =IFERROR(VLOOKUP(AW67,Z:AD,4, FALSE),0) -> 4 | BI67: =IFERROR(VLOOKUP(AW67,AH:AL,3, FALSE),0) -> 3 | BJ67: =IFERROR(VLOOKUP(AW67,AH:AL,4, FALSE),0) -> 3 | BK67: =IFERROR(VLOOKUP(AW67,AP:AU,3, FALSE),0) -> 0 | BL67: =IFERROR(VLOOKUP(AW67,AP:AU,4, FALSE),0) -> 0 | BM67: =MAX(BA67:BL67) -> 28 | BN67: =IFERROR(VLOOKUP(AW67,B:F,5, FALSE),"NF") -> 7.10E+06 | BO67: =IFERROR(VLOOKUP(AW67,J:N,5, FALSE),"NF") -> 7.00E+06 | BP67: =IFERROR(VLOOKUP(AW67,R:V,5, FALSE),"NF") -> 2.50E+06 | BQ67: =IFERROR(VLOOKUP(AW67,Z:AD,5, FALSE),"NF") -> 1.70E+05 | BR67: =IFERROR(VLOOKUP(AW67,AH:AL,5, FALSE),"NF") -> 7.90E+04 | BS67: =IFERROR(VLOOKUP(AW67,AP:AU,5, FALSE),"NF") -> NF | BT67: =MIN(BN67:BS67) -> 7.90E+04 | BU67: =IFERROR(BN67/BT67,0) -> 89.9 | BV67: =IFERROR(BO67/BT67,0) -> 88.6 | BW67: =IFERROR(BP67/BT67,0) -> 31.6 | BX67: =IFERROR(BQ67/BT67,0) -> 2.2 | BY67: =IFERROR(BR67/BT67,0) -> 1.0 | BZ67: =IFERROR(BS67/BT67,0) -> 0.0
B68: sp|Q9Y5B9|SP16H_HUMAN | C68: SUPT16H | D68: 24 | E68: 30 | F68: 9.50E+06 | G68: 0.03 | J68: sp|P31948|STIP1_HUMAN | K68: STIP1 | L68: 22 | M68: 25 | N68: 2.20E+07 | O68: 0.09 | R68: sp|Q02818|NUCB1_HUMAN | S68: NUCB1 | T68: 19 | U68: 30 | V68: 3.10E+07 | W68: 0.11 | Z68: sp|P17980|PRS6A_HUMAN | AA68: PSMC3 | AB68: 18 | AC68: 22 | AD68: 2.80E+06 | AE68: 0.03 | AH68: sp|P54802|ANAG_HUMAN | AI68: NAGLU | AJ68: 18 | AK68: 19 | AL68: 7.60E+06 | AM68: 0.08 | AP68: sp|Q14697|GANAB_HUMAN | AQ68: GANAB | AR68: 18 | AS68: 21 | AT68: 1.50E+07 | AU68: 0.06 | AW68: sp|P78371|TCPB_HUMAN | AX68: CCT2 | AY68: T-complex protein 1 subunit beta OS=Homo sapiens GN=CCT2 PE=1 SV=4 | AZ68: 57.45 | BA68: 26 | BB68: 51 | BC68: 28 | BD68: 42 | BE68: 10 | BF68: 18 | BG68: 0 | BH68: 0 | BI68: 20 | BJ68: 24 | BK68: 8 | BL68: 8 | BM68: 51 | BN68: 3.70E+07 | BO68: 2.60E+07 | BP68: 2.10E+06 | BQ68: NF | BR68: 3.20E+06 | BS68: 1.20E+06 | BT68: 1.20E+06 | BU68: 30.8 | BV68: 21.7 | BW68: 1.8 | BX68: 0.0 | BY68: 2.7 | BZ68: 1.0
B69: sp|O75533|SF3B1_HUMAN | C69: SF3B1 | D69: 24 | E69: 26 | F69: 2.10E+07 | G69: 0.07 | J69: sp|Q02790|FKBP4_HUMAN | K69: FKBP4 | L69: 22 | M69: 24 | N69: 1.70E+07 | O69: 0.07 | R69: sp|P10586|PTPRF_HUMAN | S69: PTPRF | T69: 19 | U69: 28 | V69: 1.60E+07 | W69: 0.06 | Z69: sp|P09874|PARP1_HUMAN | AA69: PARP1 | AB69: 18 | AC69: 22 | AD69: 8.90E+06 | AE69: 0.08 | AH69: sp|P13667|PDIA4_HUMAN | AI69: PDIA4 | AJ69: 18 | AK69: 19 | AL69: 4.50E+06 | AM69: 0.05 | AP69: sp|Q14974|IMB1_HUMAN | AQ69: KPNB1 | AR69: 18 | AS69: 21 | AT69: 1.10E+07 | AU69: 0.05 | AW69: sp|P20700|LMNB1_HUMAN | AX69: LMNB1 | AY69: Lamin-B1 OS=Homo sapiens GN=LMNB1 PE=1 SV=2 | AZ69: 66.37 | BA69: 20 | BB69: 27 | BC69: 24 | BD69: 34 | BE69: 16 | BF69: 21 | BG69: 18 | BH69: 24 | BI69: 13 | BJ69: 18 | BK69: 11 | BL69: 11 | BM69: 34 | BN69: 1.30E+07 | BO69: 1.10E+07 | BP69: 5.40E+06 | BQ69: 3.10E+06 | BR69: 1.30E+06 | BS69: 2.60E+06 | BT69: 1.30E+06 | BU69: 10.0 | BV69: 8.5 | BW69: 4.2 | BX69: 2.4 | BY69: 1.0 | BZ69: 2.0
B70: sp|Q13616|CUL1_HUMAN | C70: CUL1 | D70: 24 | E70: 26 | F70: 7.70E+06 | G70: 0.02 | J70: sp|Q02818|NUCB1_HUMAN | K70: NUCB1 | L70: 21 | M70: 58 | N70: 8.80E+07 | O70: 0.36 | R70: sp|Q14703|MBTP1_HUMAN | S70: MBTPS1 | T70: 19 | U70: 27 | V70: 2.00E+07 | W70: 0.07 | Z70: sp|Q16706|MA2A1_HUMAN | AA70: MAN2A1 | AB70: 18 | AC70: 21 | AD70: 2.80E+06 | AE70: 0.03 | AH70: sp|P07900|HS90A_HUMAN | AI70: HSP90AA1 | AJ70: 17 | AK70: 44 | AL70: 9.80E+07 | AM70: 1.02 | AP70: sp|P49588|SYAC_HUMAN | AQ70: AARS | AR70: 18 | AS70: 19 | AT70: 5.50E+06 | AU70: 0.02 | AW70: sp|P55060|XPO2_HUMAN | AX70: CSE1L | AY70: Exportin-2 OS=Homo sapiens GN=CSE1L PE=1 SV=3 | AZ70: 110.35 | BA70: 23 | BB70: 28 | BC70: 19 | BD70: 23 | BE70: 19 | BF70: 21 | BG70: 15 | BH70: 16 | BI70: 17 | BJ70: 19 | BK70: 16 | BL70: 20 | BM70: 28 | BN70: 3.10E+07 | BO70: 1.30E+07 | BP70: 1.50E+07 | BQ70: 3.10E+06 | BR70: 7.30E+06 | BS70: 7.30E+06 | BT70: 3.10E+06 | BU70: 10.0 | BV70: 4.2 | BW70: 4.8 | BX70: 1.0 | BY70: 2.4 | BZ70: 2.4
B71: sp|Q05707|COEA1_HUMAN | C71: COL14A1 | D71: 24 | E71: 25 | F71: 5.60E+06 | G71: 0.02 | J71: sp|P12109|CO6A1_HUMAN | K71: COL6A1 | L71: 21 | M71: 47 | N71: 9.50E+07 | O71: 0.39 | R71: sp|Q8WUM4|PDC6I_HUMAN | S71: PDCD6IP | T71: 19 | U71: 23 | V71: 1.60E+07 | W71: 0.06 | Z71: sp|P26038|MOES_HUMAN | AA71: MSN | AB71: 18 | AC71: 19 | AD71: 9.10E+06 | AE71: 0.08 | AH71: sp|P48723|HSP13_HUMAN | AI71: HSPA13 | AJ71: 17 | AK71: 32 | AL71: 3.60E+07 | AM71: 0.37 | AP71: IgG1_bovine | AR71: 17 | AS71: 116 | AT71: 2.30E+09 | AU71: 9.97 | AW71: sp|P11586|C1TC_HUMAN | AX71: MTHFD1 | AY71: C-1-tetrahydrofolate synthase, cytoplasmic OS=Homo sapiens GN=MTHFD1 PE=1 SV=3 | AZ71: 101.5 | BA71: 26 | BB71: 31 | BC71: 16 | BD71: 17 | BE71: 15 | BF71: 16 | BG71: 9 | BH71: 9 | BI71: 10 | BJ71: 12 | BK71: 8 | BL71: 8 | BM71: 31 | BN71: 1.50E+07 | BO71: 5.40E+06 | BP71: 5.10E+06 | BQ71: 1.10E+06 | BR71: 1.80E+06 | BS71: 2.00E+06 | BT71: 1.10E+06 | BU71: 13.6 | BV71: 4.9 | BW71: 4.6 | BX71: 1.0 | BY71: 1.6 | BZ71: 1.8
B72: sp|P19022|CADH2_HUMAN | C72: CDH2 | D72: 23 | E72: 43 | F72: 1.20E+08 | G72: 0.40 | J72: sp|P07093|GDN_HUMAN | K72: SERPINE2 | L72: 21 | M72: 39 | N72: 8.10E+07 | O72: 0.33 | R72: sp|Q05707|COEA1_HUMAN | S72: COL14A1 | T72: 19 | U72: 22 | V72: 4.70E+06 | W72: 0.02 | Z72: sp|Q16531|DDB1_HUMAN | AA72: DDB1 | AB72: 18 | AC72: 19 | AD72: 4.40E+06 | AE72: 0.04 | AH72: sp|Q9H3G5|CPVL_HUMAN | AI72: CPVL | AJ72: 17 | AK72: 31 | AL72: 2.80E+07 | AM72: 0.29 | AP72: sp|O43405|COCH_HUMAN | AQ72: COCH | AR72: 17 | AS72: 41 | AT72: 1.10E+08 | AU72: 0.47 | AW72: sp|Q16787|LAMA3_HUMAN | AX72: LAMA3 | AY72: Laminin subunit alpha-3 OS=Homo sapiens GN=LAMA3 PE=1 SV=2 | AZ72: 366.41 | BA72: 0 | BB72: 0 | BC72: 18 | BD72: 18 | BE72: 26 | BF72: 28 | BG72: 12 | BH72: 12 | BI72: 2 | BJ72: 2 | BK72: 19 | BL72: 24 | BM72: 28 | BN72: NF | BO72: 2.00E+06 | BP72: 1.60E+07 | BQ72: 7.40E+05 | BR72: 1.10E+05 | BS72: 5.30E+06 | BT72: 1.10E+05 | BU72: 0.0 | BV72: 18.2 | BW72: 145.5 | BX72: 6.7 | BY72: 1.0 | BZ72: 48.2
B73: sp|O00391|QSOX1_HUMAN | C73: QSOX1 | D73: 23 | E73: 38 | F73: 1.00E+08 | G73: 0.34 | J73: sp|P06576|ATPB_HUMAN | K73: ATP5B | L73: 21 | M73: 24 | N73: 1.00E+07 | O73: 0.04 | R73: sp|P55060|XPO2_HUMAN | S73: CSE1L | T73: 19 | U73: 21 | V73: 1.50E+07 | W73: 0.06 | Z73: sp|P17174|AATC_HUMAN | AA73: GOT1 | AB73: 18 | AC73: 18 | AD73: 7.30E+06 | AE73: 0.07 | AH73: sp|P06865|HEXA_HUMAN | AI73: HEXA | AJ73: 17 | AK73: 27 | AL73: 4.20E+07 | AM73: 0.44 | AP73: sp|P19021|AMD_HUMAN | AQ73: PAM | AR73: 17 | AS73: 27 | AT73: 1.90E+07 | AU73: 0.08 | AW73: sp|P0DMV9|HS71B_HUMAN | AX73: HSPA1B | AY73: Heat shock 70 kDa protein 1B OS=Homo sapiens GN=HSPA1B PE=1 SV=1 | AZ73: 70.01 | BA73: 11 | BB73: 25 | BC73: 24 | BD73: 61 | BE73: 19 | BF73: 56 | BG73: 21 | BH73: 47 | BI73: 22 | BJ73: 46 | BK73: 24 | BL73: 63 | BM73: 63 | BN73: 1.40E+07 | BO73: 4.40E+08 | BP73: 1.90E+08 | BQ73: 1.30E+08 | BR73: 1.40E+08 | BS73: 2.30E+08 | BT73: 1.40E+07 | BU73: 1.0 | BV73: 31.4 | BW73: 13.6 | BX73: 9.3 | BY73: 10.0 | BZ73: 16.4
B74: sp|P55060|XPO2_HUMAN | C74: CSE1L | D74: 23 | E74: 28 | F74: 3.10E+07 | G74: 0.10 | J74: sp|O14980|XPO1_HUMAN | K74: XPO1 | L74: 21 | M74: 24 | N74: 6.50E+06 | O74: 0.03 | R74: sp|P11142|HSP7C_HUMAN | S74: HSPA8 | T74: 18 | U74: 65 | V74: 1.10E+08 | W74: 0.39 | Z74: sp|P34931|HS71L_HUMAN | AA74: HSPA1L | AB74: 17 | AC74: 83 | AD74: 1.60E+08 | AE74: 1.45 | AH74: sp|P55060|XPO2_HUMAN | AI74: CSE1L | AJ74: 17 | AK74: 19 | AL74: 7.30E+06 | AM74: 0.08 | AP74: sp|Q15393|SF3B3_HUMAN | AQ74: SF3B3 | AR74: 17 | AS74: 22 | AT74: 8.10E+06 | AU74: 0.04 | AW74: sp|P19021|AMD_HUMAN | AX74: PAM | AY74: Peptidyl-glycine alpha-amidating monooxygenase OS=Homo sapiens GN=PAM PE=1 SV=2 | AZ74: 108.26 | BA74: 21 | BB74: 34 | BC74: 14 | BD74: 24 | BE74: 19 | BF74: 33 | BG74: 14 | BH74: 18 | BI74: 16 | BJ74: 25 | BK74: 17 | BL74: 27 | BM74: 34 | BN74: 2.70E+07 | BO74: 1.30E+07 | BP74: 3.30E+07 | BQ74: 5.50E+06 | BR74: 1.30E+07 | BS74: 1.90E+07 | BT74: 5.50E+06 | BU74: 4.9 | BV74: 2.4 | BW74: 6.0 | BX74: 1.0 | BY74: 2.4 | BZ74: 3.5
B75: sp|O14980|XPO1_HUMAN | C75: XPO1 | D75: 23 | E75: 27 | F75: 1.30E+07 | G75: 0.04 | J75: sp|P49588|SYAC_HUMAN | K75: AARS | L75: 21 | M75: 22 | N75: 8.70E+06 | O75: 0.04 | R75: sp|P29401|TKT_HUMAN | S75: TKT | T75: 18 | U75: 36 | V75: 3.70E+07 | W75: 0.13 | Z75: sp|Q9BQE3|TBA1C_HUMAN | AA75: TUBA1C | AB75: 17 | AC75: 34 | AD75: 2.30E+07 | AE75: 0.21 | AH75: sp|Q13263|TIF1B_HUMAN | AI75: TRIM28 | AJ75: 17 | AK75: 19 | AL75: 1.10E+07 | AM75: 0.11 | AP75: sp|P11142|HSP7C_HUMAN | AQ75: HSPA8 | AR75: 16 | AS75: 44 | AT75: 4.70E+07 | AU75: 0.20 | AW75: sp|P26038|MOES_HUMAN | AX75: MSN | AY75: Moesin OS=Homo sapiens GN=MSN PE=1 SV=3 | AZ75: 67.78 | BA75: 21 | BB75: 24 | BC75: 25 | BD75: 31 | BE75: 18 | BF75: 35 | BG75: 18 | BH75: 19 | BI75: 20 | BJ75: 22 | BK75: 13 | BL75: 26 | BM75: 35 | BN75: 2.90E+07 | BO75: 3.80E+07 | BP75: 3.10E+07 | BQ75: 9.10E+06 | BR75: 8.20E+06 | BS75: 1.40E+07 | BT75: 8.20E+06 | BU75: 3.5 | BV75: 4.6 | BW75: 3.8 | BX75: 1.1 | BY75: 1.0 | BZ75: 1.7
B76: sp|P53621|COPA_HUMAN | C76: COPA | D76: 23 | E76: 27 | F76: 1.10E+07 | G76: 0.03 | J76: sp|Q14152|EIF3A_HUMAN | K76: EIF3A | L76: 21 | M76: 21 | N76: 6.20E+06 | O76: 0.03 | R76: sp|P26038|MOES_HUMAN | S76: MSN | T76: 18 | U76: 35 | V76: 3.10E+07 | W76: 0.11 | Z76: sp|P62195|PRS8_HUMAN | AA76: PSMC5 | AB76: 17 | AC76: 23 | AD76: 3.50E+06 | AE76: 0.03 | AH76: sp|Q14697|GANAB_HUMAN | AI76: GANAB | AJ76: 17 | AK76: 17 | AL76: 7.20E+06 | AM76: 0.07 | AP76: sp|P07996|TSP1_HUMAN | AQ76: THBS1 | AR76: 16 | AS76: 40 | AT76: 8.90E+07 | AU76: 0.39 | AW76: sp|O00468|AGRIN_HUMAN | AX76: AGRN | AY76: Agrin OS=Homo sapiens GN=AGRN PE=1 SV=5 | AZ76: 217.09 | BA76: 27 | BB76: 47 | BC76: 25 | BD76: 35 | BE76: 25 | BF76: 49 | BG76: 24 | BH76: 27 | BI76: 23 | BJ76: 29 | BK76: 24 | BL76: 37 | BM76: 49 | BN76: 1.80E+08 | BO76: 7.50E+07 | BP76: 9.70E+07 | BQ76: 4.80E+07 | BR76: 5.10E+07 | BS76: 9.30E+07 | BT76: 4.80E+07 | BU76: 3.8 | BV76: 1.6 | BW76: 2.0 | BX76: 1.0 | BY76: 1.1 | BZ76: 1.9
B77: sp|P30101|PDIA3_HUMAN | C77: PDIA3 | D77: 23 | E77: 27 | F77: 4.50E+07 | G77: 0.14 | J77: sp|Q08380|LG3BP_HUMAN | K77: LGALS3BP | L77: 20 | M77: 86 | N77: 6.60E+08 | O77: 2.70 | R77: sp|P68371|TBB4B_HUMAN | S77: TUBB4B | T77: 18 | U77: 29 | V77: 2.90E+07 | W77: 0.11 | Z77: sp|Q14974|IMB1_HUMAN | AA77: KPNB1 | AB77: 17 | AC77: 20 | AD77: 1.10E+07 | AE77: 0.10 | AH77: sp|P10909|CLUS_HUMAN | AI77: CLU | AJ77: 16 | AK77: 48 | AL77: 1.50E+08 | AM77: 1.59 | AP77: sp|P05067|A4_HUMAN | AQ77: APP | AR77: 16 | AS77: 33 | AT77: 6.20E+07 | AU77: 0.27 | AW77: sp|Q8NBJ4|GOLM1_HUMAN | AX77: GOLM1 | AY77: Golgi membrane protein 1 OS=Homo sapiens GN=GOLM1 PE=1 SV=1 | AZ77: 45.31 | BA77: 10 | BB77: 19 | BC77: 16 | BD77: 29 | BE77: 22 | BF77: 39 | BG77: 16 | BH77: 31 | BI77: 15 | BJ77: 29 | BK77: 18 | BL77: 37 | BM77: 39 | BN77: 1.00E+07 | BO77: 7.10E+07 | BP77: 7.30E+07 | BQ77: 4.20E+07 | BR77: 3.80E+07 | BS77: 9.30E+07 | BT77: 1.00E+07 | BU77: 1.0 | BV77: 7.1 | BW77: 7.3 | BX77: 4.2 | BY77: 3.8 | BZ77: 9.3
B78: sp|P33991|MCM4_HUMAN | C78: MCM4 | D78: 23 | E78: 26 | F78: 1.10E+07 | G78: 0.04 | J78: sp|P19022|CADH2_HUMAN | K78: CDH2 | L78: 20 | M78: 36 | N78: 5.10E+07 | O78: 0.21 | R78: sp|P13667|PDIA4_HUMAN | S78: PDIA4 | T78: 18 | U78: 29 | V78: 1.70E+07 | W78: 0.06 | Z78: sp|Q9NTK5|OLA1_HUMAN | AA78: OLA1 | AB78: 17 | AC78: 20 | AD78: 4.70E+06 | AE78: 0.04 | AH78: sp|P04075|ALDOA_HUMAN | AI78: ALDOA | AJ78: 16 | AK78: 43 | AL78: 1.00E+08 | AM78: 1.05 | AP78: sp|P16870|CBPE_HUMAN | AQ78: CPE | AR78: 16 | AS78: 29 | AT78: 8.60E+07 | AU78: 0.37 | AW78: sp|P50990|TCPQ_HUMAN | AX78: CCT8 | AY78: T-complex protein 1 subunit theta OS=Homo sapiens GN=CCT8 PE=1 SV=4 | AZ78: 59.58 | BA78: 27 | BB78: 38 | BC78: 26 | BD78: 45 | BE78: 10 | BF78: 11 | BG78: 9 | BH78: 10 | BI78: 24 | BJ78: 28 | BK78: 13 | BL78: 15 | BM78: 45 | BN78: 6.50E+07 | BO78: 4.80E+07 | BP78: 3.50E+06 | BQ78: 1.40E+06 | BR78: 8.30E+06 | BS78: 1.20E+07 | BT78: 1.40E+06 | BU78: 46.4 | BV78: 34.3 | BW78: 2.5 | BX78: 1.0 | BY78: 5.9 | BZ78: 8.6
B79: sp|Q08380|LG3BP_HUMAN | C79: LGALS3BP | D79: 22 | E79: 125 | F79: 1.60E+09 | G79: 5.34 | J79: sp|P07996|TSP1_HUMAN | K79: THBS1 | L79: 20 | M79: 33 | N79: 5.40E+07 | O79: 0.22 | R79: sp|Q12906|ILF3_HUMAN | S79: ILF3 | T79: 18 | U79: 27 | V79: 1.10E+07 | W79: 0.04 | Z79: sp|P13796|PLSL_HUMAN | AA79: LCP1 | AB79: 17 | AC79: 18 | AD79: 5.00E+06 | AE79: 0.05 | AH79: sp|P12109|CO6A1_HUMAN | AI79: COL6A1 | AJ79: 16 | AK79: 31 | AL79: 3.50E+07 | AM79: 0.36 | AP79: sp|P07686|HEXB_HUMAN | AQ79: HEXB | AR79: 16 | AS79: 28 | AT79: 1.80E+08 | AU79: 0.81 | AW79: sp|Q7KZF4|SND1_HUMAN | AX79: SND1 | AY79: Staphylococcal nuclease domain-containing protein 1 OS=Homo sapiens GN=SND1 PE=1 SV=1 | AZ79: 101.93 | BA79: 25 | BB79: 26 | BC79: 20 | BD79: 21 | BE79: 15 | BF79: 20 | BG79: 12 | BH79: 16 | BI79: 15 | BJ79: 16 | BK79: 13 | BL79: 14 | BM79: 26 | BN79: 1.70E+07 | BO79: 7.40E+06 | BP79: 8.70E+06 | BQ79: 2.00E+06 | BR79: 2.70E+06 | BS79: 5.00E+06 | BT79: 2.00E+06 | BU79: 8.5 | BV79: 3.7 | BW79: 4.4 | BX79: 1.0 | BY79: 1.4 | BZ79: 2.5
B80: sp|O94985|CSTN1_HUMAN | C80: CLSTN1 | D80: 22 | E80: 56 | F80: 4.30E+08 | G80: 1.39 | J80: sp|Q14126|DSG2_HUMAN | K80: DSG2 | L80: 20 | M80: 27 | N80: 2.70E+07 | O80: 0.11 | R80: sp|O00410|IPO5_HUMAN | S80: IPO5 | T80: 18 | U80: 24 | V80: 1.00E+07 | W80: 0.04 | Z80: sp|P54802|ANAG_HUMAN | AA80: NAGLU | AB80: 17 | AC80: 18 | AD80: 1.10E+07 | AE80: 0.10 | AH80: sp|P19022|CADH2_HUMAN | AI80: CDH2 | AJ80: 16 | AK80: 29 | AL80: 3.30E+07 | AM80: 0.34 | AP80: sp|Q14126|DSG2_HUMAN | AQ80: DSG2 | AR80: 16 | AS80: 27 | AT80: 2.00E+07 | AU80: 0.09 | AW80: sp|Q05707|COEA1_HUMAN | AX80: COL14A1 | AY80: Collagen alpha-1(XIV) chain OS=Homo sapiens GN=COL14A1 PE=1 SV=3 | AZ80: 193.39 | BA80: 24 | BB80: 25 | BC80: 14 | BD80: 17 | BE80: 19 | BF80: 22 | BG80: 9 | BH80: 9 | BI80: 3 | BJ80: 4 | BK80: 13 | BL80: 13 | BM80: 25 | BN80: 5.60E+06 | BO80: 2.80E+06 | BP80: 4.70E+06 | BQ80: 7.50E+05 | BR80: 1.40E+05 | BS80: 3.00E+06 | BT80: 1.40E+05 | BU80: 40.0 | BV80: 20.0 | BW80: 33.6 | BX80: 5.4 | BY80: 1.0 | BZ80: 21.4
B81: sp|Q02818|NUCB1_HUMAN | C81: NUCB1 | D81: 22 | E81: 35 | F81: 8.00E+07 | G81: 0.26 | J81: sp|P48643|TCPE_HUMAN | K81: CCT5 | L81: 20 | M81: 26 | N81: 2.60E+07 | O81: 0.11 | R81: sp|Q02809|PLOD1_HUMAN | S81: PLOD1 | T81: 18 | U81: 23 | V81: 1.90E+07 | W81: 0.07 | Z81: sp|P13667|PDIA4_HUMAN | AA81: PDIA4 | AB81: 17 | AC81: 18 | AD81: 5.70E+06 | AE81: 0.05 | AH81: sp|P16870|CBPE_HUMAN | AI81: CPE | AJ81: 16 | AK81: 25 | AL81: 2.10E+07 | AM81: 0.22 | AP81: sp|Q9BQE3|TBA1C_HUMAN | AQ81: TUBA1C | AR81: 16 | AS81: 27 | AT81: 3.30E+07 | AU81: 0.14 | AW81: sp|Q02790|FKBP4_HUMAN | AX81: FKBP4 | AY81: Peptidyl-prolyl cis-trans isomerase FKBP4 OS=Homo sapiens GN=FKBP4 PE=1 SV=3 | AZ81: 51.77 | BA81: 24 | BB81: 32 | BC81: 22 | BD81: 24 | BE81: 1 | BF81: 2 | BG81: 2 | BH81: 3 | BI81: 14 | BJ81: 14 | BK81: 8 | BL81: 10 | BM81: 32 | BN81: 3.40E+07 | BO81: 1.70E+07 | BP81: 3.70E+05 | BQ81: 9.50E+04 | BR81: 2.70E+06 | BS81: 6.30E+06 | BT81: 9.50E+04 | BU81: 357.9 | BV81: 178.9 | BW81: 3.9 | BX81: 1.0 | BY81: 28.4 | BZ81: 66.3
B82: sp|Q12906|ILF3_HUMAN | C82: ILF3 | D82: 22 | E82: 31 | F82: 2.00E+07 | G82: 0.06 | J82: sp|Q14974|IMB1_HUMAN | K82: KPNB1 | L82: 20 | M82: 26 | N82: 3.20E+07 | O82: 0.13 | R82: sp|Q9HCU4|CELR2_HUMAN | S82: CELSR2 | T82: 18 | U82: 23 | V82: 1.60E+07 | W82: 0.06 | Z82: sp|O75369|FLNB_HUMAN | AA82: FLNB | AB82: 17 | AC82: 17 | AD82: 2.80E+06 | AE82: 0.03 | AH82: sp|P19021|AMD_HUMAN | AI82: PAM | AJ82: 16 | AK82: 25 | AL82: 1.30E+07 | AM82: 0.13 | AP82: sp|P04075|ALDOA_HUMAN | AQ82: ALDOA | AR82: 16 | AS82: 24 | AT82: 9.90E+07 | AU82: 0.43 | AW82: sp|Q13200|PSMD2_HUMAN | AX82: PSMD2 | AY82: 26S proteasome non-ATPase regulatory subunit 2 OS=Homo sapiens GN=PSMD2 PE=1 SV=3 | AZ82: 100.14 | BA82: 26 | BB82: 27 | BC82: 11 | BD82: 12 | BE82: 15 | BF82: 16 | BG82: 7 | BH82: 8 | BI82: 14 | BJ82: 14 | BK82: 6 | BL82: 6 | BM82: 27 | BN82: 1.80E+07 | BO82: 4.90E+06 | BP82: 5.70E+06 | BQ82: 1.60E+06 | BR82: 4.60E+06 | BS82: 2.20E+06 | BT82: 1.60E+06 | BU82: 11.3 | BV82: 3.1 | BW82: 3.6 | BX82: 1.0 | BY82: 2.9 | BZ82: 1.4
B83: sp|P22102|PUR2_HUMAN | C83: GART | D83: 22 | E83: 29 | F83: 1.70E+07 | G83: 0.06 | J83: sp|P35998|PRS7_HUMAN | K83: PSMC2 | L83: 20 | M83: 26 | N83: 9.40E+06 | O83: 0.04 | R83: sp|P10909|CLUS_HUMAN | S83: CLU | T83: 17 | U83: 48 | V83: 4.00E+08 | W83: 1.45 | Z83: sp|Q14697|GANAB_HUMAN | AA83: GANAB | AB83: 17 | AC83: 17 | AD83: 4.10E+06 | AE83: 0.04 | AH83: sp|P06744|G6PI_HUMAN | AI83: GPI | AJ83: 16 | AK83: 25 | AL83: 1.20E+07 | AM83: 0.13 | AP83: sp|O00462|MANBA_HUMAN | AQ83: MANBA | AR83: 16 | AS83: 21 | AT83: 2.40E+07 | AU83: 0.10 | AW83: sp|P07900|HS90A_HUMAN | AX83: HSP90AA1 | AY83: Heat shock protein HSP 90-alpha OS=Homo sapiens GN=HSP90AA1 PE=1 SV=5 | AZ83: 84.61 | BA83: 25 | BB83: 70 | BC83: 18 | BD83: 52 | BE83: 19 | BF83: 52 | BG83: 18 | BH83: 39 | BI83: 17 | BJ83: 44 | BK83: 18 | BL83: 30 | BM83: 70 | BN83: 3.60E+08 | BO83: 1.70E+08 | BP83: 3.00E+08 | BQ83: 7.10E+07 | BR83: 9.80E+07 | BS83: 1.20E+08 | BT83: 7.10E+07 | BU83: 5.1 | BV83: 2.4 | BW83: 4.2 | BX83: 1.0 | BY83: 1.4 | BZ83: 1.7
B84: sp|P45974|UBP5_HUMAN | C84: USP5 | D84: 22 | E84: 25 | F84: 1.40E+07 | G84: 0.04 | J84: sp|P41250|GARS_HUMAN | K84: GARS | L84: 20 | M84: 24 | N84: 2.00E+07 | O84: 0.08 | R84: sp|O43405|COCH_HUMAN | S84: COCH | T84: 17 | U84: 40 | V84: 8.40E+07 | W84: 0.30 | Z84: sp|Q8WVQ1|CANT1_HUMAN | AA84: CANT1 | AB84: 17 | AC84: 17 | AD84: 5.30E+06 | AE84: 0.05 | AH84: sp|P45974|UBP5_HUMAN | AI84: USP5 | AJ84: 16 | AK84: 19 | AL84: 3.50E+06 | AM84: 0.04 | AP84: sp|P55060|XPO2_HUMAN | AQ84: CSE1L | AR84: 16 | AS84: 20 | AT84: 7.30E+06 | AU84: 0.03 | AW84: sp|O00391|QSOX1_HUMAN | AX84: QSOX1 | AY84: Sulfhydryl oxidase 1 OS=Homo sapiens GN=QSOX1 PE=1 SV=3 | AZ84: 82.53 | BA84: 23 | BB84: 38 | BC84: 24 | BD84: 36 | BE84: 21 | BF84: 62 | BG84: 22 | BH84: 27 | BI84: 21 | BJ84: 29 | BK84: 21 | BL84: 46 | BM84: 62 | BN84: 1.00E+08 | BO84: 6.50E+07 | BP84: 1.20E+08 | BQ84: 2.80E+07 | BR84: 2.40E+07 | BS84: 6.80E+07 | BT84: 2.40E+07 | BU84: 4.2 | BV84: 2.7 | BW84: 5.0 | BX84: 1.2 | BY84: 1.0 | BZ84: 2.8
B85: sp|Q16706|MA2A1_HUMAN | C85: MAN2A1 | D85: 22 | E85: 24 | F85: 5.80E+06 | G85: 0.02 | J85: sp|Q9Y266|NUDC_HUMAN | K85: NUDC | L85: 20 | M85: 22 | N85: 2.60E+07 | O85: 0.11 | R85: sp|P07996|TSP1_HUMAN | S85: THBS1 | T85: 17 | U85: 34 | V85: 3.70E+07 | W85: 0.13 | Z85: sp|Q8NBJ4|GOLM1_HUMAN | AA85: GOLM1 | AB85: 16 | AC85: 31 | AD85: 4.20E+07 | AE85: 0.38 | AH85: sp|Q9Y617|SERC_HUMAN | AI85: PSAT1 | AJ85: 16 | AK85: 19 | AL85: 1.00E+07 | AM85: 0.11 | AP85: sp|Q01082|SPTB2_HUMAN | AQ85: SPTBN1 | AR85: 16 | AS85: 17 | AT85: 5.40E+06 | AU85: 0.02 | AW85: sp|Q14126|DSG2_HUMAN | AX85: DSG2 | AY85: Desmoglein-2 OS=Homo sapiens GN=DSG2 PE=1 SV=2 | AZ85: 122.22 | BA85: 24 | BB85: 36 | BC85: 20 | BD85: 27 | BE85: 17 | BF85: 31 | BG85: 13 | BH85: 18 | BI85: 19 | BJ85: 22 | BK85: 16 | BL85: 27 | BM85: 36 | BN85: 6.00E+07 | BO85: 2.70E+07 | BP85: 5.00E+07 | BQ85: 9.60E+06 | BR85: 1.10E+07 | BS85: 2.00E+07 | BT85: 9.60E+06 | BU85: 6.3 | BV85: 2.8 | BW85: 5.2 | BX85: 1.0 | BY85: 1.1 | BZ85: 2.1
B86: sp|P26639|SYTC_HUMAN | C86: TARS | D86: 22 | E86: 23 | F86: 3.40E+07 | G86: 0.11 | J86: sp|Q92598|HS105_HUMAN | K86: HSPH1 | L86: 20 | M86: 22 | N86: 1.10E+07 | O86: 0.05 | R86: sp|Q14126|DSG2_HUMAN | S86: DSG2 | T86: 17 | U86: 31 | V86: 5.00E+07 | W86: 0.18 | Z86: sp|P19022|CADH2_HUMAN | AA86: CDH2 | AB86: 16 | AC86: 30 | AD86: 3.90E+07 | AE86: 0.35 | AH86: sp|P13797|PLST_HUMAN | AI86: PLS3 | AJ86: 16 | AK86: 18 | AL86: 8.90E+06 | AM86: 0.09 | AP86: sp|P07237|PDIA1_HUMAN | AQ86: P4HB | AR86: 16 | AS86: 17 | AT86: 1.30E+07 | AU86: 0.06 | AW86: sp|P29401|TKT_HUMAN | AX86: TKT | AY86: Transketolase OS=Homo sapiens GN=TKT PE=1 SV=3 | AZ86: 67.83 | BA86: 4 | BB86: 5 | BC86: 22 | BD86: 39 | BE86: 18 | BF86: 36 | BG86: 22 | BH86: 26 | BI86: 21 | BJ86: 24 | BK86: 15 | BL86: 23 | BM86: 39 | BN86: 3.80E+05 | BO86: 1.10E+08 | BP86: 3.70E+07 | BQ86: 2.20E+07 | BR86: 2.50E+07 | BS86: 3.00E+07 | BT86: 3.80E+05 | BU86: 1.0 | BV86: 289.5 | BW86: 97.4 | BX86: 57.9 | BY86: 65.8 | BZ86: 78.9
B87: sp|Q86UP2|KTN1_HUMAN | C87: KTN1 | D87: 22 | E87: 22 | F87: 5.70E+06 | G87: 0.02 | J87: sp|Q7KZF4|SND1_HUMAN | K87: SND1 | L87: 20 | M87: 21 | N87: 7.40E+06 | O87: 0.03 | R87: sp|P49321|NASP_HUMAN | S87: NASP | T87: 17 | U87: 29 | V87: 2.30E+07 | W87: 0.08 | Z87: sp|P68371|TBB4B_HUMAN | AA87: TUBB4B | AB87: 16 | AC87: 22 | AD87: 4.40E+06 | AE87: 0.04 | AH87: sp|P12814|ACTN1_HUMAN | AI87: ACTN1 | AJ87: 16 | AK87: 16 | AL87: 8.10E+06 | AM87: 0.08 | AP87: sp|Q9H3G5|CPVL_HUMAN | AQ87: CPVL | AR87: 15 | AS87: 43 | AT87: 2.40E+08 | AU87: 1.03 | AW87: sp|P49736|MCM2_HUMAN | AX87: MCM2 | AY87: DNA replication licensing factor MCM2 OS=Homo sapiens GN=MCM2 PE=1 SV=4 | AZ87: 101.83 | BA87: 25 | BB87: 37 | BC87: 18 | BD87: 29 | BE87: 16 | BF87: 19 | BG87: 15 | BH87: 16 | BI87: 15 | BJ87: 17 | BK87: 9 | BL87: 9 | BM87: 37 | BN87: 2.40E+07 | BO87: 1.90E+07 | BP87: 1.40E+07 | BQ87: 7.10E+06 | BR87: 1.90E+07 | BS87: 1.60E+07 | BT87: 7.10E+06 | BU87: 3.4 | BV87: 2.7 | BW87: 2.0 | BX87: 1.0 | BY87: 2.7 | BZ87: 2.3
B88: sp|Q15075|EEA1_HUMAN | C88: EEA1 | D88: 22 | E88: 22 | F88: 6.10E+06 | G88: 0.02 | J88: sp|P12081|SYHC_HUMAN | K88: HARS | L88: 20 | M88: 20 | N88: 1.70E+07 | O88: 0.07 | R88: sp|P10809|CH60_HUMAN | S88: HSPD1 | T88: 17 | U88: 26 | V88: 1.10E+07 | W88: 0.04 | Z88: sp|P07996|TSP1_HUMAN | AA88: THBS1 | AB88: 16 | AC88: 22 | AD88: 5.90E+06 | AE88: 0.05 | AH88: sp|P17174|AATC_HUMAN | AI88: GOT1 | AJ88: 16 | AK88: 16 | AL88: 7.60E+06 | AM88: 0.08 | AP88: sp|Q13510|ASAH1_HUMAN | AQ88: ASAH1 | AR88: 15 | AS88: 31 | AT88: 5.60E+07 | AU88: 0.24 | AW88: sp|Q9Y266|NUDC_HUMAN | AX88: NUDC | AY88: Nuclear migration protein nudC OS=Homo sapiens GN=NUDC PE=1 SV=1 | AZ88: 38.22 | BA88: 21 | BB88: 23 | BC88: 20 | BD88: 22 | BE88: 17 | BF88: 23 | BG88: 23 | BH88: 26 | BI88: 19 | BJ88: 21 | BK88: 9 | BL88: 10 | BM88: 26 | BN88: 2.40E+07 | BO88: 2.60E+07 | BP88: 2.40E+07 | BQ88: 1.10E+07 | BR88: 9.40E+06 | BS88: 8.40E+06 | BT88: 8.40E+06 | BU88: 2.9 | BV88: 3.1 | BW88: 2.9 | BX88: 1.3 | BY88: 1.1 | BZ88: 1.0
B89: sp|Q9BQE3|TBA1C_HUMAN | C89: TUBA1C | D89: 21 | E89: 69 | F89: 2.80E+08 | G89: 0.90 | J89: sp|P16870|CBPE_HUMAN | K89: CPE | L89: 19 | M89: 42 | N89: 1.10E+08 | O89: 0.47 | R89: sp|P12814|ACTN1_HUMAN | S89: ACTN1 | T89: 17 | U89: 24 | V89: 1.50E+07 | W89: 0.06 | Z89: sp|Q9Y617|SERC_HUMAN | AA89: PSAT1 | AB89: 16 | AC89: 20 | AD89: 1.30E+07 | AE89: 0.11 | AH89: sp|Q8NBJ4|GOLM1_HUMAN | AI89: GOLM1 | AJ89: 15 | AK89: 29 | AL89: 3.80E+07 | AM89: 0.40 | AP89: sp|P13667|PDIA4_HUMAN | AQ89: PDIA4 | AR89: 15 | AS89: 25 | AT89: 9.90E+06 | AU89: 0.04 | AW89: sp|O00410|IPO5_HUMAN | AX89: IPO5 | AY89: Importin-5 OS=Homo sapiens GN=IPO5 PE=1 SV=4 | AZ89: 123.55 | BA89: 20 | BB89: 25 | BC89: 14 | BD89: 18 | BE89: 18 | BF89: 24 | BG89: 13 | BH89: 14 | BI89: 15 | BJ89: 16 | BK89: 18 | BL89: 23 | BM89: 25 | BN89: 1.80E+07 | BO89: 8.20E+06 | BP89: 1.00E+07 | BQ89: 2.20E+06 | BR89: 3.70E+06 | BS89: 6.80E+06 | BT89: 2.20E+06 | BU89: 8.2 | BV89: 3.7 | BW89: 4.5 | BX89: 1.0 | BY89: 1.7 | BZ89: 3.1
B90: sp|Q14974|IMB1_HUMAN | C90: KPNB1 | D90: 21 | E90: 39 | F90: 5.90E+07 | G90: 0.19 | J90: sp|P22102|PUR2_HUMAN | K90: GART | L90: 19 | M90: 26 | N90: 3.10E+07 | O90: 0.13 | R90: sp|Q9Y266|NUDC_HUMAN | S90: NUDC | T90: 17 | U90: 23 | V90: 2.40E+07 | W90: 0.09 | Z90: sp|Q9UQ80|PA2G4_HUMAN | AA90: PA2G4 | AB90: 16 | AC90: 19 | AD90: 1.30E+07 | AE90: 0.12 | AH90: sp|Q9Y4L1|HYOU1_HUMAN | AI90: HYOU1 | AJ90: 15 | AK90: 20 | AL90: 3.10E+06 | AM90: 0.03 | AP90: sp|P29401|TKT_HUMAN | AQ90: TKT | AR90: 15 | AS90: 23 | AT90: 3.00E+07 | AU90: 0.13 | AW90: sp|O14980|XPO1_HUMAN | AX90: XPO1 | AY90: Exportin-1 OS=Homo sapiens GN=XPO1 PE=1 SV=1 | AZ90: 123.31 | BA90: 23 | BB90: 27 | BC90: 21 | BD90: 24 | BE90: 15 | BF90: 19 | BG90: 12 | BH90: 12 | BI90: 21 | BJ90: 23 | BK90: 11 | BL90: 13 | BM90: 27 | BN90: 1.30E+07 | BO90: 6.50E+06 | BP90: 8.40E+06 | BQ90: 1.10E+06 | BR90: 3.80E+06 | BS90: 5.20E+06 | BT90: 1.10E+06 | BU90: 11.8 | BV90: 5.9 | BW90: 7.6 | BX90: 1.0 | BY90: 3.5 | BZ90: 4.7
B91: sp|P50395|GDIB_HUMAN | C91: GDI2 | D91: 21 | E91: 35 | F91: 5.90E+07 | G91: 0.19 | J91: sp|P17987|TCPA_HUMAN | K91: TCP1 | L91: 19 | M91: 24 | N91: 2.60E+07 | O91: 0.11 | R91: sp|Q14112|NID2_HUMAN | S91: NID2 | T91: 17 | U91: 22 | V91: 7.10E+06 | W91: 0.03 | Z91: sp|P17987|TCPA_HUMAN | AA91: TCP1 | AB91: 16 | AC91: 18 | AD91: 6.00E+06 | AE91: 0.05 | AH91: sp|Q13510|ASAH1_HUMAN | AI91: ASAH1 | AJ91: 15 | AK91: 19 | AL91: 7.40E+06 | AM91: 0.08 | AP91: sp|P12814|ACTN1_HUMAN | AQ91: ACTN1 | AR91: 15 | AS91: 22 | AT91: 6.40E+06 | AU91: 0.03 | AW91: sp|Q9Y5B9|SP16H_HUMAN | AX91: SUPT16H | AY91: FACT complex subunit SPT16 OS=Homo sapiens GN=SUPT16H PE=1 SV=1 | AZ91: 119.84 | BA91: 24 | BB91: 30 | BC91: 18 | BD91: 24 | BE91: 17 | BF91: 22 | BG91: 12 | BH91: 12 | BI91: 8 | BJ91: 8 | BK91: 12 | BL91: 14 | BM91: 30 | BN91: 9.50E+06 | BO91: 8.10E+06 | BP91: 8.70E+06 | BQ91: 9.80E+05 | BR91: 6.00E+05 | BS91: 3.80E+06 | BT91: 6.00E+05 | BU91: 15.8 | BV91: 13.5 | BW91: 14.5 | BX91: 1.6 | BY91: 1.0 | BZ91: 6.3
B92: sp|P19021|AMD_HUMAN | C92: PAM | D92: 21 | E92: 34 | F92: 2.70E+07 | G92: 0.09 | J92: sp|P55060|XPO2_HUMAN | K92: CSE1L | L92: 19 | M92: 23 | N92: 1.30E+07 | O92: 0.06 | R92: sp|Q14697|GANAB_HUMAN | S92: GANAB | T92: 17 | U92: 22 | V92: 1.60E+07 | W92: 0.06 | Z92: sp|P13797|PLST_HUMAN | AA92: PLS3 | AB92: 16 | AC92: 18 | AD92: 8.20E+06 | AE92: 0.07 | AH92: sp|P50395|GDIB_HUMAN | AI92: GDI2 | AJ92: 15 | AK92: 17 | AL92: 6.30E+06 | AM92: 0.07 | AP92: sp|P10253|LYAG_HUMAN | AQ92: GAA | AR92: 15 | AS92: 20 | AT92: 1.30E+07 | AU92: 0.06 | AW92: sp|P07686|HEXB_HUMAN | AX92: HEXB | AY92: Beta-hexosaminidase subunit beta OS=Homo sapiens GN=HEXB PE=1 SV=3 | AZ92: 63.07 | BA92: 8 | BB92: 8 | BC92: 11 | BD92: 14 | BE92: 5 | BF92: 6 | BG92: 24 | BH92: 28 | BI92: 18 | BJ92: 21 | BK92: 16 | BL92: 28 | BM92: 28 | BN92: 3.30E+06 | BO92: 4.80E+06 | BP92: 1.30E+06 | BQ92: 1.10E+08 | BR92: 4.90E+07 | BS92: 1.80E+08 | BT92: 1.30E+06 | BU92: 2.5 | BV92: 3.7 | BW92: 1.0 | BX92: 84.6 | BY92: 37.7 | BZ92: 138.5
B93: sp|P07996|TSP1_HUMAN | C93: THBS1 | D93: 21 | E93: 32 | F93: 4.10E+07 | G93: 0.13 | J93: sp|Q9Y4L1|HYOU1_HUMAN | K93: HYOU1 | L93: 19 | M93: 22 | N93: 5.40E+06 | O93: 0.02 | R93: sp|Q9Y5B9|SP16H_HUMAN | S93: SUPT16H | T93: 17 | U93: 22 | V93: 8.70E+06 | W93: 0.03 | Z93: sp|P27708|PYR1_HUMAN | AA93: CAD | AB93: 16 | AC93: 18 | AD93: 2.00E+06 | AE93: 0.02 | AH93: sp|P49736|MCM2_HUMAN | AI93: MCM2 | AJ93: 15 | AK93: 17 | AL93: 1.90E+07 | AM93: 0.20 | AP93: sp|Q13822|ENPP2_HUMAN | AQ93: ENPP2 | AR93: 15 | AS93: 19 | AT93: 1.30E+07 | AU93: 0.06 | AW93: sp|Q92598|HS105_HUMAN | AX93: HSPH1 | AY93: Heat shock protein 105 kDa OS=Homo sapiens GN=HSPH1 PE=1 SV=1 | AZ93: 96.8 | BA93: 25 | BB93: 25 | BC93: 20 | BD93: 22 | BE93: 15 | BF93: 18 | BG93: 10 | BH93: 11 | BI93: 13 | BJ93: 14 | BK93: 9 | BL93: 10 | BM93: 25 | BN93: 2.00E+07 | BO93: 1.10E+07 | BP93: 8.70E+06 | BQ93: 1.90E+06 | BR93: 5.80E+06 | BS93: 5.90E+06 | BT93: 1.90E+06 | BU93: 10.5 | BV93: 5.8 | BW93: 4.6 | BX93: 1.0 | BY93: 3.1 | BZ93: 3.1
B94: sp|P31150|GDIA_HUMAN | C94: GDI1 | D94: 21 | E94: 25 | F94: 3.10E+07 | G94: 0.10 | J94: sp|P13796|PLSL_HUMAN | K94: LCP1 | L94: 19 | M94: 20 | N94: 1.30E+07 | O94: 0.05 | R94: sp|P26639|SYTC_HUMAN | S94: TARS | T94: 17 | U94: 21 | V94: 1.50E+07 | W94: 0.05 | Z94: sp|P05455|LA_HUMAN | AA94: SSB | AB94: 16 | AC94: 17 | AD94: 6.40E+06 | AE94: 0.06 | AH94: sp|O00410|IPO5_HUMAN | AI94: IPO5 | AJ94: 15 | AK94: 16 | AL94: 3.70E+06 | AM94: 0.04 | AP94: sp|Q15262|PTPRK_HUMAN | AQ94: PTPRK | AR94: 15 | AS94: 19 | AT94: 2.90E+07 | AU94: 0.13 | AW94: sp|P62258|1433E_HUMAN | AX94: YWHAE | AY94: 14-3-3 protein epsilon OS=Homo sapiens GN=YWHAE PE=1 SV=1 | AZ94: 29.16 | BA94: 25 | BB94: 95 | BC94: 22 | BD94: 84 | BE94: 21 | BF94: 96 | BG94: 20 | BH94: 47 | BI94: 22 | BJ94: 66 | BK94: 20 | BL94: 71 | BM94: 96 | BN94: 8.20E+08 | BO94: 3.90E+08 | BP94: 4.40E+08 | BQ94: 1.40E+08 | BR94: 1.00E+08 | BS94: 3.10E+08 | BT94: 1.00E+08 | BU94: 8.2 | BV94: 3.9 | BW94: 4.4 | BX94: 1.4 | BY94: 1.0 | BZ94: 3.1
B95: sp|Q99460|PSMD1_HUMAN | C95: PSMD1 | D95: 21 | E95: 24 | F95: 1.10E+07 | G95: 0.03 | J95: sp|Q93008|USP9X_HUMAN | K95: USP9X | L95: 19 | M95: 20 | N95: 5.10E+06 | O95: 0.02 | R95: sp|Q96QK1|VPS35_HUMAN | S95: VPS35 | T95: 17 | U95: 20 | V95: 1.20E+07 | W95: 0.04 | Z95: sp|Q86VP6|CAND1_HUMAN | AA95: CAND1 | AB95: 16 | AC95: 16 | AD95: 4.90E+06 | AE95: 0.04 | AH95: sp|Q14566|MCM6_HUMAN | AI95: MCM6 | AJ95: 15 | AK95: 16 | AL95: 3.80E+06 | AM95: 0.04 | AP95: sp|P45974|UBP5_HUMAN | AQ95: USP5 | AR95: 15 | AS95: 18 | AT95: 3.00E+06 | AU95: 0.01 | AW95: sp|P19022|CADH2_HUMAN | AX95: CDH2 | AY95: Cadherin-2 OS=Homo sapiens GN=CDH2 PE=1 SV=4 | AZ95: 99.75 | BA95: 23 | BB95: 43 | BC95: 20 | BD95: 36 | BE95: 23 | BF95: 63 | BG95: 16 | BH95: 30 | BI95: 16 | BJ95: 29 | BK95: 19 | BL95: 53 | BM95: 63 | BN95: 1.20E+08 | BO95: 5.10E+07 | BP95: 1.80E+08 | BQ95: 3.90E+07 | BR95: 3.30E+07 | BS95: 1.20E+08 | BT95: 3.30E+07 | BU95: 3.6 | BV95: 1.5 | BW95: 5.5 | BX95: 1.2 | BY95: 1.0 | BZ95: 3.6
B96: sp|P35573|GDE_HUMAN | C96: AGL | D96: 21 | E96: 24 | F96: 5.10E+06 | G96: 0.02 | J96: sp|Q9BQE3|TBA1C_HUMAN | K96: TUBA1C | L96: 18 | M96: 66 | N96: 2.10E+08 | O96: 0.86 | R96: sp|P02545|LMNA_HUMAN | S96: LMNA | T96: 17 | U96: 20 | V96: 6.80E+06 | W96: 0.02 | Z96: sp|Q5SZK8|FREM2_HUMAN | AA96: FREM2 | AB96: 16 | AC96: 16 | AD96: 1.40E+06 | AE96: 0.01 | AH96: sp|Q7KZF4|SND1_HUMAN | AI96: SND1 | AJ96: 15 | AK96: 16 | AL96: 2.70E+06 | AM96: 0.03 | AP96: sp|P10586|PTPRF_HUMAN | AQ96: PTPRF | AR96: 15 | AS96: 18 | AT96: 5.60E+06 | AU96: 0.02 | AW96: sp|P06396|GELS_HUMAN | AX96: GSN | AY96: Gelsolin OS=Homo sapiens GN=GSN PE=1 SV=1 | AZ96: 85.64 | BA96: 19 | BB96: 24 | BC96: 14 | BD96: 20 | BE96: 21 | BF96: 34 | BG96: 14 | BH96: 21 | BI96: 12 | BJ96: 18 | BK96: 14 | BL96: 23 | BM96: 34 | BN96: 2.50E+07 | BO96: 9.90E+06 | BP96: 2.70E+07 | BQ96: 9.50E+06 | BR96: 1.70E+07 | BS96: 2.60E+07 | BT96: 9.50E+06 | BU96: 2.6 | BV96: 1.0 | BW96: 2.8 | BX96: 1.0 | BY96: 1.8 | BZ96: 2.7
B97: sp|P26038|MOES_HUMAN | C97: MSN | D97: 21 | E97: 24 | F97: 2.90E+07 | G97: 0.09 | J97: sp|P07900|HS90A_HUMAN | K97: HSP90AA1 | L97: 18 | M97: 52 | N97: 1.70E+08 | O97: 0.68 | R97: sp|O75533|SF3B1_HUMAN | S97: SF3B1 | T97: 17 | U97: 19 | V97: 1.80E+07 | W97: 0.07 | Z97: sp|P60174|TPIS_HUMAN | AA97: TPI1 | AB97: 15 | AC97: 24 | AD97: 7.30E+07 | AE97: 0.67 | AH97: sp|Q9UBE0|SAE1_HUMAN | AI97: SAE1 | AJ97: 15 | AK97: 16 | AL97: 4.00E+06 | AM97: 0.04 | AP97: sp|P07225|PROS_HUMAN | AQ97: PROS1 | AR97: 15 | AS97: 18 | AT97: 3.10E+07 | AU97: 0.14 | AW97: sp|Q12906|ILF3_HUMAN | AX97: ILF3 | AY97: Interleukin enhancer-binding factor 3 OS=Homo sapiens GN=ILF3 PE=1 SV=3 | AZ97: 95.28 | BA97: 22 | BB97: 31 | BC97: 14 | BD97: 19 | BE97: 18 | BF97: 27 | BG97: 8 | BH97: 12 | BI97: 10 | BJ97: 13 | BK97: 12 | BL97: 13 | BM97: 31 | BN97: 2.00E+07 | BO97: 6.80E+06 | BP97: 1.10E+07 | BQ97: 1.60E+06 | BR97: 3.10E+06 | BS97: 4.70E+06 | BT97: 1.60E+06 | BU97: 12.5 | BV97: 4.3 | BW97: 6.9 | BX97: 1.0 | BY97: 1.9 | BZ97: 2.9
B98: sp|P35998|PRS7_HUMAN | C98: PSMC2 | D98: 21 | E98: 24 | F98: 1.20E+07 | G98: 0.04 | J98: sp|O43405|COCH_HUMAN | K98: COCH | L98: 18 | M98: 47 | N98: 1.30E+08 | O98: 0.55 | R98: sp|Q15029|U5S1_HUMAN | S98: EFTUD2 | T98: 17 | U98: 19 | V98: 5.50E+06 | W98: 0.02 | Z98: sp|Q14240|IF4A2_HUMAN | AA98: EIF4A2 | AB98: 15 | AC98: 23 | AD98: 3.40E+07 | AE98: 0.31 | AH98: sp|P02545|LMNA_HUMAN | AI98: LMNA | AJ98: 15 | AK98: 16 | AL98: 1.60E+06 | AM98: 0.02 | AP98: sp|P11717|MPRI_HUMAN | AQ98: IGF2R | AR98: 15 | AS98: 17 | AT98: 1.00E+07 | AU98: 0.04 | AW98: sp|P06744|G6PI_HUMAN | AX98: GPI | AY98: Glucose-6-phosphate isomerase OS=Homo sapiens GN=GPI PE=1 SV=4 | AZ98: 63.11 | BA98: 24 | BB98: 33 | BC98: 18 | BD98: 28 | BE98: 5 | BF98: 6 | BG98: 1 | BH98: 1 | BI98: 16 | BJ98: 25 | BK98: 12 | BL98: 21 | BM98: 33 | BN98: 1.00E+08 | BO98: 5.30E+07 | BP98: 9.50E+05 | BQ98: 2.40E+04 | BR98: 1.20E+07 | BS98: 2.20E+07 | BT98: 2.40E+04 | BU98: 4166.7 | BV98: 2208.3 | BW98: 39.6 | BX98: 1.0 | BY98: 500.0 | BZ98: 916.7
B99: sp|Q14566|MCM6_HUMAN | C99: MCM6 | D99: 21 | E99: 23 | F99: 1.90E+07 | G99: 0.06 | J99: sp|P23396|RS3_HUMAN | K99: RPS3 | L99: 18 | M99: 36 | N99: 3.10E+07 | O99: 0.13 | R99: sp|Q9P2B2|FPRP_HUMAN | S99: PTGFRN | T99: 17 | U99: 19 | V99: 1.50E+07 | W99: 0.06 | Z99: sp|P02545|LMNA_HUMAN | AA99: LMNA | AB99: 15 | AC99: 21 | AD99: 4.20E+06 | AE99: 0.04 | AH99: sp|P46940|IQGA1_HUMAN | AI99: IQGAP1 | AJ99: 15 | AK99: 15 | AL99: 2.80E+06 | AM99: 0.03 | AP99: sp|P07602|SAP_HUMAN | AQ99: PSAP | AR99: 14 | AS99: 60 | AT99: 1.70E+08 | AU99: 0.75 | AW99: sp|Q14112|NID2_HUMAN | AX99: NID2 | AY99: Nidogen-2 OS=Homo sapiens GN=NID2 PE=1 SV=3 | AZ99: 151.16 | BA99: 16 | BB99: 22 | BC99: 12 | BD99: 16 | BE99: 17 | BF99: 22 | BG99: 9 | BH99: 13 | BI99: 7 | BJ99: 11 | BK99: 11 | BL99: 16 | BM99: 22 | BN99: 5.70E+06 | BO99: 3.20E+06 | BP99: 7.10E+06 | BQ99: 1.30E+06 | BR99: 7.20E+05 | BS99: 6.70E+06 | BT99: 7.20E+05 | BU99: 7.9 | BV99: 4.4 | BW99: 9.9 | BX99: 1.8 | BY99: 1.0 | BZ99: 9.3
B100: sp|Q9Y266|NUDC_HUMAN | C100: NUDC | D100: 21 | E100: 23 | F100: 2.40E+07 | G100: 0.08 | J100: sp|P50395|GDIB_HUMAN | K100: GDI2 | L100: 18 | M100: 34 | N100: 7.00E+07 | O100: 0.29 | R100: sp|P45974|UBP5_HUMAN | S100: USP5 | T100: 17 | U100: 18 | V100: 5.10E+06 | W100: 0.02 | Z100: sp|P23526|SAHH_HUMAN | AA100: AHCY | AB100: 15 | AC100: 19 | AD100: 1.00E+07 | AE100: 0.09 | AH100: sp|P34931|HS71L_HUMAN | AI100: HSPA1L | AJ100: 14 | AK100: 60 | AL100: 1.50E+08 | AM100: 1.58 | AP100: sp|P35556|FBN2_HUMAN | AQ100: FBN2 | AR100: 14 | AS100: 38 | AT100: 1.00E+08 | AU100: 0.44 | AW100: sp|Q99832|TCPH_HUMAN | AX100: CCT7 | AY100: T-complex protein 1 subunit eta OS=Homo sapiens GN=CCT7 PE=1 SV=2 | AZ100: 59.33 | BA100: 25 | BB100: 33 | BC100: 25 | BD100: 36 | BE100: 3 | BF100: 5 | BG100: 0 | BH100: 0 | BI100: 14 | BJ100: 17 | BK100: 7 | BL100: 9 | BM100: 36 | BN100: 2.90E+07 | BO100: 1.80E+07 | BP100: 3.40E+05 | BQ100: NF | BR100: 2.10E+06 | BS100: 3.60E+06 | BT100: 3.40E+05 | BU100: 85.3 | BV100: 52.9 | BW100: 1.0 | BX100: 0.0 | BY100: 6.2 | BZ100: 10.6
B101: sp|Q10567|AP1B1_HUMAN | C101: AP1B1 | D101: 21 | E101: 23 | F101: 1.10E+07 | G101: 0.04 | J101: sp|P49736|MCM2_HUMAN | K101: MCM2 | L101: 18 | M101: 29 | N101: 1.90E+07 | O101: 0.08 | R101: sp|Q13263|TIF1B_HUMAN | S101: TRIM28 | T101: 16 | U101: 26 | V101: 1.70E+07 | W101: 0.06 | Z101: sp|Q99574|NEUS_HUMAN | AA101: SERPINI1 | AB101: 15 | AC101: 19 | AD101: 6.30E+06 | AE101: 0.06 | AH101: IgG1_bovine | AJ101: 14 | AK101: 49 | AL101: 3.40E+08 | AM101: 3.49 | AP101: sp|Q92820|GGH_HUMAN | AQ101: GGH | AR101: 14 | AS101: 36 | AT101: 1.60E+08 | AU101: 0.70 | AW101: sp|O00469|PLOD2_HUMAN | AX101: PLOD2 | AY101: Procollagen-lysine,2-oxoglutarate 5-dioxygenase 2 OS=Homo sapiens GN=PLOD2 PE=1 SV=2 | AZ101: 84.63 | BA101: 6 | BB101: 6 | BC101: 2 | BD101: 2 | BE101: 3 | BF101: 3 | BG101: 20 | BH101: 20 | BI101: 20 | BJ101: 20 | BK101: 24 | BL101: 35 | BM101: 35 | BN101: 9.20E+05 | BO101: 2.30E+05 | BP101: 1.30E+06 | BQ101: 1.30E+07 | BR101: 1.60E+07 | BS101: 5.30E+07 | BT101: 2.30E+05 | BU101: 4.0 | BV101: 1.0 | BW101: 5.7 | BX101: 56.5 | BY101: 69.6 | BZ101: 230.4
B102: sp|P47897|SYQ_HUMAN | C102: QARS | D102: 21 | E102: 22 | F102: 9.40E+06 | G102: 0.03 | J102: sp|P49321|NASP_HUMAN | K102: NASP | L102: 18 | M102: 28 | N102: 3.00E+07 | O102: 0.12 | R102: sp|P20700|LMNB1_HUMAN | S102: LMNB1 | T102: 16 | U102: 21 | V102: 5.40E+06 | W102: 0.02 | Z102: sp|P08253|MMP2_HUMAN | AA102: MMP2 | AB102: 15 | AC102: 18 | AD102: 4.70E+06 | AE102: 0.04 | AH102: sp|P68104|EF1A1_HUMAN | AI102: EEF1A1 | AJ102: 14 | AK102: 37 | AL102: 5.30E+07 | AM102: 0.56 | AP102: sp|Q9UHI8|ATS1_HUMAN | AQ102: ADAMTS1 | AR102: 14 | AS102: 25 | AT102: 1.40E+07 | AU102: 0.06 | AW102: sp|Q9NYU2|UGGG1_HUMAN | AX102: UGGT1 | AY102: UDP-glucose:glycoprotein glucosyltransferase 1 OS=Homo sapiens GN=UGGT1 PE=1 SV=3 | AZ102: 177.08 | BA102: 26 | BB102: 27 | BC102: 14 | BD102: 15 | BE102: 13 | BF102: 16 | BG102: 4 | BH102: 4 | BI102: 0 | BJ102: 0 | BK102: 8 | BL102: 8 | BM102: 27 | BN102: 5.40E+06 | BO102: 1.10E+06 | BP102: 2.90E+06 | BQ102: 1.80E+05 | BR102: NF | BS102: 1.20E+06 | BT102: 1.80E+05 | BU102: 30.0 | BV102: 6.1 | BW102: 16.1 | BX102: 1.0 | BY102: 0.0 | BZ102: 6.7
B103: sp|Q15459|SF3A1_HUMAN | C103: SF3A1 | D103: 21 | E103: 22 | F103: 8.50E+06 | G103: 0.03 | J103: sp|P06744|G6PI_HUMAN | K103: GPI | L103: 18 | M103: 28 | N103: 5.30E+07 | O103: 0.22 | R103: sp|P49736|MCM2_HUMAN | S103: MCM2 | T103: 16 | U103: 19 | V103: 1.40E+07 | W103: 0.05 | Z103: sp|P55060|XPO2_HUMAN | AA103: CSE1L | AB103: 15 | AC103: 16 | AD103: 3.10E+06 | AE103: 0.03 | AH103: sp|P07195|LDHB_HUMAN | AI103: LDHB | AJ103: 14 | AK103: 30 | AL103: 6.80E+07 | AM103: 0.71 | AP103: sp|P07195|LDHB_HUMAN | AQ103: LDHB | AR103: 14 | AS103: 25 | AT103: 1.10E+08 | AU103: 0.50 | AW103: sp|Q13616|CUL1_HUMAN | AX103: CUL1 | AY103: Cullin-1 OS=Homo sapiens GN=CUL1 PE=1 SV=2 | AZ103: 89.62 | BA103: 24 | BB103: 26 | BC103: 10 | BD103: 12 | BE103: 10 | BF103: 13 | BG103: 4 | BH103: 5 | BI103: 3 | BJ103: 3 | BK103: 4 | BL103: 4 | BM103: 26 | BN103: 7.70E+06 | BO103: 2.60E+06 | BP103: 3.20E+06 | BQ103: 3.40E+05 | BR103: 2.00E+05 | BS103: 8.10E+05 | BT103: 2.00E+05 | BU103: 38.5 | BV103: 13.0 | BW103: 16.0 | BX103: 1.7 | BY103: 1.0 | BZ103: 4.1
B104: sp|O75369|FLNB_HUMAN | C104: FLNB | D104: 21 | E104: 21 | F104: 1.60E+07 | G104: 0.05 | J104: sp|Q9Y5B9|SP16H_HUMAN | K104: SUPT16H | L104: 18 | M104: 24 | N104: 8.10E+06 | O104: 0.03 | R104: sp|Q93008|USP9X_HUMAN | S104: USP9X | T104: 16 | U104: 17 | V104: 4.20E+06 | W104: 0.02 | Z104: sp|P49736|MCM2_HUMAN | AA104: MCM2 | AB104: 15 | AC104: 16 | AD104: 7.10E+06 | AE104: 0.06 | AH104: sp|P05067|A4_HUMAN | AI104: APP | AJ104: 14 | AK104: 18 | AL104: 2.70E+07 | AM104: 0.28 | AP104: sp|P06396|GELS_HUMAN | AQ104: GSN | AR104: 14 | AS104: 23 | AT104: 2.60E+07 | AU104: 0.11 | AW104: sp|Q08380|LG3BP_HUMAN | AX104: LGALS3BP | AY104: Galectin-3-binding protein OS=Homo sapiens GN=LGALS3BP PE=1 SV=1 | AZ104: 65.29 | BA104: 22 | BB104: 125 | BC104: 20 | BD104: 86 | BE104: 23 | BF104: 134 | BG104: 20 | BH104: 79 | BI104: 22 | BJ104: 75 | BK104: 22 | BL104: 120 | BM104: 134 | BN104: 1.60E+09 | BO104: 6.60E+08 | BP104: 1.70E+09 | BQ104: 3.60E+08 | BR104: 3.60E+08 | BS104: 1.10E+09 | BT104: 3.60E+08 | BU104: 4.4 | BV104: 1.8 | BW104: 4.7 | BX104: 1.0 | BY104: 1.0 | BZ104: 3.1
B105: sp|Q99715|COCA1_HUMAN | C105: COL12A1 | D105: 21 | E105: 21 | F105: 4.30E+06 | G105: 0.01 | J105: sp|P46821|MAP1B_HUMAN | K105: MAP1B | L105: 18 | M105: 20 | N105: 3.30E+06 | O105: 0.01 | R105: sp|P50395|GDIB_HUMAN | S105: GDI2 | T105: 15 | U105: 32 | V105: 3.70E+07 | W105: 0.13 | Z105: sp|O00462|MANBA_HUMAN | AA105: MANBA | AB105: 15 | AC105: 16 | AD105: 5.30E+06 | AE105: 0.05 | AH105: sp|Q99832|TCPH_HUMAN | AI105: CCT7 | AJ105: 14 | AK105: 17 | AL105: 2.10E+06 | AM105: 0.02 | AP105: sp|P12956|XRCC6_HUMAN | AQ105: XRCC6 | AR105: 14 | AS105: 20 | AT105: 3.00E+07 | AU105: 0.13 | AW105: sp|O94985|CSTN1_HUMAN | AX105: CLSTN1 | AY105: Calsyntenin-1 OS=Homo sapiens GN=CLSTN1 PE=1 SV=1 | AZ105: 109.72 | BA105: 22 | BB105: 56 | BC105: 16 | BD105: 44 | BE105: 19 | BF105: 70 | BG105: 21 | BH105: 42 | BI105: 19 | BJ105: 39 | BK105: 18 | BL105: 67 | BM105: 70 | BN105: 4.30E+08 | BO105: 1.90E+08 | BP105: 5.30E+08 | BQ105: 7.70E+07 | BR105: 9.80E+07 | BS105: 3.30E+08 | BT105: 7.70E+07 | BU105: 5.6 | BV105: 2.5 | BW105: 6.9 | BX105: 1.0 | BY105: 1.3 | BZ105: 4.3
B106: sp|P20700|LMNB1_HUMAN | C106: LMNB1 | D106: 20 | E106: 27 | F106: 1.30E+07 | G106: 0.04 | J106: sp|Q16787|LAMA3_HUMAN | K106: LAMA3 | L106: 18 | M106: 18 | N106: 2.00E+06 | O106: 0.01 | R106: sp|Q9BQE3|TBA1C_HUMAN | S106: TUBA1C | T106: 15 | U106: 32 | V106: 5.50E+07 | W106: 0.20 | Z106: sp|P48643|TCPE_HUMAN | AA106: CCT5 | AB106: 15 | AC106: 15 | AD106: 3.50E+06 | AE106: 0.03 | AH106: sp|Q9BTY2|FUCO2_HUMAN | AI106: FUCA2 | AJ106: 14 | AK106: 17 | AL106: 1.10E+07 | AM106: 0.12 | AP106: sp|P46940|IQGA1_HUMAN | AQ106: IQGAP1 | AR106: 14 | AS106: 19 | AT106: 2.20E+06 | AU106: 0.01 | AW106: sp|P10909|CLUS_HUMAN | AX106: CLU | AY106: Clusterin OS=Homo sapiens GN=CLU PE=1 SV=1 | AZ106: 52.46 | BA106: 18 | BB106: 54 | BC106: 16 | BD106: 47 | BE106: 17 | BF106: 48 | BG106: 18 | BH106: 62 | BI106: 16 | BJ106: 48 | BK106: 20 | BL106: 48 | BM106: 62 | BN106: 3.30E+08 | BO106: 4.10E+08 | BP106: 4.00E+08 | BQ106: 2.10E+08 | BR106: 1.50E+08 | BS106: 4.40E+08 | BT106: 1.50E+08 | BU106: 2.2 | BV106: 2.7 | BW106: 2.7 | BX106: 1.4 | BY106: 1.0 | BZ106: 2.9
B107: sp|O00410|IPO5_HUMAN | C107: IPO5 | D107: 20 | E107: 25 | F107: 1.80E+07 | G107: 0.06 | J107: sp|O43242|PSMD3_HUMAN | K107: PSMD3 | L107: 18 | M107: 18 | N107: 7.00E+06 | O107: 0.03 | R107: sp|Q12905|ILF2_HUMAN | S107: ILF2 | T107: 15 | U107: 30 | V107: 3.40E+07 | W107: 0.12 | Z107: sp|P09960|LKHA4_HUMAN | AA107: LTA4H | AB107: 15 | AC107: 15 | AD107: 5.70E+06 | AE107: 0.05 | AH107: sp|O15230|LAMA5_HUMAN | AI107: LAMA5 | AJ107: 14 | AK107: 16 | AL107: 2.80E+06 | AM107: 0.03 | AP107: sp|P41250|GARS_HUMAN | AQ107: GARS | AR107: 14 | AS107: 19 | AT107: 3.50E+06 | AU107: 0.02 | AW107: sp|Q14974|IMB1_HUMAN | AX107: KPNB1 | AY107: Importin subunit beta-1 OS=Homo sapiens GN=KPNB1 PE=1 SV=2 | AZ107: 97.11 | BA107: 21 | BB107: 39 | BC107: 20 | BD107: 26 | BE107: 22 | BF107: 33 | BG107: 17 | BH107: 20 | BI107: 18 | BJ107: 21 | BK107: 18 | BL107: 21 | BM107: 39 | BN107: 5.90E+07 | BO107: 3.20E+07 | BP107: 3.70E+07 | BQ107: 1.10E+07 | BR107: 1.40E+07 | BS107: 1.10E+07 | BT107: 1.10E+07 | BU107: 5.4 | BV107: 2.9 | BW107: 3.4 | BX107: 1.0 | BY107: 1.3 | BZ107: 1.0
B108: sp|O43143|DHX15_HUMAN | C108: DHX15 | D108: 20 | E108: 24 | F108: 6.40E+06 | G108: 0.02 | J108: sp|P34931|HS71L_HUMAN | K108: HSPA1L | L108: 17 | M108: 86 | N108: 5.80E+08 | O108: 2.40 | R108: sp|P52209|6PGD_HUMAN | S108: PGD | T108: 15 | U108: 22 | V108: 2.80E+07 | W108: 0.10 | Z108: sp|P37837|TALDO_HUMAN | AA108: TALDO1 | AB108: 15 | AC108: 15 | AD108: 7.90E+06 | AE108: 0.07 | AH108: sp|Q16706|MA2A1_HUMAN | AI108: MAN2A1 | AJ108: 14 | AK108: 16 | AL108: 1.90E+06 | AM108: 0.02 | AP108: sp|P33908|MA1A1_HUMAN | AQ108: MAN1A1 | AR108: 14 | AS108: 18 | AT108: 2.90E+07 | AU108: 0.13 | AW108: sp|P41250|GARS_HUMAN | AX108: GARS | AY108: Glycine--tRNA ligase OS=Homo sapiens GN=GARS PE=1 SV=3 | AZ108: 83.11 | BA108: 15 | BB108: 17 | BC108: 20 | BD108: 24 | BE108: 12 | BF108: 27 | BG108: 13 | BH108: 14 | BI108: 14 | BJ108: 14 | BK108: 14 | BL108: 19 | BM108: 27 | BN108: 5.80E+06 | BO108: 2.00E+07 | BP108: 9.80E+06 | BQ108: 8.60E+06 | BR108: 9.10E+06 | BS108: 3.50E+06 | BT108: 3.50E+06 | BU108: 1.7 | BV108: 5.7 | BW108: 2.8 | BX108: 2.5 | BY108: 2.6 | BZ108: 1.0
B109: sp|P12814|ACTN1_HUMAN | C109: ACTN1 | D109: 20 | E109: 23 | F109: 2.80E+07 | G109: 0.09 | J109: sp|P04075|ALDOA_HUMAN | K109: ALDOA | L109: 17 | M109: 53 | N109: 3.20E+08 | O109: 1.33 | R109: sp|Q15262|PTPRK_HUMAN | S109: PTPRK | T109: 15 | U109: 21 | V109: 2.50E+07 | W109: 0.09 | Z109: sp|P07602|SAP_HUMAN | AA109: PSAP | AB109: 14 | AC109: 29 | AD109: 7.00E+07 | AE109: 0.64 | AH109: sp|P49588|SYAC_HUMAN | AI109: AARS | AJ109: 14 | AK109: 15 | AL109: 4.40E+06 | AM109: 0.05 | AP109: sp|Q9HCU4|CELR2_HUMAN | AQ109: CELSR2 | AR109: 14 | AS109: 17 | AT109: 2.70E+06 | AU109: 0.01 | AW109: sp|P45974|UBP5_HUMAN | AX109: USP5 | AY109: Ubiquitin carboxyl-terminal hydrolase 5 OS=Homo sapiens GN=USP5 PE=1 SV=2 | AZ109: 95.73 | BA109: 22 | BB109: 25 | BC109: 17 | BD109: 21 | BE109: 17 | BF109: 18 | BG109: 10 | BH109: 11 | BI109: 16 | BJ109: 19 | BK109: 15 | BL109: 18 | BM109: 25 | BN109: 1.40E+07 | BO109: 7.40E+06 | BP109: 5.10E+06 | BQ109: 9.20E+05 | BR109: 3.50E+06 | BS109: 3.00E+06 | BT109: 9.20E+05 | BU109: 15.2 | BV109: 8.0 | BW109: 5.5 | BX109: 1.0 | BY109: 3.8 | BZ109: 3.3
B110: sp|Q15029|U5S1_HUMAN | C110: EFTUD2 | D110: 20 | E110: 23 | F110: 7.30E+06 | G110: 0.02 | J110: sp|P00338|LDHA_HUMAN | K110: LDHA | L110: 17 | M110: 38 | N110: 2.00E+08 | O110: 0.82 | R110: sp|Q7KZF4|SND1_HUMAN | S110: SND1 | T110: 15 | U110: 20 | V110: 8.70E+06 | W110: 0.03 | Z110: sp|P06396|GELS_HUMAN | AA110: GSN | AB110: 14 | AC110: 21 | AD110: 9.50E+06 | AE110: 0.09 | AH110: sp|P35998|PRS7_HUMAN | AI110: PSMC2 | AJ110: 14 | AK110: 15 | AL110: 1.70E+06 | AM110: 0.02 | AP110: sp|P34931|HS71L_HUMAN | AQ110: HSPA1L | AR110: 13 | AS110: 76 | AT110: 2.40E+08 | AU110: 1.04 | AW110: sp|P10586|PTPRF_HUMAN | AX110: PTPRF | AY110: Receptor-type tyrosine-protein phosphatase F OS=Homo sapiens GN=PTPRF PE=1 SV=2 | AZ110: 212.74 | BA110: 17 | BB110: 19 | BC110: 13 | BD110: 14 | BE110: 19 | BF110: 28 | BG110: 14 | BH110: 19 | BI110: 8 | BJ110: 9 | BK110: 15 | BL110: 18 | BM110: 28 | BN110: 1.30E+07 | BO110: 5.60E+06 | BP110: 1.60E+07 | BQ110: 2.40E+06 | BR110: 8.90E+05 | BS110: 5.60E+06 | BT110: 8.90E+05 | BU110: 14.6 | BV110: 6.3 | BW110: 18.0 | BX110: 2.7 | BY110: 1.0 | BZ110: 6.3
B111: sp|P26358|DNMT1_HUMAN | C111: DNMT1 | D111: 20 | E111: 21 | F111: 6.80E+06 | G111: 0.02 | J111: sp|P31150|GDIA_HUMAN | K111: GDI1 | L111: 17 | M111: 29 | N111: 2.50E+07 | O111: 0.10 | R111: sp|O14980|XPO1_HUMAN | S111: XPO1 | T111: 15 | U111: 19 | V111: 8.40E+06 | W111: 0.03 | Z111: sp|Q9UHI8|ATS1_HUMAN | AA111: ADAMTS1 | AB111: 14 | AC111: 21 | AD111: 5.10E+06 | AE111: 0.05 | AH111: sp|O00231|PSD11_HUMAN | AI111: PSMD11 | AJ111: 14 | AK111: 14 | AL111: 1.90E+06 | AM111: 0.02 | AP111: sp|O75787|RENR_HUMAN | AQ111: ATP6AP2 | AR111: 13 | AS111: 48 | AT111: 1.50E+08 | AU111: 0.67 | AW111: sp|P35998|PRS7_HUMAN | AX111: PSMC2 | AY111: 26S protease regulatory subunit 7 OS=Homo sapiens GN=PSMC2 PE=1 SV=3 | AZ111: 48.6 | BA111: 21 | BB111: 24 | BC111: 20 | BD111: 26 | BE111: 11 | BF111: 14 | BG111: 19 | BH111: 20 | BI111: 14 | BJ111: 15 | BK111: 0 | BL111: 0 | BM111: 26 | BN111: 1.20E+07 | BO111: 9.40E+06 | BP111: 3.40E+06 | BQ111: 2.60E+06 | BR111: 1.70E+06 | BS111: NF | BT111: 1.70E+06 | BU111: 7.1 | BV111: 5.5 | BW111: 2.0 | BX111: 1.5 | BY111: 1.0 | BZ111: 0.0
B112: sp|P12081|SYHC_HUMAN | C112: HARS | D112: 20 | E112: 20 | F112: 2.20E+07 | G112: 0.07 | J112: sp|P33908|MA1A1_HUMAN | K112: MAN1A1 | L112: 17 | M112: 29 | N112: 3.00E+07 | O112: 0.12 | R112: sp|Q92598|HS105_HUMAN | S112: HSPH1 | T112: 15 | U112: 18 | V112: 8.70E+06 | W112: 0.03 | Z112: sp|P26641|EF1G_HUMAN | AA112: EEF1G | AB112: 14 | AC112: 21 | AD112: 1.20E+07 | AE112: 0.11 | AH112: sp|P55268|LAMB2_HUMAN | AI112: LAMB2 | AJ112: 14 | AK112: 14 | AL112: 1.50E+06 | AM112: 0.02 | AP112: sp|P12277|KCRB_HUMAN | AQ112: CKB | AR112: 13 | AS112: 37 | AT112: 5.10E+07 | AU112: 0.22 | AW112: sp|P13797|PLST_HUMAN | AX112: PLS3 | AY112: Plastin-3 OS=Homo sapiens GN=PLS3 PE=1 SV=4 | AZ112: 70.77 | BA112: 0 | BB112: 0 | BC112: 23 | BD112: 29 | BE112: 14 | BF112: 18 | BG112: 16 | BH112: 18 | BI112: 16 | BJ112: 18 | BK112: 11 | BL112: 14 | BM112: 29 | BN112: NF | BO112: 4.20E+07 | BP112: 1.20E+07 | BQ112: 8.20E+06 | BR112: 8.90E+06 | BS112: 1.10E+07 | BT112: 8.20E+06 | BU112: 0.0 | BV112: 5.1 | BW112: 1.5 | BX112: 1.0 | BY112: 1.1 | BZ112: 1.3
B113: sp|P04075|ALDOA_HUMAN | C113: ALDOA | D113: 19 | E113: 52 | F113: 2.30E+08 | G113: 0.73 | J113: sp|P45974|UBP5_HUMAN | K113: USP5 | L113: 17 | M113: 21 | N113: 7.40E+06 | O113: 0.03 | R113: sp|P01137|TGFB1_HUMAN | S113: TGFB1 | T113: 15 | U113: 18 | V113: 2.10E+07 | W113: 0.08 | Z113: sp|Q9BRK5|CAB45_HUMAN | AA113: SDF4 | AB113: 14 | AC113: 20 | AD113: 2.50E+07 | AE113: 0.23 | AH113: sp|P06576|ATPB_HUMAN | AI113: ATP5B | AJ113: 14 | AK113: 14 | AL113: 1.20E+06 | AM113: 0.01 | AP113: sp|P60174|TPIS_HUMAN | AQ113: TPI1 | AR113: 13 | AS113: 33 | AT113: 8.40E+07 | AU113: 0.37 | AW113: sp|P30101|PDIA3_HUMAN | AX113: PDIA3 | AY113: Protein disulfide-isomerase A3 OS=Homo sapiens GN=PDIA3 PE=1 SV=4 | AZ113: 56.75 | BA113: 23 | BB113: 27 | BC113: 24 | BD113: 29 | BE113: 3 | BF113: 4 | BG113: 2 | BH113: 3 | BI113: 18 | BJ113: 19 | BK113: 10 | BL113: 15 | BM113: 29 | BN113: 4.50E+07 | BO113: 3.50E+07 | BP113: 9.30E+05 | BQ113: 2.20E+05 | BR113: 5.20E+06 | BS113: 1.30E+07 | BT113: 2.20E+05 | BU113: 204.5 | BV113: 159.1 | BW113: 4.2 | BX113: 1.0 | BY113: 23.6 | BZ113: 59.1
B114: sp|P68371|TBB4B_HUMAN | C114: TUBB4B | D114: 19 | E114: 48 | F114: 1.60E+08 | G114: 0.50 | J114: sp|P69849|NOMO3_HUMAN | K114: NOMO3 | L114: 17 | M114: 20 | N114: 4.80E+06 | O114: 0.02 | R114: sp|Q13200|PSMD2_HUMAN | S114: PSMD2 | T114: 15 | U114: 16 | V114: 5.70E+06 | W114: 0.02 | Z114: sp|P10586|PTPRF_HUMAN | AA114: PTPRF | AB114: 14 | AC114: 19 | AD114: 2.40E+06 | AE114: 0.02 | AH114: sp|P41250|GARS_HUMAN | AI114: GARS | AJ114: 14 | AK114: 14 | AL114: 9.10E+06 | AM114: 0.09 | AP114: sp|O14773|TPP1_HUMAN | AQ114: TPP1 | AR114: 13 | AS114: 26 | AT114: 4.70E+07 | AU114: 0.20 | AW114: sp|Q9P2B2|FPRP_HUMAN | AX114: PTGFRN | AY114: Prostaglandin F2 receptor negative regulator OS=Homo sapiens GN=PTGFRN PE=1 SV=2 | AZ114: 98.49 | BA114: 19 | BB114: 20 | BC114: 9 | BD114: 9 | BE114: 17 | BF114: 19 | BG114: 7 | BH114: 7 | BI114: 8 | BJ114: 8 | BK114: 13 | BL114: 18 | BM114: 20 | BN114: 1.30E+07 | BO114: 4.10E+06 | BP114: 1.50E+07 | BQ114: 1.00E+06 | BR114: 2.30E+06 | BS114: 1.00E+07 | BT114: 1.00E+06 | BU114: 13.0 | BV114: 4.1 | BW114: 15.0 | BX114: 1.0 | BY114: 2.3 | BZ114: 10.0
B115: sp|P16870|CBPE_HUMAN | C115: CPE | D115: 19 | E115: 38 | F115: 1.30E+08 | G115: 0.42 | J115: sp|P31939|PUR9_HUMAN | K115: ATIC | L115: 17 | M115: 20 | N115: 1.20E+07 | O115: 0.05 | R115: sp|Q14152|EIF3A_HUMAN | S115: EIF3A | T115: 15 | U115: 16 | V115: 6.90E+06 | W115: 0.03 | Z115: sp|P19021|AMD_HUMAN | AA115: PAM | AB115: 14 | AC115: 18 | AD115: 5.50E+06 | AE115: 0.05 | AH115: sp|Q02790|FKBP4_HUMAN | AI115: FKBP4 | AJ115: 14 | AK115: 14 | AL115: 2.70E+06 | AM115: 0.03 | AP115: sp|Q99538|LGMN_HUMAN | AQ115: LGMN | AR115: 13 | AS115: 26 | AT115: 3.50E+07 | AU115: 0.15 | AW115: sp|Q15029|U5S1_HUMAN | AX115: EFTUD2 | AY115: 116 kDa U5 small nuclear ribonucleoprotein component OS=Homo sapiens GN=EFTUD2 PE=1 SV=1 | AZ115: 109.37 | BA115: 20 | BB115: 23 | BC115: 13 | BD115: 14 | BE115: 17 | BF115: 19 | BG115: 4 | BH115: 4 | BI115: 5 | BJ115: 5 | BK115: 10 | BL115: 11 | BM115: 23 | BN115: 7.30E+06 | BO115: 3.00E+06 | BP115: 5.50E+06 | BQ115: 3.50E+05 | BR115: 7.00E+05 | BS115: 2.20E+06 | BT115: 3.50E+05 | BU115: 20.9 | BV115: 8.6 | BW115: 15.7 | BX115: 1.0 | BY115: 2.0 | BZ115: 6.3
B116: sp|P06396|GELS_HUMAN | C116: GSN | D116: 19 | E116: 24 | F116: 2.50E+07 | G116: 0.08 | J116: sp|P17980|PRS6A_HUMAN | K116: PSMC3 | L116: 17 | M116: 20 | N116: 7.20E+06 | O116: 0.03 | R116: sp|P11586|C1TC_HUMAN | S116: MTHFD1 | T116: 15 | U116: 16 | V116: 5.10E+06 | W116: 0.02 | Z116: sp|P35237|SPB6_HUMAN | AA116: SERPINB6 | AB116: 14 | AC116: 16 | AD116: 2.60E+06 | AE116: 0.02 | AH116: sp|Q13200|PSMD2_HUMAN | AI116: PSMD2 | AJ116: 14 | AK116: 14 | AL116: 4.60E+06 | AM116: 0.05 | AP116: sp|P26038|MOES_HUMAN | AQ116: MSN | AR116: 13 | AS116: 26 | AT116: 1.40E+07 | AU116: 0.06 | AW116: sp|Q9UBT2|SAE2_HUMAN | AX116: UBA2 | AY116: SUMO-activating enzyme subunit 2 OS=Homo sapiens GN=UBA2 PE=1 SV=2 | AZ116: 71.18 | BA116: 17 | BB116: 20 | BC116: 10 | BD116: 10 | BE116: 14 | BF116: 16 | BG116: 6 | BH116: 6 | BI116: 12 | BJ116: 12 | BK116: 7 | BL116: 8 | BM116: 20 | BN116: 1.70E+07 | BO116: 6.40E+06 | BP116: 8.70E+06 | BQ116: 1.30E+06 | BR116: 3.90E+06 | BS116: 2.40E+06 | BT116: 1.30E+06 | BU116: 13.1 | BV116: 4.9 | BW116: 6.7 | BX116: 1.0 | BY116: 3.0 | BZ116: 1.8
B117: sp|P06576|ATPB_HUMAN | C117: ATP5B | D117: 19 | E117: 23 | F117: 1.40E+07 | G117: 0.04 | J117: sp|O00231|PSD11_HUMAN | K117: PSMD11 | L117: 17 | M117: 17 | N117: 8.40E+06 | O117: 0.03 | R117: sp|P11717|MPRI_HUMAN | S117: IGF2R | T117: 15 | U117: 16 | V117: 6.20E+06 | W117: 0.02 | Z117: sp|P69849|NOMO3_HUMAN | AA117: NOMO3 | AB117: 14 | AC117: 16 | AD117: 2.90E+06 | AE117: 0.03 | AH117: sp|P37837|TALDO_HUMAN | AI117: TALDO1 | AJ117: 14 | AK117: 14 | AL117: 1.10E+07 | AM117: 0.11 | AP117: sp|P15586|GNS_HUMAN | AQ117: GNS | AR117: 13 | AS117: 25 | AT117: 1.60E+08 | AU117: 0.69 | AW117: sp|Q93008|USP9X_HUMAN | AX117: USP9X | AY117: Probable ubiquitin carboxyl-terminal hydrolase FAF-X OS=Homo sapiens GN=USP9X PE=1 SV=3 | AZ117: 292.09 | BA117: 12 | BB117: 13 | BC117: 19 | BD117: 20 | BE117: 16 | BF117: 17 | BG117: 6 | BH117: 6 | BI117: 2 | BJ117: 3 | BK117: 10 | BL117: 11 | BM117: 20 | BN117: 1.90E+06 | BO117: 5.10E+06 | BP117: 4.20E+06 | BQ117: 3.90E+05 | BR117: 7.10E+04 | BS117: 2.30E+06 | BT117: 7.10E+04 | BU117: 26.8 | BV117: 71.8 | BW117: 59.2 | BX117: 5.5 | BY117: 1.0 | BZ117: 32.4
B118: sp|O15067|PUR4_HUMAN | C118: PFAS | D118: 19 | E118: 21 | F118: 3.00E+07 | G118: 0.10 | J118: sp|P07195|LDHB_HUMAN | K118: LDHB | L118: 16 | M118: 51 | N118: 5.00E+08 | O118: 2.06 | R118: sp|P12277|KCRB_HUMAN | S118: CKB | T118: 14 | U118: 56 | V118: 2.20E+08 | W118: 0.78 | Z118: sp|P30520|PURA2_HUMAN | AA118: ADSS | AB118: 14 | AC118: 16 | AD118: 3.30E+06 | AE118: 0.03 | AH118: sp|P01024|CO3_HUMAN | AI118: C3 | AJ118: 13 | AK118: 42 | AL118: 1.10E+08 | AM118: 1.14 | AP118: sp|P02649|APOE_HUMAN | AQ118: APOE | AR118: 13 | AS118: 23 | AT118: 4.80E+07 | AU118: 0.21 | AW118: sp|P46821|MAP1B_HUMAN | AX118: MAP1B | AY118: Microtubule-associated protein 1B OS=Homo sapiens GN=MAP1B PE=1 SV=2 | AZ118: 270.47 | BA118: 8 | BB118: 9 | BC118: 18 | BD118: 20 | BE118: 6 | BF118: 7 | BG118: 6 | BH118: 7 | BI118: 1 | BJ118: 1 | BK118: 4 | BL118: 4 | BM118: 20 | BN118: 6.80E+05 | BO118: 3.30E+06 | BP118: 1.00E+06 | BQ118: 3.70E+05 | BR118: 1.00E+05 | BS118: 3.20E+05 | BT118: 1.00E+05 | BU118: 6.8 | BV118: 33.0 | BW118: 10.0 | BX118: 3.7 | BY118: 1.0 | BZ118: 3.2
B119: sp|P06737|PYGL_HUMAN | C119: PYGL | D119: 19 | E119: 21 | F119: 8.10E+06 | G119: 0.03 | J119: sp|P10909|CLUS_HUMAN | K119: CLU | L119: 16 | M119: 47 | N119: 4.10E+08 | O119: 1.70 | R119: sp|P07195|LDHB_HUMAN | S119: LDHB | T119: 14 | U119: 32 | V119: 1.10E+08 | W119: 0.39 | Z119: sp|P10253|LYAG_HUMAN | AA119: GAA | AB119: 14 | AC119: 15 | AD119: 4.30E+06 | AE119: 0.04 | AH119: sp|P12277|KCRB_HUMAN | AI119: CKB | AJ119: 13 | AK119: 33 | AL119: 3.60E+07 | AM119: 0.37 | AP119: sp|P00338|LDHA_HUMAN | AQ119: LDHA | AR119: 13 | AS119: 23 | AT119: 3.20E+07 | AU119: 0.14 | AW119: sp|P11142|HSP7C_HUMAN | AX119: HSPA8 | AY119: Heat shock cognate 71 kDa protein OS=Homo sapiens GN=HSPA8 PE=1 SV=1 | AZ119: 70.85 | BA119: 18 | BB119: 34 | BC119: 23 | BD119: 53 | BE119: 18 | BF119: 65 | BG119: 18 | BH119: 34 | BI119: 19 | BJ119: 35 | BK119: 16 | BL119: 44 | BM119: 65 | BN119: 4.70E+07 | BO119: 1.20E+08 | BP119: 1.10E+08 | BQ119: 2.80E+07 | BR119: 2.40E+07 | BS119: 4.70E+07 | BT119: 2.40E+07 | BU119: 2.0 | BV119: 5.0 | BW119: 4.6 | BX119: 1.2 | BY119: 1.0 | BZ119: 2.0
B120: sp|Q9P2B2|FPRP_HUMAN | C120: PTGFRN | D120: 19 | E120: 20 | F120: 1.30E+07 | G120: 0.04 | J120: sp|P12277|KCRB_HUMAN | K120: CKB | L120: 16 | M120: 44 | N120: 1.80E+08 | O120: 0.74 | R120: sp|P08253|MMP2_HUMAN | S120: MMP2 | T120: 14 | U120: 32 | V120: 2.50E+07 | W120: 0.09 | Z120: sp|Q15393|SF3B3_HUMAN | AA120: SF3B3 | AB120: 14 | AC120: 15 | AD120: 2.30E+06 | AE120: 0.02 | AH120: sp|P60174|TPIS_HUMAN | AI120: TPI1 | AJ120: 13 | AK120: 24 | AL120: 4.10E+07 | AM120: 0.43 | AP120: sp|P16278|BGAL_HUMAN | AQ120: GLB1 | AR120: 13 | AS120: 22 | AT120: 9.50E+07 | AU120: 0.42 | AW120: sp|P07093|GDN_HUMAN | AX120: SERPINE2 | AY120: Glia-derived nexin OS=Homo sapiens GN=SERPINE2 PE=1 SV=1 | AZ120: 43.97 | BA120: 18 | BB120: 30 | BC120: 21 | BD120: 39 | BE120: 19 | BF120: 45 | BG120: 20 | BH120: 28 | BI120: 18 | BJ120: 23 | BK120: 13 | BL120: 20 | BM120: 45 | BN120: 6.40E+07 | BO120: 8.10E+07 | BP120: 8.10E+07 | BQ120: 2.10E+07 | BR120: 2.30E+07 | BS120: 2.70E+07 | BT120: 2.10E+07 | BU120: 3.0 | BV120: 3.9 | BW120: 3.9 | BX120: 1.0 | BY120: 1.1 | BZ120: 1.3
B121: sp|P35580|MYH10_HUMAN | C121: MYH10 | D121: 19 | E121: 19 | F121: 3.40E+06 | G121: 0.01 | J121: sp|O94985|CSTN1_HUMAN | K121: CLSTN1 | L121: 16 | M121: 44 | N121: 1.90E+08 | O121: 0.80 | R121: sp|Q9UHI8|ATS1_HUMAN | S121: ADAMTS1 | T121: 14 | U121: 28 | V121: 1.30E+07 | W121: 0.05 | Z121: sp|P50454|SERPH_HUMAN | AA121: SERPINH1 | AB121: 14 | AC121: 15 | AD121: 2.20E+06 | AE121: 0.02 | AH121: sp|P35556|FBN2_HUMAN | AI121: FBN2 | AJ121: 13 | AK121: 18 | AL121: 1.60E+07 | AM121: 0.17 | AP121: sp|P07093|GDN_HUMAN | AQ121: SERPINE2 | AR121: 13 | AS121: 20 | AT121: 2.70E+07 | AU121: 0.12 | AW121: sp|P16870|CBPE_HUMAN | AX121: CPE | AY121: Carboxypeptidase E OS=Homo sapiens GN=CPE PE=1 SV=1 | AZ121: 53.12 | BA121: 19 | BB121: 38 | BC121: 19 | BD121: 42 | BE121: 10 | BF121: 19 | BG121: 6 | BH121: 8 | BI121: 16 | BJ121: 25 | BK121: 16 | BL121: 29 | BM121: 42 | BN121: 1.30E+08 | BO121: 1.10E+08 | BP121: 1.30E+07 | BQ121: 1.00E+06 | BR121: 2.10E+07 | BS121: 8.60E+07 | BT121: 1.00E+06 | BU121: 130.0 | BV121: 110.0 | BW121: 13.0 | BX121: 1.0 | BY121: 21.0 | BZ121: 86.0
B122: sp|Q9Y230|RUVB2_HUMAN | C122: RUVBL2 | D122: 19 | E122: 19 | F122: 1.20E+07 | G122: 0.04 | J122: sp|P60174|TPIS_HUMAN | K122: TPI1 | L122: 16 | M122: 30 | N122: 1.40E+08 | O122: 0.56 | R122: sp|P07225|PROS_HUMAN | S122: PROS1 | T122: 14 | U122: 23 | V122: 4.30E+07 | W122: 0.15 | Z122: sp|Q9UBE0|SAE1_HUMAN | AA122: SAE1 | AB122: 14 | AC122: 14 | AD122: 2.70E+06 | AE122: 0.02 | AH122: sp|P20700|LMNB1_HUMAN | AI122: LMNB1 | AJ122: 13 | AK122: 18 | AL122: 1.30E+06 | AM122: 0.01 | AP122: sp|P00491|PNPH_HUMAN | AQ122: PNP | AR122: 13 | AS122: 19 | AT122: 6.70E+06 | AU122: 0.03 | AW122: sp|P48723|HSP13_HUMAN | AX122: HSPA13 | AY122: Heat shock 70 kDa protein 13 OS=Homo sapiens GN=HSPA13 PE=1 SV=1 | AZ122: 51.9 | BA122: 6 | BB122: 6 | BC122: 7 | BD122: 11 | BE122: 4 | BF122: 8 | BG122: 19 | BH122: 30 | BI122: 17 | BJ122: 32 | BK122: 18 | BL122: 37 | BM122: 37 | BN122: 1.30E+06 | BO122: 2.30E+06 | BP122: 1.80E+06 | BQ122: 8.40E+07 | BR122: 3.60E+07 | BS122: 1.20E+08 | BT122: 1.30E+06 | BU122: 1.0 | BV122: 1.8 | BW122: 1.4 | BX122: 64.6 | BY122: 27.7 | BZ122: 92.3
B123: sp|P10909|CLUS_HUMAN | C123: CLU | D123: 18 | E123: 54 | F123: 3.30E+08 | G123: 1.07 | J123: sp|Q8NBJ4|GOLM1_HUMAN | K123: GOLM1 | L123: 16 | M123: 29 | N123: 7.10E+07 | O123: 0.29 | R123: sp|P55287|CAD11_HUMAN | S123: CDH11 | T123: 14 | U123: 23 | V123: 8.60E+06 | W123: 0.03 | Z123: sp|P28482|MK01_HUMAN | AA123: MAPK1 | AB123: 14 | AC123: 14 | AD123: 2.00E+06 | AE123: 0.02 | AH123: sp|P02649|APOE_HUMAN | AI123: APOE | AJ123: 13 | AK123: 17 | AL123: 9.80E+06 | AM123: 0.10 | AP123: sp|P23396|RS3_HUMAN | AQ123: RPS3 | AR123: 13 | AS123: 19 | AT123: 2.20E+07 | AU123: 0.10 | AW123: sp|P22102|PUR2_HUMAN | AX123: GART | AY123: Trifunctional purine biosynthetic protein adenosine-3 OS=Homo sapiens GN=GART PE=1 SV=1 | AZ123: 107.7 | BA123: 22 | BB123: 29 | BC123: 19 | BD123: 26 | BE123: 13 | BF123: 21 | BG123: 13 | BH123: 19 | BI123: 13 | BJ123: 17 | BK123: 10 | BL123: 12 | BM123: 29 | BN123: 1.70E+07 | BO123: 3.10E+07 | BP123: 1.80E+07 | BQ123: 1.60E+06 | BR123: 2.00E+07 | BS123: 3.00E+06 | BT123: 1.60E+06 | BU123: 10.6 | BV123: 19.4 | BW123: 11.3 | BX123: 1.0 | BY123: 12.5 | BZ123: 1.9
B124: sp|P11142|HSP7C_HUMAN | C124: HSPA8 | D124: 18 | E124: 34 | F124: 4.70E+07 | G124: 0.15 | J124: sp|Q14240|IF4A2_HUMAN | K124: EIF4A2 | L124: 16 | M124: 26 | N124: 1.30E+08 | O124: 0.55 | R124: sp|O75643|U520_HUMAN | S124: SNRNP200 | T124: 14 | U124: 22 | V124: 5.50E+06 | W124: 0.02 | Z124: sp|P42765|THIM_HUMAN | AA124: ACAA2 | AB124: 14 | AC124: 14 | AD124: 1.70E+06 | AE124: 0.02 | AH124: sp|Q12905|ILF2_HUMAN | AI124: ILF2 | AJ124: 13 | AK124: 17 | AL124: 5.40E+06 | AM124: 0.06 | AP124: sp|Q9BTY2|FUCO2_HUMAN | AQ124: FUCA2 | AR124: 13 | AS124: 19 | AT124: 4.10E+07 | AU124: 0.18 | AW124: sp|P02545|LMNA_HUMAN | AX124: LMNA | AY124: Prelamin-A/C OS=Homo sapiens GN=LMNA PE=1 SV=1 | AZ124: 74.09 | BA124: 16 | BB124: 17 | BC124: 22 | BD124: 34 | BE124: 17 | BF124: 20 | BG124: 15 | BH124: 21 | BI124: 15 | BJ124: 16 | BK124: 7 | BL124: 9 | BM124: 34 | BN124: 9.40E+06 | BO124: 1.50E+07 | BP124: 6.80E+06 | BQ124: 4.20E+06 | BR124: 1.60E+06 | BS124: 2.50E+06 | BT124: 1.60E+06 | BU124: 5.9 | BV124: 9.4 | BW124: 4.3 | BX124: 2.6 | BY124: 1.0 | BZ124: 1.6
B125: sp|O43405|COCH_HUMAN | C125: COCH | D125: 18 | E125: 33 | F125: 4.60E+07 | G125: 0.15 | J125: sp|Q12905|ILF2_HUMAN | K125: ILF2 | L125: 16 | M125: 26 | N125: 2.00E+07 | O125: 0.08 | R125: sp|Q92820|GGH_HUMAN | S125: GGH | T125: 14 | U125: 22 | V125: 5.40E+07 | W125: 0.20 | Z125: sp|Q15008|PSMD6_HUMAN | AA125: PSMD6 | AB125: 14 | AC125: 14 | AD125: 4.80E+06 | AE125: 0.04 | AH125: sp|P22102|PUR2_HUMAN | AI125: GART | AJ125: 13 | AK125: 17 | AL125: 2.00E+07 | AM125: 0.21 | AP125: sp|Q9P2B2|FPRP_HUMAN | AQ125: PTGFRN | AR125: 13 | AS125: 18 | AT125: 1.00E+07 | AU125: 0.04 | AW125: sp|P12814|ACTN1_HUMAN | AX125: ACTN1 | AY125: Alpha-actinin-1 OS=Homo sapiens GN=ACTN1 PE=1 SV=2 | AZ125: 102.99 | BA125: 20 | BB125: 23 | BC125: 16 | BD125: 20 | BE125: 17 | BF125: 24 | BG125: 10 | BH125: 10 | BI125: 16 | BJ125: 16 | BK125: 15 | BL125: 22 | BM125: 24 | BN125: 2.80E+07 | BO125: 1.40E+07 | BP125: 1.50E+07 | BQ125: 1.70E+06 | BR125: 8.10E+06 | BS125: 6.40E+06 | BT125: 1.70E+06 | BU125: 16.5 | BV125: 8.2 | BW125: 8.8 | BX125: 1.0 | BY125: 4.8 | BZ125: 3.8
B126: sp|P07093|GDN_HUMAN | C126: SERPINE2 | D126: 18 | E126: 30 | F126: 6.40E+07 | G126: 0.21 | J126: sp|P49368|TCPG_HUMAN | K126: CCT3 | L126: 16 | M126: 24 | N126: 2.30E+07 | O126: 0.09 | R126: sp|Q13822|ENPP2_HUMAN | S126: ENPP2 | T126: 14 | U126: 20 | V126: 9.40E+06 | W126: 0.03 | Z126: sp|P38919|IF4A3_HUMAN | AA126: EIF4A3 | AB126: 14 | AC126: 14 | AD126: 3.90E+06 | AE126: 0.04 | AH126: sp|P09960|LKHA4_HUMAN | AI126: LTA4H | AJ126: 13 | AK126: 16 | AL126: 4.90E+06 | AM126: 0.05 | AP126: sp|O60568|PLOD3_HUMAN | AQ126: PLOD3 | AR126: 13 | AS126: 17 | AT126: 1.20E+07 | AU126: 0.05 | AW126: sp|P09960|LKHA4_HUMAN | AX126: LTA4H | AY126: Leukotriene A-4 hydrolase OS=Homo sapiens GN=LTA4H PE=1 SV=2 | AZ126: 69.24 | BA126: 0 | BB126: 0 | BC126: 23 | BD126: 24 | BE126: 13 | BF126: 17 | BG126: 15 | BH126: 15 | BI126: 13 | BJ126: 16 | BK126: 9 | BL126: 14 | BM126: 24 | BN126: NF | BO126: 2.50E+07 | BP126: 8.30E+06 | BQ126: 5.70E+06 | BR126: 4.90E+06 | BS126: 8.20E+06 | BT126: 4.90E+06 | BU126: 0.0 | BV126: 5.1 | BW126: 1.7 | BX126: 1.2 | BY126: 1.0 | BZ126: 1.7
B127: sp|Q14703|MBTP1_HUMAN | C127: MBTPS1 | D127: 18 | E127: 23 | F127: 2.00E+07 | G127: 0.06 | J127: sp|O00148|DX39A_HUMAN | K127: DDX39A | L127: 16 | M127: 22 | N127: 2.80E+07 | O127: 0.12 | R127: sp|Q92859|NEO1_HUMAN | S127: NEO1 | T127: 14 | U127: 20 | V127: 5.10E+06 | W127: 0.02 | Z127: sp|P12277|KCRB_HUMAN | AA127: CKB | AB127: 13 | AC127: 33 | AD127: 3.60E+07 | AE127: 0.33 | AH127: sp|P10253|LYAG_HUMAN | AI127: GAA | AJ127: 13 | AK127: 15 | AL127: 3.80E+06 | AM127: 0.04 | AP127: sp|Q86XX4|FRAS1_HUMAN | AQ127: FRAS1 | AR127: 13 | AS127: 15 | AT127: 2.50E+06 | AU127: 0.01 | AW127: sp|O00231|PSD11_HUMAN | AX127: PSMD11 | AY127: 26S proteasome non-ATPase regulatory subunit 11 OS=Homo sapiens GN=PSMD11 PE=1 SV=3 | AZ127: 47.43 | BA127: 15 | BB127: 15 | BC127: 17 | BD127: 17 | BE127: 11 | BF127: 12 | BG127: 21 | BH127: 21 | BI127: 14 | BJ127: 14 | BK127: 5 | BL127: 6 | BM127: 21 | BN127: 2.50E+07 | BO127: 8.40E+06 | BP127: 5.20E+06 | BQ127: 3.70E+06 | BR127: 1.90E+06 | BS127: 1.50E+06 | BT127: 1.50E+06 | BU127: 16.7 | BV127: 5.6 | BW127: 3.5 | BX127: 2.5 | BY127: 1.3 | BZ127: 1.0
B128: sp|O94813|SLIT2_HUMAN | C128: SLIT2 | D128: 18 | E128: 22 | F128: 9.60E+06 | G128: 0.03 | J128: sp|Q9Y617|SERC_HUMAN | K128: PSAT1 | L128: 16 | M128: 22 | N128: 2.50E+07 | O128: 0.10 | R128: sp|P13797|PLST_HUMAN | S128: PLS3 | T128: 14 | U128: 18 | V128: 1.20E+07 | W128: 0.04 | Z128: sp|Q99519|NEUR1_HUMAN | AA128: NEU1 | AB128: 13 | AC128: 24 | AD128: 1.80E+08 | AE128: 1.63 | AH128: sp|P13796|PLSL_HUMAN | AI128: LCP1 | AJ128: 13 | AK128: 14 | AL128: 3.70E+06 | AM128: 0.04 | AP128: sp|P50990|TCPQ_HUMAN | AQ128: CCT8 | AR128: 13 | AS128: 15 | AT128: 1.20E+07 | AU128: 0.05 | AW128: sp|P13796|PLSL_HUMAN | AX128: LCP1 | AY128: Plastin-2 OS=Homo sapiens GN=LCP1 PE=1 SV=6 | AZ128: 70.24 | BA128: 0 | BB128: 0 | BC128: 19 | BD128: 20 | BE128: 12 | BF128: 14 | BG128: 17 | BH128: 18 | BI128: 13 | BJ128: 14 | BK128: 11 | BL128: 11 | BM128: 20 | BN128: NF | BO128: 1.30E+07 | BP128: 3.80E+06 | BQ128: 5.00E+06 | BR128: 3.70E+06 | BS128: 6.80E+06 | BT128: 3.70E+06 | BU128: 0.0 | BV128: 3.5 | BW128: 1.0 | BX128: 1.4 | BY128: 1.0 | BZ128: 1.8
B129: sp|Q15262|PTPRK_HUMAN | C129: PTPRK | D129: 18 | E129: 20 | F129: 2.30E+07 | G129: 0.07 | J129: sp|P12814|ACTN1_HUMAN | K129: ACTN1 | L129: 16 | M129: 20 | N129: 1.40E+07 | O129: 0.06 | R129: sp|Q8WVQ1|CANT1_HUMAN | S129: CANT1 | T129: 14 | U129: 18 | V129: 2.20E+07 | W129: 0.08 | Z129: sp|P61978|HNRPK_HUMAN | AA129: HNRNPK | AB129: 13 | AC129: 23 | AD129: 4.60E+06 | AE129: 0.04 | AH129: sp|Q9NTK5|OLA1_HUMAN | AI129: OLA1 | AJ129: 13 | AK129: 14 | AL129: 3.00E+06 | AM129: 0.03 | AP129: sp|Q7KZF4|SND1_HUMAN | AQ129: SND1 | AR129: 13 | AS129: 14 | AT129: 5.00E+06 | AU129: 0.02 | AW129: sp|P33991|MCM4_HUMAN | AX129: MCM4 | AY129: DNA replication licensing factor MCM4 OS=Homo sapiens GN=MCM4 PE=1 SV=5 | AZ129: 96.5 | BA129: 23 | BB129: 26 | BC129: 11 | BD129: 12 | BE129: 10 | BF129: 13 | BG129: 5 | BH129: 6 | BI129: 6 | BJ129: 7 | BK129: 8 | BL129: 8 | BM129: 26 | BN129: 1.10E+07 | BO129: 2.50E+06 | BP129: 2.60E+06 | BQ129: 3.40E+05 | BR129: 5.10E+05 | BS129: 2.70E+06 | BT129: 3.40E+05 | BU129: 32.4 | BV129: 7.4 | BW129: 7.6 | BX129: 1.0 | BY129: 1.5 | BZ129: 7.9
B130: sp|P42285|SK2L2_HUMAN | C130: SKIV2L2 | D130: 18 | E130: 19 | F130: 6.20E+06 | G130: 0.02 | J130: sp|Q14697|GANAB_HUMAN | K130: GANAB | L130: 16 | M130: 19 | N130: 1.50E+07 | O130: 0.06 | R130: sp|Q9UBT2|SAE2_HUMAN | S130: UBA2 | T130: 14 | U130: 16 | V130: 8.70E+06 | W130: 0.03 | Z130: sp|Q13510|ASAH1_HUMAN | AA130: ASAH1 | AB130: 13 | AC130: 21 | AD130: 3.90E+06 | AE130: 0.04 | AH130: sp|Q9UQ80|PA2G4_HUMAN | AI130: PA2G4 | AJ130: 13 | AK130: 14 | AL130: 6.30E+06 | AM130: 0.07 | AP130: sp|Q8TDW7|FAT3_HUMAN | AQ130: FAT3 | AR130: 13 | AS130: 14 | AT130: 3.50E+06 | AU130: 0.02 | AW130: sp|P31948|STIP1_HUMAN | AX130: STIP1 | AY130: Stress-induced-phosphoprotein 1 OS=Homo sapiens GN=STIP1 PE=1 SV=1 | AZ130: 62.6 | BA130: 0 | BB130: 0 | BC130: 22 | BD130: 25 | BE130: 9 | BF130: 14 | BG130: 12 | BH130: 13 | BI130: 11 | BJ130: 13 | BK130: 5 | BL130: 7 | BM130: 25 | BN130: NF | BO130: 2.20E+07 | BP130: 4.10E+06 | BQ130: 3.80E+06 | BR130: 4.20E+06 | BS130: 4.00E+06 | BT130: 3.80E+06 | BU130: 0.0 | BV130: 5.8 | BW130: 1.1 | BX130: 1.0 | BY130: 1.1 | BZ130: 1.1
B131: sp|Q96QK1|VPS35_HUMAN | C131: VPS35 | D131: 18 | E131: 18 | F131: 1.60E+07 | G131: 0.05 | J131: sp|P23526|SAHH_HUMAN | K131: AHCY | L131: 16 | M131: 19 | N131: 2.90E+07 | O131: 0.12 | R131: sp|P78527|PRKDC_HUMAN | S131: PRKDC | T131: 14 | U131: 14 | V131: 2.50E+06 | W131: 0.01 | Z131: sp|P60842|IF4A1_HUMAN | AA131: EIF4A1 | AB131: 13 | AC131: 19 | AD131: 1.80E+07 | AE131: 0.17 | AH131: sp|P17987|TCPA_HUMAN | AI131: TCP1 | AJ131: 13 | AK131: 14 | AL131: 5.10E+06 | AM131: 0.05 | AP131: sp|Q05707|COEA1_HUMAN | AQ131: COL14A1 | AR131: 13 | AS131: 13 | AT131: 3.00E+06 | AU131: 0.01 | AW131: sp|P33176|KINH_HUMAN | AX131: KIF5B | AY131: Kinesin-1 heavy chain OS=Homo sapiens GN=KIF5B PE=1 SV=1 | AZ131: 109.62 | BA131: =IFERROR(VLOOKUP(AW131,B:F,3, FALSE),0) -> 17 | BB131: =IFERROR(VLOOKUP(AW131,B:F,4, FALSE),0) -> 18 | BC131: =IFERROR(VLOOKUP(AW131,J:N,3, FALSE),0) -> 11 | BD131: =IFERROR(VLOOKUP(AW131,J:N,4, FALSE),0) -> 12 | BE131: =IFERROR(VLOOKUP(AW131,R:V,3, FALSE),0) -> 13 | BF131: =IFERROR(VLOOKUP(AW131,R:V,4, FALSE),0) -> 15 | BG131: =IFERROR(VLOOKUP(AW131,Z:AD,3, FALSE),0) -> 1 | BH131: =IFERROR(VLOOKUP(AW131,Z:AD,4, FALSE),0) -> 1 | BI131: =IFERROR(VLOOKUP(AW131,AH:AL,3, FALSE),0) -> 8 | BJ131: =IFERROR(VLOOKUP(AW131,AH:AL,4, FALSE),0) -> 8 | BK131: =IFERROR(VLOOKUP(AW131,AP:AU,3, FALSE),0) -> 6 | BL131: =IFERROR(VLOOKUP(AW131,AP:AU,4, FALSE),0) -> 6 | BM131: =MAX(BA131:BL131) -> 18 | BN131: =IFERROR(VLOOKUP(AW131,B:F,5, FALSE),"NF") -> 6.60E+06 | BO131: =IFERROR(VLOOKUP(AW131,J:N,5, FALSE),"NF") -> 2.10E+06 | BP131: =IFERROR(VLOOKUP(AW131,R:V,5, FALSE),"NF") -> 3.20E+06 | BQ131: =IFERROR(VLOOKUP(AW131,Z:AD,5, FALSE),"NF") -> 5.50E+04 | BR131: =IFERROR(VLOOKUP(AW131,AH:AL,5, FALSE),"NF") -> 6.70E+05 | BS131: =IFERROR(VLOOKUP(AW131,AP:AU,5, FALSE),"NF") -> 1.20E+06 | BT131: =MIN(BN131:BS131) -> 5.50E+04 | BU131: =IFERROR(BN131/BT131,0) -> 120.0 | BV131: =IFERROR(BO131/BT131,0) -> 38.2 | BW131: =IFERROR(BP131/BT131,0) -> 58.2 | BX131: =IFERROR(BQ131/BT131,0) -> 1.0 | BY131: =IFERROR(BR131/BT131,0) -> 12.2 | BZ131: =IFERROR(BS131/BT131,0) -> 21.8
B132: sp|Q13618|CUL3_HUMAN | C132: CUL3 | D132: 18 | E132: 18 | F132: 3.80E+06 | G132: 0.01 | J132: sp|P30520|PURA2_HUMAN | K132: ADSS | L132: 16 | M132: 19 | N132: 1.00E+07 | O132: 0.04 | R132: sp|P60174|TPIS_HUMAN | S132: TPI1 | T132: 13 | U132: 41 | V132: 8.90E+07 | W132: 0.32 | Z132: sp|P22102|PUR2_HUMAN | AA132: GART | AB132: 13 | AC132: 19 | AD132: 1.60E+06 | AE132: 0.01 | AH132: sp|Q96KP4|CNDP2_HUMAN | AI132: CNDP2 | AJ132: 13 | AK132: 14 | AL132: 1.30E+06 | AM132: 0.01 | AP132: sp|P01024|CO3_HUMAN | AQ132: C3 | AR132: 12 | AS132: 40 | AT132: 2.10E+08 | AU132: 0.92 | AW132: sp|Q86UP2|KTN1_HUMAN | AX132: KTN1 | AY132: Kinectin OS=Homo sapiens GN=KTN1 PE=1 SV=1 | AZ132: 156.18 | BA132: 22 | BB132: 22 | BC132: 11 | BD132: 11 | BE132: 12 | BF132: 12 | BG132: 4 | BH132: 4 | BI132: 0 | BJ132: 0 | BK132: 1 | BL132: 1 | BM132: 22 | BN132: 5.70E+06 | BO132: 1.10E+06 | BP132: 2.30E+06 | BQ132: 1.40E+05 | BR132: NF | BS132: 3.20E+05 | BT132: 1.40E+05 | BU132: 40.7 | BV132: 7.9 | BW132: 16.4 | BX132: 1.0 | BY132: 0.0 | BZ132: 2.3
B133: sp|P49321|NASP_HUMAN | C133: NASP | D133: 17 | E133: 27 | F133: 2.10E+07 | G133: 0.07 | J133: sp|Q16881|TRXR1_HUMAN | K133: TXNRD1 | L133: 16 | M133: 18 | N133: 4.70E+06 | O133: 0.02 | R133: sp|P35556|FBN2_HUMAN | S133: FBN2 | T133: 13 | U133: 35 | V133: 1.10E+08 | W133: 0.40 | Z133: sp|Q12905|ILF2_HUMAN | AA133: ILF2 | AB133: 13 | AC133: 19 | AD133: 4.50E+06 | AE133: 0.04 | AH133: sp|P00505|AATM_HUMAN | AI133: GOT2 | AJ133: 13 | AK133: 14 | AL133: 6.10E+06 | AM133: 0.06 | AP133: sp|P23284|PPIB_HUMAN | AQ133: PPIB | AR133: 12 | AS133: 35 | AT133: 2.70E+08 | AU133: 1.17 | AW133: sp|P68371|TBB4B_HUMAN | AX133: TUBB4B | AY133: Tubulin beta-4B chain OS=Homo sapiens GN=TUBB4B PE=1 SV=1 | AZ133: 49.8 | BA133: 19 | BB133: 48 | BC133: 22 | BD133: 45 | BE133: 18 | BF133: 29 | BG133: 16 | BH133: 22 | BI133: 19 | BJ133: 38 | BK133: 18 | BL133: 26 | BM133: 48 | BN133: 1.60E+08 | BO133: 1.20E+08 | BP133: 2.90E+07 | BQ133: 4.40E+06 | BR133: 2.70E+07 | BS133: 2.10E+07 | BT133: 4.40E+06 | BU133: 36.4 | BV133: 27.3 | BW133: 6.6 | BX133: 1.0 | BY133: 6.1 | BZ133: 4.8
B134: sp|P25205|MCM3_HUMAN | C134: MCM3 | D134: 17 | E134: 21 | F134: 1.30E+07 | G134: 0.04 | J134: sp|P38646|GRP75_HUMAN | K134: HSPA9 | L134: 16 | M134: 18 | N134: 7.70E+06 | O134: 0.03 | R134: sp|P05067|A4_HUMAN | S134: APP | T134: 13 | U134: 30 | V134: 6.30E+07 | W134: 0.23 | Z134: sp|Q99985|SEM3C_HUMAN | AA134: SEMA3C | AB134: 13 | AC134: 19 | AD134: 5.60E+06 | AE134: 0.05 | AH134: sp|Q92598|HS105_HUMAN | AI134: HSPH1 | AJ134: 13 | AK134: 14 | AL134: 5.80E+06 | AM134: 0.06 | AP134: sp|Q8NHP8|PLBL2_HUMAN | AQ134: PLBD2 | AR134: 12 | AS134: 30 | AT134: 3.10E+07 | AU134: 0.14 | AW134: sp|P50395|GDIB_HUMAN | AX134: GDI2 | AY134: Rab GDP dissociation inhibitor beta OS=Homo sapiens GN=GDI2 PE=1 SV=2 | AZ134: 50.63 | BA134: 21 | BB134: 35 | BC134: 18 | BD134: 34 | BE134: 15 | BF134: 32 | BG134: 20 | BH134: 27 | BI134: 15 | BJ134: 17 | BK134: 9 | BL134: 16 | BM134: 35 | BN134: 5.90E+07 | BO134: 7.00E+07 | BP134: 3.70E+07 | BQ134: 1.70E+07 | BR134: 6.30E+06 | BS134: 5.70E+06 | BT134: 5.70E+06 | BU134: 10.4 | BV134: 12.3 | BW134: 6.5 | BX134: 3.0 | BY134: 1.1 | BZ134: 1.0
B135: sp|P55072|TERA_HUMAN | C135: VCP | D135: 17 | E135: 21 | F135: 1.20E+07 | G135: 0.04 | J135: sp|P38919|IF4A3_HUMAN | K135: EIF4A3 | L135: 16 | M135: 17 | N135: 1.00E+07 | O135: 0.04 | R135: sp|Q9BRK5|CAB45_HUMAN | S135: SDF4 | T135: 13 | U135: 28 | V135: 3.30E+07 | W135: 0.12 | Z135: sp|Q14126|DSG2_HUMAN | AA135: DSG2 | AB135: 13 | AC135: 18 | AD135: 9.60E+06 | AE135: 0.09 | AH135: sp|P50991|TCPD_HUMAN | AI135: CCT4 | AJ135: 13 | AK135: 13 | AL135: 2.70E+06 | AM135: 0.03 | AP135: sp|Q92520|FAM3C_HUMAN | AQ135: FAM3C | AR135: 12 | AS135: 25 | AT135: 6.30E+07 | AU135: 0.27 | AW135: sp|P31150|GDIA_HUMAN | AX135: GDI1 | AY135: Rab GDP dissociation inhibitor alpha OS=Homo sapiens GN=GDI1 PE=1 SV=2 | AZ135: 50.55 | BA135: 21 | BB135: 25 | BC135: 17 | BD135: 29 | BE135: 7 | BF135: 11 | BG135: 11 | BH135: 14 | BI135: 18 | BJ135: 19 | BK135: 9 | BL135: 11 | BM135: 29 | BN135: 3.10E+07 | BO135: 2.50E+07 | BP135: 7.30E+06 | BQ135: 5.30E+06 | BR135: 4.10E+06 | BS135: 8.10E+06 | BT135: 4.10E+06 | BU135: 7.6 | BV135: 6.1 | BW135: 1.8 | BX135: 1.3 | BY135: 1.0 | BZ135: 2.0
B136: sp|P21399|ACOC_HUMAN | C136: ACO1 | D136: 17 | E136: 21 | F136: 7.40E+06 | G136: 0.02 | J136: sp|P50454|SERPH_HUMAN | K136: SERPINH1 | L136: 16 | M136: 17 | N136: 8.90E+06 | O136: 0.04 | R136: sp|Q99574|NEUS_HUMAN | S136: SERPINI1 | T136: 13 | U136: 22 | V136: 1.90E+07 | W136: 0.07 | Z136: sp|O60568|PLOD3_HUMAN | AA136: PLOD3 | AB136: 13 | AC136: 17 | AD136: 4.50E+06 | AE136: 0.04 | AH136: sp|P55072|TERA_HUMAN | AI136: VCP | AJ136: 13 | AK136: 13 | AL136: 2.40E+06 | AM136: 0.03 | AP136: sp|P08253|MMP2_HUMAN | AQ136: MMP2 | AR136: 12 | AS136: 25 | AT136: 1.30E+07 | AU136: 0.06 | AW136: sp|Q13822|ENPP2_HUMAN | AX136: ENPP2 | AY136: Ectonucleotide pyrophosphatase/phosphodiesterase family member 2 OS=Homo sapiens GN=ENPP2 PE=1 SV=3 | AZ136: 98.93 | BA136: 14 | BB136: 17 | BC136: 11 | BD136: 14 | BE136: 14 | BF136: 20 | BG136: 11 | BH136: 15 | BI136: 12 | BJ136: 14 | BK136: 15 | BL136: 19 | BM136: 20 | BN136: 1.10E+07 | BO136: 5.40E+06 | BP136: 9.40E+06 | BQ136: 3.10E+06 | BR136: 4.70E+06 | BS136: 1.30E+07 | BT136: 3.10E+06 | BU136: 3.5 | BV136: 1.7 | BW136: 3.0 | BX136: 1.0 | BY136: 1.5 | BZ136: 4.2
B137: sp|P11216|PYGB_HUMAN | C137: PYGB | D137: 17 | E137: 20 | F137: 1.00E+07 | G137: 0.03 | J137: sp|P11586|C1TC_HUMAN | K137: MTHFD1 | L137: 16 | M137: 17 | N137: 5.40E+06 | O137: 0.02 | R137: sp|P22102|PUR2_HUMAN | S137: GART | T137: 13 | U137: 21 | V137: 1.80E+07 | W137: 0.07 | Z137: sp|P42785|PCP_HUMAN | AA137: PRCP | AB137: 13 | AC137: 17 | AD137: 2.00E+07 | AE137: 0.19 | AH137: sp|P48643|TCPE_HUMAN | AI137: CCT5 | AJ137: 13 | AK137: 13 | AL137: 3.70E+06 | AM137: 0.04 | AP137: sp|P68104|EF1A1_HUMAN | AQ137: EEF1A1 | AR137: 12 | AS137: 23 | AT137: 5.10E+07 | AU137: 0.23 | AW137: sp|P48643|TCPE_HUMAN | AX137: CCT5 | AY137: T-complex protein 1 subunit epsilon OS=Homo sapiens GN=CCT5 PE=1 SV=1 | AZ137: 59.63 | BA137: 16 | BB137: 18 | BC137: 20 | BD137: 26 | BE137: 10 | BF137: 11 | BG137: 15 | BH137: 15 | BI137: 13 | BJ137: 13 | BK137: 11 | BL137: 13 | BM137: 26 | BN137: 7.10E+06 | BO137: 2.60E+07 | BP137: 2.20E+06 | BQ137: 3.50E+06 | BR137: 3.70E+06 | BS137: 3.10E+06 | BT137: 2.20E+06 | BU137: 3.2 | BV137: 11.8 | BW137: 1.0 | BX137: 1.6 | BY137: 1.7 | BZ137: 1.4
B138: sp|Q02809|PLOD1_HUMAN | C138: PLOD1 | D138: 17 | E138: 20 | F138: 1.00E+07 | G138: 0.03 | J138: sp|Q9Y230|RUVB2_HUMAN | K138: RUVBL2 | L138: 16 | M138: 16 | N138: 8.40E+06 | O138: 0.03 | R138: sp|P17174|AATC_HUMAN | S138: GOT1 | T138: 13 | U138: 20 | V138: 1.70E+07 | W138: 0.06 | Z138: sp|O15372|EIF3H_HUMAN | AA138: EIF3H | AB138: 13 | AC138: 15 | AD138: 2.20E+06 | AE138: 0.02 | AH138: sp|P42765|THIM_HUMAN | AI138: ACAA2 | AJ138: 13 | AK138: 13 | AL138: 3.30E+06 | AM138: 0.03 | AP138: sp|P06744|G6PI_HUMAN | AQ138: GPI | AR138: 12 | AS138: 21 | AT138: 2.20E+07 | AU138: 0.10 | AW138: sp|Q15459|SF3A1_HUMAN | AX138: SF3A1 | AY138: Splicing factor 3A subunit 1 OS=Homo sapiens GN=SF3A1 PE=1 SV=1 | AZ138: 88.83 | BA138: 21 | BB138: 22 | BC138: 15 | BD138: 15 | BE138: 12 | BF138: 18 | BG138: 7 | BH138: 7 | BI138: 9 | BJ138: 10 | BK138: 11 | BL138: 13 | BM138: 22 | BN138: 8.50E+06 | BO138: 5.30E+06 | BP138: 4.60E+06 | BQ138: 2.10E+06 | BR138: 1.40E+06 | BS138: 3.30E+06 | BT138: 1.40E+06 | BU138: 6.1 | BV138: 3.8 | BW138: 3.3 | BX138: 1.5 | BY138: 1.0 | BZ138: 2.4
B139: sp|Q9UBT2|SAE2_HUMAN | C139: UBA2 | D139: 17 | E139: 20 | F139: 1.70E+07 | G139: 0.06 | J139: sp|Q16706|MA2A1_HUMAN | K139: MAN2A1 | L139: 16 | M139: 16 | N139: 2.80E+06 | O139: 0.01 | R139: sp|Q99460|PSMD1_HUMAN | S139: PSMD1 | T139: 13 | U139: 19 | V139: 4.90E+06 | W139: 0.02 | Z139: sp|P00505|AATM_HUMAN | AA139: GOT2 | AB139: 13 | AC139: 15 | AD139: 6.00E+06 | AE139: 0.05 | AH139: sp|O00462|MANBA_HUMAN | AI139: MANBA | AJ139: 13 | AK139: 13 | AL139: 3.70E+06 | AM139: 0.04 | AP139: sp|P22061|PIMT_HUMAN | AQ139: PCMT1 | AR139: 12 | AS139: 21 | AT139: 1.90E+07 | AU139: 0.08 | AW139: sp|Q99460|PSMD1_HUMAN | AX139: PSMD1 | AY139: 26S proteasome non-ATPase regulatory subunit 1 OS=Homo sapiens GN=PSMD1 PE=1 SV=2 | AZ139: 105.77 | BA139: 21 | BB139: 24 | BC139: 14 | BD139: 15 | BE139: 13 | BF139: 19 | BG139: 8 | BH139: 9 | BI139: 6 | BJ139: 7 | BK139: 8 | BL139: 10 | BM139: 24 | BN139: 1.10E+07 | BO139: 4.60E+06 | BP139: 4.90E+06 | BQ139: 1.20E+06 | BR139: 6.00E+05 | BS139: 1.80E+06 | BT139: 6.00E+05 | BU139: 18.3 | BV139: 7.7 | BW139: 8.2 | BX139: 2.0 | BY139: 1.0 | BZ139: 3.0
B140: sp|P10586|PTPRF_HUMAN | C140: PTPRF | D140: 17 | E140: 19 | F140: 1.30E+07 | G140: 0.04 | J140: sp|P68104|EF1A1_HUMAN | K140: EEF1A1 | L140: 15 | M140: 48 | N140: 2.60E+08 | O140: 1.06 | R140: sp|P06576|ATPB_HUMAN | S140: ATP5B | T140: 13 | U140: 17 | V140: 3.20E+06 | W140: 0.01 | Z140: sp|Q13263|TIF1B_HUMAN | AA140: TRIM28 | AB140: 13 | AC140: 14 | AD140: 4.30E+06 | AE140: 0.04 | AH140: sp|Q8WVQ1|CANT1_HUMAN | AI140: CANT1 | AJ140: 13 | AK140: 13 | AL140: 3.80E+06 | AM140: 0.04 | AP140: sp|Q99497|PARK7_HUMAN | AQ140: PARK7 | AR140: 12 | AS140: 21 | AT140: 4.00E+07 | AU140: 0.17 | AW140: sp|Q10567|AP1B1_HUMAN | AX140: AP1B1 | AY140: AP-1 complex subunit beta-1 OS=Homo sapiens GN=AP1B1 PE=1 SV=2 | AZ140: 104.57 | BA140: 21 | BB140: 23 | BC140: 12 | BD140: 12 | BE140: 12 | BF140: 17 | BG140: 5 | BH140: 5 | BI140: 9 | BJ140: 9 | BK140: 6 | BL140: 6 | BM140: 23 | BN140: 1.10E+07 | BO140: 7.70E+06 | BP140: 6.70E+06 | BQ140: 6.40E+05 | BR140: 1.50E+06 | BS140: 1.10E+06 | BT140: 6.40E+05 | BU140: 17.2 | BV140: 12.0 | BW140: 10.5 | BX140: 1.0 | BY140: 2.3 | BZ140: 1.7
B141: sp|Q16658|FSCN1_HUMAN | C141: FSCN1 | D141: 17 | E141: 19 | F141: 3.00E+07 | G141: 0.10 | J141: sp|P62736|ACTA_HUMAN | K141: ACTA2 | L141: 15 | M141: 40 | N141: 5.50E+08 | O141: 2.24 | R141: sp|P09960|LKHA4_HUMAN | S141: LTA4H | T141: 13 | U141: 17 | V141: 8.30E+06 | W141: 0.03 | Z141: sp|P41250|GARS_HUMAN | AA141: GARS | AB141: 13 | AC141: 14 | AD141: 8.60E+06 | AE141: 0.08 | AH141: sp|P07602|SAP_HUMAN | AI141: PSAP | AJ141: 12 | AK141: 26 | AL141: 3.40E+07 | AM141: 0.36 | AP141: sp|Q9BRK5|CAB45_HUMAN | AQ141: SDF4 | AR141: 12 | AS141: 19 | AT141: 2.10E+07 | AU141: 0.09 | AW141: sp|P53621|COPA_HUMAN | AX141: COPA | AY141: Coatomer subunit alpha OS=Homo sapiens GN=COPA PE=1 SV=2 | AZ141: 138.26 | BA141: 23 | BB141: 27 | BC141: 9 | BD141: 11 | BE141: 13 | BF141: 15 | BG141: 7 | BH141: 9 | BI141: 4 | BJ141: 6 | BK141: 2 | BL141: 2 | BM141: 27 | BN141: 1.10E+07 | BO141: 2.60E+06 | BP141: 5.40E+06 | BQ141: 5.20E+05 | BR141: 3.20E+05 | BS141: 1.40E+05 | BT141: 1.40E+05 | BU141: 78.6 | BV141: 18.6 | BW141: 38.6 | BX141: 3.7 | BY141: 2.3 | BZ141: 1.0
B142: sp|P33176|KINH_HUMAN | C142: KIF5B | D142: 17 | E142: 18 | F142: 6.60E+06 | G142: 0.02 | J142: sp|P40227|TCPZ_HUMAN | K142: CCT6A | L142: 15 | M142: 24 | N142: 2.50E+07 | O142: 0.10 | R142: sp|Q9UQ80|PA2G4_HUMAN | S142: PA2G4 | T142: 13 | U142: 17 | V142: 2.10E+07 | W142: 0.08 | Z142: sp|O00410|IPO5_HUMAN | AA142: IPO5 | AB142: 13 | AC142: 14 | AD142: 2.20E+06 | AE142: 0.02 | AH142: sp|P00491|PNPH_HUMAN | AI142: PNP | AJ142: 12 | AK142: 23 | AL142: 2.40E+06 | AM142: 0.02 | AP142: sp|P49321|NASP_HUMAN | AQ142: NASP | AR142: 12 | AS142: 19 | AT142: 8.00E+06 | AU142: 0.04 | AW142: sp|Q15075|EEA1_HUMAN | AX142: EEA1 | AY142: Early endosome antigen 1 OS=Homo sapiens GN=EEA1 PE=1 SV=2 | AZ142: 162.37 | BA142: 22 | BB142: 22 | BC142: 8 | BD142: 8 | BE142: 3 | BF142: 3 | BG142: 1 | BH142: 1 | BI142: 0 | BJ142: 0 | BK142: 0 | BL142: 0 | BM142: 22 | BN142: 6.10E+06 | BO142: 1.40E+06 | BP142: 5.10E+05 | BQ142: 6.50E+04 | BR142: NF | BS142: NF | BT142: 6.50E+04 | BU142: 93.8 | BV142: 21.5 | BW142: 7.8 | BX142: 1.0 | BY142: 0.0 | BZ142: 0.0
B143: sp|P07814|SYEP_HUMAN | C143: EPRS | D143: 17 | E143: 18 | F143: 7.10E+06 | G143: 0.02 | J143: sp|Q9UHI8|ATS1_HUMAN | K143: ADAMTS1 | L143: 15 | M143: 23 | N143: 8.30E+06 | O143: 0.03 | R143: sp|Q9NYU2|UGGG1_HUMAN | S143: UGGT1 | T143: 13 | U143: 16 | V143: 2.90E+06 | W143: 0.01 | Z143: sp|O76003|GLRX3_HUMAN | AA143: GLRX3 | AB143: 13 | AC143: 14 | AD143: 4.20E+06 | AE143: 0.04 | AH143: sp|O75787|RENR_HUMAN | AI143: ATP6AP2 | AJ143: 12 | AK143: 20 | AL143: 2.40E+07 | AM143: 0.25 | AP143: sp|P55287|CAD11_HUMAN | AQ143: CDH11 | AR143: 12 | AS143: 18 | AT143: 7.20E+06 | AU143: 0.03 | AW143: sp|Q9BQE3|TBA1C_HUMAN | AX143: TUBA1C | AY143: Tubulin alpha-1C chain OS=Homo sapiens GN=TUBA1C PE=1 SV=1 | AZ143: 49.86 | BA143: 21 | BB143: 69 | BC143: 18 | BD143: 66 | BE143: 15 | BF143: 32 | BG143: 17 | BH143: 34 | BI143: 19 | BJ143: 37 | BK143: 16 | BL143: 27 | BM143: 69 | BN143: 2.80E+08 | BO143: 2.10E+08 | BP143: 5.50E+07 | BQ143: 2.30E+07 | BR143: 5.00E+07 | BS143: 3.30E+07 | BT143: 2.30E+07 | BU143: 12.2 | BV143: 9.1 | BW143: 2.4 | BX143: 1.0 | BY143: 2.2 | BZ143: 1.4
B144: sp|P53618|COPB_HUMAN | C144: COPB1 | D144: 17 | E144: 18 | F144: 9.00E+06 | G144: 0.03 | J144: sp|P25787|PSA2_HUMAN | K144: PSMA2 | L144: 15 | M144: 23 | N144: 1.80E+07 | O144: 0.07 | R144: sp|Q6V0I7|FAT4_HUMAN | S144: FAT4 | T144: 13 | U144: 16 | V144: 3.20E+06 | W144: 0.01 | Z144: sp|P60228|EIF3E_HUMAN | AA144: EIF3E | AB144: 13 | AC144: 14 | AD144: 2.80E+06 | AE144: 0.03 | AH144: sp|Q06830|PRDX1_HUMAN | AI144: PRDX1 | AJ144: 12 | AK144: 20 | AL144: 9.00E+07 | AM144: 0.93 | AP144: sp|Q13263|TIF1B_HUMAN | AQ144: TRIM28 | AR144: 12 | AS144: 17 | AT144: 1.30E+07 | AU144: 0.06 | AW144: sp|Q92820|GGH_HUMAN | AX144: GGH | AY144: Gamma-glutamyl hydrolase OS=Homo sapiens GN=GGH PE=1 SV=2 | AZ144: 35.94 | BA144: 13 | BB144: 19 | BC144: 15 | BD144: 22 | BE144: 14 | BF144: 22 | BG144: 18 | BH144: 60 | BI144: 19 | BJ144: 45 | BK144: 14 | BL144: 36 | BM144: 60 | BN144: 4.30E+07 | BO144: 4.40E+07 | BP144: 5.40E+07 | BQ144: 1.70E+08 | BR144: 1.40E+08 | BS144: 1.60E+08 | BT144: 4.30E+07 | BU144: 1.0 | BV144: 1.0 | BW144: 1.3 | BX144: 4.0 | BY144: 3.3 | BZ144: 3.7
B145: sp|P55884|EIF3B_HUMAN | C145: EIF3B | D145: 17 | E145: 18 | F145: 1.20E+07 | G145: 0.04 | J145: sp|Q92820|GGH_HUMAN | K145: GGH | L145: 15 | M145: 22 | N145: 4.40E+07 | O145: 0.18 | R145: sp|P33176|KINH_HUMAN | S145: KIF5B | T145: 13 | U145: 15 | V145: 3.20E+06 | W145: 0.01 | Z145: sp|Q96QK1|VPS35_HUMAN | AA145: VPS35 | AB145: 13 | AC145: 13 | AD145: 2.30E+06 | AE145: 0.02 | AH145: sp|P00338|LDHA_HUMAN | AI145: LDHA | AJ145: 12 | AK145: 18 | AL145: 2.20E+07 | AM145: 0.23 | AP145: sp|Q9ULB5|CADH7_HUMAN | AQ145: CDH7 | AR145: 12 | AS145: 15 | AT145: 6.20E+06 | AU145: 0.03 | AW145: sp|P07996|TSP1_HUMAN | AX145: THBS1 | AY145: Thrombospondin-1 OS=Homo sapiens GN=THBS1 PE=1 SV=2 | AZ145: 129.3 | BA145: 21 | BB145: 32 | BC145: 20 | BD145: 33 | BE145: 17 | BF145: 34 | BG145: 16 | BH145: 22 | BI145: 18 | BJ145: 28 | BK145: 16 | BL145: 40 | BM145: 40 | BN145: 4.10E+07 | BO145: 5.40E+07 | BP145: 3.70E+07 | BQ145: 5.90E+06 | BR145: 1.90E+07 | BS145: 8.90E+07 | BT145: 5.90E+06 | BU145: 6.9 | BV145: 9.2 | BW145: 6.3 | BX145: 1.0 | BY145: 3.2 | BZ145: 15.1
B146: sp|Q92859|NEO1_HUMAN | C146: NEO1 | D146: 17 | E146: 18 | F146: 7.80E+06 | G146: 0.03 | J146: sp|P25786|PSA1_HUMAN | K146: PSMA1 | L146: 15 | M146: 22 | N146: 1.70E+07 | O146: 0.07 | R146: sp|P53621|COPA_HUMAN | S146: COPA | T146: 13 | U146: 15 | V146: 5.40E+06 | W146: 0.02 | Z146: sp|P26639|SYTC_HUMAN | AA146: TARS | AB146: 13 | AC146: 13 | AD146: 1.10E+07 | AE146: 0.10 | AH146: sp|P06396|GELS_HUMAN | AI146: GSN | AJ146: 12 | AK146: 18 | AL146: 1.70E+07 | AM146: 0.17 | AP146: sp|Q9Y5B9|SP16H_HUMAN | AQ146: SUPT16H | AR146: 12 | AS146: 14 | AT146: 3.80E+06 | AU146: 0.02 | AW146: sp|P08253|MMP2_HUMAN | AX146: MMP2 | AY146: 72 kDa type IV collagenase OS=Homo sapiens GN=MMP2 PE=1 SV=2 | AZ146: 73.83 | BA146: 16 | BB146: 17 | BC146: 15 | BD146: 21 | BE146: 14 | BF146: 32 | BG146: 15 | BH146: 18 | BI146: 12 | BJ146: 13 | BK146: 12 | BL146: 25 | BM146: 32 | BN146: 7.80E+06 | BO146: 1.60E+07 | BP146: 2.50E+07 | BQ146: 4.70E+06 | BR146: 3.70E+06 | BS146: 1.30E+07 | BT146: 3.70E+06 | BU146: 2.1 | BV146: 4.3 | BW146: 6.8 | BX146: 1.3 | BY146: 1.0 | BZ146: 3.5
B147: sp|P43246|MSH2_HUMAN | C147: MSH2 | D147: 17 | E147: 17 | F147: 3.40E+06 | G147: 0.01 | J147: sp|P08253|MMP2_HUMAN | K147: MMP2 | L147: 15 | M147: 21 | N147: 1.60E+07 | O147: 0.07 | R147: sp|Q08211|DHX9_HUMAN | S147: DHX9 | T147: 13 | U147: 14 | V147: 3.60E+06 | W147: 0.01 | Z147: sp|P62736|ACTA_HUMAN | AA147: ACTA2 | AB147: 12 | AC147: 40 | AD147: 2.80E+08 | AE147: 2.57 | AH147: sp|Q92520|FAM3C_HUMAN | AI147: FAM3C | AJ147: 12 | AK147: 17 | AL147: 3.10E+07 | AM147: 0.33 | AP147: sp|P60842|IF4A1_HUMAN | AQ147: EIF4A1 | AR147: 12 | AS147: 13 | AT147: 1.10E+07 | AU147: 0.05 | AW147: sp|P17980|PRS6A_HUMAN | AX147: PSMC3 | AY147: 26S protease regulatory subunit 6A OS=Homo sapiens GN=PSMC3 PE=1 SV=3 | AZ147: 49.17 | BA147: 14 | BB147: 18 | BC147: 17 | BD147: 20 | BE147: 10 | BF147: 14 | BG147: 18 | BH147: 22 | BI147: 11 | BJ147: 13 | BK147: 3 | BL147: 6 | BM147: 22 | BN147: 9.20E+06 | BO147: 7.20E+06 | BP147: 6.10E+06 | BQ147: 2.80E+06 | BR147: 1.70E+06 | BS147: 6.70E+05 | BT147: 6.70E+05 | BU147: 13.7 | BV147: 10.7 | BW147: 9.1 | BX147: 4.2 | BY147: 2.5 | BZ147: 1.0
B148: sp|Q7L576|CYFP1_HUMAN | C148: CYFIP1 | D148: 17 | E148: 17 | F148: 2.30E+06 | G148: 0.01 | J148: sp|Q96KP4|CNDP2_HUMAN | K148: CNDP2 | L148: 15 | M148: 21 | N148: 1.00E+07 | O148: 0.04 | R148: sp|P34931|HS71L_HUMAN | S148: HSPA1L | T148: 12 | U148: 111 | V148: 3.00E+08 | W148: 1.09 | Z148: sp|P18669|PGAM1_HUMAN | AA148: PGAM1 | AB148: 12 | AC148: 32 | AD148: 2.20E+07 | AE148: 0.20 | AH148: sp|P33908|MA1A1_HUMAN | AI148: MAN1A1 | AJ148: 12 | AK148: 16 | AL148: 7.70E+06 | AM148: 0.08 | AP148: sp|Q14703|MBTP1_HUMAN | AQ148: MBTPS1 | AR148: 12 | AS148: 13 | AT148: 6.00E+06 | AU148: 0.03 | AW148: sp|P26639|SYTC_HUMAN | AX148: TARS | AY148: Threonine--tRNA ligase, cytoplasmic OS=Homo sapiens GN=TARS PE=1 SV=3 | AZ148: 83.38 | BA148: 22 | BB148: 23 | BC148: 13 | BD148: 13 | BE148: 17 | BF148: 21 | BG148: 13 | BH148: 13 | BI148: 8 | BJ148: 8 | BK148: 11 | BL148: 14 | BM148: 23 | BN148: 3.40E+07 | BO148: 1.70E+07 | BP148: 1.50E+07 | BQ148: 1.10E+07 | BR148: 5.60E+06 | BS148: 6.20E+06 | BT148: 5.60E+06 | BU148: 6.1 | BV148: 3.0 | BW148: 2.7 | BX148: 2.0 | BY148: 1.0 | BZ148: 1.1
B149: sp|Q5VYK3|ECM29_HUMAN | C149: ECM29 | D149: 17 | E149: 17 | F149: 3.80E+06 | G149: 0.01 | J149: sp|P62195|PRS8_HUMAN | K149: PSMC5 | L149: 15 | M149: 19 | N149: 5.60E+06 | O149: 0.02 | R149: sp|P23284|PPIB_HUMAN | S149: PPIB | T149: 12 | U149: 40 | V149: 2.50E+08 | W149: 0.92 | Z149: sp|P01024|CO3_HUMAN | AA149: C3 | AB149: 12 | AC149: 29 | AD149: 8.10E+07 | AE149: 0.74 | AH149: sp|Q9UHI8|ATS1_HUMAN | AI149: ADAMTS1 | AJ149: 12 | AK149: 16 | AL149: 3.70E+06 | AM149: 0.04 | AP149: sp|P08236|BGLR_HUMAN | AQ149: GUSB | AR149: 12 | AS149: 13 | AT149: 1.40E+07 | AU149: 0.06 | AW149: sp|P06576|ATPB_HUMAN | AX149: ATP5B | AY149: ATP synthase subunit beta, mitochondrial OS=Homo sapiens GN=ATP5B PE=1 SV=3 | AZ149: 56.52 | BA149: 19 | BB149: 23 | BC149: 21 | BD149: 24 | BE149: 13 | BF149: 17 | BG149: 7 | BH149: 8 | BI149: 14 | BJ149: 14 | BK149: 5 | BL149: 5 | BM149: 24 | BN149: 1.40E+07 | BO149: 1.00E+07 | BP149: 3.20E+06 | BQ149: 2.50E+05 | BR149: 1.20E+06 | BS149: 1.00E+06 | BT149: 2.50E+05 | BU149: 56.0 | BV149: 40.0 | BW149: 12.8 | BX149: 1.0 | BY149: 4.8 | BZ149: 4.0
B150: sp|P68104|EF1A1_HUMAN | C150: EEF1A1 | D150: 16 | E150: 48 | F150: 2.60E+08 | G150: 0.83 | J150: sp|Q9UBE0|SAE1_HUMAN | K150: SAE1 | L150: 15 | M150: 19 | N150: 7.90E+06 | O150: 0.03 | R150: sp|O75787|RENR_HUMAN | S150: ATP6AP2 | T150: 12 | U150: 37 | V150: 7.40E+07 | W150: 0.27 | Z150: sp|O75787|RENR_HUMAN | AA150: ATP6AP2 | AB150: 12 | AC150: 25 | AD150: 6.50E+07 | AE150: 0.59 | AH150: sp|P49368|TCPG_HUMAN | AI150: CCT3 | AJ150: 12 | AK150: 16 | AL150: 5.10E+06 | AM150: 0.05 | AP150: sp|Q12906|ILF3_HUMAN | AQ150: ILF3 | AR150: 12 | AS150: 13 | AT150: 4.70E+06 | AU150: 0.02 | AW150: sp|Q14566|MCM6_HUMAN | AX150: MCM6 | AY150: DNA replication licensing factor MCM6 OS=Homo sapiens GN=MCM6 PE=1 SV=1 | AZ150: 92.83 | BA150: 21 | BB150: 23 | BC150: 13 | BD150: 15 | BE150: 11 | BF150: 14 | BG150: 7 | BH150: 7 | BI150: 15 | BJ150: 16 | BK150: 7 | BL150: 8 | BM150: 23 | BN150: 1.90E+07 | BO150: 7.90E+06 | BP150: 4.10E+06 | BQ150: 1.50E+06 | BR150: 3.80E+06 | BS150: 2.40E+06 | BT150: 1.50E+06 | BU150: 12.7 | BV150: 5.3 | BW150: 2.7 | BX150: 1.0 | BY150: 2.5 | BZ150: 1.6
B151: sp|Q13263|TIF1B_HUMAN | C151: TRIM28 | D151: 16 | E151: 25 | F151: 2.90E+07 | G151: 0.09 | J151: sp|Q9UQ80|PA2G4_HUMAN | K151: PA2G4 | L151: 15 | M151: 18 | N151: 3.50E+07 | O151: 0.14 | R151: sp|P41250|GARS_HUMAN | S151: GARS | T151: 12 | U151: 27 | V151: 9.80E+06 | W151: 0.04 | Z151: sp|P49368|TCPG_HUMAN | AA151: CCT3 | AB151: 12 | AC151: 20 | AD151: 1.30E+07 | AE151: 0.11 | AH151: sp|P49321|NASP_HUMAN | AI151: NASP | AJ151: 12 | AK151: 15 | AL151: 9.30E+06 | AM151: 0.10 | AP151: sp|P62736|ACTA_HUMAN | AQ151: ACTA2 | AR151: 11 | AS151: 52 | AT151: 3.10E+08 | AU151: 1.37 | AW151: sp|Q92859|NEO1_HUMAN | AX151: NEO1 | AY151: Neogenin OS=Homo sapiens GN=NEO1 PE=1 SV=2 | AZ151: 159.92 | BA151: 17 | BB151: 18 | BC151: 7 | BD151: 7 | BE151: 14 | BF151: 20 | BG151: 8 | BH151: 8 | BI151: 6 | BJ151: 6 | BK151: 10 | BL151: 12 | BM151: 20 | BN151: 7.80E+06 | BO151: 3.20E+06 | BP151: 5.10E+06 | BQ151: 1.80E+06 | BR151: 9.00E+05 | BS151: 2.90E+06 | BT151: 9.00E+05 | BU151: 8.7 | BV151: 3.6 | BW151: 5.7 | BX151: 2.0 | BY151: 1.0 | BZ151: 3.2
B152: sp|P05067|A4_HUMAN | C152: APP | D152: 16 | E152: 25 | F152: 6.50E+07 | G152: 0.21 | J152: sp|Q16658|FSCN1_HUMAN | K152: FSCN1 | L152: 15 | M152: 17 | N152: 3.00E+07 | O152: 0.13 | R152: sp|P00338|LDHA_HUMAN | S152: LDHA | T152: 12 | U152: 24 | V152: 4.10E+07 | W152: 0.15 | Z152: sp|P52209|6PGD_HUMAN | AA152: PGD | AB152: 12 | AC152: 17 | AD152: 1.20E+07 | AE152: 0.11 | AH152: sp|P23526|SAHH_HUMAN | AI152: AHCY | AJ152: 12 | AK152: 15 | AL152: 8.90E+06 | AM152: 0.09 | AP152: IgG2a_bovine | AR152: 11 | AS152: 44 | AT152: 5.60E+08 | AU152: 2.46 | AW152: sp|P06737|PYGL_HUMAN | AX152: PYGL | AY152: Glycogen phosphorylase, liver form OS=Homo sapiens GN=PYGL PE=1 SV=4 | AZ152: 97.09 | BA152: 19 | BB152: 21 | BC152: 11 | BD152: 11 | BE152: 12 | BF152: 13 | BG152: 7 | BH152: 7 | BI152: 9 | BJ152: 9 | BK152: 7 | BL152: 9 | BM152: 21 | BN152: 8.10E+06 | BO152: 3.20E+06 | BP152: 4.30E+06 | BQ152: 4.30E+05 | BR152: 1.00E+06 | BS152: 1.20E+06 | BT152: 4.30E+05 | BU152: 18.8 | BV152: 7.4 | BW152: 10.0 | BX152: 1.0 | BY152: 2.3 | BZ152: 2.8
B153: sp|Q96KP4|CNDP2_HUMAN | C153: CNDP2 | D153: 16 | E153: 23 | F153: 1.30E+07 | G153: 0.04 | J153: sp|Q8WUM4|PDC6I_HUMAN | K153: PDCD6IP | L153: 15 | M153: 17 | N153: 9.40E+06 | O153: 0.04 | R153: sp|P23396|RS3_HUMAN | S153: RPS3 | T153: 12 | U153: 23 | V153: 2.80E+07 | W153: 0.10 | Z153: sp|Q8NHP8|PLBL2_HUMAN | AA153: PLBD2 | AB153: 12 | AC153: 17 | AD153: 1.40E+07 | AE153: 0.13 | AH153: sp|P01137|TGFB1_HUMAN | AI153: TGFB1 | AJ153: 12 | AK153: 15 | AL153: 1.10E+07 | AM153: 0.12 | AP153: sp|P0DP24|CALM2_HUMAN | AQ153: CALM2 | AR153: 11 | AS153: 28 | AT153: 4.30E+07 | AU153: 0.19 | AW153: sp|O15067|PUR4_HUMAN | AX153: PFAS | AY153: Phosphoribosylformylglycinamidine synthase OS=Homo sapiens GN=PFAS PE=1 SV=4 | AZ153: 144.64 | BA153: 19 | BB153: 21 | BC153: 13 | BD153: 14 | BE153: 10 | BF153: 11 | BG153: 7 | BH153: 7 | BI153: 7 | BJ153: 8 | BK153: 7 | BL153: 8 | BM153: 21 | BN153: 3.00E+07 | BO153: 1.60E+07 | BP153: 8.00E+06 | BQ153: 1.80E+06 | BR153: 7.60E+05 | BS153: 3.50E+06 | BT153: 7.60E+05 | BU153: 39.5 | BV153: 21.1 | BW153: 10.5 | BX153: 2.4 | BY153: 1.0 | BZ153: 4.6
B154: sp|Q14112|NID2_HUMAN | C154: NID2 | D154: 16 | E154: 22 | F154: 5.70E+06 | G154: 0.02 | J154: sp|P01137|TGFB1_HUMAN | K154: TGFB1 | L154: 15 | M154: 17 | N154: 2.90E+07 | O154: 0.12 | R154: sp|P60842|IF4A1_HUMAN | S154: EIF4A1 | T154: 12 | U154: 21 | V154: 3.90E+07 | W154: 0.14 | Z154: sp|P02649|APOE_HUMAN | AA154: APOE | AB154: 12 | AC154: 16 | AD154: 8.50E+06 | AE154: 0.08 | AH154: sp|Q13822|ENPP2_HUMAN | AI154: ENPP2 | AJ154: 12 | AK154: 14 | AL154: 4.70E+06 | AM154: 0.05 | AP154: sp|Q99519|NEUR1_HUMAN | AQ154: NEU1 | AR154: 11 | AS154: 24 | AT154: 1.70E+08 | AU154: 0.74 | AW154: sp|P12081|SYHC_HUMAN | AX154: HARS | AY154: Histidine--tRNA ligase, cytoplasmic OS=Homo sapiens GN=HARS PE=1 SV=2 | AZ154: 57.37 | BA154: 20 | BB154: 20 | BC154: 20 | BD154: 20 | BE154: 7 | BF154: 8 | BG154: 0 | BH154: 0 | BI154: 11 | BJ154: 11 | BK154: 7 | BL154: 9 | BM154: 20 | BN154: 2.20E+07 | BO154: 1.70E+07 | BP154: 2.80E+06 | BQ154: NF | BR154: 1.80E+06 | BS154: 3.50E+06 | BT154: 1.80E+06 | BU154: 12.2 | BV154: 9.4 | BW154: 1.6 | BX154: 0.0 | BY154: 1.0 | BZ154: 1.9
B155: sp|P50991|TCPD_HUMAN | C155: CCT4 | D155: 16 | E155: 21 | F155: 2.10E+07 | G155: 0.07 | J155: sp|Q9NY33|DPP3_HUMAN | K155: DPP3 | L155: 15 | M155: 16 | N155: 4.80E+06 | O155: 0.02 | R155: sp|P11940|PABP1_HUMAN | S155: PABPC1 | T155: 12 | U155: 20 | V155: 6.60E+06 | W155: 0.02 | Z155: sp|P49321|NASP_HUMAN | AA155: NASP | AB155: 12 | AC155: 16 | AD155: 7.60E+06 | AE155: 0.07 | AH155: sp|P62195|PRS8_HUMAN | AI155: PSMC5 | AJ155: 12 | AK155: 13 | AL155: 1.00E+06 | AM155: 0.01 | AP155: sp|P42785|PCP_HUMAN | AQ155: PRCP | AR155: 11 | AS155: 20 | AT155: 3.60E+07 | AU155: 0.16 | AW155: sp|Q9HCU4|CELR2_HUMAN | AX155: CELSR2 | AY155: Cadherin EGF LAG seven-pass G-type receptor 2 OS=Homo sapiens GN=CELSR2 PE=1 SV=1 | AZ155: 317.25 | BA155: 0 | BB155: 0 | BC155: 5 | BD155: 6 | BE155: 18 | BF155: 23 | BG155: 5 | BH155: 6 | BI155: 1 | BJ155: 1 | BK155: 14 | BL155: 17 | BM155: 23 | BN155: NF | BO155: 4.50E+05 | BP155: 1.60E+07 | BQ155: 6.60E+05 | BR155: 5.40E+03 | BS155: 2.70E+06 | BT155: 5.40E+03 | BU155: 0.0 | BV155: 83.3 | BW155: 2963.0 | BX155: 122.2 | BY155: 1.0 | BZ155: 500.0
B156: sp|P02458|CO2A1_HUMAN | C156: COL2A1 | D156: 16 | E156: 21 | F156: 1.90E+07 | G156: 0.06 | J156: sp|Q15181|IPYR_HUMAN | K156: PPA1 | L156: 15 | M156: 16 | N156: 1.20E+07 | O156: 0.05 | R156: sp|O14786|NRP1_HUMAN | S156: NRP1 | T156: 12 | U156: 20 | V156: 1.50E+07 | W156: 0.06 | Z156: sp|Q7KZF4|SND1_HUMAN | AA156: SND1 | AB156: 12 | AC156: 16 | AD156: 2.00E+06 | AE156: 0.02 | AH156: sp|P08253|MMP2_HUMAN | AI156: MMP2 | AJ156: 12 | AK156: 13 | AL156: 3.70E+06 | AM156: 0.04 | AP156: sp|Q10471|GALT2_HUMAN | AQ156: GALNT2 | AR156: 11 | AS156: 17 | AT156: 1.40E+07 | AU156: 0.06 | AW156: sp|P47897|SYQ_HUMAN | AX156: QARS | AY156: Glutamine--tRNA ligase OS=Homo sapiens GN=QARS PE=1 SV=1 | AZ156: 87.74 | BA156: 21 | BB156: 22 | BC156: 9 | BD156: 9 | BE156: 7 | BF156: 7 | BG156: 6 | BH156: 6 | BI156: 5 | BJ156: 5 | BK156: 0 | BL156: 0 | BM156: 22 | BN156: 9.40E+06 | BO156: 2.30E+06 | BP156: 2.40E+06 | BQ156: 4.00E+05 | BR156: 4.20E+05 | BS156: NF | BT156: 4.00E+05 | BU156: 23.5 | BV156: 5.8 | BW156: 6.0 | BX156: 1.0 | BY156: 1.1 | BZ156: 0.0
B157: sp|P33908|MA1A1_HUMAN | C157: MAN1A1 | D157: 16 | E157: 21 | F157: 3.20E+07 | G157: 0.10 | J157: sp|O75533|SF3B1_HUMAN | K157: SF3B1 | L157: 15 | M157: 16 | N157: 1.30E+07 | O157: 0.05 | R157: sp|Q93063|EXT2_HUMAN | S157: EXT2 | T157: 12 | U157: 20 | V157: 8.60E+06 | W157: 0.03 | Z157: sp|Q92520|FAM3C_HUMAN | AA157: FAM3C | AB157: 12 | AC157: 15 | AD157: 3.50E+07 | AE157: 0.32 | AH157: sp|Q8WUM4|PDC6I_HUMAN | AI157: PDCD6IP | AJ157: 12 | AK157: 13 | AL157: 2.80E+06 | AM157: 0.03 | AP157: sp|Q14112|NID2_HUMAN | AQ157: NID2 | AR157: 11 | AS157: 16 | AT157: 6.70E+06 | AU157: 0.03 | AW157: sp|P35580|MYH10_HUMAN | AX157: MYH10 | AY157: Myosin-10 OS=Homo sapiens GN=MYH10 PE=1 SV=3 | AZ157: 228.86 | BA157: 19 | BB157: 19 | BC157: 12 | BD157: 12 | BE157: 6 | BF157: 7 | BG157: 4 | BH157: 5 | BI157: 3 | BJ157: 3 | BK157: 2 | BL157: 2 | BM157: 19 | BN157: 3.40E+06 | BO157: 3.00E+06 | BP157: 9.10E+05 | BQ157: 5.20E+05 | BR157: 7.10E+05 | BS157: 2.50E+05 | BT157: 2.50E+05 | BU157: 13.6 | BV157: 12.0 | BW157: 3.6 | BX157: 2.1 | BY157: 2.8 | BZ157: 1.0
B158: sp|Q12905|ILF2_HUMAN | C158: ILF2 | D158: 16 | E158: 20 | F158: 1.40E+07 | G158: 0.05 | J158: sp|P00505|AATM_HUMAN | K158: GOT2 | L158: 15 | M158: 16 | N158: 2.30E+07 | O158: 0.10 | R158: sp|P00491|PNPH_HUMAN | S158: PNP | T158: 12 | U158: 19 | V158: 6.70E+06 | W158: 0.02 | Z158: sp|P36955|PEDF_HUMAN | AA158: SERPINF1 | AB158: 12 | AC158: 14 | AD158: 8.10E+06 | AE158: 0.07 | AH158: sp|P05455|LA_HUMAN | AI158: SSB | AJ158: 12 | AK158: 13 | AL158: 4.40E+06 | AM158: 0.05 | AP158: sp|O14786|NRP1_HUMAN | AQ158: NRP1 | AR158: 11 | AS158: 15 | AT158: 7.90E+06 | AU158: 0.03 | AW158: sp|P35573|GDE_HUMAN | AX158: AGL | AY158: Glycogen debranching enzyme OS=Homo sapiens GN=AGL PE=1 SV=3 | AZ158: 174.65 | BA158: 21 | BB158: 24 | BC158: 4 | BD158: 4 | BE158: 5 | BF158: 6 | BG158: 2 | BH158: 2 | BI158: 0 | BJ158: 0 | BK158: 0 | BL158: 0 | BM158: 24 | BN158: 5.10E+06 | BO158: 6.80E+05 | BP158: 4.20E+05 | BQ158: 2.70E+04 | BR158: NF | BS158: NF | BT158: 2.70E+04 | BU158: 188.9 | BV158: 25.2 | BW158: 15.6 | BX158: 1.0 | BY158: 0.0 | BZ158: 0.0
B159: sp|Q16851|UGPA_HUMAN | C159: UGP2 | D159: 16 | E159: 19 | F159: 6.30E+06 | G159: 0.02 | J159: sp|Q01581|HMCS1_HUMAN | K159: HMGCS1 | L159: 15 | M159: 15 | N159: 1.20E+07 | O159: 0.05 | R159: sp|P20908|CO5A1_HUMAN | S159: COL5A1 | T159: 12 | U159: 19 | V159: 4.80E+06 | W159: 0.02 | Z159: sp|Q9UNZ2|NSF1C_HUMAN | AA159: NSFL1C | AB159: 12 | AC159: 13 | AD159: 3.20E+06 | AE159: 0.03 | AH159: sp|P50454|SERPH_HUMAN | AI159: SERPINH1 | AJ159: 12 | AK159: 13 | AL159: 1.50E+06 | AM159: 0.02 | AP159: sp|P13797|PLST_HUMAN | AQ159: PLS3 | AR159: 11 | AS159: 14 | AT159: 1.10E+07 | AU159: 0.05 | AW159: sp|P04075|ALDOA_HUMAN | AX159: ALDOA | AY159: Fructose-bisphosphate aldolase A OS=Homo sapiens GN=ALDOA PE=1 SV=2 | AZ159: 39.4 | BA159: 19 | BB159: 52 | BC159: 17 | BD159: 53 | BE159: 19 | BF159: 73 | BG159: 18 | BH159: 42 | BI159: 16 | BJ159: 43 | BK159: 16 | BL159: 24 | BM159: 73 | BN159: 2.30E+08 | BO159: 3.20E+08 | BP159: 3.50E+08 | BQ159: 8.80E+07 | BR159: 1.00E+08 | BS159: 9.90E+07 | BT159: 8.80E+07 | BU159: 2.6 | BV159: 3.6 | BW159: 4.0 | BX159: 1.0 | BY159: 1.1 | BZ159: 1.1
B160: sp|Q92626|PXDN_HUMAN | C160: PXDN | D160: 16 | E160: 18 | F160: 5.70E+06 | G160: 0.02 | J160: sp|Q96QK1|VPS35_HUMAN | K160: VPS35 | L160: 15 | M160: 15 | N160: 6.30E+06 | O160: 0.03 | R160: sp|Q16610|ECM1_HUMAN | S160: ECM1 | T160: 12 | U160: 19 | V160: 3.30E+07 | W160: 0.12 | Z160: sp|O75874|IDHC_HUMAN | AA160: IDH1 | AB160: 12 | AC160: 13 | AD160: 2.30E+06 | AE160: 0.02 | AH160: sp|P52209|6PGD_HUMAN | AI160: PGD | AJ160: 12 | AK160: 12 | AL160: 4.60E+06 | AM160: 0.05 | AP160: sp|P26639|SYTC_HUMAN | AQ160: TARS | AR160: 11 | AS160: 14 | AT160: 6.20E+06 | AU160: 0.03 | AW160: sp|P49321|NASP_HUMAN | AX160: NASP | AY160: Nuclear autoantigenic sperm protein OS=Homo sapiens GN=NASP PE=1 SV=2 | AZ160: 85.19 | BA160: 17 | BB160: 27 | BC160: 18 | BD160: 28 | BE160: 17 | BF160: 29 | BG160: 12 | BH160: 16 | BI160: 12 | BJ160: 15 | BK160: 12 | BL160: 19 | BM160: 29 | BN160: 2.10E+07 | BO160: 3.00E+07 | BP160: 2.30E+07 | BQ160: 7.60E+06 | BR160: 9.30E+06 | BS160: 8.00E+06 | BT160: 7.60E+06 | BU160: 2.8 | BV160: 3.9 | BW160: 3.0 | BX160: 1.0 | BY160: 1.2 | BZ160: 1.1
B161: sp|P48643|TCPE_HUMAN | C161: CCT5 | D161: 16 | E161: 18 | F161: 7.10E+06 | G161: 0.02 | J161: sp|P54136|SYRC_HUMAN | K161: RARS | L161: 15 | M161: 15 | N161: 6.90E+06 | O161: 0.03 | R161: sp|Q13332|PTPRS_HUMAN | S161: PTPRS | T161: 12 | U161: 18 | V161: 4.00E+06 | W161: 0.01 | Z161: sp|P31939|PUR9_HUMAN | AA161: ATIC | AB161: 12 | AC161: 13 | AD161: 2.90E+06 | AE161: 0.03 | AH161: sp|Q9Y265|RUVB1_HUMAN | AI161: RUVBL1 | AJ161: 12 | AK161: 12 | AL161: 1.20E+06 | AM161: 0.01 | AP161: sp|O75347|TBCA_HUMAN | AQ161: TBCA | AR161: 11 | AS161: 14 | AT161: 1.20E+07 | AU161: 0.05 | AW161: sp|P06865|HEXA_HUMAN | AX161: HEXA | AY161: Beta-hexosaminidase subunit alpha OS=Homo sapiens GN=HEXA PE=1 SV=2 | AZ161: 60.66 | BA161: 9 | BB161: 9 | BC161: 9 | BD161: 13 | BE161: 7 | BF161: 8 | BG161: 18 | BH161: 29 | BI161: 17 | BJ161: 27 | BK161: 19 | BL161: 42 | BM161: 42 | BN161: 2.40E+06 | BO161: 2.90E+06 | BP161: 2.70E+06 | BQ161: 8.30E+07 | BR161: 4.20E+07 | BS161: 1.40E+08 | BT161: 2.40E+06 | BU161: 1.0 | BV161: 1.2 | BW161: 1.1 | BX161: 34.6 | BY161: 17.5 | BZ161: 58.3
B162: sp|P41252|SYIC_HUMAN | C162: IARS | D162: 16 | E162: 17 | F162: 7.10E+06 | G162: 0.02 | J162: sp|Q15459|SF3A1_HUMAN | K162: SF3A1 | L162: 15 | M162: 15 | N162: 5.30E+06 | O162: 0.02 | R162: sp|Q15459|SF3A1_HUMAN | S162: SF3A1 | T162: 12 | U162: 18 | V162: 4.60E+06 | W162: 0.02 | Z162: sp|P23396|RS3_HUMAN | AA162: RPS3 | AB162: 12 | AC162: 13 | AD162: 5.90E+06 | AE162: 0.05 | AH162: sp|Q96QK1|VPS35_HUMAN | AI162: VPS35 | AJ162: 12 | AK162: 12 | AL162: 1.40E+06 | AM162: 0.02 | AP162: sp|O14980|XPO1_HUMAN | AQ162: XPO1 | AR162: 11 | AS162: 13 | AT162: 5.20E+06 | AU162: 0.02 | AW162: sp|Q12905|ILF2_HUMAN | AX162: ILF2 | AY162: Interleukin enhancer-binding factor 2 OS=Homo sapiens GN=ILF2 PE=1 SV=2 | AZ162: 43.04 | BA162: 16 | BB162: 20 | BC162: 16 | BD162: 26 | BE162: 15 | BF162: 30 | BG162: 13 | BH162: 19 | BI162: 13 | BJ162: 17 | BK162: 10 | BL162: 13 | BM162: 30 | BN162: 1.40E+07 | BO162: 2.00E+07 | BP162: 3.40E+07 | BQ162: 4.50E+06 | BR162: 5.40E+06 | BS162: 5.50E+06 | BT162: 4.50E+06 | BU162: 3.1 | BV162: 4.4 | BW162: 7.6 | BX162: 1.0 | BY162: 1.2 | BZ162: 1.2
B163: sp|Q9P2J5|SYLC_HUMAN | C163: LARS | D163: 16 | E163: 17 | F163: 3.70E+06 | G163: 0.01 | J163: sp|Q9Y262|EIF3L_HUMAN | K163: EIF3L | L163: 15 | M163: 15 | N163: 7.50E+06 | O163: 0.03 | R163: sp|Q10567|AP1B1_HUMAN | S163: AP1B1 | T163: 12 | U163: 17 | V163: 6.70E+06 | W163: 0.02 | Z163: sp|Q9UBB4|ATX10_HUMAN | AA163: ATXN10 | AB163: 12 | AC163: 13 | AD163: 1.00E+06 | AE163: 0.01 | AH163: sp|P25391|LAMA1_HUMAN | AI163: LAMA1 | AJ163: 12 | AK163: 12 | AL163: 1.80E+06 | AM163: 0.02 | AP163: sp|P27708|PYR1_HUMAN | AQ163: CAD | AR163: 11 | AS163: 13 | AT163: 1.80E+06 | AU163: 0.01 | AW163: sp|Q14703|MBTP1_HUMAN | AX163: MBTPS1 | AY163: Membrane-bound transcription factor site-1 protease OS=Homo sapiens GN=MBTPS1 PE=1 SV=1 | AZ163: 117.67 | BA163: 18 | BB163: 23 | BC163: 14 | BD163: 16 | BE163: 19 | BF163: 27 | BG163: 8 | BH163: 11 | BI163: 9 | BJ163: 10 | BK163: 12 | BL163: 13 | BM163: 27 | BN163: 2.00E+07 | BO163: 6.40E+06 | BP163: 2.00E+07 | BQ163: 2.30E+06 | BR163: 3.00E+06 | BS163: 6.00E+06 | BT163: 2.30E+06 | BU163: 8.7 | BV163: 2.8 | BW163: 8.7 | BX163: 1.0 | BY163: 1.3 | BZ163: 2.6
B164: sp|P02545|LMNA_HUMAN | C164: LMNA | D164: 16 | E164: 17 | F164: 9.40E+06 | G164: 0.03 | J164: sp|P55884|EIF3B_HUMAN | K164: EIF3B | L164: 15 | M164: 15 | N164: 6.10E+06 | O164: 0.03 | R164: sp|O76003|GLRX3_HUMAN | S164: GLRX3 | T164: 12 | U164: 17 | V164: 1.00E+07 | W164: 0.04 | Z164: sp|P01137|TGFB1_HUMAN | AA164: TGFB1 | AB164: 12 | AC164: 13 | AD164: 1.70E+07 | AE164: 0.15 | AH164: sp|O75533|SF3B1_HUMAN | AI164: SF3B1 | AJ164: 12 | AK164: 12 | AL164: 7.90E+06 | AM164: 0.08 | AP164: sp|P23142|FBLN1_HUMAN | AQ164: FBLN1 | AR164: 11 | AS164: 13 | AT164: 1.40E+07 | AU164: 0.06 | AW164: sp|P33908|MA1A1_HUMAN | AX164: MAN1A1 | AY164: Mannosyl-oligosaccharide 1,2-alpha-mannosidase IA OS=Homo sapiens GN=MAN1A1 PE=1 SV=3 | AZ164: 72.92 | BA164: 16 | BB164: 21 | BC164: 17 | BD164: 29 | BE164: 7 | BF164: 7 | BG164: 7 | BH164: 8 | BI164: 12 | BJ164: 16 | BK164: 14 | BL164: 18 | BM164: 29 | BN164: 3.20E+07 | BO164: 3.00E+07 | BP164: 1.70E+06 | BQ164: 6.70E+06 | BR164: 7.70E+06 | BS164: 2.90E+07 | BT164: 1.70E+06 | BU164: 18.8 | BV164: 17.6 | BW164: 1.0 | BX164: 3.9 | BY164: 4.5 | BZ164: 17.1
B165: sp|P14868|SYDC_HUMAN | C165: DARS | D165: 16 | E165: 17 | F165: 8.40E+06 | G165: 0.03 | J165: sp|Q14517|FAT1_HUMAN | K165: FAT1 | L165: 15 | M165: 15 | N165: 1.50E+06 | O165: 0.01 | R165: sp|P12270|TPR_HUMAN | S165: TPR | T165: 12 | U165: 15 | V165: 2.50E+06 | W165: 0.01 | Z165: sp|Q8WUM4|PDC6I_HUMAN | AA165: PDCD6IP | AB165: 12 | AC165: 13 | AD165: 2.10E+06 | AE165: 0.02 | AH165: sp|Q15008|PSMD6_HUMAN | AI165: PSMD6 | AJ165: 12 | AK165: 12 | AL165: 2.30E+06 | AM165: 0.02 | AP165: sp|Q15459|SF3A1_HUMAN | AQ165: SF3A1 | AR165: 11 | AS165: 13 | AT165: 3.30E+06 | AU165: 0.01 | AW165: sp|P17987|TCPA_HUMAN | AX165: TCP1 | AY165: T-complex protein 1 subunit alpha OS=Homo sapiens GN=TCP1 PE=1 SV=1 | AZ165: 60.31 | BA165: 8 | BB165: 11 | BC165: 19 | BD165: 24 | BE165: 11 | BF165: 17 | BG165: 16 | BH165: 18 | BI165: 13 | BJ165: 14 | BK165: 7 | BL165: 8 | BM165: 24 | BN165: 1.30E+06 | BO165: 2.60E+07 | BP165: 4.60E+06 | BQ165: 6.00E+06 | BR165: 5.10E+06 | BS165: 2.80E+06 | BT165: 1.30E+06 | BU165: 1.0 | BV165: 20.0 | BW165: 3.5 | BX165: 4.6 | BY165: 3.9 | BZ165: 2.2
B166: sp|P08253|MMP2_HUMAN | C166: MMP2 | D166: 16 | E166: 17 | F166: 7.80E+06 | G166: 0.03 | J166: sp|P04406|G3P_HUMAN | K166: GAPDH | L166: 14 | M166: 51 | N166: 1.00E+08 | O166: 0.41 | R166: sp|O43852|CALU_HUMAN | S166: CALU | T166: 12 | U166: 15 | V166: 5.20E+06 | W166: 0.02 | Z166: sp|P15586|GNS_HUMAN | AA166: GNS | AB166: 12 | AC166: 13 | AD166: 3.80E+07 | AE166: 0.35 | AH166: sp|Q9UBT2|SAE2_HUMAN | AI166: UBA2 | AJ166: 12 | AK166: 12 | AL166: 3.90E+06 | AM166: 0.04 | AP166: sp|P48643|TCPE_HUMAN | AQ166: CCT5 | AR166: 11 | AS166: 13 | AT166: 3.10E+06 | AU166: 0.01 | AW166: sp|P54802|ANAG_HUMAN | AX166: NAGLU | AY166: Alpha-N-acetylglucosaminidase OS=Homo sapiens GN=NAGLU PE=1 SV=2 | AZ166: 82.21 | BA166: 10 | BB166: 10 | BC166: 8 | BD166: 8 | BE166: 10 | BF166: 13 | BG166: 17 | BH166: 18 | BI166: 18 | BJ166: 19 | BK166: 18 | BL166: 23 | BM166: 23 | BN166: 4.90E+06 | BO166: 1.60E+06 | BP166: 7.10E+06 | BQ166: 1.10E+07 | BR166: 7.60E+06 | BS166: 3.70E+07 | BT166: 1.60E+06 | BU166: 3.1 | BV166: 1.0 | BW166: 4.4 | BX166: 6.9 | BY166: 4.8 | BZ166: 23.1
B167: sp|Q99613|EIF3C_HUMAN | C167: EIF3C | D167: 16 | E167: 17 | F167: 1.10E+07 | G167: 0.04 | J167: sp|P11940|PABP1_HUMAN | K167: PABPC1 | L167: 14 | M167: 27 | N167: 1.10E+07 | O167: 0.05 | R167: sp|O94813|SLIT2_HUMAN | S167: SLIT2 | T167: 12 | U167: 14 | V167: 4.20E+06 | W167: 0.02 | Z167: sp|P22061|PIMT_HUMAN | AA167: PCMT1 | AB167: 12 | AC167: 13 | AD167: 1.20E+07 | AE167: 0.11 | AH167: sp|P62736|ACTA_HUMAN | AI167: ACTA2 | AJ167: 11 | AK167: 43 | AL167: 3.20E+08 | AM167: 3.31 | AP167: sp|P98160|PGBM_HUMAN | AQ167: HSPG2 | AR167: 11 | AS167: 12 | AT167: 1.80E+07 | AU167: 0.08 | AW167: sp|P25205|MCM3_HUMAN | AX167: MCM3 | AY167: DNA replication licensing factor MCM3 OS=Homo sapiens GN=MCM3 PE=1 SV=3 | AZ167: 90.92 | BA167: 17 | BB167: 21 | BC167: 10 | BD167: 14 | BE167: 7 | BF167: 11 | BG167: 8 | BH167: 9 | BI167: 8 | BJ167: 9 | BK167: 6 | BL167: 9 | BM167: 21 | BN167: 1.30E+07 | BO167: 6.60E+06 | BP167: 4.80E+06 | BQ167: 2.30E+06 | BR167: 2.20E+06 | BS167: 3.10E+06 | BT167: 2.20E+06 | BU167: 5.9 | BV167: 3.0 | BW167: 2.2 | BX167: 1.0 | BY167: 1.0 | BZ167: 1.4
B168: sp|Q9H3U1|UN45A_HUMAN | C168: UNC45A | D168: 16 | E168: 16 | F168: 5.50E+06 | G168: 0.02 | J168: sp|P19021|AMD_HUMAN | K168: PAM | L168: 14 | M168: 24 | N168: 1.30E+07 | O168: 0.05 | R168: sp|Q86XX4|FRAS1_HUMAN | S168: FRAS1 | T168: 12 | U168: 14 | V168: 2.60E+06 | W168: 0.01 | Z168: sp|P31948|STIP1_HUMAN | AA168: STIP1 | AB168: 12 | AC168: 13 | AD168: 3.80E+06 | AE168: 0.03 | AH168: IgG2a_bovine | AJ168: 11 | AK168: 38 | AL168: 2.60E+08 | AM168: 2.68 | AP168: sp|P08581|MET_HUMAN | AQ168: MET | AR168: 11 | AS168: 12 | AT168: 3.30E+06 | AU168: 0.01 | AW168: sp|Q9Y230|RUVB2_HUMAN | AX168: RUVBL2 | AY168: RuvB-like 2 OS=Homo sapiens GN=RUVBL2 PE=1 SV=3 | AZ168: 51.12 | BA168: 19 | BB168: 19 | BC168: 16 | BD168: 16 | BE168: 8 | BF168: 11 | BG168: 10 | BH168: 10 | BI168: 11 | BJ168: 11 | BK168: 5 | BL168: 5 | BM168: 19 | BN168: 1.20E+07 | BO168: 8.40E+06 | BP168: 2.10E+06 | BQ168: 7.40E+05 | BR168: 1.00E+06 | BS168: 1.40E+06 | BT168: 7.40E+05 | BU168: 16.2 | BV168: 11.4 | BW168: 2.8 | BX168: 1.0 | BY168: 1.4 | BZ168: 1.9
B169: sp|Q99798|ACON_HUMAN | C169: ACO2 | D169: 16 | E169: 16 | F169: 4.10E+06 | G169: 0.01 | J169: sp|O43776|SYNC_HUMAN | K169: NARS | L169: 14 | M169: 23 | N169: 1.40E+07 | O169: 0.06 | R169: sp|P13796|PLSL_HUMAN | S169: LCP1 | T169: 12 | U169: 14 | V169: 3.80E+06 | W169: 0.01 | Z169: sp|O14980|XPO1_HUMAN | AA169: XPO1 | AB169: 12 | AC169: 12 | AD169: 1.10E+06 | AE169: 0.01 | AH169: sp|P18669|PGAM1_HUMAN | AI169: PGAM1 | AJ169: 11 | AK169: 31 | AL169: 1.10E+07 | AM169: 0.12 | AP169: sp|P13796|PLSL_HUMAN | AQ169: LCP1 | AR169: 11 | AS169: 11 | AT169: 6.80E+06 | AU169: 0.03 | AW169: sp|Q13618|CUL3_HUMAN | AX169: CUL3 | AY169: Cullin-3 OS=Homo sapiens GN=CUL3 PE=1 SV=2 | AZ169: 88.87 | BA169: 18 | BB169: 18 | BC169: 7 | BD169: 7 | BE169: 6 | BF169: 6 | BG169: 3 | BH169: 3 | BI169: 4 | BJ169: 4 | BK169: 5 | BL169: 5 | BM169: 18 | BN169: 3.80E+06 | BO169: 8.50E+05 | BP169: 3.40E+06 | BQ169: 1.40E+05 | BR169: 1.80E+05 | BS169: 3.60E+05 | BT169: 1.40E+05 | BU169: 27.1 | BV169: 6.1 | BW169: 24.3 | BX169: 1.0 | BY169: 1.3 | BZ169: 2.6
B170: sp|O75534|CSDE1_HUMAN | C170: CSDE1 | D170: 16 | E170: 16 | F170: 6.60E+06 | G170: 0.02 | J170: sp|P50991|TCPD_HUMAN | K170: CCT4 | L170: 14 | M170: 23 | N170: 1.60E+07 | O170: 0.07 | R170: sp|P55072|TERA_HUMAN | S170: VCP | T170: 12 | U170: 14 | V170: 3.00E+06 | W170: 0.01 | Z170: sp|Q16787|LAMA3_HUMAN | AA170: LAMA3 | AB170: 12 | AC170: 12 | AD170: 7.40E+05 | AE170: 0.01 | AH170: sp|P23284|PPIB_HUMAN | AI170: PPIB | AJ170: 11 | AK170: 29 | AL170: 1.20E+08 | AM170: 1.30 | AP170: sp|P20700|LMNB1_HUMAN | AQ170: LMNB1 | AR170: 11 | AS170: 11 | AT170: 2.60E+06 | AU170: 0.01 | AW170: sp|P05067|A4_HUMAN | AX170: APP | AY170: Amyloid beta A4 protein OS=Homo sapiens GN=APP PE=1 SV=3 | AZ170: 86.89 | BA170: 16 | BB170: 25 | BC170: 13 | BD170: 19 | BE170: 13 | BF170: 30 | BG170: 11 | BH170: 19 | BI170: 14 | BJ170: 18 | BK170: 16 | BL170: 33 | BM170: 33 | BN170: 6.50E+07 | BO170: 3.00E+07 | BP170: 6.30E+07 | BQ170: 2.00E+07 | BR170: 2.70E+07 | BS170: 6.20E+07 | BT170: 2.00E+07 | BU170: 3.3 | BV170: 1.5 | BW170: 3.2 | BX170: 1.0 | BY170: 1.4 | BZ170: 3.1
B171: sp|P07195|LDHB_HUMAN | C171: LDHB | D171: 15 | E171: 40 | F171: 3.90E+08 | G171: 1.28 | J171: sp|Q06830|PRDX1_HUMAN | K171: PRDX1 | L171: 14 | M171: 22 | N171: 1.70E+08 | O171: 0.71 | R171: sp|P55884|EIF3B_HUMAN | S171: EIF3B | T171: 12 | U171: 14 | V171: 8.90E+06 | W171: 0.03 | Z171: sp|P30740|ILEU_HUMAN | AA171: SERPINB1 | AB171: 12 | AC171: 12 | AD171: 1.10E+06 | AE171: 0.01 | AH171: sp|P61978|HNRPK_HUMAN | AI171: HNRNPK | AJ171: 11 | AK171: 22 | AL171: 3.80E+06 | AM171: 0.04 | AP171: sp|P00450|CERU_HUMAN | AQ171: CP | AR171: 10 | AS171: 32 | AT171: 2.50E+07 | AU171: 0.11 | AW171: sp|P23396|RS3_HUMAN | AX171: RPS3 | AY171: 40S ribosomal protein S3 OS=Homo sapiens GN=RPS3 PE=1 SV=2 | AZ171: 26.67 | BA171: 14 | BB171: 28 | BC171: 18 | BD171: 36 | BE171: 12 | BF171: 23 | BG171: 12 | BH171: 13 | BI171: 11 | BJ171: 18 | BK171: 13 | BL171: 19 | BM171: 36 | BN171: 4.40E+07 | BO171: 3.10E+07 | BP171: 2.80E+07 | BQ171: 5.90E+06 | BR171: 4.90E+06 | BS171: 2.20E+07 | BT171: 4.90E+06 | BU171: 9.0 | BV171: 6.3 | BW171: 5.7 | BX171: 1.2 | BY171: 1.0 | BZ171: 4.5
B172: sp|P62736|ACTA_HUMAN | C172: ACTA2 | D172: 15 | E172: 36 | F172: 5.60E+08 | G172: 1.82 | J172: sp|P52209|6PGD_HUMAN | K172: PGD | L172: 14 | M172: 21 | N172: 4.40E+07 | O172: 0.18 | R172: sp|P06737|PYGL_HUMAN | S172: PYGL | T172: 12 | U172: 13 | V172: 4.30E+06 | W172: 0.02 | Z172: sp|O43242|PSMD3_HUMAN | AA172: PSMD3 | AB172: 12 | AC172: 12 | AD172: 1.60E+06 | AE172: 0.02 | AH172: sp|Q14240|IF4A2_HUMAN | AI172: EIF4A2 | AJ172: 11 | AK172: 18 | AL172: 2.00E+07 | AM172: 0.20 | AP172: sp|P08238|HS90B_HUMAN | AQ172: HSP90AB1 | AR172: 10 | AS172: 25 | AT172: 6.20E+07 | AU172: 0.27 | AW172: sp|Q13263|TIF1B_HUMAN | AX172: TRIM28 | AY172: Transcription intermediary factor 1-beta OS=Homo sapiens GN=TRIM28 PE=1 SV=5 | AZ172: 88.49 | BA172: 16 | BB172: 25 | BC172: 11 | BD172: 18 | BE172: 16 | BF172: 26 | BG172: 13 | BH172: 14 | BI172: 17 | BJ172: 19 | BK172: 12 | BL172: 17 | BM172: 26 | BN172: 2.90E+07 | BO172: 1.40E+07 | BP172: 1.70E+07 | BQ172: 4.30E+06 | BR172: 1.10E+07 | BS172: 1.30E+07 | BT172: 4.30E+06 | BU172: 6.7 | BV172: 3.3 | BW172: 4.0 | BX172: 1.0 | BY172: 2.6 | BZ172: 3.0
B173: sp|P00338|LDHA_HUMAN | C173: LDHA | D173: 15 | E173: 34 | F173: 1.70E+08 | G173: 0.55 | J173: sp|P25788|PSA3_HUMAN | K173: PSMA3 | L173: 14 | M173: 21 | N173: 1.90E+07 | O173: 0.08 | R173: sp|Q9P2J5|SYLC_HUMAN | S173: LARS | T173: 12 | U173: 12 | V173: 6.30E+06 | W173: 0.02 | Z173: sp|Q9Y5B9|SP16H_HUMAN | AA173: SUPT16H | AB173: 12 | AC173: 12 | AD173: 9.80E+05 | AE173: 0.01 | AH173: sp|P23396|RS3_HUMAN | AI173: RPS3 | AJ173: 11 | AK173: 18 | AL173: 4.90E+06 | AM173: 0.05 | AP173: sp|P20908|CO5A1_HUMAN | AQ173: COL5A1 | AR173: 10 | AS173: 19 | AT173: 2.90E+06 | AU173: 0.01 | AW173: sp|O60568|PLOD3_HUMAN | AX173: PLOD3 | AY173: Procollagen-lysine,2-oxoglutarate 5-dioxygenase 3 OS=Homo sapiens GN=PLOD3 PE=1 SV=1 | AZ173: 84.73 | BA173: 15 | BB173: 22 | BC173: 12 | BD173: 15 | BE173: 11 | BF173: 14 | BG173: 13 | BH173: 17 | BI173: 10 | BJ173: 13 | BK173: 13 | BL173: 17 | BM173: 22 | BN173: 1.80E+07 | BO173: 6.00E+06 | BP173: 1.60E+07 | BQ173: 4.50E+06 | BR173: 3.10E+06 | BS173: 1.20E+07 | BT173: 3.10E+06 | BU173: 5.8 | BV173: 1.9 | BW173: 5.2 | BX173: 1.5 | BY173: 1.0 | BZ173: 3.9
B174: sp|Q14240|IF4A2_HUMAN | C174: EIF4A2 | D174: 15 | E174: 24 | F174: 1.10E+08 | G174: 0.36 | J174: sp|O43390|HNRPR_HUMAN | K174: HNRNPR | L174: 14 | M174: 20 | N174: 4.50E+07 | O174: 0.19 | R174: sp|Q86UP2|KTN1_HUMAN | S174: KTN1 | T174: 12 | U174: 12 | V174: 2.30E+06 | W174: 0.01 | Z174: sp|P23284|PPIB_HUMAN | AA174: PPIB | AB174: 11 | AC174: 27 | AD174: 1.60E+08 | AE174: 1.44 | AH174: sp|P63104|1433Z_HUMAN | AI174: YWHAZ | AJ174: 11 | AK174: 17 | AL174: 2.70E+07 | AM174: 0.29 | AP174: sp|P06280|AGAL_HUMAN | AQ174: GLA | AR174: 10 | AS174: 19 | AT174: 3.10E+07 | AU174: 0.14 | AW174: sp|P07225|PROS_HUMAN | AX174: PROS1 | AY174: Vitamin K-dependent protein S OS=Homo sapiens GN=PROS1 PE=1 SV=1 | AZ174: 75.07 | BA174: 14 | BB174: 17 | BC174: 9 | BD174: 10 | BE174: 14 | BF174: 23 | BG174: 11 | BH174: 11 | BI174: 11 | BJ174: 12 | BK174: 15 | BL174: 18 | BM174: 23 | BN174: 4.40E+07 | BO174: 1.80E+07 | BP174: 4.30E+07 | BQ174: 2.00E+07 | BR174: 1.10E+07 | BS174: 3.10E+07 | BT174: 1.10E+07 | BU174: 4.0 | BV174: 1.6 | BW174: 3.9 | BX174: 1.8 | BY174: 1.0 | BZ174: 2.8
B175: sp|O60568|PLOD3_HUMAN | C175: PLOD3 | D175: 15 | E175: 22 | F175: 1.80E+07 | G175: 0.06 | J175: sp|P06396|GELS_HUMAN | K175: GSN | L175: 14 | M175: 20 | N175: 9.90E+06 | O175: 0.04 | R175: IgG1_bovine | T175: 11 | U175: 81 | V175: 1.20E+09 | W175: 4.46 | Z175: sp|Q06830|PRDX1_HUMAN | AA175: PRDX1 | AB175: 11 | AC175: 20 | AD175: 9.00E+07 | AE175: 0.82 | AH175: sp|P40926|MDHM_HUMAN | AI175: MDH2 | AJ175: 11 | AK175: 17 | AL175: 5.90E+06 | AM175: 0.06 | AP175: sp|P39687|AN32A_HUMAN | AQ175: ANP32A | AR175: 10 | AS175: 18 | AT175: 1.40E+07 | AU175: 0.06 | AW175: sp|Q96QK1|VPS35_HUMAN | AX175: VPS35 | AY175: Vacuolar protein sorting-associated protein 35 OS=Homo sapiens GN=VPS35 PE=1 SV=2 | AZ175: 91.65 | BA175: 18 | BB175: 18 | BC175: 15 | BD175: 15 | BE175: 17 | BF175: 20 | BG175: 13 | BH175: 13 | BI175: 12 | BJ175: 12 | BK175: 9 | BL175: 9 | BM175: 20 | BN175: 1.60E+07 | BO175: 6.30E+06 | BP175: 1.20E+07 | BQ175: 2.30E+06 | BR175: 1.40E+06 | BS175: 2.90E+06 | BT175: 1.40E+06 | BU175: 11.4 | BV175: 4.5 | BW175: 8.6 | BX175: 1.6 | BY175: 1.0 | BZ175: 2.1
B176: sp|Q9UHI8|ATS1_HUMAN | C176: ADAMTS1 | D176: 15 | E176: 22 | F176: 1.20E+07 | G176: 0.04 | J176: sp|Q12906|ILF3_HUMAN | K176: ILF3 | L176: 14 | M176: 19 | N176: 6.80E+06 | O176: 0.03 | R176: sp|P62736|ACTA_HUMAN | S176: ACTA2 | T176: 11 | U176: 69 | V176: 8.30E+08 | W176: 3.03 | Z176: sp|P0DP24|CALM2_HUMAN | AA176: CALM2 | AB176: 11 | AC176: 20 | AD176: 5.00E+07 | AE176: 0.45 | AH176: sp|Q07955|SRSF1_HUMAN | AI176: SRSF1 | AJ176: 11 | AK176: 17 | AL176: 2.00E+06 | AM176: 0.02 | AP176: sp|Q06830|PRDX1_HUMAN | AQ176: PRDX1 | AR176: 10 | AS176: 18 | AT176: 7.30E+07 | AU176: 0.32 | AW176: sp|P62195|PRS8_HUMAN | AX176: PSMC5 | AY176: 26S protease regulatory subunit 8 OS=Homo sapiens GN=PSMC5 PE=1 SV=1 | AZ176: 45.6 | BA176: 15 | BB176: 20 | BC176: 15 | BD176: 19 | BE176: 6 | BF176: 7 | BG176: 17 | BH176: 23 | BI176: 12 | BJ176: 13 | BK176: 0 | BL176: 0 | BM176: 23 | BN176: 6.50E+06 | BO176: 5.60E+06 | BP176: 1.90E+06 | BQ176: 3.50E+06 | BR176: 1.00E+06 | BS176: NF | BT176: 1.00E+06 | BU176: 6.5 | BV176: 5.6 | BW176: 1.9 | BX176: 3.5 | BY176: 1.0 | BZ176: 0.0
B177: sp|O43390|HNRPR_HUMAN | C177: HNRNPR | D177: 15 | E177: 22 | F177: 7.40E+06 | G177: 0.02 | J177: sp|P27797|CALR_HUMAN | K177: CALR | L177: 14 | M177: 19 | N177: 2.10E+07 | O177: 0.08 | R177: sp|P0DP24|CALM2_HUMAN | S177: CALM2 | T177: 11 | U177: 50 | V177: 9.20E+07 | W177: 0.33 | Z177: sp|P35556|FBN2_HUMAN | AA177: FBN2 | AB177: 11 | AC177: 19 | AD177: 2.30E+07 | AE177: 0.21 | AH177: sp|P16278|BGAL_HUMAN | AI177: GLB1 | AJ177: 11 | AK177: 16 | AL177: 2.70E+07 | AM177: 0.28 | AP177: sp|Q16610|ECM1_HUMAN | AQ177: ECM1 | AR177: 10 | AS177: 17 | AT177: 3.30E+07 | AU177: 0.15 | AW177: sp|O94813|SLIT2_HUMAN | AX177: SLIT2 | AY177: Slit homolog 2 protein OS=Homo sapiens GN=SLIT2 PE=1 SV=1 | AZ177: 169.76 | BA177: 18 | BB177: 22 | BC177: 12 | BD177: 14 | BE177: 12 | BF177: 14 | BG177: 7 | BH177: 7 | BI177: 8 | BJ177: 8 | BK177: 9 | BL177: 12 | BM177: 22 | BN177: 9.60E+06 | BO177: 6.20E+06 | BP177: 4.20E+06 | BQ177: 1.00E+06 | BR177: 8.00E+05 | BS177: 2.90E+06 | BT177: 8.00E+05 | BU177: 12.0 | BV177: 7.8 | BW177: 5.3 | BX177: 1.3 | BY177: 1.0 | BZ177: 3.6
B178: sp|P27816|MAP4_HUMAN | C178: MAP4 | D178: 15 | E178: 21 | F178: 4.00E+06 | G178: 0.01 | J178: sp|O00410|IPO5_HUMAN | K178: IPO5 | L178: 14 | M178: 18 | N178: 8.20E+06 | O178: 0.03 | R178: sp|P01024|CO3_HUMAN | S178: C3 | T178: 11 | U178: 43 | V178: 1.50E+08 | W178: 0.54 | Z178: sp|O43776|SYNC_HUMAN | AA178: NARS | AB178: 11 | AC178: 19 | AD178: 3.10E+06 | AE178: 0.03 | AH178: sp|P37802|TAGL2_HUMAN | AI178: TAGLN2 | AJ178: 11 | AK178: 15 | AL178: 3.90E+07 | AM178: 0.41 | AP178: sp|P32119|PRDX2_HUMAN | AQ178: PRDX2 | AR178: 10 | AS178: 17 | AT178: 6.40E+07 | AU178: 0.28 | AW178: sp|P10253|LYAG_HUMAN | AX178: GAA | AY178: Lysosomal alpha-glucosidase OS=Homo sapiens GN=GAA PE=1 SV=4 | AZ178: 105.26 | BA178: 5 | BB178: 7 | BC178: 5 | BD178: 6 | BE178: 5 | BF178: 9 | BG178: 14 | BH178: 15 | BI178: 13 | BJ178: 15 | BK178: 15 | BL178: 20 | BM178: 20 | BN178: 1.30E+06 | BO178: 5.50E+05 | BP178: 1.50E+06 | BQ178: 4.30E+06 | BR178: 3.80E+06 | BS178: 1.30E+07 | BT178: 5.50E+05 | BU178: 2.4 | BV178: 1.0 | BW178: 2.7 | BX178: 7.8 | BY178: 6.9 | BZ178: 23.6
B179: sp|Q9Y617|SERC_HUMAN | C179: PSAT1 | D179: 15 | E179: 21 | F179: 2.90E+07 | G179: 0.09 | J179: sp|Q05707|COEA1_HUMAN | K179: COL14A1 | L179: 14 | M179: 17 | N179: 2.80E+06 | O179: 0.01 | R179: sp|P08238|HS90B_HUMAN | S179: HSP90AB1 | T179: 11 | U179: 35 | V179: 1.80E+08 | W179: 0.66 | Z179: sp|P05067|A4_HUMAN | AA179: APP | AB179: 11 | AC179: 19 | AD179: 2.00E+07 | AE179: 0.18 | AH179: sp|P06280|AGAL_HUMAN | AI179: GLA | AJ179: 11 | AK179: 14 | AL179: 5.20E+06 | AM179: 0.05 | AP179: sp|P61978|HNRPK_HUMAN | AQ179: HNRNPK | AR179: 10 | AS179: 15 | AT179: 9.10E+06 | AU179: 0.04 | AW179: sp|P11717|MPRI_HUMAN | AX179: IGF2R | AY179: Cation-independent mannose-6-phosphate receptor OS=Homo sapiens GN=IGF2R PE=1 SV=3 | AZ179: 274.2 | BA179: 10 | BB179: 11 | BC179: 11 | BD179: 11 | BE179: 15 | BF179: 16 | BG179: 10 | BH179: 10 | BI179: 3 | BJ179: 3 | BK179: 15 | BL179: 17 | BM179: 17 | BN179: 2.80E+06 | BO179: 4.40E+06 | BP179: 6.20E+06 | BQ179: 2.00E+06 | BR179: 2.50E+05 | BS179: 1.00E+07 | BT179: 2.50E+05 | BU179: 11.2 | BV179: 17.6 | BW179: 24.8 | BX179: 8.0 | BY179: 1.0 | BZ179: 40.0
B180: sp|P62195|PRS8_HUMAN | C180: PSMC5 | D180: 15 | E180: 20 | F180: 6.50E+06 | G180: 0.02 | J180: sp|Q14703|MBTP1_HUMAN | K180: MBTPS1 | L180: 14 | M180: 16 | N180: 6.40E+06 | O180: 0.03 | R180: sp|P68104|EF1A1_HUMAN | S180: EEF1A1 | T180: 11 | U180: 32 | V180: 1.10E+08 | W180: 0.41 | Z180: sp|P40227|TCPZ_HUMAN | AA180: CCT6A | AB180: 11 | AC180: 17 | AD180: 4.10E+06 | AE180: 0.04 | AH180: sp|Q99985|SEM3C_HUMAN | AI180: SEMA3C | AJ180: 11 | AK180: 14 | AL180: 4.30E+06 | AM180: 0.04 | AP180: sp|P30101|PDIA3_HUMAN | AQ180: PDIA3 | AR180: 10 | AS180: 15 | AT180: 1.30E+07 | AU180: 0.06 | AW180: sp|O43143|DHX15_HUMAN | AX180: DHX15 | AY180: Pre-mRNA-splicing factor ATP-dependent RNA helicase DHX15 OS=Homo sapiens GN=DHX15 PE=1 SV=2 | AZ180: 90.88 | BA180: 20 | BB180: 24 | BC180: 8 | BD180: 11 | BE180: 8 | BF180: 10 | BG180: 6 | BH180: 8 | BI180: 5 | BJ180: 5 | BK180: 4 | BL180: 5 | BM180: 24 | BN180: 6.40E+06 | BO180: 2.40E+06 | BP180: 3.20E+06 | BQ180: 5.90E+05 | BR180: 4.30E+05 | BS180: 7.80E+05 | BT180: 4.30E+05 | BU180: 14.9 | BV180: 5.6 | BW180: 7.4 | BX180: 1.4 | BY180: 1.0 | BZ180: 1.8
B181: sp|P52209|6PGD_HUMAN | C181: PGD | D181: 15 | E181: 20 | F181: 3.40E+07 | G181: 0.11 | J181: sp|Q15084|PDIA6_HUMAN | K181: PDIA6 | L181: 14 | M181: 16 | N181: 9.80E+06 | O181: 0.04 | R181: sp|Q02487|DSC2_HUMAN | S181: DSC2 | T181: 11 | U181: 28 | V181: 2.30E+07 | W181: 0.08 | Z181: sp|P11940|PABP1_HUMAN | AA181: PABPC1 | AB181: 11 | AC181: 17 | AD181: 2.70E+06 | AE181: 0.02 | AH181: sp|P15586|GNS_HUMAN | AI181: GNS | AJ181: 11 | AK181: 14 | AL181: 3.80E+07 | AM181: 0.40 | AP181: sp|P30041|PRDX6_HUMAN | AQ181: PRDX6 | AR181: 10 | AS181: 14 | AT181: 1.00E+07 | AU181: 0.05 | AW181: sp|P53618|COPB_HUMAN | AX181: COPB1 | AY181: Coatomer subunit beta OS=Homo sapiens GN=COPB1 PE=1 SV=3 | AZ181: 107.07 | BA181: 17 | BB181: 18 | BC181: 10 | BD181: 11 | BE181: 6 | BF181: 7 | BG181: 7 | BH181: 9 | BI181: 10 | BJ181: 11 | BK181: 6 | BL181: 6 | BM181: 18 | BN181: 9.00E+06 | BO181: 3.30E+06 | BP181: 1.80E+06 | BQ181: 7.50E+05 | BR181: 1.80E+06 | BS181: 1.10E+06 | BT181: 7.50E+05 | BU181: 12.0 | BV181: 4.4 | BW181: 2.4 | BX181: 1.0 | BY181: 2.4 | BZ181: 1.5
B182: sp|P41250|GARS_HUMAN | C182: GARS | D182: 15 | E182: 17 | F182: 5.80E+06 | G182: 0.02 | J182: sp|Q9NYU2|UGGG1_HUMAN | K182: UGGT1 | L182: 14 | M182: 15 | N182: 1.10E+06 | O182: 0.00 | R182: sp|Q14240|IF4A2_HUMAN | S182: EIF4A2 | T182: 11 | U182: 24 | V182: 8.30E+07 | W182: 0.30 | Z182: sp|P16278|BGAL_HUMAN | AA182: GLB1 | AB182: 11 | AC182: 16 | AD182: 3.50E+07 | AE182: 0.32 | AH182: sp|P17980|PRS6A_HUMAN | AI182: PSMC3 | AJ182: 11 | AK182: 13 | AL182: 1.70E+06 | AM182: 0.02 | AP182: sp|Q12905|ILF2_HUMAN | AQ182: ILF2 | AR182: 10 | AS182: 13 | AT182: 5.50E+06 | AU182: 0.02 | AW182: sp|P37837|TALDO_HUMAN | AX182: TALDO1 | AY182: Transaldolase OS=Homo sapiens GN=TALDO1 PE=1 SV=2 | AZ182: 37.52 | BA182: 12 | BB182: 13 | BC182: 10 | BD182: 10 | BE182: 4 | BF182: 4 | BG182: 15 | BH182: 15 | BI182: 14 | BJ182: 14 | BK182: 5 | BL182: 5 | BM182: 15 | BN182: 3.30E+07 | BO182: 1.90E+07 | BP182: 2.80E+06 | BQ182: 7.90E+06 | BR182: 1.10E+07 | BS182: 4.90E+06 | BT182: 2.80E+06 | BU182: 11.8 | BV182: 6.8 | BW182: 1.0 | BX182: 2.8 | BY182: 3.9 | BZ182: 1.8
B183: sp|P49368|TCPG_HUMAN | C183: CCT3 | D183: 15 | E183: 17 | F183: 5.90E+06 | G183: 0.02 | J183: sp|P55072|TERA_HUMAN | K183: VCP | L183: 14 | M183: 15 | N183: 5.80E+06 | O183: 0.02 | R183: sp|P07602|SAP_HUMAN | S183: PSAP | T183: 11 | U183: 24 | V183: 1.30E+07 | W183: 0.05 | Z183: sp|Q13822|ENPP2_HUMAN | AA183: ENPP2 | AB183: 11 | AC183: 15 | AD183: 3.10E+06 | AE183: 0.03 | AH183: sp|Q9BWD1|THIC_HUMAN | AI183: ACAT2 | AJ183: 11 | AK183: 13 | AL183: 7.60E+06 | AM183: 0.08 | AP183: sp|P28066|PSA5_HUMAN | AQ183: PSMA5 | AR183: 10 | AS183: 13 | AT183: 7.30E+06 | AU183: 0.03 | AW183: sp|O00462|MANBA_HUMAN | AX183: MANBA | AY183: Beta-mannosidase OS=Homo sapiens GN=MANBA PE=2 SV=3 | AZ183: 100.83 | BA183: 4 | BB183: 4 | BC183: 1 | BD183: 1 | BE183: 3 | BF183: 3 | BG183: 15 | BH183: 16 | BI183: 13 | BJ183: 13 | BK183: 16 | BL183: 21 | BM183: 21 | BN183: 5.80E+05 | BO183: 9.10E+04 | BP183: 8.60E+05 | BQ183: 5.30E+06 | BR183: 3.70E+06 | BS183: 2.40E+07 | BT183: 9.10E+04 | BU183: 6.4 | BV183: 1.0 | BW183: 9.5 | BX183: 58.2 | BY183: 40.7 | BZ183: 263.7
B184: sp|Q16881|TRXR1_HUMAN | C184: TXNRD1 | D184: 15 | E184: 16 | F184: 7.30E+06 | G184: 0.02 | J184: sp|P58107|EPIPL_HUMAN | K184: EPPK1 | L184: 14 | M184: 15 | N184: 3.30E+06 | O184: 0.01 | R184: sp|P61978|HNRPK_HUMAN | S184: HNRNPK | T184: 11 | U184: 20 | V184: 8.10E+06 | W184: 0.03 | Z184: sp|P00491|PNPH_HUMAN | AA184: PNP | AB184: 11 | AC184: 14 | AD184: 2.70E+06 | AE184: 0.02 | AH184: sp|P31948|STIP1_HUMAN | AI184: STIP1 | AJ184: 11 | AK184: 13 | AL184: 4.20E+06 | AM184: 0.04 | AP184: sp|P28074|PSB5_HUMAN | AQ184: PSMB5 | AR184: 10 | AS184: 12 | AT184: 9.60E+06 | AU184: 0.04 | AW184: sp|O43242|PSMD3_HUMAN | AX184: PSMD3 | AY184: 26S proteasome non-ATPase regulatory subunit 3 OS=Homo sapiens GN=PSMD3 PE=1 SV=2 | AZ184: 60.94 | BA184: 0 | BB184: 0 | BC184: 18 | BD184: 18 | BE184: 5 | BF184: 6 | BG184: 12 | BH184: 12 | BI184: 7 | BJ184: 7 | BK184: 6 | BL184: 7 | BM184: 18 | BN184: NF | BO184: 7.00E+06 | BP184: 1.40E+06 | BQ184: 1.60E+06 | BR184: 1.20E+07 | BS184: 2.60E+06 | BT184: 1.40E+06 | BU184: 0.0 | BV184: 5.0 | BW184: 1.0 | BX184: 1.1 | BY184: 8.6 | BZ184: 1.9
B185: sp|P23381|SYWC_HUMAN | C185: WARS | D185: 15 | E185: 16 | F185: 5.10E+06 | G185: 0.02 | J185: sp|Q99460|PSMD1_HUMAN | K185: PSMD1 | L185: 14 | M185: 15 | N185: 4.60E+06 | O185: 0.02 | R185: sp|P23526|SAHH_HUMAN | S185: AHCY | T185: 11 | U185: 19 | V185: 2.70E+07 | W185: 0.10 | Z185: sp|P25787|PSA2_HUMAN | AA185: PSMA2 | AB185: 11 | AC185: 14 | AD185: 5.40E+06 | AE185: 0.05 | AH185: sp|O00154|BACH_HUMAN | AI185: ACOT7 | AJ185: 11 | AK185: 12 | AL185: 2.80E+06 | AM185: 0.03 | AP185: sp|Q9Y2E5|MA2B2_HUMAN | AQ185: MAN2B2 | AR185: 10 | AS185: 12 | AT185: 4.90E+06 | AU185: 0.02 | AW185: sp|P07814|SYEP_HUMAN | AX185: EPRS | AY185: Bifunctional glutamate/proline--tRNA ligase OS=Homo sapiens GN=EPRS PE=1 SV=5 | AZ185: 170.48 | BA185: 17 | BB185: 18 | BC185: 9 | BD185: 10 | BE185: 8 | BF185: 9 | BG185: 3 | BH185: 3 | BI185: 2 | BJ185: 2 | BK185: 3 | BL185: 3 | BM185: 18 | BN185: 7.10E+06 | BO185: 1.60E+06 | BP185: 2.30E+06 | BQ185: 2.40E+05 | BR185: 5.30E+04 | BS185: 3.00E+05 | BT185: 5.30E+04 | BU185: 134.0 | BV185: 30.2 | BW185: 43.4 | BX185: 4.5 | BY185: 1.0 | BZ185: 5.7
B186: sp|P35241|RADI_HUMAN | C186: RDX | D186: 15 | E186: 16 | F186: 8.90E+06 | G186: 0.03 | J186: sp|P54577|SYYC_HUMAN | K186: YARS | L186: 14 | M186: 15 | N186: 5.70E+06 | O186: 0.02 | R186: sp|Q14118|DAG1_HUMAN | S186: DAG1 | T186: 11 | U186: 19 | V186: 7.90E+07 | W186: 0.29 | Z186: sp|P31150|GDIA_HUMAN | AA186: GDI1 | AB186: 11 | AC186: 14 | AD186: 5.30E+06 | AE186: 0.05 | AH186: sp|Q9BT78|CSN4_HUMAN | AI186: COPS4 | AJ186: 11 | AK186: 12 | AL186: 1.30E+06 | AM186: 0.01 | AP186: sp|O75533|SF3B1_HUMAN | AQ186: SF3B1 | AR186: 10 | AS186: 12 | AT186: 1.40E+07 | AU186: 0.06 | AW186: sp|P42285|SK2L2_HUMAN | AX186: SKIV2L2 | AY186: Superkiller viralicidic activity 2-like 2 OS=Homo sapiens GN=SKIV2L2 PE=1 SV=3 | AZ186: 117.73 | BA186: 18 | BB186: 19 | BC186: 6 | BD186: 6 | BE186: 6 | BF186: 7 | BG186: 1 | BH186: 1 | BI186: 6 | BJ186: 6 | BK186: 3 | BL186: 3 | BM186: 19 | BN186: 6.20E+06 | BO186: 4.70E+05 | BP186: 1.10E+06 | BQ186: 3.80E+04 | BR186: 2.30E+05 | BS186: 3.10E+05 | BT186: 3.80E+04 | BU186: 163.2 | BV186: 12.4 | BW186: 28.9 | BX186: 1.0 | BY186: 6.1 | BZ186: 8.2
B187: sp|Q14008|CKAP5_HUMAN | C187: CKAP5 | D187: 15 | E187: 16 | F187: 2.80E+06 | G187: 0.01 | J187: sp|P17174|AATC_HUMAN | K187: GOT1 | L187: 14 | M187: 14 | N187: 1.80E+07 | O187: 0.08 | R187: sp|P26641|EF1G_HUMAN | S187: EEF1G | T187: 11 | U187: 19 | V187: 1.50E+07 | W187: 0.05 | Z187: sp|Q9GZP0|PDGFD_HUMAN | AA187: PDGFD | AB187: 11 | AC187: 14 | AD187: 2.30E+06 | AE187: 0.02 | AH187: sp|P07225|PROS_HUMAN | AI187: PROS1 | AJ187: 11 | AK187: 12 | AL187: 1.10E+07 | AM187: 0.11 | AP187: sp|P22102|PUR2_HUMAN | AQ187: GART | AR187: 10 | AS187: 12 | AT187: 3.00E+06 | AU187: 0.01 | AW187: sp|Q86XX4|FRAS1_HUMAN | AX187: FRAS1 | AY187: Extracellular matrix protein FRAS1 OS=Homo sapiens GN=FRAS1 PE=1 SV=2 | AZ187: 442.93 | BA187: 0 | BB187: 0 | BC187: 7 | BD187: 8 | BE187: 12 | BF187: 14 | BG187: 1 | BH187: 1 | BI187: 0 | BJ187: 0 | BK187: 13 | BL187: 15 | BM187: 15 | BN187: NF | BO187: 1.10E+07 | BP187: 2.60E+06 | BQ187: 1.50E+05 | BR187: NF | BS187: 2.50E+06 | BT187: 1.50E+05 | BU187: 0.0 | BV187: 73.3 | BW187: 17.3 | BX187: 1.0 | BY187: 0.0 | BZ187: 16.7
B188: sp|P35606|COPB2_HUMAN | C188: COPB2 | D188: 15 | E188: 16 | F188: 8.00E+06 | G188: 0.03 | J188: sp|P27694|RFA1_HUMAN | K188: RPA1 | L188: 14 | M188: 14 | N188: 7.90E+06 | O188: 0.03 | R188: sp|Q13308|PTK7_HUMAN | S188: PTK7 | T188: 11 | U188: 18 | V188: 1.70E+07 | W188: 0.06 | Z188: sp|Q99497|PARK7_HUMAN | AA188: PARK7 | AB188: 11 | AC188: 14 | AD188: 2.80E+07 | AE188: 0.25 | AH188: sp|P28482|MK01_HUMAN | AI188: MAPK1 | AJ188: 11 | AK188: 12 | AL188: 2.10E+06 | AM188: 0.02 | AP188: sp|P14314|GLU2B_HUMAN | AQ188: PRKCSH | AR188: 10 | AS188: 12 | AT188: 8.10E+06 | AU188: 0.04 | AW188: sp|P26358|DNMT1_HUMAN | AX188: DNMT1 | AY188: DNA (cytosine-5)-methyltransferase 1 OS=Homo sapiens GN=DNMT1 PE=1 SV=2 | AZ188: 183.05 | BA188: 20 | BB188: 21 | BC188: 4 | BD188: 4 | BE188: 3 | BF188: 3 | BG188: 0 | BH188: 0 | BI188: 0 | BJ188: 0 | BK188: 2 | BL188: 2 | BM188: 21 | BN188: 6.80E+06 | BO188: 3.10E+05 | BP188: 5.00E+05 | BQ188: NF | BR188: NF | BS188: 3.70E+05 | BT188: 3.10E+05 | BU188: 21.9 | BV188: 1.0 | BW188: 1.6 | BX188: 0.0 | BY188: 0.0 | BZ188: 1.2
B189: sp|P48637|GSHB_HUMAN | C189: GSS | D189: 15 | E189: 16 | F189: 9.70E+06 | G189: 0.03 | J189: sp|O15144|ARPC2_HUMAN | K189: ARPC2 | L189: 14 | M189: 14 | N189: 6.20E+06 | O189: 0.03 | R189: sp|P17987|TCPA_HUMAN | S189: TCP1 | T189: 11 | U189: 17 | V189: 4.60E+06 | W189: 0.02 | Z189: sp|Q13162|PRDX4_HUMAN | AA189: PRDX4 | AB189: 11 | AC189: 13 | AD189: 2.70E+07 | AE189: 0.25 | AH189: sp|P27797|CALR_HUMAN | AI189: CALR | AJ189: 11 | AK189: 12 | AL189: 2.90E+06 | AM189: 0.03 | AP189: sp|Q92859|NEO1_HUMAN | AQ189: NEO1 | AR189: 10 | AS189: 12 | AT189: 2.90E+06 | AU189: 0.01 | AW189: sp|P12277|KCRB_HUMAN | AX189: CKB | AY189: Creatine kinase B-type OS=Homo sapiens GN=CKB PE=1 SV=1 | AZ189: 42.62 | BA189: 14 | BB189: 45 | BC189: 16 | BD189: 44 | BE189: 14 | BF189: 56 | BG189: 13 | BH189: 33 | BI189: 13 | BJ189: 33 | BK189: 13 | BL189: 37 | BM189: 56 | BN189: 1.30E+08 | BO189: 1.80E+08 | BP189: 2.20E+08 | BQ189: 3.60E+07 | BR189: 3.60E+07 | BS189: 5.10E+07 | BT189: 3.60E+07 | BU189: 3.6 | BV189: 5.0 | BW189: 6.1 | BX189: 1.0 | BY189: 1.0 | BZ189: 1.4
B190: sp|Q9UQ80|PA2G4_HUMAN | C190: PA2G4 | D190: 15 | E190: 16 | F190: 3.00E+07 | G190: 0.10 | J190: sp|Q8NC51|PAIRB_HUMAN | K190: SERBP1 | L190: 13 | M190: 32 | N190: 7.60E+06 | O190: 0.03 | R190: sp|Q14393|GAS6_HUMAN | S190: GAS6 | T190: 11 | U190: 16 | V190: 1.10E+07 | W190: 0.04 | Z190: sp|O00154|BACH_HUMAN | AA190: ACOT7 | AB190: 11 | AC190: 12 | AD190: 2.30E+06 | AE190: 0.02 | AH190: sp|O00148|DX39A_HUMAN | AI190: DDX39A | AJ190: 11 | AK190: 12 | AL190: 4.00E+06 | AM190: 0.04 | AP190: sp|Q15029|U5S1_HUMAN | AQ190: EFTUD2 | AR190: 10 | AS190: 11 | AT190: 2.20E+06 | AU190: 0.01 | AW190: sp|O43405|COCH_HUMAN | AX190: COCH | AY190: Cochlin OS=Homo sapiens GN=COCH PE=1 SV=1 | AZ190: 59.45 | BA190: 18 | BB190: 33 | BC190: 18 | BD190: 47 | BE190: 17 | BF190: 40 | BG190: 19 | BH190: 43 | BI190: 19 | BJ190: 39 | BK190: 17 | BL190: 41 | BM190: 47 | BN190: 4.60E+07 | BO190: 1.30E+08 | BP190: 8.40E+07 | BQ190: 6.50E+07 | BR190: 4.20E+07 | BS190: 1.10E+08 | BT190: 4.20E+07 | BU190: 1.1 | BV190: 3.1 | BW190: 2.0 | BX190: 1.5 | BY190: 1.0 | BZ190: 2.6
B191: sp|Q14683|SMC1A_HUMAN | C191: SMC1A | D191: 15 | E191: 16 | F191: 3.60E+06 | G191: 0.01 | J191: sp|P61978|HNRPK_HUMAN | K191: HNRNPK | L191: 13 | M191: 31 | N191: 1.70E+07 | O191: 0.07 | R191: sp|P02458|CO2A1_HUMAN | S191: COL2A1 | T191: 11 | U191: 16 | V191: 9.60E+06 | W191: 0.03 | Z191: sp|Q15084|PDIA6_HUMAN | AA191: PDIA6 | AB191: 11 | AC191: 11 | AD191: 2.50E+06 | AE191: 0.02 | AH191: sp|Q99574|NEUS_HUMAN | AI191: SERPINI1 | AJ191: 11 | AK191: 12 | AL191: 3.00E+06 | AM191: 0.03 | AP191: sp|Q93008|USP9X_HUMAN | AQ191: USP9X | AR191: 10 | AS191: 11 | AT191: 2.30E+06 | AU191: 0.01 | AW191: sp|P68104|EF1A1_HUMAN | AX191: EEF1A1 | AY191: Elongation factor 1-alpha 1 OS=Homo sapiens GN=EEF1A1 PE=1 SV=1 | AZ191: 50.11 | BA191: 16 | BB191: 48 | BC191: 15 | BD191: 48 | BE191: 11 | BF191: 32 | BG191: 18 | BH191: 47 | BI191: 14 | BJ191: 37 | BK191: 12 | BL191: 23 | BM191: 48 | BN191: 2.60E+08 | BO191: 2.60E+08 | BP191: 1.10E+08 | BQ191: 1.10E+08 | BR191: 5.30E+07 | BS191: 5.10E+07 | BT191: 5.10E+07 | BU191: 5.1 | BV191: 5.1 | BW191: 2.2 | BX191: 2.2 | BY191: 1.0 | BZ191: 1.0
B192: sp|P14735|IDE_HUMAN | C192: IDE | D192: 15 | E192: 16 | F192: 9.00E+06 | G192: 0.03 | J192: sp|P08238|HS90B_HUMAN | K192: HSP90AB1 | L192: 13 | M192: 31 | N192: 1.40E+08 | O192: 0.56 | R192: sp|P23142|FBLN1_HUMAN | S192: FBLN1 | T192: 11 | U192: 16 | V192: 1.90E+07 | W192: 0.07 | Z192: sp|Q9ULB5|CADH7_HUMAN | AA192: CDH7 | AB192: 11 | AC192: 11 | AD192: 2.40E+06 | AE192: 0.02 | AH192: sp|Q9Y230|RUVB2_HUMAN | AI192: RUVBL2 | AJ192: 11 | AK192: 11 | AL192: 1.00E+06 | AM192: 0.01 | AP192: sp|P13497|BMP1_HUMAN | AQ192: BMP1 | AR192: 10 | AS192: 11 | AT192: 6.20E+06 | AU192: 0.03 | AW192: sp|P00338|LDHA_HUMAN | AX192: LDHA | AY192: L-lactate dehydrogenase A chain OS=Homo sapiens GN=LDHA PE=1 SV=2 | AZ192: 36.67 | BA192: 15 | BB192: 34 | BC192: 17 | BD192: 38 | BE192: 12 | BF192: 24 | BG192: 4 | BH192: 5 | BI192: 12 | BJ192: 18 | BK192: 13 | BL192: 23 | BM192: 38 | BN192: 1.70E+08 | BO192: 2.00E+08 | BP192: 4.10E+07 | BQ192: 3.40E+05 | BR192: 2.20E+07 | BS192: 3.20E+07 | BT192: 3.40E+05 | BU192: 500.0 | BV192: 588.2 | BW192: 120.6 | BX192: 1.0 | BY192: 64.7 | BZ192: 94.1
B193: sp|O00231|PSD11_HUMAN | C193: PSMD11 | D193: 15 | E193: 15 | F193: 2.50E+07 | G193: 0.08 | J193: sp|P32119|PRDX2_HUMAN | K193: PRDX2 | L193: 13 | M193: 26 | N193: 1.50E+08 | O193: 0.60 | R193: sp|P02649|APOE_HUMAN | S193: APOE | T193: 11 | U193: 15 | V193: 9.80E+06 | W193: 0.04 | Z193: sp|Q14152|EIF3A_HUMAN | AA193: EIF3A | AB193: 11 | AC193: 11 | AD193: 1.30E+06 | AE193: 0.01 | AH193: sp|P53004|BIEA_HUMAN | AI193: BLVRA | AJ193: 11 | AK193: 11 | AL193: 1.90E+06 | AM193: 0.02 | AP193: sp|Q8WVQ1|CANT1_HUMAN | AQ193: CANT1 | AR193: 10 | AS193: 10 | AT193: 9.70E+06 | AU193: 0.04 | AW193: sp|Q9UHI8|ATS1_HUMAN | AX193: ADAMTS1 | AY193: A disintegrin and metalloproteinase with thrombospondin motifs 1 OS=Homo sapiens GN=ADAMTS1 PE=1 SV=4 | AZ193: 105.29 | BA193: 15 | BB193: 22 | BC193: 15 | BD193: 23 | BE193: 14 | BF193: 28 | BG193: 14 | BH193: 21 | BI193: 12 | BJ193: 16 | BK193: 14 | BL193: 25 | BM193: 28 | BN193: 1.20E+07 | BO193: 8.30E+06 | BP193: 1.30E+07 | BQ193: 5.10E+06 | BR193: 3.70E+06 | BS193: 1.40E+07 | BT193: 3.70E+06 | BU193: 3.2 | BV193: 2.2 | BW193: 3.5 | BX193: 1.4 | BY193: 1.0 | BZ193: 3.8
B194: sp|O43592|XPOT_HUMAN | C194: XPOT | D194: 15 | E194: 15 | F194: 2.40E+07 | G194: 0.08 | J194: sp|P40926|MDHM_HUMAN | K194: MDH2 | L194: 13 | M194: 24 | N194: 5.40E+07 | O194: 0.22 | R194: sp|P13798|ACPH_HUMAN | S194: APEH | T194: 11 | U194: 15 | V194: 6.20E+06 | W194: 0.02 | Z194: sp|Q01082|SPTB2_HUMAN | AA194: SPTBN1 | AB194: 11 | AC194: 11 | AD194: 1.10E+06 | AE194: 0.01 | AH194: sp|P55884|EIF3B_HUMAN | AI194: EIF3B | AJ194: 11 | AK194: 11 | AL194: 2.50E+06 | AM194: 0.03 | AP194: sp|Q02487|DSC2_HUMAN | AQ194: DSC2 | AR194: 9 | AS194: 27 | AT194: 1.20E+07 | AU194: 0.05 | AW194: sp|Q9BRK5|CAB45_HUMAN | AX194: SDF4 | AY194: 45 kDa calcium-binding protein OS=Homo sapiens GN=SDF4 PE=1 SV=1 | AZ194: 41.78 | BA194: 14 | BB194: 19 | BC194: 13 | BD194: 20 | BE194: 13 | BF194: 28 | BG194: 14 | BH194: 20 | BI194: 10 | BJ194: 14 | BK194: 12 | BL194: 19 | BM194: 28 | BN194: 3.60E+07 | BO194: 2.80E+07 | BP194: 3.30E+07 | BQ194: 2.50E+07 | BR194: 1.10E+07 | BS194: 2.10E+07 | BT194: 1.10E+07 | BU194: 3.3 | BV194: 2.5 | BW194: 3.0 | BX194: 2.3 | BY194: 1.0 | BZ194: 1.9
B195: sp|Q08211|DHX9_HUMAN | C195: DHX9 | D195: 15 | E195: 15 | F195: 5.60E+06 | G195: 0.02 | J195: sp|Q9BRK5|CAB45_HUMAN | K195: SDF4 | L195: 13 | M195: 20 | N195: 2.80E+07 | O195: 0.12 | R195: sp|Q14566|MCM6_HUMAN | S195: MCM6 | T195: 11 | U195: 14 | V195: 4.10E+06 | W195: 0.01 | Z195: sp|O43852|CALU_HUMAN | AA195: CALU | AB195: 11 | AC195: 11 | AD195: 2.60E+06 | AE195: 0.02 | AH195: sp|P12081|SYHC_HUMAN | AI195: HARS | AJ195: 11 | AK195: 11 | AL195: 1.80E+06 | AM195: 0.02 | AP195: sp|P28799|GRN_HUMAN | AQ195: GRN | AR195: 9 | AS195: 25 | AT195: 8.80E+07 | AU195: 0.38 | AW195: sp|Q9H3G5|CPVL_HUMAN | AX195: CPVL | AY195: Probable serine carboxypeptidase CPVL OS=Homo sapiens GN=CPVL PE=1 SV=2 | AZ195: 54.13 | BA195: =IFERROR(VLOOKUP(AW195,B:F,3, FALSE),0) -> 9 | BB195: =IFERROR(VLOOKUP(AW195,B:F,4, FALSE),0) -> 9 | BC195: =IFERROR(VLOOKUP(AW195,J:N,3, FALSE),0) -> 9 | BD195: =IFERROR(VLOOKUP(AW195,J:N,4, FALSE),0) -> 9 | BE195: =IFERROR(VLOOKUP(AW195,R:V,3, FALSE),0) -> 5 | BF195: =IFERROR(VLOOKUP(AW195,R:V,4, FALSE),0) -> 5 | BG195: =IFERROR(VLOOKUP(AW195,Z:AD,3, FALSE),0) -> 10 | BH195: =IFERROR(VLOOKUP(AW195,Z:AD,4, FALSE),0) -> 16 | BI195: =IFERROR(VLOOKUP(AW195,AH:AL,3, FALSE),0) -> 17 | BJ195: =IFERROR(VLOOKUP(AW195,AH:AL,4, FALSE),0) -> 31 | BK195: =IFERROR(VLOOKUP(AW195,AP:AU,3, FALSE),0) -> 15 | BL195: =IFERROR(VLOOKUP(AW195,AP:AU,4, FALSE),0) -> 43 | BM195: =MAX(BA195:BL195) -> 43 | BN195: =IFERROR(VLOOKUP(AW195,B:F,5, FALSE),"NF") -> 4.90E+06 | BO195: =IFERROR(VLOOKUP(AW195,J:N,5, FALSE),"NF") -> 5.40E+06 | BP195: =IFERROR(VLOOKUP(AW195,R:V,5, FALSE),"NF") -> 1.30E+06 | BQ195: =IFERROR(VLOOKUP(AW195,Z:AD,5, FALSE),"NF") -> 1.50E+07 | BR195: =IFERROR(VLOOKUP(AW195,AH:AL,5, FALSE),"NF") -> 2.80E+07 | BS195: =IFERROR(VLOOKUP(AW195,AP:AU,5, FALSE),"NF") -> 2.40E+08 | BT195: =MIN(BN195:BS195) -> 1.30E+06 | BU195: =IFERROR(BN195/BT195,0) -> 3.8 | BV195: =IFERROR(BO195/BT195,0) -> 4.2 | BW195: =IFERROR(BP195/BT195,0) -> 1.0 | BX195: =IFERROR(BQ195/BT195,0) -> 11.5 | BY195: =IFERROR(BR195/BT195,0) -> 21.5 | BZ195: =IFERROR(BS195/BT195,0) -> 184.6
B196: sp|Q58FF7|H90B3_HUMAN | C196: HSP90AB3P | D196: 14 | E196: 47 | F196: 2.50E+08 | G196: 0.79 | J196: sp|P05067|A4_HUMAN | K196: APP | L196: 13 | M196: 19 | N196: 3.00E+07 | O196: 0.13 | R196: sp|Q06323|PSME1_HUMAN | S196: PSME1 | T196: 11 | U196: 14 | V196: 8.60E+06 | W196: 0.03 | Z196: sp|P07225|PROS_HUMAN | AA196: PROS1 | AB196: 11 | AC196: 11 | AD196: 2.00E+07 | AE196: 0.18 | AH196: sp|P31939|PUR9_HUMAN | AI196: ATIC | AJ196: 11 | AK196: 11 | AL196: 1.90E+06 | AM196: 0.02 | AP196: sp|P18669|PGAM1_HUMAN | AQ196: PGAM1 | AR196: 9 | AS196: 22 | AT196: 2.00E+07 | AU196: 0.09 | AW196: sp|P52209|6PGD_HUMAN | AX196: PGD | AY196: 6-phosphogluconate dehydrogenase, decarboxylating OS=Homo sapiens GN=PGD PE=1 SV=3 | AZ196: 53.11 | BA196: 15 | BB196: 20 | BC196: 14 | BD196: 21 | BE196: 15 | BF196: 22 | BG196: 12 | BH196: 17 | BI196: 12 | BJ196: 12 | BK196: 9 | BL196: 10 | BM196: 22 | BN196: 3.40E+07 | BO196: 4.40E+07 | BP196: 2.80E+07 | BQ196: 1.20E+07 | BR196: 4.60E+06 | BS196: 8.20E+06 | BT196: 4.60E+06 | BU196: 7.4 | BV196: 9.6 | BW196: 6.1 | BX196: 2.6 | BY196: 1.0 | BZ196: 1.8
B197: sp|P12277|KCRB_HUMAN | C197: CKB | D197: 14 | E197: 45 | F197: 1.30E+08 | G197: 0.42 | J197: sp|Q9HBR0|S38AA_HUMAN | K197: SLC38A10 | L197: 13 | M197: 17 | N197: 6.30E+06 | O197: 0.03 | R197: sp|O60568|PLOD3_HUMAN | S197: PLOD3 | T197: 11 | U197: 14 | V197: 1.60E+07 | W197: 0.06 | Z197: sp|Q13347|EIF3I_HUMAN | AA197: EIF3I | AB197: 11 | AC197: 11 | AD197: 2.80E+06 | AE197: 0.03 | AH197: sp|P78527|PRKDC_HUMAN | AI197: PRKDC | AJ197: 11 | AK197: 11 | AL197: 5.80E+05 | AM197: 0.01 | AP197: sp|P00492|HPRT_HUMAN | AQ197: HPRT1 | AR197: 9 | AS197: 18 | AT197: 1.60E+07 | AU197: 0.07 | AW197: sp|P23526|SAHH_HUMAN | AX197: AHCY | AY197: Adenosylhomocysteinase OS=Homo sapiens GN=AHCY PE=1 SV=4 | AZ197: 47.69 | BA197: 12 | BB197: 14 | BC197: 16 | BD197: 19 | BE197: 11 | BF197: 19 | BG197: 15 | BH197: 19 | BI197: 12 | BJ197: 15 | BK197: 8 | BL197: 10 | BM197: 19 | BN197: 2.30E+07 | BO197: 2.90E+07 | BP197: 2.70E+07 | BQ197: 1.00E+07 | BR197: 8.90E+06 | BS197: 4.70E+06 | BT197: 4.70E+06 | BU197: 4.9 | BV197: 6.2 | BW197: 5.7 | BX197: 2.1 | BY197: 1.9 | BZ197: 1.0
B198: sp|P23396|RS3_HUMAN | C198: RPS3 | D198: 14 | E198: 28 | F198: 4.40E+07 | G198: 0.14 | J198: sp|Q9NTK5|OLA1_HUMAN | K198: OLA1 | L198: 13 | M198: 17 | N198: 1.20E+07 | O198: 0.05 | R198: sp|P35998|PRS7_HUMAN | S198: PSMC2 | T198: 11 | U198: 14 | V198: 3.40E+06 | W198: 0.01 | Z198: sp|Q15435|PP1R7_HUMAN | AA198: PPP1R7 | AB198: 11 | AC198: 11 | AD198: 1.20E+06 | AE198: 0.01 | AH198: sp|P16949|STMN1_HUMAN | AI198: STMN1 | AJ198: 10 | AK198: 42 | AL198: 1.30E+07 | AM198: 0.13 | AP198: sp|P50395|GDIB_HUMAN | AQ198: GDI2 | AR198: 9 | AS198: 16 | AT198: 5.70E+06 | AU198: 0.03 | AW198: sp|Q15262|PTPRK_HUMAN | AX198: PTPRK | AY198: Receptor-type tyrosine-protein phosphatase kappa OS=Homo sapiens GN=PTPRK PE=1 SV=2 | AZ198: 162 | BA198: 18 | BB198: 20 | BC198: 11 | BD198: 13 | BE198: 15 | BF198: 21 | BG198: 8 | BH198: 9 | BI198: 8 | BJ198: 10 | BK198: 15 | BL198: 19 | BM198: 21 | BN198: 2.30E+07 | BO198: 1.50E+07 | BP198: 2.50E+07 | BQ198: 5.80E+06 | BR198: 5.90E+06 | BS198: 2.90E+07 | BT198: 5.80E+06 | BU198: 4.0 | BV198: 2.6 | BW198: 4.3 | BX198: 1.0 | BY198: 1.0 | BZ198: 5.0
B199: sp|P80723|BASP1_HUMAN | C199: BASP1 | D199: 14 | E199: 24 | F199: 2.20E+07 | G199: 0.07 | J199: sp|Q10471|GALT2_HUMAN | K199: GALNT2 | L199: 13 | M199: 17 | N199: 1.10E+07 | O199: 0.05 | R199: sp|O95490|AGRL2_HUMAN | S199: ADGRL2 | T199: 11 | U199: 13 | V199: 4.20E+06 | W199: 0.02 | Z199: sp|P61201|CSN2_HUMAN | AA199: COPS2 | AB199: 11 | AC199: 11 | AD199: 7.40E+05 | AE199: 0.01 | AH199: sp|Q58FF7|H90B3_HUMAN | AI199: HSP90AB3P | AJ199: 10 | AK199: 29 | AL199: 7.50E+07 | AM199: 0.78 | AP199: sp|Q9BQT9|CSTN3_HUMAN | AQ199: CLSTN3 | AR199: 9 | AS199: 15 | AT199: 2.00E+07 | AU199: 0.09 | AW199: sp|P17174|AATC_HUMAN | AX199: GOT1 | AY199: Aspartate aminotransferase, cytoplasmic OS=Homo sapiens GN=GOT1 PE=1 SV=3 | AZ199: 46.22 | BA199: 14 | BB199: 14 | BC199: 14 | BD199: 14 | BE199: 13 | BF199: 20 | BG199: 18 | BH199: 18 | BI199: 16 | BJ199: 16 | BK199: 8 | BL199: 8 | BM199: 20 | BN199: 1.60E+07 | BO199: 1.80E+07 | BP199: 1.70E+07 | BQ199: 7.30E+06 | BR199: 7.60E+06 | BS199: 3.90E+06 | BT199: 3.90E+06 | BU199: 4.1 | BV199: 4.6 | BW199: 4.4 | BX199: 1.9 | BY199: 1.9 | BZ199: 1.0
B200: sp|Q13435|SF3B2_HUMAN | C200: SF3B2 | D200: 14 | E200: 21 | F200: 1.40E+07 | G200: 0.04 | J200: sp|Q14566|MCM6_HUMAN | K200: MCM6 | L200: 13 | M200: 15 | N200: 7.90E+06 | O200: 0.03 | R200: sp|Q9UNZ2|NSF1C_HUMAN | S200: NSFL1C | T200: 11 | U200: 12 | V200: 6.80E+06 | W200: 0.02 | Z200: IgG1_bovine | AB200: 10 | AC200: 32 | AD200: 1.40E+08 | AE200: 1.31 | AH200: sp|P0DP24|CALM2_HUMAN | AI200: CALM2 | AJ200: 10 | AK200: 27 | AL200: 3.80E+07 | AM200: 0.40 | AP200: sp|Q58FF8|H90B2_HUMAN | AQ200: HSP90AB2P | AR200: 9 | AS200: 15 | AT200: 8.50E+07 | AU200: 0.37 | AW200: sp|Q8WVQ1|CANT1_HUMAN | AX200: CANT1 | AY200: Soluble calcium-activated nucleotidase 1 OS=Homo sapiens GN=CANT1 PE=1 SV=1 | AZ200: 44.81 | BA200: 11 | BB200: 12 | BC200: 13 | BD200: 14 | BE200: 14 | BF200: 18 | BG200: 17 | BH200: 17 | BI200: 13 | BJ200: 13 | BK200: 10 | BL200: 10 | BM200: 18 | BN200: 1.30E+07 | BO200: 1.10E+07 | BP200: 2.20E+07 | BQ200: 5.30E+06 | BR200: 3.80E+06 | BS200: 9.70E+06 | BT200: 3.80E+06 | BU200: 3.4 | BV200: 2.9 | BW200: 5.8 | BX200: 1.4 | BY200: 1.0 | BZ200: 2.6
... 925 more rows

Sheet Sheet2
A1: reference | B1: Gene Symbol | C1: Annotation | D1: MWT(kDa) | E1: Unique C1 | F1: Total C1 | G1: Unique C2 | H1: Total C2 | I1: Unique C3 | J1: Total C3 | K1: Unique T2 | L1: Total T2 | M1: Unique T3 | N1: Total T3 | O1: Unique T22 | P1: Total T22 | Q1: Max | R1: Sum Intensity C1 | S1: Sum Intensity C2 | T1: Sum Intensity C3 | U1: Sum Intensity T2 | V1: Sum Intensity T3 | W1: Sum Intensity T22 | X1: lowest value | Y1: C1 | Z1: C2 | AA1: C3 | AB1: T2 | AC1: T3 | AD1: T22
A2: sp|P80404|GABT_HUMAN | B2: ABAT | C2: 4-aminobutyrate aminotransferase, mitochondrial OS=Homo sapiens GN=ABAT PE=1 SV=3 | D2: 56.4 | E2: 0 | F2: 0 | G2: 1 | H2: 1 | I2: 0 | J2: 0 | K2: 0 | L2: 0 | M2: 0 | N2: 0 | O2: 0 | P2: 0 | Q2: 1 | R2: NF | S2: 2.40E+03 | T2: NF | U2: NF | V2: NF | W2: NF | X2: 2.40E+03 | Y2: 0.0 | Z2: 1.0 | AA2: 0.0 | AB2: 0.0 | AC2: 0.0 | AD2: 0.0
A3: sp|Q99598|TSNAX_HUMAN | B3: TSNAX | C3: Translin-associated protein X OS=Homo sapiens GN=TSNAX PE=1 SV=1 | D3: 33.09 | E3: 6 | F3: 8 | G3: 6 | H3: 8 | I3: 6 | J3: 8 | K3: 1 | L3: 1 | M3: 0 | N3: 0 | O3: 5 | P3: 6 | Q3: 8 | R3: 3.90E+05 | S3: 7.70E+05 | T3: 9.60E+05 | U3: 2.50E+03 | V3: NF | W3: 6.10E+05 | X3: 2.50E+03 | Y3: 156.0 | Z3: 308.0 | AA3: 384.0 | AB3: 1.0 | AC3: 0.0 | AD3: 244.0
A4: sp|A6NED2|RCCD1_HUMAN | B4: RCCD1 | C4: RCC1 domain-containing protein 1 OS=Homo sapiens GN=RCCD1 PE=1 SV=1 | D4: 40.05 | E4: 0 | F4: 0 | G4: 1 | H4: 1 | I4: 0 | J4: 0 | K4: 1 | L4: 1 | M4: 0 | N4: 0 | O4: 0 | P4: 0 | Q4: 1 | R4: NF | S4: 9.00E+03 | T4: NF | U4: 2.60E+03 | V4: NF | W4: NF | X4: 2.60E+03 | Y4: 0.0 | Z4: 3.5 | AA4: 0.0 | AB4: 1.0 | AC4: 0.0 | AD4: 0.0
A5: tr|Q658J9|Q658J9_HUMAN | B5: DKFZp434L0312 | C5: Histone deacetylase 11 OS=Homo sapiens GN=DKFZp434L0312 PE=1 SV=1 | D5: 25.87 | E5: 0 | F5: 0 | G5: 0 | H5: 0 | I5: 0 | J5: 0 | K5: 0 | L5: 0 | M5: 1 | N5: 1 | O5: 0 | P5: 0 | Q5: 1 | R5: NF | S5: NF | T5: NF | U5: NF | V5: 2.80E+03 | W5: NF | X5: 2.80E+03 | Y5: 0.0 | Z5: 0.0 | AA5: 0.0 | AB5: 0.0 | AC5: 1.0 | AD5: 0.0
A6: sp|Q9Y4E1|WAC2C_HUMAN | B6: WASHC2C | C6: WASH complex subunit 2C OS=Homo sapiens GN=WASHC2C PE=1 SV=3 | D6: 144.58 | E6: 2 | F6: 3 | G6: 0 | H6: 0 | I6: 1 | J6: 2 | K6: 1 | L6: 1 | M6: 0 | N6: 0 | O6: 0 | P6: 0 | Q6: 3 | R6: 5.30E+04 | S6: NF | T6: 3.90E+04 | U6: 2.90E+03 | V6: NF | W6: NF | X6: 2.90E+03 | Y6: 18.3 | Z6: 0.0 | AA6: 13.4 | AB6: 1.0 | AC6: 0.0 | AD6: 0.0
A7: sp|Q96T23|RSF1_HUMAN | B7: RSF1 | C7: Remodeling and spacing factor 1 OS=Homo sapiens GN=RSF1 PE=1 SV=2 | D7: 163.72 | E7: 1 | F7: 1 | G7: 1 | H7: 1 | I7: 1 | J7: 1 | K7: 0 | L7: 0 | M7: 1 | N7: 1 | O7: 0 | P7: 0 | Q7: 1 | R7: 6.00E+03 | S7: 1.50E+04 | T7: 8.70E+03 | U7: NF | V7: 3.10E+03 | W7: NF | X7: 3.10E+03 | Y7: 1.9 | Z7: 4.8 | AA7: 2.8 | AB7: 0.0 | AC7: 1.0 | AD7: 0.0
A8: sp|P46934|NEDD4_HUMAN | B8: NEDD4 | C8: E3 ubiquitin-protein ligase NEDD4 OS=Homo sapiens GN=NEDD4 PE=1 SV=4 | D8: 149.02 | E8: 1 | F8: 1 | G8: 0 | H8: 0 | I8: 0 | J8: 0 | K8: 1 | L8: 1 | M8: 0 | N8: 0 | O8: 0 | P8: 0 | Q8: 1 | R8: 1.60E+04 | S8: NF | T8: NF | U8: 3.40E+03 | V8: NF | W8: NF | X8: 3.40E+03 | Y8: 4.7 | Z8: 0.0 | AA8: 0.0 | AB8: 1.0 | AC8: 0.0 | AD8: 0.0
A9: sp|P52735|VAV2_HUMAN | B9: VAV2 | C9: Guanine nucleotide exchange factor VAV2 OS=Homo sapiens GN=VAV2 PE=1 SV=2 | D9: 101.22 | E9: 1 | F9: 1 | G9: 0 | H9: 0 | I9: 1 | J9: 1 | K9: 1 | L9: 1 | M9: 0 | N9: 0 | O9: 0 | P9: 0 | Q9: 1 | R9: 1.60E+04 | S9: NF | T9: 1.30E+04 | U9: 3.60E+03 | V9: NF | W9: NF | X9: 3.60E+03 | Y9: 4.4 | Z9: 0.0 | AA9: 3.6 | AB9: 1.0 | AC9: 0.0 | AD9: 0.0
A10: sp|P13861|KAP2_HUMAN | B10: PRKAR2A | C10: cAMP-dependent protein kinase type II-alpha regulatory subunit OS=Homo sapiens GN=PRKAR2A PE=1 SV=2 | D10: 45.49 | E10: 6 | F10: 6 | G10: 6 | H10: 6 | I10: 0 | J10: 0 | K10: 1 | L10: 1 | M10: 0 | N10: 0 | O10: 0 | P10: 0 | Q10: 6 | R10: 7.30E+05 | S10: 6.20E+05 | T10: NF | U10: 4.10E+03 | V10: NF | W10: NF | X10: 4.10E+03 | Y10: 178.0 | Z10: 151.2 | AA10: 0.0 | AB10: 1.0 | AC10: 0.0 | AD10: 0.0
A11: sp|O14981|BTAF1_HUMAN | B11: BTAF1 | C11: TATA-binding protein-associated factor 172 OS=Homo sapiens GN=BTAF1 PE=1 SV=2 | D11: 206.76 | E11: 2 | F11: 2 | G11: 1 | H11: 1 | I11: 0 | J11: 0 | K11: 0 | L11: 0 | M11: 1 | N11: 1 | O11: 0 | P11: 0 | Q11: 2 | R11: 5.20E+04 | S11: 2.00E+04 | T11: NF | U11: NF | V11: 4.80E+03 | W11: NF | X11: 4.80E+03 | Y11: 10.8 | Z11: 4.2 | AA11: 0.0 | AB11: 0.0 | AC11: 1.0 | AD11: 0.0
A12: sp|P08134|RHOC_HUMAN | B12: RHOC | C12: Rho-related GTP-binding protein RhoC OS=Homo sapiens GN=RHOC PE=1 SV=1 | D12: 21.99 | E12: 0 | F12: 0 | G12: 0 | H12: 0 | I12: 0 | J12: 0 | K12: 1 | L12: 1 | M12: 0 | N12: 0 | O12: 0 | P12: 0 | Q12: 1 | R12: NF | S12: NF | T12: NF | U12: 4.80E+03 | V12: NF | W12: NF | X12: 4.80E+03 | Y12: 0.0 | Z12: 0.0 | AA12: 0.0 | AB12: 1.0 | AC12: 0.0 | AD12: 0.0
A13: sp|Q15126|PMVK_HUMAN | B13: PMVK | C13: Phosphomevalonate kinase OS=Homo sapiens GN=PMVK PE=1 SV=3 | D13: 21.98 | E13: 1 | F13: 1 | G13: 0 | H13: 0 | I13: 0 | J13: 0 | K13: 1 | L13: 1 | M13: 2 | N13: 2 | O13: 0 | P13: 0 | Q13: 2 | R13: 2.20E+04 | S13: NF | T13: NF | U13: 5.00E+03 | V13: 1.90E+04 | W13: NF | X13: 5.00E+03 | Y13: 4.4 | Z13: 0.0 | AA13: 0.0 | AB13: 1.0 | AC13: 3.8 | AD13: 0.0
A14: sp|P12645|BMP3_HUMAN | B14: BMP3 | C14: Bone morphogenetic protein 3 OS=Homo sapiens GN=BMP3 PE=1 SV=2 | D14: 53.34 | E14: 1 | F14: 1 | G14: 1 | H14: 1 | I14: 2 | J14: 4 | K14: 2 | L14: 2 | M14: 2 | N14: 2 | O14: 0 | P14: 0 | Q14: 4 | R14: 2.00E+05 | S14: 5.10E+03 | T14: 5.30E+05 | U14: 1.90E+05 | V14: 1.20E+05 | W14: NF | X14: 5.10E+03 | Y14: 39.2 | Z14: 1.0 | AA14: 103.9 | AB14: 37.3 | AC14: 23.5 | AD14: 0.0
A15: sp|P53778|MK12_HUMAN | B15: MAPK12 | C15: Mitogen-activated protein kinase 12 OS=Homo sapiens GN=MAPK12 PE=1 SV=3 | D15: 41.91 | E15: 1 | F15: 1 | G15: 0 | H15: 0 | I15: 1 | J15: 1 | K15: 0 | L15: 0 | M15: 0 | N15: 0 | O15: 0 | P15: 0 | Q15: 1 | R15: 5.10E+03 | S15: NF | T15: 1.70E+04 | U15: NF | V15: NF | W15: NF | X15: 5.10E+03 | Y15: 1.0 | Z15: 0.0 | AA15: 3.3 | AB15: 0.0 | AC15: 0.0 | AD15: 0.0
A16: sp|A5D8V6|VP37C_HUMAN | B16: VPS37C | C16: Vacuolar protein sorting-associated protein 37C OS=Homo sapiens GN=VPS37C PE=1 SV=2 | D16: 38.63 | E16: 1 | F16: 1 | G16: 0 | H16: 0 | I16: 1 | J16: 1 | K16: 0 | L16: 0 | M16: 0 | N16: 0 | O16: 0 | P16: 0 | Q16: 1 | R16: 5.10E+03 | S16: NF | T16: 2.90E+04 | U16: NF | V16: NF | W16: NF | X16: 5.10E+03 | Y16: 1.0 | Z16: 0.0 | AA16: 5.7 | AB16: 0.0 | AC16: 0.0 | AD16: 0.0
A17: sp|Q9HCU4|CELR2_HUMAN | B17: CELSR2 | C17: Cadherin EGF LAG seven-pass G-type receptor 2 OS=Homo sapiens GN=CELSR2 PE=1 SV=1 | D17: 317.25 | E17: 0 | F17: 0 | G17: 5 | H17: 6 | I17: 18 | J17: 23 | K17: 5 | L17: 6 | M17: 1 | N17: 1 | O17: 14 | P17: 17 | Q17: 23 | R17: NF | S17: 4.50E+05 | T17: 1.60E+07 | U17: 6.60E+05 | V17: 5.40E+03 | W17: 2.70E+06 | X17: 5.40E+03 | Y17: 0.0 | Z17: 83.3 | AA17: 2963.0 | AB17: 122.2 | AC17: 1.0 | AD17: 500.0
A18: sp|P84085|ARF5_HUMAN | B18: ARF5 | C18: ADP-ribosylation factor 5 OS=Homo sapiens GN=ARF5 PE=1 SV=2 | D18: 20.52 | E18: 1 | F18: 1 | G18: 1 | H18: 1 | I18: 0 | J18: 0 | K18: 0 | L18: 0 | M18: 1 | N18: 1 | O18: 0 | P18: 0 | Q18: 1 | R18: 1.60E+04 | S18: 2.00E+04 | T18: NF | U18: NF | V18: 5.70E+03 | W18: NF | X18: 5.70E+03 | Y18: 2.8 | Z18: 3.5 | AA18: 0.0 | AB18: 0.0 | AC18: 1.0 | AD18: 0.0
A19: sp|O43570|CAH12_HUMAN | B19: CA12 | C19: Carbonic anhydrase 12 OS=Homo sapiens GN=CA12 PE=1 SV=1 | D19: 39.43 | E19: 1 | F19: 2 | G19: 0 | H19: 0 | I19: 0 | J19: 0 | K19: 1 | L19: 1 | M19: 0 | N19: 0 | O19: 0 | P19: 0 | Q19: 2 | R19: 1.90E+04 | S19: NF | T19: NF | U19: 5.80E+03 | V19: NF | W19: NF | X19: 5.80E+03 | Y19: 3.3 | Z19: 0.0 | AA19: 0.0 | AB19: 1.0 | AC19: 0.0 | AD19: 0.0
A20: sp|Q9NVX0|HAUS2_HUMAN | B20: HAUS2 | C20: HAUS augmin-like complex subunit 2 OS=Homo sapiens GN=HAUS2 PE=1 SV=1 | D20: 26.92 | E20: 1 | F20: 1 | G20: 0 | H20: 0 | I20: 0 | J20: 0 | K20: 0 | L20: 0 | M20: 0 | N20: 0 | O20: 0 | P20: 0 | Q20: 1 | R20: 5.80E+03 | S20: NF | T20: NF | U20: NF | V20: NF | W20: NF | X20: 5.80E+03 | Y20: 1.0 | Z20: 0.0 | AA20: 0.0 | AB20: 0.0 | AC20: 0.0 | AD20: 0.0
A21: sp|Q14165|MLEC_HUMAN | B21: MLEC | C21: Malectin OS=Homo sapiens GN=MLEC PE=1 SV=1 | D21: 32.21 | E21: 2 | F21: 2 | G21: 3 | H21: 3 | I21: 3 | J21: 3 | K21: 2 | L21: 2 | M21: 1 | N21: 1 | O21: 2 | P21: 3 | Q21: 3 | R21: 1.20E+05 | S21: 5.50E+05 | T21: 2.20E+05 | U21: 3.50E+04 | V21: 5.90E+03 | W21: 2.40E+05 | X21: 5.90E+03 | Y21: 20.3 | Z21: 93.2 | AA21: 37.3 | AB21: 5.9 | AC21: 1.0 | AD21: 40.7
A22: sp|P28289|TMOD1_HUMAN | B22: TMOD1 | C22: Tropomodulin-1 OS=Homo sapiens GN=TMOD1 PE=1 SV=1 | D22: 40.54 | E22: 0 | F22: 0 | G22: 0 | H22: 0 | I22: 0 | J22: 0 | K22: 1 | L22: 1 | M22: 0 | N22: 0 | O22: 0 | P22: 0 | Q22: 1 | R22: NF | S22: NF | T22: NF | U22: 5.90E+03 | V22: NF | W22: NF | X22: 5.90E+03 | Y22: 0.0 | Z22: 0.0 | AA22: 0.0 | AB22: 1.0 | AC22: 0.0 | AD22: 0.0
A23: sp|O75506|HSBP1_HUMAN | B23: HSBP1 | C23: Heat shock factor-binding protein 1 OS=Homo sapiens GN=HSBP1 PE=1 SV=1 | D23: 8.54 | E23: 0 | F23: 0 | G23: 2 | H23: 3 | I23: 0 | J23: 0 | K23: 1 | L23: 1 | M23: 2 | N23: 2 | O23: 1 | P23: 1 | Q23: 3 | R23: NF | S23: 1.30E+05 | T23: NF | U23: 6.20E+03 | V23: 3.10E+04 | W23: 6.90E+04 | X23: 6.20E+03 | Y23: 0.0 | Z23: 21.0 | AA23: 0.0 | AB23: 1.0 | AC23: 5.0 | AD23: 11.1
A24: sp|P17655|CAN2_HUMAN | B24: CAPN2 | C24: Calpain-2 catalytic subunit OS=Homo sapiens GN=CAPN2 PE=1 SV=6 | D24: 79.94 | E24: 2 | F24: 4 | G24: 3 | H24: 4 | I24: 3 | J24: 6 | K24: 1 | L24: 1 | M24: 0 | N24: 0 | O24: 0 | P24: 0 | Q24: 6 | R24: 5.90E+04 | S24: 1.70E+05 | T24: 1.60E+05 | U24: 6.30E+03 | V24: NF | W24: NF | X24: 6.30E+03 | Y24: 9.4 | Z24: 27.0 | AA24: 25.4 | AB24: 1.0 | AC24: 0.0 | AD24: 0.0
A25: sp|P49643|PRI2_HUMAN | B25: PRIM2 | C25: DNA primase large subunit OS=Homo sapiens GN=PRIM2 PE=1 SV=2 | D25: 58.77 | E25: 2 | F25: 2 | G25: 1 | H25: 1 | I25: 0 | J25: 0 | K25: 0 | L25: 0 | M25: 1 | N25: 1 | O25: 0 | P25: 0 | Q25: 2 | R25: 1.00E+05 | S25: 2.80E+04 | T25: NF | U25: NF | V25: 6.30E+03 | W25: NF | X25: 6.30E+03 | Y25: 15.9 | Z25: 4.4 | AA25: 0.0 | AB25: 0.0 | AC25: 1.0 | AD25: 0.0
A26: sp|Q13158|FADD_HUMAN | B26: FADD | C26: FAS-associated death domain protein OS=Homo sapiens GN=FADD PE=1 SV=1 | D26: 23.26 | E26: 0 | F26: 0 | G26: 0 | H26: 0 | I26: 1 | J26: 2 | K26: 1 | L26: 1 | M26: 0 | N26: 0 | O26: 1 | P26: 1 | Q26: 2 | R26: NF | S26: NF | T26: 2.00E+04 | U26: 6.40E+03 | V26: NF | W26: 1.90E+04 | X26: 6.40E+03 | Y26: 0.0 | Z26: 0.0 | AA26: 3.1 | AB26: 1.0 | AC26: 0.0 | AD26: 3.0
A27: sp|P0C875|F228B_HUMAN | B27: FAM228B | C27: Protein FAM228B OS=Homo sapiens GN=FAM228B PE=2 SV=1 | D27: 37.38 | E27: 0 | F27: 0 | G27: 0 | H27: 0 | I27: 1 | J27: 1 | K27: 0 | L27: 0 | M27: 0 | N27: 0 | O27: 0 | P27: 0 | Q27: 1 | R27: NF | S27: NF | T27: 6.40E+03 | U27: NF | V27: NF | W27: NF | X27: 6.40E+03 | Y27: 0.0 | Z27: 0.0 | AA27: 1.0 | AB27: 0.0 | AC27: 0.0 | AD27: 0.0
A28: sp|P63098|CANB1_HUMAN | B28: PPP3R1 | C28: Calcineurin subunit B type 1 OS=Homo sapiens GN=PPP3R1 PE=1 SV=2 | D28: 19.29 | E28: 8 | F28: 8 | G28: 8 | H28: 8 | I28: 4 | J28: 5 | K28: 3 | L28: 3 | M28: 1 | N28: 1 | O28: 3 | P28: 3 | Q28: 8 | R28: 9.30E+05 | S28: 5.80E+05 | T28: 2.30E+05 | U28: 1.10E+05 | V28: 6.60E+03 | W28: 8.20E+04 | X28: 6.60E+03 | Y28: 140.9 | Z28: 87.9 | AA28: 34.8 | AB28: 16.7 | AC28: 1.0 | AD28: 12.4
A29: sp|O15162|PLS1_HUMAN | B29: PLSCR1 | C29: Phospholipid scramblase 1 OS=Homo sapiens GN=PLSCR1 PE=1 SV=1 | D29: 35.03 | E29: 0 | F29: 0 | G29: 1 | H29: 1 | I29: 0 | J29: 0 | K29: 0 | L29: 0 | M29: 0 | N29: 0 | O29: 0 | P29: 0 | Q29: 1 | R29: NF | S29: 6.60E+03 | T29: NF | U29: NF | V29: NF | W29: NF | X29: 6.60E+03 | Y29: 0.0 | Z29: 1.0 | AA29: 0.0 | AB29: 0.0 | AC29: 0.0 | AD29: 0.0
A30: sp|P78346|RPP30_HUMAN | B30: RPP30 | C30: Ribonuclease P protein subunit p30 OS=Homo sapiens GN=RPP30 PE=1 SV=1 | D30: 29.3 | E30: 5 | F30: 5 | G30: 6 | H30: 6 | I30: 4 | J30: 4 | K30: 3 | L30: 3 | M30: 1 | N30: 1 | O30: 1 | P30: 2 | Q30: 6 | R30: 3.60E+05 | S30: 3.40E+05 | T30: 2.60E+05 | U30: 1.40E+05 | V30: 6.70E+03 | W30: 4.30E+04 | X30: 6.70E+03 | Y30: 53.7 | Z30: 50.7 | AA30: 38.8 | AB30: 20.9 | AC30: 1.0 | AD30: 6.4
A31: sp|Q96I15|SCLY_HUMAN | B31: SCLY | C31: Selenocysteine lyase OS=Homo sapiens GN=SCLY PE=1 SV=4 | D31: 48.12 | E31: 6 | F31: 6 | G31: 6 | H31: 6 | I31: 2 | J31: 2 | K31: 6 | L31: 6 | M31: 1 | N31: 1 | O31: 0 | P31: 0 | Q31: 6 | R31: 4.50E+05 | S31: 5.90E+05 | T31: 5.10E+04 | U31: 1.40E+05 | V31: 7.20E+03 | W31: NF | X31: 7.20E+03 | Y31: 62.5 | Z31: 81.9 | AA31: 7.1 | AB31: 19.4 | AC31: 1.0 | AD31: 0.0
A32: sp|O95684|FR1OP_HUMAN | B32: FGFR1OP | C32: FGFR1 oncogene partner OS=Homo sapiens GN=FGFR1OP PE=1 SV=1 | D32: 43.04 | E32: 1 | F32: 2 | G32: 1 | H32: 1 | I32: 0 | J32: 0 | K32: 0 | L32: 0 | M32: 0 | N32: 0 | O32: 0 | P32: 0 | Q32: 2 | R32: 1.10E+04 | S32: 7.30E+03 | T32: NF | U32: NF | V32: NF | W32: NF | X32: 7.30E+03 | Y32: 1.5 | Z32: 1.0 | AA32: 0.0 | AB32: 0.0 | AC32: 0.0 | AD32: 0.0
A33: sp|Q53T59|H1BP3_HUMAN | B33: HS1BP3 | C33: HCLS1-binding protein 3 OS=Homo sapiens GN=HS1BP3 PE=1 SV=1 | D33: 42.75 | E33: 1 | F33: 1 | G33: 1 | H33: 1 | I33: 0 | J33: 0 | K33: 0 | L33: 0 | M33: 0 | N33: 0 | O33: 0 | P33: 0 | Q33: 1 | R33: 1.80E+04 | S33: 7.30E+03 | T33: NF | U33: NF | V33: NF | W33: NF | X33: 7.30E+03 | Y33: 2.5 | Z33: 1.0 | AA33: 0.0 | AB33: 0.0 | AC33: 0.0 | AD33: 0.0
A34: sp|Q7L5Y1|ENOF1_HUMAN | B34: ENOSF1 | C34: Mitochondrial enolase superfamily member 1 OS=Homo sapiens GN=ENOSF1 PE=1 SV=1 | D34: 49.75 | E34: 1 | F34: 1 | G34: 1 | H34: 1 | I34: 1 | J34: 1 | K34: 1 | L34: 1 | M34: 1 | N34: 1 | O34: 0 | P34: 0 | Q34: 1 | R34: 9.60E+04 | S34: 5.30E+04 | T34: 4.10E+04 | U34: 2.30E+04 | V34: 7.40E+03 | W34: NF | X34: 7.40E+03 | Y34: 13.0 | Z34: 7.2 | AA34: 5.5 | AB34: 3.1 | AC34: 1.0 | AD34: 0.0
A35: sp|Q70JA7|CHSS3_HUMAN | B35: CHSY3 | C35: Chondroitin sulfate synthase 3 OS=Homo sapiens GN=CHSY3 PE=2 SV=3 | D35: 100.22 | E35: 1 | F35: 1 | G35: 0 | H35: 0 | I35: 1 | J35: 1 | K35: 0 | L35: 0 | M35: 0 | N35: 0 | O35: 0 | P35: 0 | Q35: 1 | R35: 7.10E+04 | S35: NF | T35: 7.50E+03 | U35: NF | V35: NF | W35: NF | X35: 7.50E+03 | Y35: 9.5 | Z35: 0.0 | AA35: 1.0 | AB35: 0.0 | AC35: 0.0 | AD35: 0.0
A36: sp|Q99549|MPP8_HUMAN | B36: MPHOSPH8 | C36: M-phase phosphoprotein 8 OS=Homo sapiens GN=MPHOSPH8 PE=1 SV=2 | D36: 97.12 | E36: 0 | F36: 0 | G36: 0 | H36: 0 | I36: 0 | J36: 0 | K36: 0 | L36: 0 | M36: 1 | N36: 1 | O36: 0 | P36: 0 | Q36: 1 | R36: NF | S36: NF | T36: NF | U36: NF | V36: 7.50E+03 | W36: NF | X36: 7.50E+03 | Y36: 0.0 | Z36: 0.0 | AA36: 0.0 | AB36: 0.0 | AC36: 1.0 | AD36: 0.0
A37: sp|Q9BSJ8|ESYT1_HUMAN | B37: ESYT1 | C37: Extended synaptotagmin-1 OS=Homo sapiens GN=ESYT1 PE=1 SV=1 | D37: 122.78 | E37: 2 | F37: 2 | G37: 1 | H37: 1 | I37: 2 | J37: 2 | K37: 1 | L37: 1 | M37: 1 | N37: 1 | O37: 0 | P37: 0 | Q37: 2 | R37: 2.00E+05 | S37: 1.50E+04 | T37: 3.20E+05 | U37: 1.00E+04 | V37: 7.60E+03 | W37: NF | X37: 7.60E+03 | Y37: 26.3 | Z37: 2.0 | AA37: 42.1 | AB37: 1.3 | AC37: 1.0 | AD37: 0.0
A38: tr|A0A024QZE9|A0A024QZE9_HUMAN | B38: FLJ20643 | C38: Uncharacterized protein OS=Homo sapiens GN=FLJ20643 PE=4 SV=1 | D38: 32.41 | E38: 1 | F38: 1 | G38: 0 | H38: 0 | I38: 0 | J38: 0 | K38: 1 | L38: 1 | M38: 0 | N38: 0 | O38: 0 | P38: 0 | Q38: 1 | R38: 3.30E+04 | S38: NF | T38: NF | U38: 7.60E+03 | V38: NF | W38: NF | X38: 7.60E+03 | Y38: 4.3 | Z38: 0.0 | AA38: 0.0 | AB38: 1.0 | AC38: 0.0 | AD38: 0.0
A39: sp|P49585|PCY1A_HUMAN | B39: PCYT1A | C39: Choline-phosphate cytidylyltransferase A OS=Homo sapiens GN=PCYT1A PE=1 SV=2 | D39: 41.7 | E39: 1 | F39: 2 | G39: 1 | H39: 1 | I39: 0 | J39: 0 | K39: 1 | L39: 1 | M39: 1 | N39: 1 | O39: 0 | P39: 0 | Q39: 2 | R39: 1.10E+05 | S39: 3.10E+04 | T39: NF | U39: 7.70E+03 | V39: 2.00E+04 | W39: NF | X39: 7.70E+03 | Y39: 14.3 | Z39: 4.0 | AA39: 0.0 | AB39: 1.0 | AC39: 2.6 | AD39: 0.0
A40: sp|Q9Y5X9|LIPE_HUMAN | B40: LIPG | C40: Endothelial lipase OS=Homo sapiens GN=LIPG PE=1 SV=1 | D40: 56.76 | E40: 0 | F40: 0 | G40: 0 | H40: 0 | I40: 0 | J40: 0 | K40: 1 | L40: 1 | M40: 0 | N40: 0 | O40: 1 | P40: 1 | Q40: 1 | R40: NF | S40: NF | T40: NF | U40: 7.70E+03 | V40: NF | W40: 5.20E+04 | X40: 7.70E+03 | Y40: 0.0 | Z40: 0.0 | AA40: 0.0 | AB40: 1.0 | AC40: 0.0 | AD40: 6.8
A41: sp|Q9H5K3|SG196_HUMAN | B41: POMK | C41: Protein O-mannose kinase OS=Homo sapiens GN=POMK PE=1 SV=1 | D41: 40.02 | E41: 0 | F41: 0 | G41: 0 | H41: 0 | I41: 0 | J41: 0 | K41: 0 | L41: 0 | M41: 1 | N41: 1 | O41: 0 | P41: 0 | Q41: 1 | R41: NF | S41: NF | T41: NF | U41: NF | V41: 7.70E+03 | W41: NF | X41: 7.70E+03 | Y41: 0.0 | Z41: 0.0 | AA41: 0.0 | AB41: 0.0 | AC41: 1.0 | AD41: 0.0
A42: sp|Q8WWZ3|EDAD_HUMAN | B42: EDARADD | C42: Ectodysplasin-A receptor-associated adapter protein OS=Homo sapiens GN=EDARADD PE=1 SV=3 | D42: 24.79 | E42: 0 | F42: 0 | G42: 1 | H42: 1 | I42: 0 | J42: 0 | K42: 0 | L42: 0 | M42: 0 | N42: 0 | O42: 0 | P42: 0 | Q42: 1 | R42: NF | S42: 7.90E+03 | T42: NF | U42: NF | V42: NF | W42: NF | X42: 7.90E+03 | Y42: 0.0 | Z42: 1.0 | AA42: 0.0 | AB42: 0.0 | AC42: 0.0 | AD42: 0.0
A43: sp|O95376|ARI2_HUMAN | B43: ARIH2 | C43: E3 ubiquitin-protein ligase ARIH2 OS=Homo sapiens GN=ARIH2 PE=1 SV=1 | D43: 57.78 | E43: 3 | F43: 3 | G43: 3 | H43: 3 | I43: 0 | J43: 0 | K43: 0 | L43: 0 | M43: 1 | N43: 1 | O43: 0 | P43: 0 | Q43: 3 | R43: 3.40E+05 | S43: 2.20E+05 | T43: NF | U43: NF | V43: 8.00E+03 | W43: NF | X43: 8.00E+03 | Y43: 42.5 | Z43: 27.5 | AA43: 0.0 | AB43: 0.0 | AC43: 1.0 | AD43: 0.0
A44: sp|P20073|ANXA7_HUMAN | B44: ANXA7 | C44: Annexin A7 OS=Homo sapiens GN=ANXA7 PE=1 SV=3 | D44: 52.71 | E44: 1 | F44: 1 | G44: 1 | H44: 1 | I44: 0 | J44: 0 | K44: 1 | L44: 1 | M44: 0 | N44: 0 | O44: 0 | P44: 0 | Q44: 1 | R44: 1.20E+05 | S44: 6.70E+04 | T44: NF | U44: 8.10E+03 | V44: NF | W44: NF | X44: 8.10E+03 | Y44: 14.8 | Z44: 8.3 | AA44: 0.0 | AB44: 1.0 | AC44: 0.0 | AD44: 0.0
A45: sp|Q9H900|ZWILC_HUMAN | B45: ZWILCH | C45: Protein zwilch homolog OS=Homo sapiens GN=ZWILCH PE=1 SV=2 | D45: 67.17 | E45: 0 | F45: 0 | G45: 1 | H45: 1 | I45: 0 | J45: 0 | K45: 0 | L45: 0 | M45: 0 | N45: 0 | O45: 0 | P45: 0 | Q45: 1 | R45: NF | S45: 8.10E+03 | T45: NF | U45: NF | V45: NF | W45: NF | X45: 8.10E+03 | Y45: 0.0 | Z45: 1.0 | AA45: 0.0 | AB45: 0.0 | AC45: 0.0 | AD45: 0.0
A46: sp|Q8NI36|WDR36_HUMAN | B46: WDR36 | C46: WD repeat-containing protein 36 OS=Homo sapiens GN=WDR36 PE=1 SV=1 | D46: 105.26 | E46: 1 | F46: 1 | G46: 0 | H46: 0 | I46: 0 | J46: 0 | K46: 0 | L46: 0 | M46: 0 | N46: 0 | O46: 0 | P46: 0 | Q46: 1 | R46: 8.10E+03 | S46: NF | T46: NF | U46: NF | V46: NF | W46: NF | X46: 8.10E+03 | Y46: 1.0 | Z46: 0.0 | AA46: 0.0 | AB46: 0.0 | AC46: 0.0 | AD46: 0.0
A47: sp|Q9BRJ7|TIRR_HUMAN | B47: NUDT16L1 | C47: Tudor-interacting repair regulator protein OS=Homo sapiens GN=NUDT16L1 PE=1 SV=1 | D47: 23.32 | E47: 2 | F47: 2 | G47: 1 | H47: 1 | I47: 1 | J47: 1 | K47: 1 | L47: 1 | M47: 1 | N47: 1 | O47: 1 | P47: 1 | Q47: 2 | R47: 5.30E+04 | S47: 2.20E+04 | T47: 2.10E+04 | U47: 9.80E+03 | V47: 8.20E+03 | W47: 3.40E+04 | X47: 8.20E+03 | Y47: 6.5 | Z47: 2.7 | AA47: 2.6 | AB47: 1.2 | AC47: 1.0 | AD47: 4.1
A48: sp|P51151|RAB9A_HUMAN | B48: RAB9A | C48: Ras-related protein Rab-9A OS=Homo sapiens GN=RAB9A PE=1 SV=1 | D48: 22.82 | E48: 1 | F48: 1 | G48: 0 | H48: 0 | I48: 0 | J48: 0 | K48: 0 | L48: 0 | M48: 0 | N48: 0 | O48: 0 | P48: 0 | Q48: 1 | R48: 8.30E+03 | S48: NF | T48: NF | U48: NF | V48: NF | W48: NF | X48: 8.30E+03 | Y48: 1.0 | Z48: 0.0 | AA48: 0.0 | AB48: 0.0 | AC48: 0.0 | AD48: 0.0
A49: sp|Q8IZ69|TRM2A_HUMAN | B49: TRMT2A | C49: tRNA (uracil-5-)-methyltransferase homolog A OS=Homo sapiens GN=TRMT2A PE=1 SV=2 | D49: 68.68 | E49: 0 | F49: 0 | G49: 1 | H49: 1 | I49: 0 | J49: 0 | K49: 0 | L49: 0 | M49: 0 | N49: 0 | O49: 0 | P49: 0 | Q49: 1 | R49: NF | S49: 8.30E+03 | T49: NF | U49: NF | V49: NF | W49: NF | X49: 8.30E+03 | Y49: 0.0 | Z49: 1.0 | AA49: 0.0 | AB49: 0.0 | AC49: 0.0 | AD49: 0.0
A50: sp|P20337|RAB3B_HUMAN | B50: RAB3B | C50: Ras-related protein Rab-3B OS=Homo sapiens GN=RAB3B PE=1 SV=2 | D50: 24.74 | E50: 1 | F50: 1 | G50: 0 | H50: 0 | I50: 0 | J50: 0 | K50: 0 | L50: 0 | M50: 0 | N50: 0 | O50: 0 | P50: 0 | Q50: 1 | R50: 8.30E+03 | S50: NF | T50: NF | U50: NF | V50: NF | W50: NF | X50: 8.30E+03 | Y50: 1.0 | Z50: 0.0 | AA50: 0.0 | AB50: 0.0 | AC50: 0.0 | AD50: 0.0
A51: sp|Q9UBV8|PEF1_HUMAN | B51: PEF1 | C51: Peflin OS=Homo sapiens GN=PEF1 PE=1 SV=1 | D51: 30.36 | E51: 1 | F51: 3 | G51: 1 | H51: 1 | I51: 1 | J51: 1 | K51: 0 | L51: 0 | M51: 0 | N51: 0 | O51: 2 | P51: 2 | Q51: 3 | R51: 1.50E+05 | S51: 3.50E+04 | T51: 8.40E+03 | U51: NF | V51: NF | W51: 7.30E+04 | X51: 8.40E+03 | Y51: 17.9 | Z51: 4.2 | AA51: 1.0 | AB51: 0.0 | AC51: 0.0 | AD51: 8.7
A52: sp|Q9NX62|IMPA3_HUMAN | B52: IMPAD1 | C52: Inositol monophosphatase 3 OS=Homo sapiens GN=IMPAD1 PE=1 SV=1 | D52: 38.66 | E52: 3 | F52: 3 | G52: 4 | H52: 4 | I52: 2 | J52: 3 | K52: 4 | L52: 4 | M52: 1 | N52: 1 | O52: 0 | P52: 0 | Q52: 4 | R52: 1.70E+05 | S52: 2.00E+05 | T52: 3.90E+05 | U52: 8.40E+04 | V52: 8.60E+03 | W52: NF | X52: 8.60E+03 | Y52: 19.8 | Z52: 23.3 | AA52: 45.3 | AB52: 9.8 | AC52: 1.0 | AD52: 0.0
A53: sp|Q96HR9|REEP6_HUMAN | B53: REEP6 | C53: Receptor expression-enhancing protein 6 OS=Homo sapiens GN=REEP6 PE=1 SV=2 | D53: 23.4 | E53: 1 | F53: 1 | G53: 1 | H53: 1 | I53: 0 | J53: 0 | K53: 0 | L53: 0 | M53: 0 | N53: 0 | O53: 0 | P53: 0 | Q53: 1 | R53: 8.90E+03 | S53: 8.60E+03 | T53: NF | U53: NF | V53: NF | W53: NF | X53: 8.60E+03 | Y53: 1.0 | Z53: 1.0 | AA53: 0.0 | AB53: 0.0 | AC53: 0.0 | AD53: 0.0
A54: sp|Q15545|TAF7_HUMAN | B54: TAF7 | C54: Transcription initiation factor TFIID subunit 7 OS=Homo sapiens GN=TAF7 PE=1 SV=1 | D54: 40.23 | E54: 1 | F54: 1 | G54: 0 | H54: 0 | I54: 0 | J54: 0 | K54: 0 | L54: 0 | M54: 0 | N54: 0 | O54: 0 | P54: 0 | Q54: 1 | R54: 8.60E+03 | S54: NF | T54: NF | U54: NF | V54: NF | W54: NF | X54: 8.60E+03 | Y54: 1.0 | Z54: 0.0 | AA54: 0.0 | AB54: 0.0 | AC54: 0.0 | AD54: 0.0
A55: sp|O95232|LC7L3_HUMAN | B55: LUC7L3 | C55: Luc7-like protein 3 OS=Homo sapiens GN=LUC7L3 PE=1 SV=2 | D55: 51.44 | E55: 1 | F55: 1 | G55: 3 | H55: 3 | I55: 0 | J55: 0 | K55: 0 | L55: 0 | M55: 0 | N55: 0 | O55: 0 | P55: 0 | Q55: 3 | R55: 8.70E+03 | S55: 2.30E+05 | T55: NF | U55: NF | V55: NF | W55: NF | X55: 8.70E+03 | Y55: 1.0 | Z55: 26.4 | AA55: 0.0 | AB55: 0.0 | AC55: 0.0 | AD55: 0.0
A56: tr|Q5HYM1|Q5HYM1_HUMAN | B56: DKFZp686O1553 | C56: Putative uncharacterized protein DKFZp686O1553 (Fragment) OS=Homo sapiens GN=DKFZp686O1553 PE=2 SV=1 | D56: 53.97 | E56: 0 | F56: 0 | G56: 0 | H56: 0 | I56: 1 | J56: 1 | K56: 0 | L56: 0 | M56: 0 | N56: 0 | O56: 0 | P56: 0 | Q56: 1 | R56: NF | S56: NF | T56: 8.80E+03 | U56: NF | V56: NF | W56: NF | X56: 8.80E+03 | Y56: 0.0 | Z56: 0.0 | AA56: 1.0 | AB56: 0.0 | AC56: 0.0 | AD56: 0.0
A57: sp|Q8N9V3|WSDU1_HUMAN | B57: WDSUB1 | C57: WD repeat, SAM and U-box domain-containing protein 1 OS=Homo sapiens GN=WDSUB1 PE=1 SV=3 | D57: 52.78 | E57: 0 | F57: 0 | G57: 0 | H57: 0 | I57: 0 | J57: 0 | K57: 1 | L57: 1 | M57: 0 | N57: 0 | O57: 0 | P57: 0 | Q57: 1 | R57: NF | S57: NF | T57: NF | U57: 8.80E+03 | V57: NF | W57: NF | X57: 8.80E+03 | Y57: 0.0 | Z57: 0.0 | AA57: 0.0 | AB57: 1.0 | AC57: 0.0 | AD57: 0.0
A58: sp|Q9NRY6|PLS3_HUMAN | B58: PLSCR3 | C58: Phospholipid scramblase 3 OS=Homo sapiens GN=PLSCR3 PE=1 SV=2 | D58: 31.63 | E58: 1 | F58: 1 | G58: 0 | H58: 0 | I58: 0 | J58: 0 | K58: 0 | L58: 0 | M58: 0 | N58: 0 | O58: 0 | P58: 0 | Q58: 1 | R58: 8.90E+03 | S58: NF | T58: NF | U58: NF | V58: NF | W58: NF | X58: 8.90E+03 | Y58: 1.0 | Z58: 0.0 | AA58: 0.0 | AB58: 0.0 | AC58: 0.0 | AD58: 0.0
A59: sp|Q9BZM4|N2DL3_HUMAN | B59: ULBP3 | C59: NKG2D ligand 3 OS=Homo sapiens GN=ULBP3 PE=1 SV=1 | D59: 27.93 | E59: 3 | F59: 3 | G59: 3 | H59: 3 | I59: 3 | J59: 3 | K59: 2 | L59: 2 | M59: 1 | N59: 1 | O59: 2 | P59: 2 | Q59: 3 | R59: 2.00E+05 | S59: 1.20E+05 | T59: 1.40E+05 | U59: 2.10E+04 | V59: 9.00E+03 | W59: 1.60E+05 | X59: 9.00E+03 | Y59: 22.2 | Z59: 13.3 | AA59: 15.6 | AB59: 2.3 | AC59: 1.0 | AD59: 17.8
A60: sp|O75934|SPF27_HUMAN | B60: BCAS2 | C60: Pre-mRNA-splicing factor SPF27 OS=Homo sapiens GN=BCAS2 PE=1 SV=1 | D60: 26.11 | E60: 2 | F60: 2 | G60: 1 | H60: 1 | I60: 1 | J60: 1 | K60: 0 | L60: 0 | M60: 0 | N60: 0 | O60: 0 | P60: 0 | Q60: 2 | R60: 1.30E+05 | S60: 9.00E+03 | T60: 3.20E+04 | U60: NF | V60: NF | W60: NF | X60: 9.00E+03 | Y60: 14.4 | Z60: 1.0 | AA60: 3.6 | AB60: 0.0 | AC60: 0.0 | AD60: 0.0
A61: sp|P30566|PUR8_HUMAN | B61: ADSL | C61: Adenylosuccinate lyase OS=Homo sapiens GN=ADSL PE=1 SV=2 | D61: 54.85 | E61: 8 | F61: 10 | G61: 7 | H61: 9 | I61: 2 | J61: 2 | K61: 1 | L61: 1 | M61: 7 | N61: 7 | O61: 2 | P61: 2 | Q61: 10 | R61: 5.80E+06 | S61: 4.90E+06 | T61: 6.60E+05 | U61: 9.10E+03 | V61: 1.20E+06 | W61: 6.20E+05 | X61: 9.10E+03 | Y61: 637.4 | Z61: 538.5 | AA61: 72.5 | AB61: 1.0 | AC61: 131.9 | AD61: 68.1
A62: sp|Q9UI26|IPO11_HUMAN | B62: IPO11 | C62: Importin-11 OS=Homo sapiens GN=IPO11 PE=1 SV=1 | D62: 112.46 | E62: 5 | F62: 5 | G62: 0 | H62: 0 | I62: 1 | J62: 1 | K62: 0 | L62: 0 | M62: 1 | N62: 1 | O62: 0 | P62: 0 | Q62: 5 | R62: 4.30E+05 | S62: NF | T62: 2.60E+05 | U62: NF | V62: 9.10E+03 | W62: NF | X62: 9.10E+03 | Y62: 47.3 | Z62: 0.0 | AA62: 28.6 | AB62: 0.0 | AC62: 1.0 | AD62: 0.0
A63: sp|Q7Z4G4|TRM11_HUMAN | B63: TRMT11 | C63: tRNA (guanine(10)-N2)-methyltransferase homolog OS=Homo sapiens GN=TRMT11 PE=1 SV=1 | D63: 53.39 | E63: 1 | F63: 1 | G63: 1 | H63: 1 | I63: 0 | J63: 0 | K63: 1 | L63: 1 | M63: 0 | N63: 0 | O63: 0 | P63: 0 | Q63: 1 | R63: 3.50E+04 | S63: 3.40E+04 | T63: NF | U63: 9.10E+03 | V63: NF | W63: NF | X63: 9.10E+03 | Y63: 3.8 | Z63: 3.7 | AA63: 0.0 | AB63: 1.0 | AC63: 0.0 | AD63: 0.0
A64: sp|Q9H9H4|VP37B_HUMAN | B64: VPS37B | C64: Vacuolar protein sorting-associated protein 37B OS=Homo sapiens GN=VPS37B PE=1 SV=1 | D64: 31.29 | E64: 5 | F64: 6 | G64: 8 | H64: 10 | I64: 2 | J64: 2 | K64: 0 | L64: 0 | M64: 1 | N64: 1 | O64: 2 | P64: 4 | Q64: 10 | R64: 2.20E+05 | S64: 4.30E+05 | T64: 1.00E+05 | U64: NF | V64: 9.20E+03 | W64: 7.10E+04 | X64: 9.20E+03 | Y64: 23.9 | Z64: 46.7 | AA64: 10.9 | AB64: 0.0 | AC64: 1.0 | AD64: 7.7
A65: sp|Q8N3U4|STAG2_HUMAN | B65: STAG2 | C65: Cohesin subunit SA-2 OS=Homo sapiens GN=STAG2 PE=1 SV=3 | D65: 141.24 | E65: 2 | F65: 3 | G65: 1 | H65: 1 | I65: 1 | J65: 1 | K65: 0 | L65: 0 | M65: 0 | N65: 0 | O65: 0 | P65: 0 | Q65: 3 | R65: 6.50E+04 | S65: 9.20E+03 | T65: 6.40E+04 | U65: NF | V65: NF | W65: NF | X65: 9.20E+03 | Y65: 7.1 | Z65: 1.0 | AA65: 7.0 | AB65: 0.0 | AC65: 0.0 | AD65: 0.0
A66: sp|O75489|NDUS3_HUMAN | B66: NDUFS3 | C66: NADH dehydrogenase [ubiquinone] iron-sulfur protein 3, mitochondrial OS=Homo sapiens GN=NDUFS3 PE=1 SV=1 | D66: 30.22 | E66: 1 | F66: 1 | G66: 1 | H66: 1 | I66: 0 | J66: 0 | K66: 0 | L66: 0 | M66: 0 | N66: 0 | O66: 0 | P66: 0 | Q66: 1 | R66: 1.40E+05 | S66: 9.20E+03 | T66: NF | U66: NF | V66: NF | W66: NF | X66: 9.20E+03 | Y66: 15.2 | Z66: 1.0 | AA66: 0.0 | AB66: 0.0 | AC66: 0.0 | AD66: 0.0
A67: sp|Q96G28|CFA36_HUMAN | B67: CFAP36 | C67: Cilia- and flagella-associated protein 36 OS=Homo sapiens GN=CFAP36 PE=1 SV=2 | D67: 39.42 | E67: 0 | F67: 0 | G67: 1 | H67: 1 | I67: 0 | J67: 0 | K67: 1 | L67: 1 | M67: 2 | N67: 2 | O67: 0 | P67: 0 | Q67: 2 | R67: NF | S67: 2.00E+04 | T67: NF | U67: 9.30E+03 | V67: 2.00E+04 | W67: NF | X67: 9.30E+03 | Y67: 0.0 | Z67: 2.2 | AA67: 0.0 | AB67: 1.0 | AC67: 2.2 | AD67: 0.0
A68: sp|P34820|BMP8B_HUMAN | B68: BMP8B | C68: Bone morphogenetic protein 8B OS=Homo sapiens GN=BMP8B PE=2 SV=2 | D68: 44.74 | E68: 1 | F68: 1 | G68: 2 | H68: 2 | I68: 1 | J68: 1 | K68: 1 | L68: 1 | M68: 0 | N68: 0 | O68: 1 | P68: 1 | Q68: 2 | R68: 1.80E+04 | S68: 1.20E+05 | T68: 3.30E+04 | U68: 9.40E+03 | V68: NF | W68: 2.90E+04 | X68: 9.40E+03 | Y68: 1.9 | Z68: 12.8 | AA68: 3.5 | AB68: 1.0 | AC68: 0.0 | AD68: 3.1
A69: sp|Q9BZG1|RAB34_HUMAN | B69: RAB34 | C69: Ras-related protein Rab-34 OS=Homo sapiens GN=RAB34 PE=1 SV=1 | D69: 29.03 | E69: 1 | F69: 1 | G69: 0 | H69: 0 | I69: 0 | J69: 0 | K69: 0 | L69: 0 | M69: 0 | N69: 0 | O69: 0 | P69: 0 | Q69: 1 | R69: 9.40E+03 | S69: NF | T69: NF | U69: NF | V69: NF | W69: NF | X69: 9.40E+03 | Y69: 1.0 | Z69: 0.0 | AA69: 0.0 | AB69: 0.0 | AC69: 0.0 | AD69: 0.0
A70: sp|Q9UHB9|SRP68_HUMAN | B70: SRP68 | C70: Signal recognition particle subunit SRP68 OS=Homo sapiens GN=SRP68 PE=1 SV=2 | D70: 70.69 | E70: 0 | F70: 0 | G70: 2 | H70: 2 | I70: 0 | J70: 0 | K70: 1 | L70: 1 | M70: 1 | N70: 1 | O70: 0 | P70: 0 | Q70: 2 | R70: NF | S70: 4.10E+04 | T70: NF | U70: 9.60E+03 | V70: 1.20E+04 | W70: NF | X70: 9.60E+03 | Y70: 0.0 | Z70: 4.3 | AA70: 0.0 | AB70: 1.0 | AC70: 1.3 | AD70: 0.0
A71: sp|Q9UIL1|SCOC_HUMAN | B71: SCOC | C71: Short coiled-coil protein OS=Homo sapiens GN=SCOC PE=1 SV=2 | D71: 18.03 | E71: 0 | F71: 0 | G71: 2 | H71: 2 | I71: 0 | J71: 0 | K71: 1 | L71: 1 | M71: 0 | N71: 0 | O71: 0 | P71: 0 | Q71: 2 | R71: NF | S71: 1.60E+04 | T71: NF | U71: 9.70E+03 | V71: NF | W71: NF | X71: 9.70E+03 | Y71: 0.0 | Z71: 1.6 | AA71: 0.0 | AB71: 1.0 | AC71: 0.0 | AD71: 0.0
A72: sp|Q8NBI3|DRAXI_HUMAN | B72: DRAXIN | C72: Draxin OS=Homo sapiens GN=DRAXIN PE=1 SV=2 | D72: 38.63 | E72: 1 | F72: 2 | G72: 1 | H72: 1 | I72: 0 | J72: 0 | K72: 0 | L72: 0 | M72: 0 | N72: 0 | O72: 0 | P72: 0 | Q72: 2 | R72: 1.40E+04 | S72: 9.70E+03 | T72: NF | U72: NF | V72: NF | W72: NF | X72: 9.70E+03 | Y72: 1.4 | Z72: 1.0 | AA72: 0.0 | AB72: 0.0 | AC72: 0.0 | AD72: 0.0
A73: sp|P78560|CRADD_HUMAN | B73: CRADD | C73: Death domain-containing protein CRADD OS=Homo sapiens GN=CRADD PE=1 SV=1 | D73: 22.73 | E73: 0 | F73: 0 | G73: 0 | H73: 0 | I73: 0 | J73: 0 | K73: 0 | L73: 0 | M73: 1 | N73: 1 | O73: 0 | P73: 0 | Q73: 1 | R73: NF | S73: NF | T73: NF | U73: NF | V73: 9.70E+03 | W73: NF | X73: 9.70E+03 | Y73: 0.0 | Z73: 0.0 | AA73: 0.0 | AB73: 0.0 | AC73: 1.0 | AD73: 0.0
A74: sp|O00625|PIR_HUMAN | B74: PIR | C74: Pirin OS=Homo sapiens GN=PIR PE=1 SV=1 | D74: 32.09 | E74: 4 | F74: 4 | G74: 5 | H74: 5 | I74: 1 | J74: 1 | K74: 0 | L74: 0 | M74: 1 | N74: 1 | O74: 0 | P74: 0 | Q74: 5 | R74: 4.90E+05 | S74: 7.70E+05 | T74: 5.40E+04 | U74: NF | V74: 9.90E+03 | W74: NF | X74: 9.90E+03 | Y74: 49.5 | Z74: 77.8 | AA74: 5.5 | AB74: 0.0 | AC74: 1.0 | AD74: 0.0
A75: sp|O15294|OGT1_HUMAN | B75: OGT | C75: UDP-N-acetylglucosamine--peptide N-acetylglucosaminyltransferase 110 kDa subunit OS=Homo sapiens GN=OGT PE=1 SV=3 | D75: 116.85 | E75: 5 | F75: 5 | G75: 0 | H75: 0 | I75: 0 | J75: 0 | K75: 0 | L75: 0 | M75: 1 | N75: 1 | O75: 0 | P75: 0 | Q75: 5 | R75: 4.40E+05 | S75: NF | T75: NF | U75: NF | V75: 9.90E+03 | W75: NF | X75: 9.90E+03 | Y75: 44.4 | Z75: 0.0 | AA75: 0.0 | AB75: 0.0 | AC75: 1.0 | AD75: 0.0
A76: sp|Q14914|PTGR1_HUMAN | B76: PTGR1 | C76: Prostaglandin reductase 1 OS=Homo sapiens GN=PTGR1 PE=1 SV=2 | D76: 35.85 | E76: 0 | F76: 0 | G76: 2 | H76: 2 | I76: 0 | J76: 0 | K76: 1 | L76: 1 | M76: 0 | N76: 0 | O76: 0 | P76: 0 | Q76: 2 | R76: NF | S76: 1.30E+05 | T76: NF | U76: 1.00E+04 | V76: NF | W76: NF | X76: 1.00E+04 | Y76: 0.0 | Z76: 13.0 | AA76: 0.0 | AB76: 1.0 | AC76: 0.0 | AD76: 0.0
A77: sp|Q9H8J5|MANS1_HUMAN | B77: MANSC1 | C77: MANSC domain-containing protein 1 OS=Homo sapiens GN=MANSC1 PE=2 SV=1 | D77: 46.78 | E77: 1 | F77: 2 | G77: 1 | H77: 1 | I77: 1 | J77: 1 | K77: 0 | L77: 0 | M77: 1 | N77: 1 | O77: 1 | P77: 1 | Q77: 2 | R77: 1.00E+05 | S77: 2.80E+04 | T77: 4.70E+04 | U77: NF | V77: 1.00E+04 | W77: 5.00E+04 | X77: 1.00E+04 | Y77: 10.0 | Z77: 2.8 | AA77: 4.7 | AB77: 0.0 | AC77: 1.0 | AD77: 5.0
A78: sp|Q9NXV2|KCTD5_HUMAN | B78: KCTD5 | C78: BTB/POZ domain-containing protein KCTD5 OS=Homo sapiens GN=KCTD5 PE=1 SV=1 | D78: 26.08 | E78: 0 | F78: 0 | G78: 1 | H78: 1 | I78: 1 | J78: 3 | K78: 0 | L78: 0 | M78: 0 | N78: 0 | O78: 1 | P78: 1 | Q78: 3 | R78: NF | S78: 1.00E+04 | T78: 4.70E+04 | U78: NF | V78: NF | W78: 1.60E+04 | X78: 1.00E+04 | Y78: 0.0 | Z78: 1.0 | AA78: 4.7 | AB78: 0.0 | AC78: 0.0 | AD78: 1.6
A79: sp|Q14966|ZN638_HUMAN | B79: ZNF638 | C79: Zinc finger protein 638 OS=Homo sapiens GN=ZNF638 PE=1 SV=2 | D79: 220.49 | E79: 1 | F79: 1 | G79: 1 | H79: 1 | I79: 0 | J79: 0 | K79: 1 | L79: 1 | M79: 1 | N79: 1 | O79: 0 | P79: 0 | Q79: 1 | R79: 6.70E+04 | S79: 4.40E+04 | T79: NF | U79: 1.40E+04 | V79: 1.00E+04 | W79: NF | X79: 1.00E+04 | Y79: 6.7 | Z79: 4.4 | AA79: 0.0 | AB79: 1.4 | AC79: 1.0 | AD79: 0.0
A80: sp|Q15642|CIP4_HUMAN | B80: TRIP10 | C80: Cdc42-interacting protein 4 OS=Homo sapiens GN=TRIP10 PE=1 SV=3 | D80: 68.31 | E80: 1 | F80: 1 | G80: 0 | H80: 0 | I80: 1 | J80: 2 | K80: 0 | L80: 0 | M80: 0 | N80: 0 | O80: 0 | P80: 0 | Q80: 2 | R80: 1.00E+04 | S80: NF | T80: 2.60E+04 | U80: NF | V80: NF | W80: NF | X80: 1.00E+04 | Y80: 1.0 | Z80: 0.0 | AA80: 2.6 | AB80: 0.0 | AC80: 0.0 | AD80: 0.0
A81: sp|O43708|MAAI_HUMAN | B81: GSTZ1 | C81: Maleylacetoacetate isomerase OS=Homo sapiens GN=GSTZ1 PE=1 SV=3 | D81: 24.2 | E81: 1 | F81: 1 | G81: 1 | H81: 1 | I81: 0 | J81: 0 | K81: 0 | L81: 0 | M81: 0 | N81: 0 | O81: 0 | P81: 0 | Q81: 1 | R81: 1.60E+04 | S81: 1.00E+04 | T81: NF | U81: NF | V81: NF | W81: NF | X81: 1.00E+04 | Y81: 1.6 | Z81: 1.0 | AA81: 0.0 | AB81: 0.0 | AC81: 0.0 | AD81: 0.0
A82: sp|Q6PD74|AAGAB_HUMAN | B82: AAGAB | C82: Alpha- and gamma-adaptin-binding protein p34 OS=Homo sapiens GN=AAGAB PE=1 SV=1 | D82: 34.57 | E82: 0 | F82: 0 | G82: 0 | H82: 0 | I82: 0 | J82: 0 | K82: 1 | L82: 1 | M82: 1 | N82: 1 | O82: 0 | P82: 0 | Q82: 1 | R82: NF | S82: NF | T82: NF | U82: 1.00E+04 | V82: 1.20E+04 | W82: NF | X82: 1.00E+04 | Y82: 0.0 | Z82: 0.0 | AA82: 0.0 | AB82: 1.0 | AC82: 1.2 | AD82: 0.0
A83: sp|Q13155|AIMP2_HUMAN | B83: AIMP2 | C83: Aminoacyl tRNA synthase complex-interacting multifunctional protein 2 OS=Homo sapiens GN=AIMP2 PE=1 SV=2 | D83: 35.33 | E83: 1 | F83: 1 | G83: 0 | H83: 0 | I83: 0 | J83: 0 | K83: 0 | L83: 0 | M83: 1 | N83: 1 | O83: 0 | P83: 0 | Q83: 1 | R83: 4.20E+04 | S83: NF | T83: NF | U83: NF | V83: 1.00E+04 | W83: NF | X83: 1.00E+04 | Y83: 4.2 | Z83: 0.0 | AA83: 0.0 | AB83: 0.0 | AC83: 1.0 | AD83: 0.0
A84: sp|P20226|TBP_HUMAN | B84: TBP | C84: TATA-box-binding protein OS=Homo sapiens GN=TBP PE=1 SV=2 | D84: 37.67 | E84: 1 | F84: 1 | G84: 0 | H84: 0 | I84: 0 | J84: 0 | K84: 0 | L84: 0 | M84: 0 | N84: 0 | O84: 0 | P84: 0 | Q84: 1 | R84: 1.00E+04 | S84: NF | T84: NF | U84: NF | V84: NF | W84: NF | X84: 1.00E+04 | Y84: 1.0 | Z84: 0.0 | AA84: 0.0 | AB84: 0.0 | AC84: 0.0 | AD84: 0.0
A85: sp|Q9GZT4|SRR_HUMAN | B85: SRR | C85: Serine racemase OS=Homo sapiens GN=SRR PE=1 SV=1 | D85: 36.54 | E85: 1 | F85: 1 | G85: 0 | H85: 0 | I85: 0 | J85: 0 | K85: 0 | L85: 0 | M85: 0 | N85: 0 | O85: 0 | P85: 0 | Q85: 1 | R85: 1.00E+04 | S85: NF | T85: NF | U85: NF | V85: NF | W85: NF | X85: 1.00E+04 | Y85: 1.0 | Z85: 0.0 | AA85: 0.0 | AB85: 0.0 | AC85: 0.0 | AD85: 0.0
A86: sp|P53384|NUBP1_HUMAN | B86: NUBP1 | C86: Cytosolic Fe-S cluster assembly factor NUBP1 OS=Homo sapiens GN=NUBP1 PE=1 SV=2 | D86: 34.51 | E86: 0 | F86: 0 | G86: 0 | H86: 0 | I86: 0 | J86: 0 | K86: 0 | L86: 0 | M86: 1 | N86: 1 | O86: 0 | P86: 0 | Q86: 1 | R86: NF | S86: NF | T86: NF | U86: NF | V86: 1.00E+04 | W86: NF | X86: 1.00E+04 | Y86: 0.0 | Z86: 0.0 | AA86: 0.0 | AB86: 0.0 | AC86: 1.0 | AD86: 0.0
A87: sp|Q6P1N0|C2D1A_HUMAN | B87: CC2D1A | C87: Coiled-coil and C2 domain-containing protein 1A OS=Homo sapiens GN=CC2D1A PE=1 SV=1 | D87: 104 | E87: 1 | F87: 1 | G87: 0 | H87: 0 | I87: 0 | J87: 0 | K87: 0 | L87: 0 | M87: 0 | N87: 0 | O87: 0 | P87: 0 | Q87: 1 | R87: 1.00E+04 | S87: NF | T87: NF | U87: NF | V87: NF | W87: NF | X87: 1.00E+04 | Y87: 1.0 | Z87: 0.0 | AA87: 0.0 | AB87: 0.0 | AC87: 0.0 | AD87: 0.0
A88: sp|Q96KP4|CNDP2_HUMAN | B88: CNDP2 | C88: Cytosolic non-specific dipeptidase OS=Homo sapiens GN=CNDP2 PE=1 SV=2 | D88: 52.84 | E88: 16 | F88: 23 | G88: 15 | H88: 21 | I88: 8 | J88: 10 | K88: 1 | L88: 1 | M88: 13 | N88: 14 | O88: 3 | P88: 3 | Q88: 23 | R88: 1.30E+07 | S88: 1.00E+07 | T88: 3.50E+06 | U88: 1.10E+04 | V88: 1.30E+06 | W88: 1.50E+06 | X88: 1.10E+04 | Y88: 1181.8 | Z88: 909.1 | AA88: 318.2 | AB88: 1.0 | AC88: 118.2 | AD88: 136.4
A89: sp|Q6IN85|P4R3A_HUMAN | B89: PPP4R3A | C89: Serine/threonine-protein phosphatase 4 regulatory subunit 3A OS=Homo sapiens GN=PPP4R3A PE=1 SV=1 | D89: 95.31 | E89: 3 | F89: 3 | G89: 4 | H89: 5 | I89: 3 | J89: 4 | K89: 2 | L89: 2 | M89: 1 | N89: 2 | O89: 0 | P89: 0 | Q89: 5 | R89: 2.40E+05 | S89: 2.00E+05 | T89: 1.00E+05 | U89: 1.90E+04 | V89: 1.10E+04 | W89: NF | X89: 1.10E+04 | Y89: 21.8 | Z89: 18.2 | AA89: 9.1 | AB89: 1.7 | AC89: 1.0 | AD89: 0.0
A90: sp|O60610|DIAP1_HUMAN | B90: DIAPH1 | C90: Protein diaphanous homolog 1 OS=Homo sapiens GN=DIAPH1 PE=1 SV=2 | D90: 141.26 | E90: 6 | F90: 8 | G90: 1 | H90: 1 | I90: 1 | J90: 1 | K90: 0 | L90: 0 | M90: 0 | N90: 0 | O90: 0 | P90: 0 | Q90: 8 | R90: 4.50E+05 | S90: 1.10E+04 | T90: 3.10E+04 | U90: NF | V90: NF | W90: NF | X90: 1.10E+04 | Y90: 40.9 | Z90: 1.0 | AA90: 2.8 | AB90: 0.0 | AC90: 0.0 | AD90: 0.0
A91: sp|P34896|GLYC_HUMAN | B91: SHMT1 | C91: Serine hydroxymethyltransferase, cytosolic OS=Homo sapiens GN=SHMT1 PE=1 SV=1 | D91: 53.05 | E91: 3 | F91: 3 | G91: 4 | H91: 4 | I91: 1 | J91: 1 | K91: 1 | L91: 1 | M91: 1 | N91: 1 | O91: 0 | P91: 0 | Q91: 4 | R91: 5.00E+05 | S91: 5.80E+05 | T91: 6.90E+04 | U91: 1.10E+04 | V91: 4.30E+04 | W91: NF | X91: 1.10E+04 | Y91: 45.5 | Z91: 52.7 | AA91: 6.3 | AB91: 1.0 | AC91: 3.9 | AD91: 0.0
A92: sp|P50579|MAP2_HUMAN | B92: METAP2 | C92: Methionine aminopeptidase 2 OS=Homo sapiens GN=METAP2 PE=1 SV=1 | D92: 52.86 | E92: 0 | F92: 0 | G92: 4 | H92: 4 | I92: 3 | J92: 4 | K92: 1 | L92: 1 | M92: 0 | N92: 0 | O92: 0 | P92: 0 | Q92: 4 | R92: NF | S92: 7.80E+05 | T92: 3.50E+05 | U92: 1.10E+04 | V92: NF | W92: NF | X92: 1.10E+04 | Y92: 0.0 | Z92: 70.9 | AA92: 31.8 | AB92: 1.0 | AC92: 0.0 | AD92: 0.0
A93: sp|Q7Z2Z2|EFL1_HUMAN | B93: EFL1 | C93: Elongation factor-like GTPase 1 OS=Homo sapiens GN=EFL1 PE=1 SV=2 | D93: 125.35 | E93: 6 | F93: 6 | G93: 2 | H93: 2 | I93: 1 | J93: 1 | K93: 0 | L93: 0 | M93: 0 | N93: 0 | O93: 0 | P93: 0 | Q93: 6 | R93: 5.20E+05 | S93: 8.70E+04 | T93: 1.10E+04 | U93: NF | V93: NF | W93: NF | X93: 1.10E+04 | Y93: 47.3 | Z93: 7.9 | AA93: 1.0 | AB93: 0.0 | AC93: 0.0 | AD93: 0.0
A94: sp|Q9UNH7|SNX6_HUMAN | B94: SNX6 | C94: Sorting nexin-6 OS=Homo sapiens GN=SNX6 PE=1 SV=1 | D94: 46.62 | E94: 3 | F94: 3 | G94: 4 | H94: 4 | I94: 0 | J94: 0 | K94: 1 | L94: 1 | M94: 2 | N94: 2 | O94: 0 | P94: 0 | Q94: 4 | R94: 2.50E+05 | S94: 4.80E+05 | T94: NF | U94: 1.10E+04 | V94: 6.80E+04 | W94: NF | X94: 1.10E+04 | Y94: 22.7 | Z94: 43.6 | AA94: 0.0 | AB94: 1.0 | AC94: 6.2 | AD94: 0.0
A95: sp|O75391|SPAG7_HUMAN | B95: SPAG7 | C95: Sperm-associated antigen 7 OS=Homo sapiens GN=SPAG7 PE=1 SV=2 | D95: 26.02 | E95: 4 | F95: 4 | G95: 2 | H95: 2 | I95: 1 | J95: 1 | K95: 1 | L95: 1 | M95: 1 | N95: 1 | O95: 2 | P95: 2 | Q95: 4 | R95: 5.50E+05 | S95: 1.40E+05 | T95: 9.60E+04 | U95: 5.50E+04 | V95: 1.10E+04 | W95: 1.60E+05 | X95: 1.10E+04 | Y95: 50.0 | Z95: 12.7 | AA95: 8.7 | AB95: 5.0 | AC95: 1.0 | AD95: 14.5
A96: sp|Q9BRX2|PELO_HUMAN | B96: PELO | C96: Protein pelota homolog OS=Homo sapiens GN=PELO PE=1 SV=2 | D96: 43.33 | E96: 1 | F96: 1 | G96: 2 | H96: 2 | I96: 1 | J96: 1 | K96: 3 | L96: 3 | M96: 1 | N96: 1 | O96: 1 | P96: 2 | Q96: 3 | R96: 2.70E+04 | S96: 1.80E+05 | T96: 6.10E+04 | U96: 1.10E+06 | V96: 1.10E+04 | W96: 4.10E+04 | X96: 1.10E+04 | Y96: 2.5 | Z96: 16.4 | AA96: 5.5 | AB96: 100.0 | AC96: 1.0 | AD96: 3.7
A97: sp|Q9H7P6|MB12B_HUMAN | B97: MVB12B | C97: Multivesicular body subunit 12B OS=Homo sapiens GN=MVB12B PE=1 SV=2 | D97: 35.6 | E97: 0 | F97: 0 | G97: 1 | H97: 1 | I97: 3 | J97: 3 | K97: 0 | L97: 0 | M97: 1 | N97: 1 | O97: 0 | P97: 0 | Q97: 3 | R97: NF | S97: 2.70E+04 | T97: 3.40E+05 | U97: NF | V97: 1.10E+04 | W97: NF | X97: 1.10E+04 | Y97: 0.0 | Z97: 2.5 | AA97: 30.9 | AB97: 0.0 | AC97: 1.0 | AD97: 0.0
A98: sp|Q5R3I4|TTC38_HUMAN | B98: TTC38 | C98: Tetratricopeptide repeat protein 38 OS=Homo sapiens GN=TTC38 PE=1 SV=1 | D98: 52.75 | E98: 2 | F98: 2 | G98: 2 | H98: 2 | I98: 0 | J98: 0 | K98: 1 | L98: 1 | M98: 0 | N98: 0 | O98: 0 | P98: 0 | Q98: 2 | R98: 1.00E+05 | S98: 1.10E+05 | T98: NF | U98: 1.10E+04 | V98: NF | W98: NF | X98: 1.10E+04 | Y98: 9.1 | Z98: 10.0 | AA98: 0.0 | AB98: 1.0 | AC98: 0.0 | AD98: 0.0
A99: sp|P26885|FKBP2_HUMAN | B99: FKBP2 | C99: Peptidyl-prolyl cis-trans isomerase FKBP2 OS=Homo sapiens GN=FKBP2 PE=1 SV=2 | D99: 15.64 | E99: 2 | F99: 2 | G99: 2 | H99: 2 | I99: 2 | J99: 3 | K99: 1 | L99: 1 | M99: 0 | N99: 0 | O99: 1 | P99: 1 | Q99: 3 | R99: 4.10E+05 | S99: 2.20E+05 | T99: 3.10E+05 | U99: 1.10E+04 | V99: NF | W99: 2.40E+04 | X99: 1.10E+04 | Y99: 37.3 | Z99: 20.0 | AA99: 28.2 | AB99: 1.0 | AC99: 0.0 | AD99: 2.2
A100: sp|Q9Y6W5|WASF2_HUMAN | B100: WASF2 | C100: Wiskott-Aldrich syndrome protein family member 2 OS=Homo sapiens GN=WASF2 PE=1 SV=3 | D100: 54.25 | E100: 1 | F100: 1 | G100: 2 | H100: 2 | I100: 0 | J100: 0 | K100: 0 | L100: 0 | M100: 0 | N100: 0 | O100: 0 | P100: 0 | Q100: 2 | R100: 1.10E+04 | S100: 1.20E+05 | T100: NF | U100: NF | V100: NF | W100: NF | X100: 1.10E+04 | Y100: 1.0 | Z100: 10.9 | AA100: 0.0 | AB100: 0.0 | AC100: 0.0 | AD100: 0.0
A101: sp|Q99829|CPNE1_HUMAN | B101: CPNE1 | C101: Copine-1 OS=Homo sapiens GN=CPNE1 PE=1 SV=1 | D101: 59.02 | E101: 0 | F101: 0 | G101: 2 | H101: 2 | I101: 0 | J101: 0 | K101: 1 | L101: 1 | M101: 0 | N101: 0 | O101: 0 | P101: 0 | Q101: 2 | R101: NF | S101: 9.90E+04 | T101: NF | U101: 1.10E+04 | V101: NF | W101: NF | X101: 1.10E+04 | Y101: 0.0 | Z101: 9.0 | AA101: 0.0 | AB101: 1.0 | AC101: 0.0 | AD101: 0.0
A102: sp|Q9BPZ3|PAIP2_HUMAN | B102: PAIP2 | C102: Polyadenylate-binding protein-interacting protein 2 OS=Homo sapiens GN=PAIP2 PE=1 SV=1 | D102: 14.97 | E102: 1 | F102: 2 | G102: 1 | H102: 1 | I102: 1 | J102: 3 | K102: 0 | L102: 0 | M102: 1 | N102: 1 | O102: 1 | P102: 3 | Q102: 3 | R102: 9.70E+04 | S102: 3.10E+04 | T102: 7.90E+04 | U102: NF | V102: 1.10E+04 | W102: 1.40E+05 | X102: 1.10E+04 | Y102: 8.8 | Z102: 2.8 | AA102: 7.2 | AB102: 0.0 | AC102: 1.0 | AD102: 12.7
A103: sp|Q9Y3A3|PHOCN_HUMAN | B103: MOB4 | C103: MOB-like protein phocein OS=Homo sapiens GN=MOB4 PE=1 SV=1 | D103: 26.02 | E103: 1 | F103: 2 | G103: 1 | H103: 1 | I103: 1 | J103: 1 | K103: 1 | L103: 1 | M103: 1 | N103: 1 | O103: 0 | P103: 0 | Q103: 2 | R103: 1.70E+05 | S103: 4.20E+04 | T103: 9.20E+04 | U103: 2.40E+04 | V103: 1.10E+04 | W103: NF | X103: 1.10E+04 | Y103: 15.5 | Z103: 3.8 | AA103: 8.4 | AB103: 2.2 | AC103: 1.0 | AD103: 0.0
A104: sp|Q5TC12|ATPF1_HUMAN | B104: ATPAF1 | C104: ATP synthase mitochondrial F1 complex assembly factor 1 OS=Homo sapiens GN=ATPAF1 PE=1 SV=1 | D104: 36.41 | E104: 1 | F104: 2 | G104: 1 | H104: 1 | I104: 0 | J104: 0 | K104: 0 | L104: 0 | M104: 0 | N104: 0 | O104: 0 | P104: 0 | Q104: 2 | R104: 2.30E+04 | S104: 1.10E+04 | T104: NF | U104: NF | V104: NF | W104: NF | X104: 1.10E+04 | Y104: 2.1 | Z104: 1.0 | AA104: 0.0 | AB104: 0.0 | AC104: 0.0 | AD104: 0.0
A105: sp|Q9UBI6|GBG12_HUMAN | B105: GNG12 | C105: Guanine nucleotide-binding protein G(I)/G(S)/G(O) subunit gamma-12 OS=Homo sapiens GN=GNG12 PE=1 SV=3 | D105: 8 | E105: 0 | F105: 0 | G105: 0 | H105: 0 | I105: 1 | J105: 2 | K105: 0 | L105: 0 | M105: 1 | N105: 1 | O105: 0 | P105: 0 | Q105: 2 | R105: NF | S105: NF | T105: 9.40E+04 | U105: NF | V105: 1.10E+04 | W105: NF | X105: 1.10E+04 | Y105: 0.0 | Z105: 0.0 | AA105: 8.5 | AB105: 0.0 | AC105: 1.0 | AD105: 0.0
A106: tr|B1B5Q3|B1B5Q3_HUMAN | B106: ASAH1 | C106: N-acylsphingosine amidohydrolase 1 (Fragment) OS=Homo sapiens GN=ASAH1 PE=4 SV=1 | D106: 24.72 | E106: 0 | F106: 0 | G106: 0 | H106: 0 | I106: 0 | J106: 0 | K106: 1 | L106: 1 | M106: 1 | N106: 1 | O106: 1 | P106: 1 | Q106: 1 | R106: NF | S106: NF | T106: NF | U106: 1.10E+04 | V106: 7.00E+04 | W106: 2.30E+05 | X106: 1.10E+04 | Y106: 0.0 | Z106: 0.0 | AA106: 0.0 | AB106: 1.0 | AC106: 6.4 | AD106: 20.9
A107: tr|B4E318|B4E318_HUMAN | C107: BRCA2 and CDKN1A-interacting protein OS=Homo sapiens PE=2 SV=1 | D107: 29.78 | E107: 0 | F107: 0 | G107: 0 | H107: 0 | I107: 0 | J107: 0 | K107: 1 | L107: 1 | M107: 0 | N107: 0 | O107: 0 | P107: 0 | Q107: 1 | R107: NF | S107: NF | T107: NF | U107: 1.10E+04 | V107: NF | W107: NF | X107: 1.10E+04 | Y107: 0.0 | Z107: 0.0 | AA107: 0.0 | AB107: 1.0 | AC107: 0.0 | AD107: 0.0
A108: sp|Q9BSG0|PADC1_HUMAN | B108: PRADC1 | C108: Protease-associated domain-containing protein 1 OS=Homo sapiens GN=PRADC1 PE=1 SV=1 | D108: 21.03 | E108: 0 | F108: 0 | G108: 0 | H108: 0 | I108: 0 | J108: 0 | K108: 1 | L108: 1 | M108: 0 | N108: 0 | O108: 0 | P108: 0 | Q108: 1 | R108: NF | S108: NF | T108: NF | U108: 1.10E+04 | V108: NF | W108: NF | X108: 1.10E+04 | Y108: 0.0 | Z108: 0.0 | AA108: 0.0 | AB108: 1.0 | AC108: 0.0 | AD108: 0.0
A109: sp|Q9NSK7|CS012_HUMAN | B109: C19orf12 | C109: Protein C19orf12 OS=Homo sapiens GN=C19orf12 PE=1 SV=3 | D109: 16.28 | E109: 0 | F109: 0 | G109: 1 | H109: 1 | I109: 0 | J109: 0 | K109: 0 | L109: 0 | M109: 0 | N109: 0 | O109: 0 | P109: 0 | Q109: 1 | R109: NF | S109: 1.10E+04 | T109: NF | U109: NF | V109: NF | W109: NF | X109: 1.10E+04 | Y109: 0.0 | Z109: 1.0 | AA109: 0.0 | AB109: 0.0 | AC109: 0.0 | AD109: 0.0
A110: sp|O00429|DNM1L_HUMAN | B110: DNM1L | C110: Dynamin-1-like protein OS=Homo sapiens GN=DNM1L PE=1 SV=2 | D110: 81.83 | E110: 8 | F110: 10 | G110: 6 | H110: 7 | I110: 1 | J110: 1 | K110: 2 | L110: 2 | M110: 1 | N110: 1 | O110: 0 | P110: 0 | Q110: 10 | R110: 4.60E+05 | S110: 1.50E+05 | T110: 5.40E+04 | U110: 4.30E+04 | V110: 1.20E+04 | W110: NF | X110: 1.20E+04 | Y110: 38.3 | Z110: 12.5 | AA110: 4.5 | AB110: 3.6 | AC110: 1.0 | AD110: 0.0
A111: sp|Q9HAR2|AGRL3_HUMAN | B111: ADGRL3 | C111: Adhesion G protein-coupled receptor L3 OS=Homo sapiens GN=ADGRL3 PE=1 SV=2 | D111: 161.71 | E111: 6 | F111: 6 | G111: 3 | H111: 4 | I111: 6 | J111: 8 | K111: 1 | L111: 1 | M111: 3 | N111: 3 | O111: 2 | P111: 2 | Q111: 8 | R111: 8.50E+05 | S111: 5.00E+05 | T111: 1.50E+06 | U111: 1.20E+04 | V111: 1.20E+05 | W111: 2.80E+05 | X111: 1.20E+04 | Y111: 70.8 | Z111: 41.7 | AA111: 125.0 | AB111: 1.0 | AC111: 10.0 | AD111: 23.3
A112: sp|Q9C0B1|FTO_HUMAN | B112: FTO | C112: Alpha-ketoglutarate-dependent dioxygenase FTO OS=Homo sapiens GN=FTO PE=1 SV=3 | D112: 58.24 | E112: 6 | F112: 6 | G112: 4 | H112: 4 | I112: 1 | J112: 2 | K112: 0 | L112: 0 | M112: 1 | N112: 1 | O112: 1 | P112: 1 | Q112: 6 | R112: 5.10E+05 | S112: 1.20E+05 | T112: 2.70E+04 | U112: NF | V112: 1.20E+04 | W112: 2.10E+04 | X112: 1.20E+04 | Y112: 42.5 | Z112: 10.0 | AA112: 2.3 | AB112: 0.0 | AC112: 1.0 | AD112: 1.8
A113: sp|Q14353|GAMT_HUMAN | B113: GAMT | C113: Guanidinoacetate N-methyltransferase OS=Homo sapiens GN=GAMT PE=1 SV=1 | D113: 26.3 | E113: 2 | F113: 2 | G113: 5 | H113: 5 | I113: 2 | J113: 2 | K113: 0 | L113: 0 | M113: 1 | N113: 1 | O113: 2 | P113: 4 | Q113: 5 | R113: 1.60E+05 | S113: 2.40E+05 | T113: 7.80E+04 | U113: NF | V113: 1.20E+04 | W113: 1.50E+05 | X113: 1.20E+04 | Y113: 13.3 | Z113: 20.0 | AA113: 6.5 | AB113: 0.0 | AC113: 1.0 | AD113: 12.5
A114: sp|Q9GZL7|WDR12_HUMAN | B114: WDR12 | C114: Ribosome biogenesis protein WDR12 OS=Homo sapiens GN=WDR12 PE=1 SV=2 | D114: 47.68 | E114: 3 | F114: 3 | G114: 4 | H114: 4 | I114: 0 | J114: 0 | K114: 3 | L114: 3 | M114: 1 | N114: 1 | O114: 0 | P114: 0 | Q114: 4 | R114: 3.10E+05 | S114: 3.40E+05 | T114: NF | U114: 8.80E+04 | V114: 1.20E+04 | W114: NF | X114: 1.20E+04 | Y114: 25.8 | Z114: 28.3 | AA114: 0.0 | AB114: 7.3 | AC114: 1.0 | AD114: 0.0
A115: sp|Q9NYQ6|CELR1_HUMAN | B115: CELSR1 | C115: Cadherin EGF LAG seven-pass G-type receptor 1 OS=Homo sapiens GN=CELSR1 PE=1 SV=1 | D115: 329.28 | E115: 1 | F115: 1 | G115: 1 | H115: 1 | I115: 4 | J115: 4 | K115: 0 | L115: 0 | M115: 0 | N115: 0 | O115: 3 | P115: 5 | Q115: 5 | R115: 1.20E+04 | S115: 2.00E+04 | T115: 5.80E+05 | U115: NF | V115: NF | W115: 5.20E+06 | X115: 1.20E+04 | Y115: 1.0 | Z115: 1.7 | AA115: 48.3 | AB115: 0.0 | AC115: 0.0 | AD115: 433.3
A116: sp|Q9HD47|MOG1_HUMAN | B116: RANGRF | C116: Ran guanine nucleotide release factor OS=Homo sapiens GN=RANGRF PE=1 SV=1 | D116: 20.44 | E116: 3 | F116: 3 | G116: 2 | H116: 2 | I116: 0 | J116: 0 | K116: 1 | L116: 1 | M116: 2 | N116: 3 | O116: 0 | P116: 0 | Q116: 3 | R116: 2.60E+05 | S116: 1.40E+05 | T116: NF | U116: 1.20E+04 | V116: 8.10E+04 | W116: NF | X116: 1.20E+04 | Y116: 21.7 | Z116: 11.7 | AA116: 0.0 | AB116: 1.0 | AC116: 6.8 | AD116: 0.0
A117: sp|Q9UFN0|NPS3A_HUMAN | B117: NIPSNAP3A | C117: Protein NipSnap homolog 3A OS=Homo sapiens GN=NIPSNAP3A PE=1 SV=2 | D117: 28.45 | E117: 3 | F117: 3 | G117: 3 | H117: 3 | I117: 1 | J117: 1 | K117: 1 | L117: 1 | M117: 0 | N117: 0 | O117: 1 | P117: 2 | Q117: 3 | R117: 4.00E+05 | S117: 2.30E+05 | T117: 3.80E+04 | U117: 1.20E+04 | V117: NF | W117: 6.30E+04 | X117: 1.20E+04 | Y117: 33.3 | Z117: 19.2 | AA117: 3.2 | AB117: 1.0 | AC117: 0.0 | AD117: 5.3
A118: sp|Q16864|VATF_HUMAN | B118: ATP6V1F | C118: V-type proton ATPase subunit F OS=Homo sapiens GN=ATP6V1F PE=1 SV=2 | D118: 13.36 | E118: 0 | F118: 0 | G118: 2 | H118: 2 | I118: 1 | J118: 2 | K118: 2 | L118: 2 | M118: 2 | N118: 2 | O118: 1 | P118: 1 | Q118: 2 | R118: NF | S118: 1.20E+05 | T118: 3.50E+04 | U118: 1.70E+04 | V118: 1.20E+04 | W118: 1.70E+04 | X118: 1.20E+04 | Y118: 0.0 | Z118: 10.0 | AA118: 2.9 | AB118: 1.4 | AC118: 1.0 | AD118: 1.4
A119: sp|Q15942|ZYX_HUMAN | B119: ZYX | C119: Zyxin OS=Homo sapiens GN=ZYX PE=1 SV=1 | D119: 61.24 | E119: 2 | F119: 3 | G119: 1 | H119: 1 | I119: 1 | J119: 2 | K119: 1 | L119: 1 | M119: 1 | N119: 1 | O119: 1 | P119: 1 | Q119: 3 | R119: 5.60E+04 | S119: 1.80E+04 | T119: 2.50E+05 | U119: 1.20E+04 | V119: 1.30E+04 | W119: 1.30E+04 | X119: 1.20E+04 | Y119: 4.7 | Z119: 1.5 | AA119: 20.8 | AB119: 1.0 | AC119: 1.1 | AD119: 1.1
A120: sp|P24941|CDK2_HUMAN | B120: CDK2 | C120: Cyclin-dependent kinase 2 OS=Homo sapiens GN=CDK2 PE=1 SV=2 | D120: 33.91 | E120: 2 | F120: 2 | G120: 3 | H120: 3 | I120: 0 | J120: 0 | K120: 0 | L120: 0 | M120: 1 | N120: 1 | O120: 0 | P120: 0 | Q120: 3 | R120: 2.60E+05 | S120: 5.30E+05 | T120: NF | U120: NF | V120: 1.20E+04 | W120: NF | X120: 1.20E+04 | Y120: 21.7 | Z120: 44.2 | AA120: 0.0 | AB120: 0.0 | AC120: 1.0 | AD120: 0.0
A121: sp|P49753|ACOT2_HUMAN | B121: ACOT2 | C121: Acyl-coenzyme A thioesterase 2, mitochondrial OS=Homo sapiens GN=ACOT2 PE=1 SV=6 | D121: 53.18 | E121: 3 | F121: 3 | G121: 2 | H121: 2 | I121: 0 | J121: 0 | K121: 1 | L121: 1 | M121: 0 | N121: 0 | O121: 0 | P121: 0 | Q121: 3 | R121: 1.40E+06 | S121: 6.70E+04 | T121: NF | U121: 1.20E+04 | V121: NF | W121: NF | X121: 1.20E+04 | Y121: 116.7 | Z121: 5.6 | AA121: 0.0 | AB121: 1.0 | AC121: 0.0 | AD121: 0.0
A122: sp|Q969U7|PSMG2_HUMAN | B122: PSMG2 | C122: Proteasome assembly chaperone 2 OS=Homo sapiens GN=PSMG2 PE=1 SV=1 | D122: 29.38 | E122: 0 | F122: 0 | G122: 0 | H122: 0 | I122: 1 | J122: 2 | K122: 0 | L122: 0 | M122: 2 | N122: 2 | O122: 1 | P122: 1 | Q122: 2 | R122: NF | S122: NF | T122: 3.20E+04 | U122: NF | V122: 8.00E+04 | W122: 1.20E+04 | X122: 1.20E+04 | Y122: 0.0 | Z122: 0.0 | AA122: 2.7 | AB122: 0.0 | AC122: 6.7 | AD122: 1.0
A123: sp|Q8N6M0|OTU6B_HUMAN | B123: OTUD6B | C123: OTU domain-containing protein 6B OS=Homo sapiens GN=OTUD6B PE=1 SV=1 | D123: 33.79 | E123: 1 | F123: 1 | G123: 2 | H123: 2 | I123: 0 | J123: 0 | K123: 0 | L123: 0 | M123: 0 | N123: 0 | O123: 0 | P123: 0 | Q123: 2 | R123: 1.20E+04 | S123: 7.60E+04 | T123: NF | U123: NF | V123: NF | W123: NF | X123: 1.20E+04 | Y123: 1.0 | Z123: 6.3 | AA123: 0.0 | AB123: 0.0 | AC123: 0.0 | AD123: 0.0
A124: sp|O95450|ATS2_HUMAN | B124: ADAMTS2 | C124: A disintegrin and metalloproteinase with thrombospondin motifs 2 OS=Homo sapiens GN=ADAMTS2 PE=2 SV=2 | D124: 134.67 | E124: 1 | F124: 1 | G124: 1 | H124: 1 | I124: 2 | J124: 2 | K124: 1 | L124: 1 | M124: 1 | N124: 1 | O124: 2 | P124: 3 | Q124: 3 | R124: 3.60E+05 | S124: 3.20E+05 | T124: 1.90E+05 | U124: 3.00E+04 | V124: 1.20E+04 | W124: 6.60E+05 | X124: 1.20E+04 | Y124: 30.0 | Z124: 26.7 | AA124: 15.8 | AB124: 2.5 | AC124: 1.0 | AD124: 55.0
A125: sp|P48634|PRC2A_HUMAN | B125: PRRC2A | C125: Protein PRRC2A OS=Homo sapiens GN=PRRC2A PE=1 SV=3 | D125: 228.72 | E125: 2 | F125: 2 | G125: 2 | H125: 2 | I125: 0 | J125: 0 | K125: 2 | L125: 2 | M125: 1 | N125: 1 | O125: 1 | P125: 1 | Q125: 2 | R125: 3.00E+05 | S125: 1.10E+05 | T125: NF | U125: 4.80E+04 | V125: 1.20E+04 | W125: 1.50E+05 | X125: 1.20E+04 | Y125: 25.0 | Z125: 9.2 | AA125: 0.0 | AB125: 4.0 | AC125: 1.0 | AD125: 12.5
A126: sp|Q32MZ4|LRRF1_HUMAN | B126: LRRFIP1 | C126: Leucine-rich repeat flightless-interacting protein 1 OS=Homo sapiens GN=LRRFIP1 PE=1 SV=2 | D126: 89.2 | E126: 1 | F126: 1 | G126: 1 | H126: 1 | I126: 1 | J126: 2 | K126: 0 | L126: 0 | M126: 0 | N126: 0 | O126: 0 | P126: 0 | Q126: 2 | R126: 1.20E+04 | S126: 1.10E+05 | T126: 3.60E+05 | U126: NF | V126: NF | W126: NF | X126: 1.20E+04 | Y126: 1.0 | Z126: 9.2 | AA126: 30.0 | AB126: 0.0 | AC126: 0.0 | AD126: 0.0
A127: sp|Q11206|SIA4C_HUMAN | B127: ST3GAL4 | C127: CMP-N-acetylneuraminate-beta-galactosamide-alpha-2,3-sialyltransferase 4 OS=Homo sapiens GN=ST3GAL4 PE=2 SV=1 | D127: 38.02 | E127: 1 | F127: 1 | G127: 2 | H127: 2 | I127: 0 | J127: 0 | K127: 1 | L127: 1 | M127: 0 | N127: 0 | O127: 0 | P127: 0 | Q127: 2 | R127: 8.30E+04 | S127: 7.20E+04 | T127: NF | U127: 1.20E+04 | V127: NF | W127: NF | X127: 1.20E+04 | Y127: 6.9 | Z127: 6.0 | AA127: 0.0 | AB127: 1.0 | AC127: 0.0 | AD127: 0.0
A128: sp|Q8WV22|NSE1_HUMAN | B128: NSMCE1 | C128: Non-structural maintenance of chromosomes element 1 homolog OS=Homo sapiens GN=NSMCE1 PE=1 SV=5 | D128: 30.84 | E128: 2 | F128: 2 | G128: 1 | H128: 1 | I128: 0 | J128: 0 | K128: 0 | L128: 0 | M128: 0 | N128: 0 | O128: 0 | P128: 0 | Q128: 2 | R128: 5.30E+04 | S128: 1.20E+04 | T128: NF | U128: NF | V128: NF | W128: NF | X128: 1.20E+04 | Y128: 4.4 | Z128: 1.0 | AA128: 0.0 | AB128: 0.0 | AC128: 0.0 | AD128: 0.0
A129: tr|K7ER90|K7ER90_HUMAN | B129: EIF3G | C129: Eukaryotic translation initiation factor 3 subunit G (Fragment) OS=Homo sapiens GN=EIF3G PE=1 SV=1 | D129: 25.43 | E129: 1 | F129: 1 | G129: 1 | H129: 1 | I129: 0 | J129: 0 | K129: 1 | L129: 1 | M129: 1 | N129: 1 | O129: 0 | P129: 0 | Q129: 1 | R129: 8.50E+04 | S129: 2.70E+04 | T129: NF | U129: 1.30E+04 | V129: 1.20E+04 | W129: NF | X129: 1.20E+04 | Y129: 7.1 | Z129: 2.3 | AA129: 0.0 | AB129: 1.1 | AC129: 1.0 | AD129: 0.0
A130: sp|O95104|SFR15_HUMAN | B130: SCAF4 | C130: Splicing factor, arginine/serine-rich 15 OS=Homo sapiens GN=SCAF4 PE=1 SV=3 | D130: 125.79 | E130: 1 | F130: 1 | G130: 1 | H130: 1 | I130: 0 | J130: 0 | K130: 1 | L130: 1 | M130: 0 | N130: 0 | O130: 0 | P130: 0 | Q130: 1 | R130: 1.10E+05 | S130: 4.40E+04 | T130: NF | U130: 1.20E+04 | V130: NF | W130: NF | X130: 1.20E+04 | Y130: 9.2 | Z130: 3.7 | AA130: 0.0 | AB130: 1.0 | AC130: 0.0 | AD130: 0.0
A131: sp|Q8IWF2|FXRD2_HUMAN | B131: FOXRED2 | C131: FAD-dependent oxidoreductase domain-containing protein 2 OS=Homo sapiens GN=FOXRED2 PE=1 SV=1 | D131: 77.74 | E131: 1 | F131: 1 | G131: 0 | H131: 0 | I131: 0 | J131: 0 | K131: 0 | L131: 0 | M131: 0 | N131: 0 | O131: 1 | P131: 1 | Q131: 1 | R131: 2.30E+04 | S131: NF | T131: NF | U131: NF | V131: NF | W131: 1.20E+04 | X131: 1.20E+04 | Y131: 1.9 | Z131: 0.0 | AA131: 0.0 | AB131: 0.0 | AC131: 0.0 | AD131: 1.0
A132: sp|Q9H6T3|RPAP3_HUMAN | B132: RPAP3 | C132: RNA polymerase II-associated protein 3 OS=Homo sapiens GN=RPAP3 PE=1 SV=2 | D132: 75.67 | E132: 1 | F132: 1 | G132: 1 | H132: 1 | I132: 0 | J132: 0 | K132: 0 | L132: 0 | M132: 0 | N132: 0 | O132: 0 | P132: 0 | Q132: 1 | R132: 2.60E+04 | S132: 1.20E+04 | T132: NF | U132: NF | V132: NF | W132: NF | X132: 1.20E+04 | Y132: 2.2 | Z132: 1.0 | AA132: 0.0 | AB132: 0.0 | AC132: 0.0 | AD132: 0.0
A133: sp|Q9Y3B3|TMED7_HUMAN | B133: TMED7 | C133: Transmembrane emp24 domain-containing protein 7 OS=Homo sapiens GN=TMED7 PE=1 SV=2 | D133: 25.16 | E133: 1 | F133: 1 | G133: 0 | H133: 0 | I133: 0 | J133: 0 | K133: 0 | L133: 0 | M133: 0 | N133: 0 | O133: 0 | P133: 0 | Q133: 1 | R133: 1.20E+04 | S133: NF | T133: NF | U133: NF | V133: NF | W133: NF | X133: 1.20E+04 | Y133: 1.0 | Z133: 0.0 | AA133: 0.0 | AB133: 0.0 | AC133: 0.0 | AD133: 0.0
A134: sp|Q8WXC6|CSN9_HUMAN | B134: COPS9 | C134: COP9 signalosome complex subunit 9 OS=Homo sapiens GN=COPS9 PE=1 SV=3 | D134: 6.21 | E134: 1 | F134: 1 | G134: 0 | H134: 0 | I134: 0 | J134: 0 | K134: 0 | L134: 0 | M134: 0 | N134: 0 | O134: 0 | P134: 0 | Q134: 1 | R134: 1.20E+04 | S134: NF | T134: NF | U134: NF | V134: NF | W134: NF | X134: 1.20E+04 | Y134: 1.0 | Z134: 0.0 | AA134: 0.0 | AB134: 0.0 | AC134: 0.0 | AD134: 0.0
A135: sp|Q96ST3|SIN3A_HUMAN | B135: SIN3A | C135: Paired amphipathic helix protein Sin3a OS=Homo sapiens GN=SIN3A PE=1 SV=2 | D135: 145.08 | E135: 0 | F135: 0 | G135: 0 | H135: 0 | I135: 1 | J135: 1 | K135: 0 | L135: 0 | M135: 0 | N135: 0 | O135: 0 | P135: 0 | Q135: 1 | R135: NF | S135: NF | T135: 1.20E+04 | U135: NF | V135: NF | W135: NF | X135: 1.20E+04 | Y135: 0.0 | Z135: 0.0 | AA135: 1.0 | AB135: 0.0 | AC135: 0.0 | AD135: 0.0
A136: sp|Q15388|TOM20_HUMAN | B136: TOMM20 | C136: Mitochondrial import receptor subunit TOM20 homolog OS=Homo sapiens GN=TOMM20 PE=1 SV=1 | D136: 16.29 | E136: 1 | F136: 1 | G136: 0 | H136: 0 | I136: 0 | J136: 0 | K136: 0 | L136: 0 | M136: 0 | N136: 0 | O136: 0 | P136: 0 | Q136: 1 | R136: 1.20E+04 | S136: NF | T136: NF | U136: NF | V136: NF | W136: NF | X136: 1.20E+04 | Y136: 1.0 | Z136: 0.0 | AA136: 0.0 | AB136: 0.0 | AC136: 0.0 | AD136: 0.0
A137: sp|Q9P260|K1468_HUMAN | B137: KIAA1468 | C137: LisH domain and HEAT repeat-containing protein KIAA1468 OS=Homo sapiens GN=KIAA1468 PE=1 SV=2 | D137: 134.55 | E137: 1 | F137: 1 | G137: 0 | H137: 0 | I137: 0 | J137: 0 | K137: 0 | L137: 0 | M137: 0 | N137: 0 | O137: 0 | P137: 0 | Q137: 1 | R137: 1.20E+04 | S137: NF | T137: NF | U137: NF | V137: NF | W137: NF | X137: 1.20E+04 | Y137: 1.0 | Z137: 0.0 | AA137: 0.0 | AB137: 0.0 | AC137: 0.0 | AD137: 0.0
A138: sp|Q14247|SRC8_HUMAN | B138: CTTN | C138: Src substrate cortactin OS=Homo sapiens GN=CTTN PE=1 SV=2 | D138: 61.55 | E138: 4 | F138: 4 | G138: 3 | H138: 3 | I138: 0 | J138: 0 | K138: 1 | L138: 1 | M138: 0 | N138: 0 | O138: 0 | P138: 0 | Q138: 4 | R138: 2.80E+05 | S138: 2.70E+05 | T138: NF | U138: 1.30E+04 | V138: NF | W138: NF | X138: 1.30E+04 | Y138: 21.5 | Z138: 20.8 | AA138: 0.0 | AB138: 1.0 | AC138: 0.0 | AD138: 0.0
A139: sp|Q92797|SYMPK_HUMAN | B139: SYMPK | C139: Symplekin OS=Homo sapiens GN=SYMPK PE=1 SV=2 | D139: 141.06 | E139: 5 | F139: 5 | G139: 1 | H139: 1 | I139: 1 | J139: 1 | K139: 0 | L139: 0 | M139: 1 | N139: 1 | O139: 0 | P139: 0 | Q139: 5 | R139: 4.60E+05 | S139: 4.30E+04 | T139: 4.00E+04 | U139: NF | V139: 1.30E+04 | W139: NF | X139: 1.30E+04 | Y139: 35.4 | Z139: 3.3 | AA139: 3.1 | AB139: 0.0 | AC139: 1.0 | AD139: 0.0
A140: sp|P10646|TFPI1_HUMAN | B140: TFPI | C140: Tissue factor pathway inhibitor OS=Homo sapiens GN=TFPI PE=1 SV=1 | D140: 34.99 | E140: 1 | F140: 1 | G140: 2 | H140: 2 | I140: 2 | J140: 2 | K140: 2 | L140: 2 | M140: 1 | N140: 1 | O140: 1 | P140: 1 | Q140: 2 | R140: 4.60E+05 | S140: 4.30E+05 | T140: 8.40E+05 | U140: 1.90E+05 | V140: 1.30E+04 | W140: 5.50E+05 | X140: 1.30E+04 | Y140: 35.4 | Z140: 33.1 | AA140: 64.6 | AB140: 14.6 | AC140: 1.0 | AD140: 42.3
A141: sp|Q9ULC3|RAB23_HUMAN | B141: RAB23 | C141: Ras-related protein Rab-23 OS=Homo sapiens GN=RAB23 PE=1 SV=1 | D141: 26.64 | E141: 1 | F141: 1 | G141: 2 | H141: 2 | I141: 1 | J141: 1 | K141: 2 | L141: 2 | M141: 1 | N141: 1 | O141: 0 | P141: 0 | Q141: 2 | R141: 6.80E+04 | S141: 8.60E+04 | T141: 6.80E+04 | U141: 4.00E+04 | V141: 1.30E+04 | W141: NF | X141: 1.30E+04 | Y141: 5.2 | Z141: 6.6 | AA141: 5.2 | AB141: 3.1 | AC141: 1.0 | AD141: 0.0
A142: sp|Q13144|EI2BE_HUMAN | B142: EIF2B5 | C142: Translation initiation factor eIF-2B subunit epsilon OS=Homo sapiens GN=EIF2B5 PE=1 SV=3 | D142: 80.33 | E142: 2 | F142: 3 | G142: 1 | H142: 1 | I142: 2 | J142: 2 | K142: 0 | L142: 0 | M142: 0 | N142: 0 | O142: 0 | P142: 0 | Q142: 3 | R142: 1.70E+05 | S142: 1.30E+04 | T142: 1.10E+05 | U142: NF | V142: NF | W142: NF | X142: 1.30E+04 | Y142: 13.1 | Z142: 1.0 | AA142: 8.5 | AB142: 0.0 | AC142: 0.0 | AD142: 0.0
A143: sp|Q68CQ7|GL8D1_HUMAN | B143: GLT8D1 | C143: Glycosyltransferase 8 domain-containing protein 1 OS=Homo sapiens GN=GLT8D1 PE=1 SV=2 | D143: 41.91 | E143: 0 | F143: 0 | G143: 0 | H143: 0 | I143: 0 | J143: 0 | K143: 3 | L143: 3 | M143: 1 | N143: 1 | O143: 0 | P143: 0 | Q143: 3 | R143: NF | S143: NF | T143: NF | U143: 5.40E+04 | V143: 1.30E+04 | W143: NF | X143: 1.30E+04 | Y143: 0.0 | Z143: 0.0 | AA143: 0.0 | AB143: 4.2 | AC143: 1.0 | AD143: 0.0
A144: sp|Q9Y296|TPPC4_HUMAN | B144: TRAPPC4 | C144: Trafficking protein particle complex subunit 4 OS=Homo sapiens GN=TRAPPC4 PE=1 SV=1 | D144: 24.32 | E144: 2 | F144: 2 | G144: 2 | H144: 2 | I144: 0 | J144: 0 | K144: 1 | L144: 1 | M144: 1 | N144: 1 | O144: 0 | P144: 0 | Q144: 2 | R144: 8.50E+04 | S144: 5.80E+04 | T144: NF | U144: 1.30E+04 | V144: 1.30E+04 | W144: NF | X144: 1.30E+04 | Y144: 6.5 | Z144: 4.5 | AA144: 0.0 | AB144: 1.0 | AC144: 1.0 | AD144: 0.0
A145: sp|P53609|PGTB1_HUMAN | B145: PGGT1B | C145: Geranylgeranyl transferase type-1 subunit beta OS=Homo sapiens GN=PGGT1B PE=1 SV=2 | D145: 42.34 | E145: 2 | F145: 2 | G145: 2 | H145: 2 | I145: 0 | J145: 0 | K145: 1 | L145: 1 | M145: 0 | N145: 0 | O145: 0 | P145: 0 | Q145: 2 | R145: 3.70E+05 | S145: 3.80E+05 | T145: NF | U145: 1.30E+04 | V145: NF | W145: NF | X145: 1.30E+04 | Y145: 28.5 | Z145: 29.2 | AA145: 0.0 | AB145: 1.0 | AC145: 0.0 | AD145: 0.0
A146: sp|P52701|MSH6_HUMAN | B146: MSH6 | C146: DNA mismatch repair protein Msh6 OS=Homo sapiens GN=MSH6 PE=1 SV=2 | D146: 152.69 | E146: 1 | F146: 1 | G146: 1 | H146: 1 | I146: 0 | J146: 0 | K146: 1 | L146: 1 | M146: 1 | N146: 1 | O146: 0 | P146: 0 | Q146: 1 | R146: 1.90E+05 | S146: 1.50E+04 | T146: NF | U146: 1.30E+04 | V146: 1.30E+04 | W146: NF | X146: 1.30E+04 | Y146: 14.6 | Z146: 1.2 | AA146: 0.0 | AB146: 1.0 | AC146: 1.0 | AD146: 0.0
A147: sp|P46734|MP2K3_HUMAN | B147: MAP2K3 | C147: Dual specificity mitogen-activated protein kinase kinase 3 OS=Homo sapiens GN=MAP2K3 PE=1 SV=2 | D147: 39.29 | E147: 0 | F147: 0 | G147: 0 | H147: 0 | I147: 0 | J147: 0 | K147: 2 | L147: 2 | M147: 0 | N147: 0 | O147: 0 | P147: 0 | Q147: 2 | R147: NF | S147: NF | T147: NF | U147: 1.30E+04 | V147: NF | W147: NF | X147: 1.30E+04 | Y147: 0.0 | Z147: 0.0 | AA147: 0.0 | AB147: 1.0 | AC147: 0.0 | AD147: 0.0
A148: sp|Q96AC1|FERM2_HUMAN | B148: FERMT2 | C148: Fermitin family homolog 2 OS=Homo sapiens GN=FERMT2 PE=1 SV=1 | D148: 77.81 | E148: 1 | F148: 2 | G148: 1 | H148: 2 | I148: 1 | J148: 2 | K148: 1 | L148: 1 | M148: 0 | N148: 0 | O148: 1 | P148: 1 | Q148: 2 | R148: 3.40E+04 | S148: 5.30E+04 | T148: 1.00E+05 | U148: 1.90E+04 | V148: NF | W148: 1.30E+04 | X148: 1.30E+04 | Y148: 2.6 | Z148: 4.1 | AA148: 7.7 | AB148: 1.5 | AC148: 0.0 | AD148: 1.0
A149: tr|A8K2P0|A8K2P0_HUMAN | C149: cDNA FLJ75914, highly similar to Homo sapiens leucine rich repeat containing 17, mRNA OS=Homo sapiens PE=2 SV=1 | D149: 51.7 | E149: 0 | F149: 0 | G149: 1 | H149: 1 | I149: 1 | J149: 3 | K149: 1 | L149: 1 | M149: 1 | N149: 1 | O149: 1 | P149: 2 | Q149: 3 | R149: NF | S149: 3.20E+04 | T149: 2.80E+05 | U149: 1.80E+04 | V149: 1.30E+04 | W149: 5.80E+04 | X149: 1.30E+04 | Y149: 0.0 | Z149: 2.5 | AA149: 21.5 | AB149: 1.4 | AC149: 1.0 | AD149: 4.5
A150: sp|Q9NV56|MRGBP_HUMAN | B150: MRGBP | C150: MRG/MORF4L-binding protein OS=Homo sapiens GN=MRGBP PE=1 SV=1 | D150: 22.4 | E150: 1 | F150: 1 | G150: 1 | H150: 1 | I150: 0 | J150: 0 | K150: 1 | L150: 1 | M150: 1 | N150: 1 | O150: 0 | P150: 0 | Q150: 1 | R150: 6.00E+04 | S150: 3.70E+04 | T150: NF | U150: 2.30E+04 | V150: 1.30E+04 | W150: NF | X150: 1.30E+04 | Y150: 4.6 | Z150: 2.8 | AA150: 0.0 | AB150: 1.8 | AC150: 1.0 | AD150: 0.0
A151: sp|P52272|HNRPM_HUMAN | B151: HNRNPM | C151: Heterogeneous nuclear ribonucleoprotein M OS=Homo sapiens GN=HNRNPM PE=1 SV=3 | D151: 77.46 | E151: 1 | F151: 1 | G151: 1 | H151: 1 | I151: 0 | J151: 0 | K151: 1 | L151: 1 | M151: 1 | N151: 1 | O151: 0 | P151: 0 | Q151: 1 | R151: 5.30E+04 | S151: 5.60E+04 | T151: NF | U151: 1.30E+04 | V151: 1.80E+04 | W151: NF | X151: 1.30E+04 | Y151: 4.1 | Z151: 4.3 | AA151: 0.0 | AB151: 1.0 | AC151: 1.4 | AD151: 0.0
A152: sp|P68366|TBA4A_HUMAN | B152: TUBA4A | C152: Tubulin alpha-4A chain OS=Homo sapiens GN=TUBA4A PE=1 SV=1 | D152: 49.89 | E152: 1 | F152: 1 | G152: 1 | H152: 1 | I152: 0 | J152: 0 | K152: 1 | L152: 1 | M152: 1 | N152: 1 | O152: 0 | P152: 0 | Q152: 1 | R152: 4.10E+04 | S152: 3.10E+04 | T152: NF | U152: 1.30E+04 | V152: 2.60E+04 | W152: NF | X152: 1.30E+04 | Y152: 3.2 | Z152: 2.4 | AA152: 0.0 | AB152: 1.0 | AC152: 2.0 | AD152: 0.0
A153: sp|Q99747|SNAG_HUMAN | B153: NAPG | C153: Gamma-soluble NSF attachment protein OS=Homo sapiens GN=NAPG PE=1 SV=1 | D153: 34.72 | E153: 1 | F153: 1 | G153: 0 | H153: 0 | I153: 0 | J153: 0 | K153: 1 | L153: 1 | M153: 0 | N153: 0 | O153: 0 | P153: 0 | Q153: 1 | R153: 3.00E+04 | S153: NF | T153: NF | U153: 1.30E+04 | V153: NF | W153: NF | X153: 1.30E+04 | Y153: 2.3 | Z153: 0.0 | AA153: 0.0 | AB153: 1.0 | AC153: 0.0 | AD153: 0.0
A154: sp|P37268|FDFT_HUMAN | B154: FDFT1 | C154: Squalene synthase OS=Homo sapiens GN=FDFT1 PE=1 SV=1 | D154: 48.08 | E154: 1 | F154: 1 | G154: 0 | H154: 0 | I154: 0 | J154: 0 | K154: 1 | L154: 1 | M154: 0 | N154: 0 | O154: 0 | P154: 0 | Q154: 1 | R154: 1.30E+04 | S154: NF | T154: NF | U154: 1.50E+04 | V154: NF | W154: NF | X154: 1.30E+04 | Y154: 1.0 | Z154: 0.0 | AA154: 0.0 | AB154: 1.2 | AC154: 0.0 | AD154: 0.0
A155: sp|Q96IJ6|GMPPA_HUMAN | B155: GMPPA | C155: Mannose-1-phosphate guanyltransferase alpha OS=Homo sapiens GN=GMPPA PE=1 SV=1 | D155: 46.26 | E155: 1 | F155: 1 | G155: 0 | H155: 0 | I155: 0 | J155: 0 | K155: 1 | L155: 1 | M155: 0 | N155: 0 | O155: 0 | P155: 0 | Q155: 1 | R155: 3.60E+04 | S155: NF | T155: NF | U155: 1.30E+04 | V155: NF | W155: NF | X155: 1.30E+04 | Y155: 2.8 | Z155: 0.0 | AA155: 0.0 | AB155: 1.0 | AC155: 0.0 | AD155: 0.0
A156: sp|O95905|ECD_HUMAN | B156: ECD | C156: Protein ecdysoneless homolog OS=Homo sapiens GN=ECD PE=1 SV=1 | D156: 72.71 | E156: 1 | F156: 1 | G156: 0 | H156: 0 | I156: 0 | J156: 0 | K156: 0 | L156: 0 | M156: 0 | N156: 0 | O156: 0 | P156: 0 | Q156: 1 | R156: 1.30E+04 | S156: NF | T156: NF | U156: NF | V156: NF | W156: NF | X156: 1.30E+04 | Y156: 1.0 | Z156: 0.0 | AA156: 0.0 | AB156: 0.0 | AC156: 0.0 | AD156: 0.0
A157: sp|Q9UBP6|TRMB_HUMAN | B157: METTL1 | C157: tRNA (guanine-N(7)-)-methyltransferase OS=Homo sapiens GN=METTL1 PE=1 SV=1 | D157: 31.45 | E157: 0 | F157: 0 | G157: 1 | H157: 1 | I157: 0 | J157: 0 | K157: 0 | L157: 0 | M157: 0 | N157: 0 | O157: 0 | P157: 0 | Q157: 1 | R157: NF | S157: 1.30E+04 | T157: NF | U157: NF | V157: NF | W157: NF | X157: 1.30E+04 | Y157: 0.0 | Z157: 1.0 | AA157: 0.0 | AB157: 0.0 | AC157: 0.0 | AD157: 0.0
A158: sp|Q9BXW9|FACD2_HUMAN | B158: FANCD2 | C158: Fanconi anemia group D2 protein OS=Homo sapiens GN=FANCD2 PE=1 SV=2 | D158: 164.02 | E158: 1 | F158: 1 | G158: 0 | H158: 0 | I158: 0 | J158: 0 | K158: 0 | L158: 0 | M158: 0 | N158: 0 | O158: 0 | P158: 0 | Q158: 1 | R158: 1.30E+04 | S158: NF | T158: NF | U158: NF | V158: NF | W158: NF | X158: 1.30E+04 | Y158: 1.0 | Z158: 0.0 | AA158: 0.0 | AB158: 0.0 | AC158: 0.0 | AD158: 0.0
A159: tr|H0YIC4|H0YIC4_HUMAN | B159: CS | C159: Citrate synthase (Fragment) OS=Homo sapiens GN=CS PE=1 SV=1 | D159: 14.11 | E159: 0 | F159: 0 | G159: 0 | H159: 0 | I159: 0 | J159: 0 | K159: 0 | L159: 0 | M159: 1 | N159: 1 | O159: 0 | P159: 0 | Q159: 1 | R159: NF | S159: NF | T159: NF | U159: NF | V159: 1.30E+04 | W159: NF | X159: 1.30E+04 | Y159: 0.0 | Z159: 0.0 | AA159: 0.0 | AB159: 0.0 | AC159: 1.0 | AD159: 0.0
A160: sp|P17812|PYRG1_HUMAN | B160: CTPS1 | C160: CTP synthase 1 OS=Homo sapiens GN=CTPS1 PE=1 SV=2 | D160: 66.65 | E160: 5 | F160: 5 | G160: 6 | H160: 7 | I160: 6 | J160: 6 | K160: 3 | L160: 3 | M160: 4 | N160: 4 | O160: 1 | P160: 1 | Q160: 7 | R160: 1.00E+06 | S160: 3.00E+06 | T160: 1.20E+06 | U160: 2.20E+05 | V160: 4.50E+05 | W160: 1.40E+04 | X160: 1.40E+04 | Y160: 71.4 | Z160: 214.3 | AA160: 85.7 | AB160: 15.7 | AC160: 32.1 | AD160: 1.0
A161: sp|Q8N1F7|NUP93_HUMAN | B161: NUP93 | C161: Nuclear pore complex protein Nup93 OS=Homo sapiens GN=NUP93 PE=1 SV=2 | D161: 93.43 | E161: 6 | F161: 6 | G161: 1 | H161: 1 | I161: 0 | J161: 0 | K161: 0 | L161: 0 | M161: 0 | N161: 0 | O161: 0 | P161: 0 | Q161: 6 | R161: 6.00E+05 | S161: 1.40E+04 | T161: NF | U161: NF | V161: NF | W161: NF | X161: 1.40E+04 | Y161: 42.9 | Z161: 1.0 | AA161: 0.0 | AB161: 0.0 | AC161: 0.0 | AD161: 0.0
A162: sp|Q96T76|MMS19_HUMAN | B162: MMS19 | C162: MMS19 nucleotide excision repair protein homolog OS=Homo sapiens GN=MMS19 PE=1 SV=2 | D162: 113.22 | E162: 3 | F162: 3 | G162: 3 | H162: 3 | I162: 0 | J162: 0 | K162: 2 | L162: 2 | M162: 2 | N162: 2 | O162: 0 | P162: 0 | Q162: 3 | R162: 6.70E+04 | S162: 5.10E+04 | T162: NF | U162: 1.40E+04 | V162: 4.60E+04 | W162: NF | X162: 1.40E+04 | Y162: 4.8 | Z162: 3.6 | AA162: 0.0 | AB162: 1.0 | AC162: 3.3 | AD162: 0.0
A163: sp|Q99757|THIOM_HUMAN | B163: TXN2 | C163: Thioredoxin, mitochondrial OS=Homo sapiens GN=TXN2 PE=1 SV=2 | D163: 18.37 | E163: 3 | F163: 3 | G163: 2 | H163: 2 | I163: 1 | J163: 2 | K163: 2 | L163: 2 | M163: 1 | N163: 1 | O163: 0 | P163: 0 | Q163: 3 | R163: 4.30E+05 | S163: 1.40E+05 | T163: 2.40E+05 | U163: 8.60E+04 | V163: 1.40E+04 | W163: NF | X163: 1.40E+04 | Y163: 30.7 | Z163: 10.0 | AA163: 17.1 | AB163: 6.1 | AC163: 1.0 | AD163: 0.0
A164: sp|Q86Z23|C1QL4_HUMAN | B164: C1QL4 | C164: Complement C1q-like protein 4 OS=Homo sapiens GN=C1QL4 PE=2 SV=1 | D164: 24.89 | E164: 3 | F164: 3 | G164: 1 | H164: 1 | I164: 0 | J164: 0 | K164: 2 | L164: 4 | M164: 0 | N164: 0 | O164: 1 | P164: 1 | Q164: 4 | R164: 5.10E+05 | S164: 9.00E+04 | T164: NF | U164: 3.10E+05 | V164: NF | W164: 1.40E+04 | X164: 1.40E+04 | Y164: 36.4 | Z164: 6.4 | AA164: 0.0 | AB164: 22.1 | AC164: 0.0 | AD164: 1.0
A165: sp|A9UHW6|MI4GD_HUMAN | B165: MIF4GD | C165: MIF4G domain-containing protein OS=Homo sapiens GN=MIF4GD PE=1 SV=1 | D165: 25.41 | E165: 3 | F165: 3 | G165: 3 | H165: 3 | I165: 0 | J165: 0 | K165: 1 | L165: 1 | M165: 1 | N165: 1 | O165: 0 | P165: 0 | Q165: 3 | R165: 3.20E+05 | S165: 2.00E+05 | T165: NF | U165: 3.50E+04 | V165: 1.40E+04 | W165: NF | X165: 1.40E+04 | Y165: 22.9 | Z165: 14.3 | AA165: 0.0 | AB165: 2.5 | AC165: 1.0 | AD165: 0.0
A166: sp|Q5RKV6|EXOS6_HUMAN | B166: EXOSC6 | C166: Exosome complex component MTR3 OS=Homo sapiens GN=EXOSC6 PE=1 SV=1 | D166: 28.22 | E166: 2 | F166: 2 | G166: 2 | H166: 2 | I166: 2 | J166: 3 | K166: 1 | L166: 1 | M166: 0 | N166: 0 | O166: 0 | P166: 0 | Q166: 3 | R166: 1.00E+05 | S166: 1.10E+05 | T166: 1.70E+05 | U166: 1.40E+04 | V166: NF | W166: NF | X166: 1.40E+04 | Y166: 7.1 | Z166: 7.9 | AA166: 12.1 | AB166: 1.0 | AC166: 0.0 | AD166: 0.0
A167: sp|Q9UNA0|ATS5_HUMAN | B167: ADAMTS5 | C167: A disintegrin and metalloproteinase with thrombospondin motifs 5 OS=Homo sapiens GN=ADAMTS5 PE=1 SV=2 | D167: 101.65 | E167: 1 | F167: 1 | G167: 2 | H167: 3 | I167: 2 | J167: 2 | K167: 1 | L167: 1 | M167: 0 | N167: 0 | O167: 0 | P167: 0 | Q167: 3 | R167: 4.10E+04 | S167: 1.80E+05 | T167: 1.60E+05 | U167: 1.40E+04 | V167: NF | W167: NF | X167: 1.40E+04 | Y167: 2.9 | Z167: 12.9 | AA167: 11.4 | AB167: 1.0 | AC167: 0.0 | AD167: 0.0
A168: sp|Q9H307|PININ_HUMAN | B168: PNN | C168: Pinin OS=Homo sapiens GN=PNN PE=1 SV=4 | D168: 81.56 | E168: 3 | F168: 3 | G168: 1 | H168: 1 | I168: 0 | J168: 0 | K168: 0 | L168: 0 | M168: 1 | N168: 1 | O168: 0 | P168: 0 | Q168: 3 | R168: 6.50E+05 | S168: 4.50E+04 | T168: NF | U168: NF | V168: 1.40E+04 | W168: NF | X168: 1.40E+04 | Y168: 46.4 | Z168: 3.2 | AA168: 0.0 | AB168: 0.0 | AC168: 1.0 | AD168: 0.0
A169: sp|Q9NYB0|TE2IP_HUMAN | B169: TERF2IP | C169: Telomeric repeat-binding factor 2-interacting protein 1 OS=Homo sapiens GN=TERF2IP PE=1 SV=1 | D169: 44.23 | E169: 3 | F169: 3 | G169: 1 | H169: 1 | I169: 0 | J169: 0 | K169: 0 | L169: 0 | M169: 0 | N169: 0 | O169: 0 | P169: 0 | Q169: 3 | R169: 1.60E+05 | S169: 1.40E+04 | T169: NF | U169: NF | V169: NF | W169: NF | X169: 1.40E+04 | Y169: 11.4 | Z169: 1.0 | AA169: 0.0 | AB169: 0.0 | AC169: 0.0 | AD169: 0.0
A170: sp|Q9BX68|HINT2_HUMAN | B170: HINT2 | C170: Histidine triad nucleotide-binding protein 2, mitochondrial OS=Homo sapiens GN=HINT2 PE=1 SV=1 | D170: 17.15 | E170: 2 | F170: 2 | G170: 1 | H170: 1 | I170: 1 | J170: 1 | K170: 2 | L170: 3 | M170: 1 | N170: 1 | O170: 0 | P170: 0 | Q170: 3 | R170: 2.20E+05 | S170: 9.60E+04 | T170: 9.60E+04 | U170: 9.70E+04 | V170: 1.40E+04 | W170: NF | X170: 1.40E+04 | Y170: 15.7 | Z170: 6.9 | AA170: 6.9 | AB170: 6.9 | AC170: 1.0 | AD170: 0.0
A171: sp|Q92882|OSTF1_HUMAN | B171: OSTF1 | C171: Osteoclast-stimulating factor 1 OS=Homo sapiens GN=OSTF1 PE=1 SV=2 | D171: 23.77 | E171: 2 | F171: 2 | G171: 2 | H171: 2 | I171: 0 | J171: 0 | K171: 2 | L171: 2 | M171: 1 | N171: 1 | O171: 0 | P171: 0 | Q171: 2 | R171: 1.10E+06 | S171: 1.20E+05 | T171: NF | U171: 1.00E+05 | V171: 1.40E+04 | W171: NF | X171: 1.40E+04 | Y171: 78.6 | Z171: 8.6 | AA171: 0.0 | AB171: 7.1 | AC171: 1.0 | AD171: 0.0
A172: sp|Q15651|HMGN3_HUMAN | B172: HMGN3 | C172: High mobility group nucleosome-binding domain-containing protein 3 OS=Homo sapiens GN=HMGN3 PE=1 SV=2 | D172: 10.66 | E172: 1 | F172: 2 | G172: 2 | H172: 3 | I172: 0 | J172: 0 | K172: 1 | L172: 1 | M172: 0 | N172: 0 | O172: 0 | P172: 0 | Q172: 3 | R172: 1.20E+05 | S172: 1.50E+06 | T172: NF | U172: 1.40E+04 | V172: NF | W172: NF | X172: 1.40E+04 | Y172: 8.6 | Z172: 107.1 | AA172: 0.0 | AB172: 1.0 | AC172: 0.0 | AD172: 0.0
A173: sp|Q92785|REQU_HUMAN | B173: DPF2 | C173: Zinc finger protein ubi-d4 OS=Homo sapiens GN=DPF2 PE=1 SV=2 | D173: 44.13 | E173: 1 | F173: 1 | G173: 2 | H173: 2 | I173: 0 | J173: 0 | K173: 1 | L173: 1 | M173: 0 | N173: 0 | O173: 0 | P173: 0 | Q173: 2 | R173: 3.70E+04 | S173: 8.00E+04 | T173: NF | U173: 1.40E+04 | V173: NF | W173: NF | X173: 1.40E+04 | Y173: 2.6 | Z173: 5.7 | AA173: 0.0 | AB173: 1.0 | AC173: 0.0 | AD173: 0.0
A174: sp|Q9Y3L5|RAP2C_HUMAN | B174: RAP2C | C174: Ras-related protein Rap-2c OS=Homo sapiens GN=RAP2C PE=1 SV=1 | D174: 20.73 | E174: 2 | F174: 2 | G174: 1 | H174: 1 | I174: 0 | J174: 0 | K174: 0 | L174: 0 | M174: 1 | N174: 1 | O174: 0 | P174: 0 | Q174: 2 | R174: 9.20E+04 | S174: 2.20E+04 | T174: NF | U174: NF | V174: 1.40E+04 | W174: NF | X174: 1.40E+04 | Y174: 6.6 | Z174: 1.6 | AA174: 0.0 | AB174: 0.0 | AC174: 1.0 | AD174: 0.0
A175: sp|Q13573|SNW1_HUMAN | B175: SNW1 | C175: SNW domain-containing protein 1 OS=Homo sapiens GN=SNW1 PE=1 SV=1 | D175: 61.46 | E175: 2 | F175: 2 | G175: 1 | H175: 1 | I175: 0 | J175: 0 | K175: 1 | L175: 1 | M175: 0 | N175: 0 | O175: 0 | P175: 0 | Q175: 2 | R175: 7.80E+04 | S175: 2.40E+04 | T175: NF | U175: 1.40E+04 | V175: NF | W175: NF | X175: 1.40E+04 | Y175: 5.6 | Z175: 1.7 | AA175: 0.0 | AB175: 1.0 | AC175: 0.0 | AD175: 0.0
A176: sp|Q5JTV8|TOIP1_HUMAN | B176: TOR1AIP1 | C176: Torsin-1A-interacting protein 1 OS=Homo sapiens GN=TOR1AIP1 PE=1 SV=2 | D176: 66.21 | E176: 2 | F176: 2 | G176: 1 | H176: 1 | I176: 0 | J176: 0 | K176: 0 | L176: 0 | M176: 0 | N176: 0 | O176: 0 | P176: 0 | Q176: 2 | R176: 6.70E+04 | S176: 1.40E+04 | T176: NF | U176: NF | V176: NF | W176: NF | X176: 1.40E+04 | Y176: 4.8 | Z176: 1.0 | AA176: 0.0 | AB176: 0.0 | AC176: 0.0 | AD176: 0.0
A177: sp|P05386|RLA1_HUMAN | B177: RPLP1 | C177: 60S acidic ribosomal protein P1 OS=Homo sapiens GN=RPLP1 PE=1 SV=1 | D177: 11.51 | E177: 1 | F177: 1 | G177: 1 | H177: 1 | I177: 1 | J177: 2 | K177: 1 | L177: 1 | M177: 1 | N177: 1 | O177: 1 | P177: 1 | Q177: 2 | R177: 1.20E+05 | S177: 7.50E+04 | T177: 1.30E+06 | U177: 2.10E+04 | V177: 1.40E+04 | W177: 3.30E+05 | X177: 1.40E+04 | Y177: 8.6 | Z177: 5.4 | AA177: 92.9 | AB177: 1.5 | AC177: 1.0 | AD177: 23.6
A178: sp|Q8TBE9|NANP_HUMAN | B178: NANP | C178: N-acylneuraminate-9-phosphatase OS=Homo sapiens GN=NANP PE=1 SV=1 | D178: 27.8 | E178: 1 | F178: 1 | G178: 1 | H178: 1 | I178: 1 | J178: 1 | K178: 1 | L178: 1 | M178: 0 | N178: 0 | O178: 0 | P178: 0 | Q178: 1 | R178: 6.20E+04 | S178: 3.40E+04 | T178: 2.90E+04 | U178: 1.40E+04 | V178: NF | W178: NF | X178: 1.40E+04 | Y178: 4.4 | Z178: 2.4 | AA178: 2.1 | AB178: 1.0 | AC178: 0.0 | AD178: 0.0
A179: sp|P09110|THIK_HUMAN | B179: ACAA1 | C179: 3-ketoacyl-CoA thiolase, peroxisomal OS=Homo sapiens GN=ACAA1 PE=1 SV=2 | D179: 44.26 | E179: 1 | F179: 1 | G179: 1 | H179: 1 | I179: 0 | J179: 0 | K179: 1 | L179: 1 | M179: 1 | N179: 1 | O179: 0 | P179: 0 | Q179: 1 | R179: 2.90E+04 | S179: 2.70E+04 | T179: NF | U179: 1.40E+04 | V179: 1.50E+04 | W179: NF | X179: 1.40E+04 | Y179: 2.1 | Z179: 1.9 | AA179: 0.0 | AB179: 1.0 | AC179: 1.1 | AD179: 0.0
A180: sp|P36954|RPB9_HUMAN | B180: POLR2I | C180: DNA-directed RNA polymerase II subunit RPB9 OS=Homo sapiens GN=POLR2I PE=1 SV=1 | D180: 14.51 | E180: 0 | F180: 0 | G180: 1 | H180: 1 | I180: 0 | J180: 0 | K180: 1 | L180: 1 | M180: 1 | N180: 1 | O180: 0 | P180: 0 | Q180: 1 | R180: NF | S180: 1.90E+04 | T180: NF | U180: 1.40E+04 | V180: 1.90E+04 | W180: NF | X180: 1.40E+04 | Y180: 0.0 | Z180: 1.4 | AA180: 0.0 | AB180: 1.0 | AC180: 1.4 | AD180: 0.0
A181: sp|P31323|KAP3_HUMAN | B181: PRKAR2B | C181: cAMP-dependent protein kinase type II-beta regulatory subunit OS=Homo sapiens GN=PRKAR2B PE=1 SV=3 | D181: 46.27 | E181: 1 | F181: 1 | G181: 1 | H181: 1 | I181: 0 | J181: 0 | K181: 0 | L181: 0 | M181: 1 | N181: 1 | O181: 0 | P181: 0 | Q181: 1 | R181: 7.80E+04 | S181: 6.60E+04 | T181: NF | U181: NF | V181: 1.40E+04 | W181: NF | X181: 1.40E+04 | Y181: 5.6 | Z181: 4.7 | AA181: 0.0 | AB181: 0.0 | AC181: 1.0 | AD181: 0.0
A182: sp|Q13057|COASY_HUMAN | B182: COASY | C182: Bifunctional coenzyme A synthase OS=Homo sapiens GN=COASY PE=1 SV=4 | D182: 62.29 | E182: 0 | F182: 0 | G182: 1 | H182: 1 | I182: 0 | J182: 0 | K182: 0 | L182: 0 | M182: 1 | N182: 1 | O182: 0 | P182: 0 | Q182: 1 | R182: NF | S182: 4.20E+04 | T182: NF | U182: NF | V182: 1.40E+04 | W182: NF | X182: 1.40E+04 | Y182: 0.0 | Z182: 3.0 | AA182: 0.0 | AB182: 0.0 | AC182: 1.0 | AD182: 0.0
A183: tr|B3KMW0|B3KMW0_HUMAN | C183: cDNA FLJ12773 fis, clone NT2RP2001660, highly similar to Conserved oligomeric Golgi complex component 5 OS=Homo sapiens PE=2 SV=1 | D183: 51.78 | E183: 1 | F183: 1 | G183: 0 | H183: 0 | I183: 0 | J183: 0 | K183: 0 | L183: 0 | M183: 1 | N183: 1 | O183: 0 | P183: 0 | Q183: 1 | R183: 2.20E+04 | S183: NF | T183: NF | U183: NF | V183: 1.40E+04 | W183: NF | X183: 1.40E+04 | Y183: 1.6 | Z183: 0.0 | AA183: 0.0 | AB183: 0.0 | AC183: 1.0 | AD183: 0.0
A184: sp|Q9HAD4|WDR41_HUMAN | B184: WDR41 | C184: WD repeat-containing protein 41 OS=Homo sapiens GN=WDR41 PE=1 SV=3 | D184: 51.7 | E184: 0 | F184: 0 | G184: 1 | H184: 1 | I184: 0 | J184: 0 | K184: 1 | L184: 1 | M184: 0 | N184: 0 | O184: 0 | P184: 0 | Q184: 1 | R184: NF | S184: 5.20E+04 | T184: NF | U184: 1.40E+04 | V184: NF | W184: NF | X184: 1.40E+04 | Y184: 0.0 | Z184: 3.7 | AA184: 0.0 | AB184: 1.0 | AC184: 0.0 | AD184: 0.0
A185: sp|Q9UBV2|SE1L1_HUMAN | B185: SEL1L | C185: Protein sel-1 homolog 1 OS=Homo sapiens GN=SEL1L PE=1 SV=3 | D185: 88.7 | E185: 0 | F185: 0 | G185: 0 | H185: 0 | I185: 1 | J185: 1 | K185: 0 | L185: 0 | M185: 0 | N185: 0 | O185: 0 | P185: 0 | Q185: 1 | R185: NF | S185: NF | T185: 1.40E+04 | U185: NF | V185: NF | W185: NF | X185: 1.40E+04 | Y185: 0.0 | Z185: 0.0 | AA185: 1.0 | AB185: 0.0 | AC185: 0.0 | AD185: 0.0
A186: sp|Q9ULI3|HEG1_HUMAN | B186: HEG1 | C186: Protein HEG homolog 1 OS=Homo sapiens GN=HEG1 PE=1 SV=3 | D186: 147.37 | E186: 1 | F186: 1 | G186: 0 | H186: 0 | I186: 0 | J186: 0 | K186: 0 | L186: 0 | M186: 0 | N186: 0 | O186: 0 | P186: 0 | Q186: 1 | R186: 1.40E+04 | S186: NF | T186: NF | U186: NF | V186: NF | W186: NF | X186: 1.40E+04 | Y186: 1.0 | Z186: 0.0 | AA186: 0.0 | AB186: 0.0 | AC186: 0.0 | AD186: 0.0
A187: sp|Q8TDW7|FAT3_HUMAN | B187: FAT3 | C187: Protocadherin Fat 3 OS=Homo sapiens GN=FAT3 PE=2 SV=2 | D187: 505.21 | E187: 0 | F187: 0 | G187: 12 | H187: 12 | I187: 27 | J187: 30 | K187: 5 | L187: 6 | M187: 1 | N187: 1 | O187: 13 | P187: 14 | Q187: 30 | R187: NF | S187: 1.80E+06 | T187: 7.60E+06 | U187: 3.10E+05 | V187: 1.50E+04 | W187: 3.50E+06 | X187: 1.50E+04 | Y187: 0.0 | Z187: 120.0 | AA187: 506.7 | AB187: 20.7 | AC187: 1.0 | AD187: 233.3
A188: sp|P49354|FNTA_HUMAN | B188: FNTA | C188: Protein farnesyltransferase/geranylgeranyltransferase type-1 subunit alpha OS=Homo sapiens GN=FNTA PE=1 SV=1 | D188: 44.38 | E188: 5 | F188: 5 | G188: 5 | H188: 7 | I188: 1 | J188: 1 | K188: 5 | L188: 5 | M188: 3 | N188: 3 | O188: 1 | P188: 2 | Q188: 7 | R188: 4.40E+05 | S188: 6.00E+05 | T188: 1.10E+05 | U188: 1.80E+05 | V188: 6.30E+04 | W188: 1.50E+04 | X188: 1.50E+04 | Y188: 29.3 | Z188: 40.0 | AA188: 7.3 | AB188: 12.0 | AC188: 4.2 | AD188: 1.0
A189: sp|Q9ULA0|DNPEP_HUMAN | B189: DNPEP | C189: Aspartyl aminopeptidase OS=Homo sapiens GN=DNPEP PE=1 SV=1 | D189: 52.39 | E189: 5 | F189: 5 | G189: 5 | H189: 5 | I189: 2 | J189: 2 | K189: 0 | L189: 0 | M189: 2 | N189: 2 | O189: 0 | P189: 0 | Q189: 5 | R189: 6.10E+05 | S189: 4.60E+05 | T189: 5.40E+04 | U189: NF | V189: 1.50E+04 | W189: NF | X189: 1.50E+04 | Y189: 40.7 | Z189: 30.7 | AA189: 3.6 | AB189: 0.0 | AC189: 1.0 | AD189: 0.0
A190: sp|Q9HBM1|SPC25_HUMAN | B190: SPC25 | C190: Kinetochore protein Spc25 OS=Homo sapiens GN=SPC25 PE=1 SV=1 | D190: 26.14 | E190: 3 | F190: 3 | G190: 4 | H190: 4 | I190: 0 | J190: 0 | K190: 1 | L190: 1 | M190: 1 | N190: 1 | O190: 0 | P190: 0 | Q190: 4 | R190: 1.60E+05 | S190: 1.20E+05 | T190: NF | U190: 2.50E+04 | V190: 1.50E+04 | W190: NF | X190: 1.50E+04 | Y190: 10.7 | Z190: 8.0 | AA190: 0.0 | AB190: 1.7 | AC190: 1.0 | AD190: 0.0
A191: sp|Q9BZR6|RTN4R_HUMAN | B191: RTN4R | C191: Reticulon-4 receptor OS=Homo sapiens GN=RTN4R PE=1 SV=1 | D191: 50.68 | E191: 2 | F191: 2 | G191: 3 | H191: 3 | I191: 3 | J191: 3 | K191: 2 | L191: 2 | M191: 0 | N191: 0 | O191: 1 | P191: 1 | Q191: 3 | R191: 1.50E+05 | S191: 3.00E+05 | T191: 5.00E+05 | U191: 2.10E+05 | V191: NF | W191: 1.50E+04 | X191: 1.50E+04 | Y191: 10.0 | Z191: 20.0 | AA191: 33.3 | AB191: 14.0 | AC191: 0.0 | AD191: 1.0
A192: sp|Q96T58|MINT_HUMAN | B192: SPEN | C192: Msx2-interacting protein OS=Homo sapiens GN=SPEN PE=1 SV=1 | D192: 402 | E192: 2 | F192: 2 | G192: 2 | H192: 2 | I192: 3 | J192: 3 | K192: 2 | L192: 2 | M192: 1 | N192: 1 | O192: 0 | P192: 0 | Q192: 3 | R192: 2.40E+05 | S192: 7.90E+04 | T192: 2.10E+05 | U192: 8.70E+04 | V192: 1.50E+04 | W192: NF | X192: 1.50E+04 | Y192: 16.0 | Z192: 5.3 | AA192: 14.0 | AB192: 5.8 | AC192: 1.0 | AD192: 0.0
A193: sp|O60512|B4GT3_HUMAN | B193: B4GALT3 | C193: Beta-1,4-galactosyltransferase 3 OS=Homo sapiens GN=B4GALT3 PE=1 SV=2 | D193: 43.9 | E193: 0 | F193: 0 | G193: 3 | H193: 3 | I193: 0 | J193: 0 | K193: 2 | L193: 2 | M193: 1 | N193: 1 | O193: 1 | P193: 2 | Q193: 3 | R193: NF | S193: 3.20E+05 | T193: NF | U193: 1.30E+05 | V193: 1.50E+04 | W193: 5.40E+04 | X193: 1.50E+04 | Y193: 0.0 | Z193: 21.3 | AA193: 0.0 | AB193: 8.7 | AC193: 1.0 | AD193: 3.6
A194: sp|Q9UKM9|RALY_HUMAN | B194: RALY | C194: RNA-binding protein Raly OS=Homo sapiens GN=RALY PE=1 SV=1 | D194: 32.44 | E194: 3 | F194: 3 | G194: 2 | H194: 2 | I194: 0 | J194: 0 | K194: 1 | L194: 1 | M194: 0 | N194: 0 | O194: 0 | P194: 0 | Q194: 3 | R194: 2.00E+05 | S194: 2.00E+05 | T194: NF | U194: 1.50E+04 | V194: NF | W194: NF | X194: 1.50E+04 | Y194: 13.3 | Z194: 13.3 | AA194: 0.0 | AB194: 1.0 | AC194: 0.0 | AD194: 0.0
A195: sp|Q13011|ECH1_HUMAN | B195: ECH1 | C195: Delta(3,5)-Delta(2,4)-dienoyl-CoA isomerase, mitochondrial OS=Homo sapiens GN=ECH1 PE=1 SV=2 | D195: 35.79 | E195: 2 | F195: 2 | G195: 2 | H195: 2 | I195: 0 | J195: 0 | K195: 0 | L195: 0 | M195: 1 | N195: 1 | O195: 0 | P195: 0 | Q195: 2 | R195: 1.90E+05 | S195: 2.60E+05 | T195: NF | U195: NF | V195: 1.50E+04 | W195: NF | X195: 1.50E+04 | Y195: 12.7 | Z195: 17.3 | AA195: 0.0 | AB195: 0.0 | AC195: 1.0 | AD195: 0.0
A196: sp|P49642|PRI1_HUMAN | B196: PRIM1 | C196: DNA primase small subunit OS=Homo sapiens GN=PRIM1 PE=1 SV=1 | D196: 49.87 | E196: 2 | F196: 2 | G196: 2 | H196: 2 | I196: 0 | J196: 0 | K196: 1 | L196: 1 | M196: 0 | N196: 0 | O196: 0 | P196: 0 | Q196: 2 | R196: 1.10E+05 | S196: 1.20E+05 | T196: NF | U196: 1.50E+04 | V196: NF | W196: NF | X196: 1.50E+04 | Y196: 7.3 | Z196: 8.0 | AA196: 0.0 | AB196: 1.0 | AC196: 0.0 | AD196: 0.0
A197: sp|P23434|GCSH_HUMAN | B197: GCSH | C197: Glycine cleavage system H protein, mitochondrial OS=Homo sapiens GN=GCSH PE=1 SV=2 | D197: 18.87 | E197: 2 | F197: 2 | G197: 1 | H197: 1 | I197: 1 | J197: 1 | K197: 1 | L197: 1 | M197: 1 | N197: 1 | O197: 1 | P197: 1 | Q197: 2 | R197: 1.70E+05 | S197: 4.60E+04 | T197: 2.70E+05 | U197: 3.70E+04 | V197: 1.50E+04 | W197: 1.70E+05 | X197: 1.50E+04 | Y197: 11.3 | Z197: 3.1 | AA197: 18.0 | AB197: 2.5 | AC197: 1.0 | AD197: 11.3
A198: sp|Q9NS69|TOM22_HUMAN | B198: TOMM22 | C198: Mitochondrial import receptor subunit TOM22 homolog OS=Homo sapiens GN=TOMM22 PE=1 SV=3 | D198: 15.51 | E198: 1 | F198: 1 | G198: 2 | H198: 2 | I198: 0 | J198: 0 | K198: 0 | L198: 0 | M198: 1 | N198: 1 | O198: 1 | P198: 1 | Q198: 2 | R198: 6.20E+04 | S198: 3.00E+04 | T198: NF | U198: NF | V198: 1.50E+04 | W198: 2.00E+04 | X198: 1.50E+04 | Y198: 4.1 | Z198: 2.0 | AA198: 0.0 | AB198: 0.0 | AC198: 1.0 | AD198: 1.3
A199: sp|Q13426|XRCC4_HUMAN | B199: XRCC4 | C199: DNA repair protein XRCC4 OS=Homo sapiens GN=XRCC4 PE=1 SV=2 | D199: 38.26 | E199: 1 | F199: 1 | G199: 1 | H199: 1 | I199: 0 | J199: 0 | K199: 2 | L199: 2 | M199: 1 | N199: 1 | O199: 0 | P199: 0 | Q199: 2 | R199: 3.40E+05 | S199: 3.50E+04 | T199: NF | U199: 2.80E+04 | V199: 1.50E+04 | W199: NF | X199: 1.50E+04 | Y199: 22.7 | Z199: 2.3 | AA199: 0.0 | AB199: 1.9 | AC199: 1.0 | AD199: 0.0
A200: sp|O75496|GEMI_HUMAN | B200: GMNN | C200: Geminin OS=Homo sapiens GN=GMNN PE=1 SV=1 | D200: 23.55 | E200: 2 | F200: 2 | G200: 2 | H200: 2 | I200: 0 | J200: 0 | K200: 0 | L200: 0 | M200: 1 | N200: 1 | O200: 0 | P200: 0 | Q200: 2 | R200: 3.10E+07 | S200: 2.00E+07 | T200: NF | U200: NF | V200: 1.50E+04 | W200: NF | X200: 1.50E+04 | Y200: 2066.7 | Z200: 1333.3 | AA200: 0.0 | AB200: 0.0 | AC200: 1.0 | AD200: 0.0
... 2923 more rows

Sheet Sheet3
A1: reference | B1: Gene Symbol | C1: Annotation | D1: MWT(kDa) | E1: Blank | F1: Total C1 | G1: Total C2 | H1: Total C3 | I1: C Count | J1: C Sum Total | K1: Blank | L1: Total T2 | M1: Total T3 | N1: Total T22 | O1: T Count | P1: T Sum Total | Q1: C/T sum total ratio | R1: Blank | S1: Sum Intensity C1 | T1: Sum Intensity C2 | U1: Sum Intensity C3 | V1: C Count | W1: C Sum Sum Intensity | X1: Sum Intensity T2 | Y1: Sum Intensity T3 | Z1: Sum Intensity T22 | AA1: T Count | AB1: T Sum Sum Intensity | AC1: C/T sum intensity total ratio
